{"text_format":"1","workbook":"xlsx","n_sheets":6,"sheets":["Kursus Master","Kursus Ikhtisas","Borang A","Sheet1","Borang B","List"],"not_rendered":{"charts":0,"images":2,"macros":1,"external_links":7,"defined_names":70,"comments":0,"pivot_tables":0},"unopened":[],"bounds":{"document_bytes":16777216,"sheet_cells":100000,"rows_first":2000,"rows_last":500,"rows_between":2000,"halvings":0,"cell_chars":16384,"cell_head_chars":4096},"cells_cut":0,"cells_raw":0,"read":"whole","date_system":"1900"}

{"sheet":"Kursus Master","index":0,"n_rows":27,"n_cols":4,"rows_kept":27,"cut":false,"hidden":false,"merged":[[5,0,5,1],[2,0,4,1]]}
[null,"LAMPIRAN B"]
[]
["SENARAI KURSUS-KURSUS YANG DIPERLUKAN BAGI PENGANUGERAHAN BIASISWA KERAJAAN KELUAR NEGERI SESI PENGAJIAN 2024/2025"]
[]
[]
["PERINGKAT IJAZAH SARJANA (MASTER’S DEGREE)"]
[]
["BIL","KURSUS"]
[]
["A","LIFE SCIENCES AND MEDICINE"]
[1,"MSc Genetic and Genomic Counselling",null,"2\n1"]
[2,"MSc Embryology",null,"2\n1"]
[3,"MSc Immunology and Immunogenetics",null,"2\n1"]
[4,"MSc Applied Bioinformatics and Genomics",null,"2\n1"]
[5,"MSc Transfusion, Transplantation and Tissue Banking",null,"2\n1"]
[6,"MSc Pathology",null,"2\n1"]
[]
["B","SOCIAL SCIENCES AND MANAGEMENT"]
[7,"MA Arts & Cultural Management / MA Cultural Heritage Management / MA Management in the Creative and Cultural Industries / MA Cultural and Creative Industries",null,"2\n1"]
[8,"Master of Translating and Interpreting",null,"2\n1"]
[9,"Master of Science in Information and Library Studies",null,"2\n1"]
[10,"MSc Information Management (Archives and Records Management)",null,"2\n1"]
[11,"Master in Occupational Safety, Health and Management / Health, Safety and Environment Management",null,"2\n1"]
[12,"Master of Science in Information Security",null,"2\n1"]
[13,"MSc Geospatial and Mapping Sciences / MSc Land and Hydrographic Surveying / MSc Applied Geographical Information Systems and Remote Sensing / MSc Applied Geographical Information Systems ",null,"2\n1"]
[14,"MSc Geospatial Sciences",null,"2\n1"]
[15,"Master of Environmental Law",null,"2\n2"]

{"sheet":"Kursus Ikhtisas","index":1,"n_rows":10,"n_cols":4,"rows_kept":10,"cut":false,"hidden":false,"merged":[[4,0,4,1],[2,0,3,1]]}
[null,"LAMPIRAN C"]
[]
[{"$f":"'Kursus Master'!A3:B5","v":"SENARAI KURSUS-KURSUS YANG DIPERLUKAN BAGI PENGANUGERAHAN BIASISWA KERAJAAN KELUAR NEGERI SESI PENGAJIAN 2024/2025"}]
[]
["PERINGKAT IKHTISAS (PROFESSIONAL)"]
[]
["BIL","KURSUS"]
[1,"Association of Chartered Certified Accountants (ACCA)",null,"2\n1"]
[2,"Institute of Chartered Accountants in England and Wales (ICAEW)",null,"2\n1"]
[3,"Bar Practice Teaching Course (BPTC) / Graduate Diploma in Legal Practice / Barrister-At-Law of England or Northern Ireland / Bar Vocational / Legal Practice (LPC)",null,"2\n1"]

{"sheet":"Borang A","index":2,"n_rows":284,"n_cols":585,"rows_kept":284,"cut":false,"hidden":false,"merged":[[68,1,68,6],[68,7,68,27],[51,23,58,27],[52,1,53,3],[52,4,53,5],[34,3,34,27],[33,3,33,27],[37,3,37,27],[40,3,40,27],[41,3,41,27],[38,3,38,27],[35,3,35,26],[6,0,6,28],[7,1,7,27],[12,2,12,27],[13,2,13,27],[14,2,14,27],[45,2,45,27],[66,1,66,6],[66,7,66,27],[31,3,31,27],[32,3,32,27],[36,3,36,27],[43,2,43,27],[44,2,44,27],[63,15,63,18],[60,0,60,28],[22,1,25,27],[26,1,26,27],[27,2,27,27],[28,2,28,27],[29,2,29,27],[39,3,39,27],[30,2,30,27],[61,1,61,27],[65,1,65,27],[81,1,81,3],[81,4,81,9],[81,10,81,12],[81,13,81,18],[81,19,81,20],[81,21,81,27],[76,15,76,16],[78,1,78,9],[78,10,78,18],[78,19,78,27],[79,1,80,9],[79,10,80,18],[79,19,79,20],[79,21,79,27],[80,19,80,20],[76,5,76,6],[76,7,76,8],[76,9,76,10],[76,11,76,12],[76,13,76,14],[76,1,76,4],[76,17,76,23],[76,24,76,27],[87,1,87,27],[88,1,88,4],[88,5,88,27],[89,1,89,15],[89,16,89,27],[84,1,84,9],[84,10,84,27],[85,1,85,9],[83,1,83,7],[83,8,83,11],[83,12,83,14],[83,15,83,17],[83,18,83,21],[83,22,83,27],[85,26,85,27],[85,17,85,21],[85,10,85,16],[93,21,93,27],[94,1,94,3],[94,4,94,9],[94,10,94,12],[94,13,94,18],[94,19,94,20],[94,21,94,27],[90,1,90,9],[90,10,90,18],[90,19,90,27],[91,1,93,9],[91,10,93,18],[91,19,91,20],[91,21,91,27],[92,19,92,20],[92,21,92,27],[93,19,93,20],[99,2,99,10],[99,11,99,15],[99,20,99,21],[99,26,99,27],[100,2,100,10],[100,11,100,15],[100,20,100,21],[100,26,100,27],[96,1,96,27],[97,1,98,1],[97,2,98,10],[97,11,98,15],[97,16,97,27],[98,16,98,21],[98,22,98,27],[103,2,103,10],[103,11,103,15],[103,20,103,21],[103,26,103,27],[104,2,104,10],[104,11,104,15],[104,20,104,21],[104,26,104,27],[101,2,101,10],[101,11,101,15],[101,20,101,21],[101,26,101,27],[102,2,102,10],[102,11,102,15],[102,20,102,21],[102,26,102,27],[109,1,109,27],[110,1,110,2],[110,3,110,10],[110,11,110,16],[110,17,110,21],[110,22,110,27],[106,1,106,27],[107,1,107,5],[107,6,107,7],[107,9,107,10],[107,12,107,13],[107,14,107,18],[107,19,107,20],[107,22,107,23],[107,25,107,26],[111,1,111,2],[111,3,111,10],[111,11,111,16],[111,17,111,21],[111,22,111,27],[112,1,112,2],[112,3,112,10],[112,11,112,16],[112,17,112,21],[112,22,112,27],[120,1,120,11],[121,1,121,11],[116,1,116,27],[118,1,118,11],[119,1,119,11],[113,1,113,2],[113,3,113,10],[113,11,113,16],[113,17,113,21],[113,22,113,27],[114,1,114,2],[114,3,114,10],[114,11,114,16],[114,17,114,21],[114,22,114,27],[127,2,127,7],[127,8,127,13],[127,14,127,20],[127,21,127,23],[127,24,127,25],[127,26,127,27],[123,1,123,27],[124,1,124,27],[125,1,126,1],[125,2,126,7],[125,8,126,13],[125,14,126,20],[125,21,126,23],[125,24,125,27],[126,24,126,25],[126,26,126,27],[129,2,129,7],[129,8,129,13],[129,14,129,20],[129,21,129,23],[129,24,129,25],[129,26,129,27],[128,2,128,7],[128,8,128,13],[128,14,128,20],[128,21,128,23],[128,24,128,25],[128,26,128,27],[131,2,131,7],[131,8,131,13],[131,14,131,20],[131,21,131,23],[131,24,131,25],[131,26,131,27],[130,2,130,7],[130,8,130,13],[130,14,130,20],[130,21,130,23],[130,24,130,25],[130,26,130,27],[133,2,133,7],[133,8,133,13],[133,14,133,20],[133,21,133,23],[133,24,133,25],[133,26,133,27],[132,2,132,7],[132,8,132,13],[132,14,132,20],[132,21,132,23],[132,24,132,25],[132,26,132,27],[135,2,135,7],[135,8,135,13],[135,14,135,20],[135,21,135,23],[135,24,135,25],[135,26,135,27],[134,2,134,7],[134,8,134,13],[134,14,134,20],[134,21,134,23],[134,24,134,25],[134,26,134,27],[137,2,137,7],[137,8,137,13],[137,14,137,20],[137,21,137,23],[137,24,137,25],[137,26,137,27],[136,2,136,7],[136,8,136,13],[136,14,136,20],[136,21,136,23],[136,24,136,25],[136,26,136,27],[139,2,139,7],[139,8,139,13],[139,14,139,20],[139,21,139,23],[139,24,139,25],[139,26,139,27],[138,2,138,7],[138,8,138,13],[138,14,138,20],[138,21,138,23],[138,24,138,25],[138,26,138,27],[141,2,141,7],[141,8,141,13],[141,14,141,20],[141,21,141,23],[141,24,141,25],[141,26,141,27],[140,2,140,7],[140,8,140,13],[140,14,140,20],[140,21,140,23],[140,24,140,25],[140,26,140,27],[148,2,148,7],[148,8,148,13],[148,14,148,20],[148,21,148,23],[148,24,148,25],[148,26,148,27],[145,1,145,27],[146,1,147,1],[146,2,147,7],[146,8,147,13],[146,14,147,20],[146,21,147,23],[146,24,146,27],[147,24,147,25],[147,26,147,27],[150,2,150,7],[150,8,150,13],[150,14,150,20],[150,21,150,23],[150,24,150,25],[150,26,150,27],[149,2,149,7],[149,8,149,13],[149,14,149,20],[149,21,149,23],[149,24,149,25],[149,26,149,27],[152,2,152,7],[152,8,152,13],[152,14,152,20],[152,21,152,23],[152,24,152,25],[152,26,152,27],[151,2,151,7],[151,8,151,13],[151,14,151,20],[151,21,151,23],[151,24,151,25],[151,26,151,27],[154,2,154,7],[154,8,154,13],[154,14,154,20],[154,21,154,23],[154,24,154,25],[154,26,154,27],[153,2,153,7],[153,8,153,13],[153,14,153,20],[153,21,153,23],[153,24,153,25],[153,26,153,27],[156,2,156,7],[156,8,156,13],[156,14,156,20],[156,21,156,23],[156,24,156,25],[156,26,156,27],[155,2,155,7],[155,8,155,13],[155,14,155,20],[155,21,155,23],[155,24,155,25],[155,26,155,27],[163,1,163,27],[164,1,165,1],[164,2,165,11],[164,12,165,20],[164,21,165,23],[164,24,164,27],[165,24,165,25],[165,26,165,27],[157,2,157,7],[157,8,157,13],[157,14,157,20],[157,21,157,23],[157,24,157,25],[157,26,157,27],[179,2,179,12],[179,13,179,23],[175,2,175,12],[175,13,175,23],[175,24,175,25],[175,26,175,27],[176,2,176,12],[176,13,176,23],[176,24,176,25],[176,26,176,27],[178,13,178,23],[178,24,178,25],[178,26,178,27],[184,1,184,6],[184,7,184,13],[184,14,184,20],[184,21,184,27],[185,1,185,6],[185,7,185,13],[185,14,185,20],[185,21,185,27],[181,1,181,27],[182,1,182,6],[182,7,182,13],[182,14,182,20],[182,21,182,27],[183,1,183,6],[183,7,183,13],[183,14,183,20],[183,21,183,27],[188,1,188,6],[188,7,188,13],[188,14,188,20],[188,21,188,27],[189,1,189,6],[189,7,189,13],[189,14,189,20],[189,21,189,27],[186,1,186,6],[186,7,186,13],[186,14,186,20],[186,21,186,27],[187,1,187,6],[187,7,187,13],[187,14,187,20],[187,21,187,27],[194,1,194,6],[194,7,194,13],[194,14,194,20],[194,21,194,27],[195,1,195,20],[195,21,195,27],[192,7,192,13],[192,14,192,20],[192,21,192,27],[193,4,193,6],[193,7,193,13],[193,14,193,20],[193,21,193,27],[190,1,193,3],[190,4,190,6],[190,7,190,13],[190,14,190,20],[190,21,190,27],[191,4,191,6],[191,7,191,13],[191,14,191,20],[191,21,191,27],[192,4,192,6],[199,1,199,7],[199,8,199,27],[201,1,208,27],[209,1,209,8],[209,9,209,24],[210,1,210,8],[210,9,210,24],[197,1,197,27],[198,1,198,19],[198,20,198,21],[198,22,198,23],[198,24,198,25],[198,26,198,27],[214,1,214,27],[215,1,215,27],[217,2,217,21],[217,22,217,25],[217,26,217,27],[218,2,218,21],[218,22,218,25],[218,26,218,27],[220,26,220,27],[222,26,222,27],[223,3,223,21],[223,22,223,25],[223,26,223,27],[224,3,224,21],[224,22,224,25],[224,26,224,27],[219,2,219,21],[219,22,219,25],[219,26,219,27],[220,2,220,21],[220,22,220,25],[221,2,221,27],[259,1,260,13],[259,14,263,27],[261,1,261,13],[262,1,263,13],[246,1,247,6],[246,7,247,27],[248,1,249,6],[250,1,254,6],[250,7,254,27],[248,23,249,25],[248,26,249,27],[248,19,249,22],[248,7,249,18],[245,1,245,27],[233,22,233,25],[233,26,233,27],[239,1,239,17],[239,18,239,19],[239,21,239,22],[239,24,239,27],[258,1,258,13],[258,14,258,27],[231,22,231,25],[231,26,231,27],[229,3,229,21],[232,22,232,25],[232,26,232,27],[235,1,235,13],[235,14,235,27],[236,1,238,13],[236,14,238,27],[230,22,230,25],[230,26,230,27],[228,26,228,27],[230,3,230,21],[168,2,168,11],[168,12,168,20],[168,21,168,23],[168,24,168,25],[168,26,168,27],[169,2,169,11],[169,12,169,20],[169,21,169,23],[169,24,169,25],[169,26,169,27],[227,26,227,27],[228,3,228,21],[225,3,225,21],[225,22,225,25],[225,26,225,27],[226,3,226,21],[226,22,226,25],[226,26,226,27],[227,3,227,21],[227,22,227,25],[222,3,222,21],[222,22,222,25],[276,22,276,25],[276,26,276,27],[275,3,275,21],[275,22,275,25],[275,26,275,27],[268,26,268,27],[173,1,174,1],[170,2,170,11],[170,12,170,20],[170,21,170,23],[170,24,170,25],[170,26,170,27],[172,1,172,27],[173,2,174,12],[173,13,174,23],[173,24,173,27],[174,24,174,25],[174,26,174,27],[231,2,231,21],[232,2,232,21],[233,2,233,21],[229,22,229,25],[229,26,229,27],[228,22,228,25],[270,22,270,25],[270,26,270,27],[283,2,283,21],[283,22,283,25],[283,26,283,27],[271,3,271,21],[271,22,271,25],[279,3,279,21],[279,22,279,25],[279,26,279,27],[271,26,271,27],[272,3,272,21],[272,22,272,25],[272,26,272,27],[273,3,273,21],[273,22,273,25],[273,26,273,27],[274,3,274,21],[274,22,274,25],[274,26,274,27],[280,3,280,21],[280,22,280,25],[280,26,280,27],[276,3,276,21],[55,504,55,583],[56,33,56,567],[281,2,281,21],[281,22,281,25],[281,26,281,27],[282,2,282,21],[80,21,80,27],[74,11,74,27],[70,24,70,27],[282,22,282,25],[282,26,282,27],[265,2,265,21],[265,22,265,25],[265,26,265,27],[266,2,266,21],[266,22,266,25],[266,26,266,27],[267,2,267,21],[267,22,267,25],[267,26,267,27],[268,2,268,21],[268,22,268,25],[269,2,269,27],[270,3,270,21],[55,33,55,502],[70,18,70,23],[70,7,70,17],[75,18,75,21],[75,22,75,27],[69,1,69,6],[69,7,69,27],[70,1,70,6],[177,2,177,12],[177,13,177,23],[177,24,177,25],[177,26,177,27],[166,2,166,11],[166,12,166,20],[166,21,166,23],[166,24,166,25],[166,26,166,27],[167,2,167,11],[167,12,167,20],[167,21,167,23],[167,24,167,25],[167,26,167,27],[159,1,159,13],[159,14,159,17],[15,2,17,17],[67,1,67,6],[67,7,67,27],[277,3,277,21],[277,22,277,25],[277,26,277,27],[278,3,278,21],[278,22,278,25],[278,26,278,27],[71,12,71,13],[71,26,71,27],[71,14,71,21],[73,1,73,27],[74,1,74,10],[75,1,75,9],[75,10,75,17],[71,1,71,7],[117,1,117,11],[118,12,118,27],[119,12,119,27],[120,12,120,27],[121,12,121,27],[117,12,117,27],[178,2,178,12]]}
[null,null,null,null,null,null,null,null,null,null,null,null,null,null,null,null,null,null,null,null,null,null,null,null,null,null,null,null,null,10,null,null,null,"xxx",null,null,null,null,null,null,null,null,null,null,null,null,null,null,null,null,null,null,null,null,null,null,null,null,null,null,null,null,null,null,null,null,null,null,null,null,null,null,null,null,null,null,null,null,null,null,null,null,null,null,null,null,null,null,null,null,null,null,null,null,null,null,null,null,null,null,null,null,null,null,null,null,null,null,null,null,null,null,null,null,null,null,null,null,null,null,null,null,null,null,null,null,null,null,null,null,null,null,null,null,null,null,null,null,null,null,null,null,null,null,null,null,null,null,null,null,null,null,null,null,null,null,null,null,null,null,null,null,null,null,null,null,null,null,null,null,null,null,null,null,null,null,null,null,null,null,null,null,null,null,null,null,null,null,null,null,null,null,null,null,null,null,null,null,null,null,null,null,null,null,null,null,null,null,null,null,null,null,null,null,null,null,null,null,null,null,null,null,null,null,null,null,null,null,null,null,null,null,null,null,null,null,null,null,null,null,null,null,null,null,null,null,null,null,null,null,null,null,null,null,null,null,null,null,null,null,null,null,null,null,null,null,null,null,null,null,null,null,null,null,null,null,null,null,null,null,null,null,null,null,null,null,null,null,null,null,null,null,null,null,null,null,null,null,null,null,null,null,null,null,null,null,null,null,null,null,null,null,null,null,null,null,null,null,null,null,null,null,null,null,null,null,null,null,null,null,null,null,null,null,null,null,null,null,null,null,null,null,null,null,null,null,null,null,null,null,null,null,null,null,null,null,null,null,null,null,null,null,null,null,null,null,null,null,null,null,null,null,null,null,null,null,null,null,null,null,null,null,null,null,null,null,null,null,null,null,null,null,null,null,null,null,null,null,null,null,null,null,null,null,null,null,null,null,null,null,null,null,null,null,null,null,null,null,null,null,null,null,null,null,null,null,null,null,null,null,null,null,null,null,null,null,null,null,null,null,null,null,null,null,null,null,null,null,null,null,null,null,null,null,null,null,null,null,null,null,null,null,null,null,null,null,null,null,null,null,null,null,null,null,null,null,null,null,null,null,null,null,null,null,null,null,null,null,null,null,null,null,null,null,null,null,null,null,null,"xxxEND",null,null,null,"yyy",null,null,null,null,null,null,null,null,null,null,null,null,null,null,null,null,null,null,null,null,null,null,null,null,null,null,null,null,null,null,null,null,null,null,null,null,null,null,null,null,null,null,null,null,null,null,null,null,null,null,null,null,null,null,null,null,null,null,null,null,null,null,null,null,null,null,null,null,null,null,null,null,null,null,null,null,null,null,null,null,"yyyEND"]
[null,"Senarai Semak Borang A (Biasiswa)",null,null,null,null,null,null,null,null,null,null,null,null,null,null,null,null,null,null,null,null,null,null,null,null,null,null,null,10,null,null,null,"xxx",null,null,null,null,null,null,null,null,null,null,null,null,null,null,null,null,null,null,null,null,null,null,null,null,null,null,null,null,null,null,null,null,null,null,null,null,null,null,null,null,null,null,null,null,null,null,null,null,null,null,null,null,null,null,null,null,null,null,null,null,null,null,null,null,null,null,null,null,null,null,null,null,null,null,null,null,null,null,null,null,null,null,null,null,null,null,null,null,null,null,null,null,null,null,null,null,null,null,null,null,null,null,null,null,null,null,null,null,null,null,null,null,null,null,null,null,null,null,null,null,null,null,null,null,null,null,null,null,null,null,null,null,null,null,null,null,null,null,null,null,null,null,null,null,null,null,null,null,null,null,null,null,null,null,null,null,null,null,null,null,null,null,null,null,null,null,null,null,null,null,null,null,null,null,null,null,null,null,null,null,null,null,null,null,null,null,null,null,null,null,null,null,null,null,null,null,null,null,null,null,null,null,null,null,null,null,null,null,null,null,null,null,null,null,null,null,null,null,null,null,null,null,null,null,null,null,null,null,null,null,null,null,null,null,null,null,null,null,null,null,null,null,null,null,null,null,null,null,null,null,null,null,null,null,null,null,null,null,null,null,null,null,null,null,null,null,null,null,null,null,null,null,null,null,null,null,null,null,null,null,null,null,null,null,null,null,null,null,null,null,null,null,null,null,null,null,null,null,null,null,null,null,null,null,null,null,null,null,null,null,null,null,null,null,null,null,null,null,null,null,null,null,null,null,null,null,null,null,null,null,null,null,null,null,null,null,null,null,null,null,null,null,null,null,null,null,null,null,null,null,null,null,null,null,null,null,null,null,null,null,null,null,null,null,null,null,null,null,null,null,null,null,null,null,null,null,null,null,null,null,null,null,null,null,null,null,null,null,null,null,null,null,null,null,null,null,null,null,null,null,null,null,null,null,null,null,null,null,null,null,null,null,null,null,null,null,null,null,null,null,null,null,null,null,null,null,null,null,null,null,null,null,null,null,null,null,null,null,null,null,null,null,null,null,null,null,null,null,null,null,null,null,null,null,null,null,null,null,null,null,null,null,null,null,null,"xxxEND",null,null,null,"yyy",null,null,null,null,null,null,null,null,null,null,null,null,null,null,null,null,null,null,null,null,null,null,null,null,null,null,null,null,null,null,null,null,null,null,null,null,null,null,null,null,null,null,null,null,null,null,null,null,null,null,null,null,null,null,null,null,null,null,null,null,null,null,null,null,null,null,null,null,null,null,null,null,null,null,null,null,null,null,null,null,"yyyEND"]
[null,null,null,null,null,null,null,null,null,null,null,null,null,null,null,null,null,null,null,null,null,null,null,null,null,null,null,null,null,10,null,null,null,"xxx",null,null,null,null,null,null,null,null,null,null,null,null,null,null,null,null,null,null,null,null,null,null,null,null,null,null,null,null,null,null,null,null,null,null,null,null,null,null,null,null,null,null,null,null,null,null,null,null,null,null,null,null,null,null,null,null,null,null,null,null,null,null,null,null,null,null,null,null,null,null,null,null,null,null,null,null,null,null,null,null,null,null,null,null,null,null,null,null,null,null,null,null,null,null,null,null,null,null,null,null,null,null,null,null,null,null,null,null,null,null,null,null,null,null,null,null,null,null,null,null,null,null,null,null,null,null,null,null,null,null,null,null,null,null,null,null,null,null,null,null,null,null,null,null,null,null,null,null,null,null,null,null,null,null,null,null,null,null,null,null,null,null,null,null,null,null,null,null,null,null,null,null,null,null,null,null,null,null,null,null,null,null,null,null,null,null,null,null,null,null,null,null,null,null,null,null,null,null,null,null,null,null,null,null,null,null,null,null,null,null,null,null,null,null,null,null,null,null,null,null,null,null,null,null,null,null,null,null,null,null,null,null,null,null,null,null,null,null,null,null,null,null,null,null,null,null,null,null,null,null,null,null,null,null,null,null,null,null,null,null,null,null,null,null,null,null,null,null,null,null,null,null,null,null,null,null,null,null,null,null,null,null,null,null,null,null,null,null,null,null,null,null,null,null,null,null,null,null,null,null,null,null,null,null,null,null,null,null,null,null,null,null,null,null,null,null,null,null,null,null,null,null,null,null,null,null,null,null,null,null,null,null,null,null,null,null,null,null,null,null,null,null,null,null,null,null,null,null,null,null,null,null,null,null,null,null,null,null,null,null,null,null,null,null,null,null,null,null,null,null,null,null,null,null,null,null,null,null,null,null,null,null,null,null,null,null,null,null,null,null,null,null,null,null,null,null,null,null,null,null,null,null,null,null,null,null,null,null,null,null,null,null,null,null,null,null,null,null,null,null,null,null,null,null,null,null,null,null,null,null,null,null,null,null,null,null,null,null,null,null,null,null,null,null,null,null,null,null,null,null,null,null,null,null,null,null,null,null,null,null,null,null,null,null,null,"xxxEND",null,null,null,"yyy",null,null,null,null,null,null,null,null,null,null,null,null,null,null,null,null,null,null,null,null,null,null,null,null,null,null,null,null,null,null,null,null,null,null,null,null,null,null,null,null,null,null,null,null,null,null,null,null,null,null,null,null,null,null,null,null,null,null,null,null,null,null,null,null,null,null,null,null,null,null,null,null,null,null,null,null,null,null,null,null,"yyyEND"]
[null,null,null,null,null,null,null,null,null,null,null,null,null,null,null,null,null,null,null,null,null,null,null,null,null,null,null,null,null,10,null,null,null,"xxx",null,null,null,null,null,null,null,null,null,null,null,null,null,null,null,null,null,null,null,null,null,null,null,null,null,null,null,null,null,null,null,null,null,null,null,null,null,null,null,null,null,null,null,null,null,null,null,null,null,null,null,null,null,null,null,null,null,null,null,null,null,null,null,null,null,null,null,null,null,null,null,null,null,null,null,null,null,null,null,null,null,null,null,null,null,null,null,null,null,null,null,null,null,null,null,null,null,null,null,null,null,null,null,null,null,null,null,null,null,null,null,null,null,null,null,null,null,null,null,null,null,null,null,null,null,null,null,null,null,null,null,null,null,null,null,null,null,null,null,null,null,null,null,null,null,null,null,null,null,null,null,null,null,null,null,null,null,null,null,null,null,null,null,null,null,null,null,null,null,null,null,null,null,null,null,null,null,null,null,null,null,null,null,null,null,null,null,null,null,null,null,null,null,null,null,null,null,null,null,null,null,null,null,null,null,null,null,null,null,null,null,null,null,null,null,null,null,null,null,null,null,null,null,null,null,null,null,null,null,null,null,null,null,null,null,null,null,null,null,null,null,null,null,null,null,null,null,null,null,null,null,null,null,null,null,null,null,null,null,null,null,null,null,null,null,null,null,null,null,null,null,null,null,null,null,null,null,null,null,null,null,null,null,null,null,null,null,null,null,null,null,null,null,null,null,null,null,null,null,null,null,null,null,null,null,null,null,null,null,null,null,null,null,null,null,null,null,null,null,null,null,null,null,null,null,null,null,null,null,null,null,null,null,null,null,null,null,null,null,null,null,null,null,null,null,null,null,null,null,null,null,null,null,null,null,null,null,null,null,null,null,null,null,null,null,null,null,null,null,null,null,null,null,null,null,null,null,null,null,null,null,null,null,null,null,null,null,null,null,null,null,null,null,null,null,null,null,null,null,null,null,null,null,null,null,null,null,null,null,null,null,null,null,null,null,null,null,null,null,null,null,null,null,null,null,null,null,null,null,null,null,null,null,null,null,null,null,null,null,null,null,null,null,null,null,null,null,null,null,null,null,null,null,null,null,null,null,null,null,null,null,null,null,null,null,"xxxEND",null,null,null,"yyy",null,null,null,null,null,null,null,null,null,null,null,null,null,null,null,null,null,null,null,null,null,null,null,null,null,null,null,null,null,null,null,null,null,null,null,null,null,null,null,null,null,null,null,null,null,null,null,null,null,null,null,null,null,null,null,null,null,null,null,null,null,null,null,null,null,null,null,null,null,null,null,null,null,null,null,null,null,null,null,null,"yyyEND"]
[null,null,null,null,null,null,null,null,null,null,null,null,null,null,null,null,null,null,null,null,null,null,null,null,null,null,null,null,null,10,null,null,null,"xxx",null,null,null,null,null,null,null,null,null,null,null,null,null,null,null,null,null,null,null,null,null,null,null,null,null,null,null,null,null,null,null,null,null,null,null,null,null,null,null,null,null,null,null,null,null,null,null,null,null,null,null,null,null,null,null,null,null,null,null,null,null,null,null,null,null,null,null,null,null,null,null,null,null,null,null,null,null,null,null,null,null,null,null,null,null,null,null,null,null,null,null,null,null,null,null,null,null,null,null,null,null,null,null,null,null,null,null,null,null,null,null,null,null,null,null,null,null,null,null,null,null,null,null,null,null,null,null,null,null,null,null,null,null,null,null,null,null,null,null,null,null,null,null,null,null,null,null,null,null,null,null,null,null,null,null,null,null,null,null,null,null,null,null,null,null,null,null,null,null,null,null,null,null,null,null,null,null,null,null,null,null,null,null,null,null,null,null,null,null,null,null,null,null,null,null,null,null,null,null,null,null,null,null,null,null,null,null,null,null,null,null,null,null,null,null,null,null,null,null,null,null,null,null,null,null,null,null,null,null,null,null,null,null,null,null,null,null,null,null,null,null,null,null,null,null,null,null,null,null,null,null,null,null,null,null,null,null,null,null,null,null,null,null,null,null,null,null,null,null,null,null,null,null,null,null,null,null,null,null,null,null,null,null,null,null,null,null,null,null,null,null,null,null,null,null,null,null,null,null,null,null,null,null,null,null,null,null,null,null,null,null,null,null,null,null,null,null,null,null,null,null,null,null,null,null,null,null,null,null,null,null,null,null,null,null,null,null,null,null,null,null,null,null,null,null,null,null,null,null,null,null,null,null,null,null,null,null,null,null,null,null,null,null,null,null,null,null,null,null,null,null,null,null,null,null,null,null,null,null,null,null,null,null,null,null,null,null,null,null,null,null,null,null,null,null,null,null,null,null,null,null,null,null,null,null,null,null,null,null,null,null,null,null,null,null,null,null,null,null,null,null,null,null,null,null,null,null,null,null,null,null,null,null,null,null,null,null,null,null,null,null,null,null,null,null,null,null,null,null,null,null,null,null,null,null,null,null,null,null,null,null,null,null,null,null,"xxxEND",null,null,null,"yyy",null,null,null,null,null,null,null,null,null,null,null,null,null,null,null,null,null,null,null,null,null,null,null,null,null,null,null,null,null,null,null,null,null,null,null,null,null,null,null,null,null,null,null,null,null,null,null,null,null,null,null,null,null,null,null,null,null,null,null,null,null,null,null,null,null,null,null,null,null,null,null,null,null,null,null,null,null,null,null,null,"yyyEND"]
[null,null,null,null,null,null,null,null,null,null,null,null,null,null,null,null,null,null,null,null,null,null,null,null,null,null,null,null,null,10,null,null,null,"xxx",null,null,null,null,null,null,null,null,null,null,null,null,null,null,null,null,null,null,null,null,null,null,null,null,null,null,null,null,null,null,null,null,null,null,null,null,null,null,null,null,null,null,null,null,null,null,null,null,null,null,null,null,null,null,null,null,null,null,null,null,null,null,null,null,null,null,null,null,null,null,null,null,null,null,null,null,null,null,null,null,null,null,null,null,null,null,null,null,null,null,null,null,null,null,null,null,null,null,null,null,null,null,null,null,null,null,null,null,null,null,null,null,null,null,null,null,null,null,null,null,null,null,null,null,null,null,null,null,null,null,null,null,null,null,null,null,null,null,null,null,null,null,null,null,null,null,null,null,null,null,null,null,null,null,null,null,null,null,null,null,null,null,null,null,null,null,null,null,null,null,null,null,null,null,null,null,null,null,null,null,null,null,null,null,null,null,null,null,null,null,null,null,null,null,null,null,null,null,null,null,null,null,null,null,null,null,null,null,null,null,null,null,null,null,null,null,null,null,null,null,null,null,null,null,null,null,null,null,null,null,null,null,null,null,null,null,null,null,null,null,null,null,null,null,null,null,null,null,null,null,null,null,null,null,null,null,null,null,null,null,null,null,null,null,null,null,null,null,null,null,null,null,null,null,null,null,null,null,null,null,null,null,null,null,null,null,null,null,null,null,null,null,null,null,null,null,null,null,null,null,null,null,null,null,null,null,null,null,null,null,null,null,null,null,null,null,null,null,null,null,null,null,null,null,null,null,null,null,null,null,null,null,null,null,null,null,null,null,null,null,null,null,null,null,null,null,null,null,null,null,null,null,null,null,null,null,null,null,null,null,null,null,null,null,null,null,null,null,null,null,null,null,null,null,null,null,null,null,null,null,null,null,null,null,null,null,null,null,null,null,null,null,null,null,null,null,null,null,null,null,null,null,null,null,null,null,null,null,null,null,null,null,null,null,null,null,null,null,null,null,null,null,null,null,null,null,null,null,null,null,null,null,null,null,null,null,null,null,null,null,null,null,null,null,null,null,null,null,null,null,null,null,null,null,null,null,null,null,null,null,null,null,null,null,null,"xxxEND",null,null,null,"yyy",null,null,null,null,null,null,null,null,null,null,null,null,null,null,null,null,null,null,null,null,null,null,null,null,null,null,null,null,null,null,null,null,null,null,null,null,null,null,null,null,null,null,null,null,null,null,null,null,null,null,null,null,null,null,null,null,null,null,null,null,null,null,null,null,null,null,null,null,null,null,null,null,null,null,null,null,null,null,null,null,"yyyEND"]
[null,null,null,null,null,null,null,null,null,null,null,null,null,null,null,null,null,null,null,null,null,null,null,null,null,null,null,null,null,10,null,null,null,"xxx",null,null,null,null,null,null,null,null,null,null,null,null,null,null,null,null,null,null,null,null,null,null,null,null,null,null,null,null,null,null,null,null,null,null,null,null,null,null,null,null,null,null,null,null,null,null,null,null,null,null,null,null,null,null,null,null,null,null,null,null,null,null,null,null,null,null,null,null,null,null,null,null,null,null,null,null,null,null,null,null,null,null,null,null,null,null,null,null,null,null,null,null,null,null,null,null,null,null,null,null,null,null,null,null,null,null,null,null,null,null,null,null,null,null,null,null,null,null,null,null,null,null,null,null,null,null,null,null,null,null,null,null,null,null,null,null,null,null,null,null,null,null,null,null,null,null,null,null,null,null,null,null,null,null,null,null,null,null,null,null,null,null,null,null,null,null,null,null,null,null,null,null,null,null,null,null,null,null,null,null,null,null,null,null,null,null,null,null,null,null,null,null,null,null,null,null,null,null,null,null,null,null,null,null,null,null,null,null,null,null,null,null,null,null,null,null,null,null,null,null,null,null,null,null,null,null,null,null,null,null,null,null,null,null,null,null,null,null,null,null,null,null,null,null,null,null,null,null,null,null,null,null,null,null,null,null,null,null,null,null,null,null,null,null,null,null,null,null,null,null,null,null,null,null,null,null,null,null,null,null,null,null,null,null,null,null,null,null,null,null,null,null,null,null,null,null,null,null,null,null,null,null,null,null,null,null,null,null,null,null,null,null,null,null,null,null,null,null,null,null,null,null,null,null,null,null,null,null,null,null,null,null,null,null,null,null,null,null,null,null,null,null,null,null,null,null,null,null,null,null,null,null,null,null,null,null,null,null,null,null,null,null,null,null,null,null,null,null,null,null,null,null,null,null,null,null,null,null,null,null,null,null,null,null,null,null,null,null,null,null,null,null,null,null,null,null,null,null,null,null,null,null,null,null,null,null,null,null,null,null,null,null,null,null,null,null,null,null,null,null,null,null,null,null,null,null,null,null,null,null,null,null,null,null,null,null,null,null,null,null,null,null,null,null,null,null,null,null,null,null,null,null,null,null,null,null,null,null,null,null,null,null,null,null,null,"xxxEND",null,null,null,"yyy",null,null,null,null,null,null,null,null,null,null,null,null,null,null,null,null,null,null,null,null,null,null,null,null,null,null,null,null,null,null,null,null,null,null,null,null,null,null,null,null,null,null,null,null,null,null,null,null,null,null,null,null,null,null,null,null,null,null,null,null,null,null,null,null,null,null,null,null,null,null,null,null,null,null,null,null,null,null,null,null,"yyyEND"]
[null,"BORANG PERMOHONAN BIASISWA KE LUAR NEGERI\nSCHOLARSHIP APPLICATION FORM (ABROAD / OVERSEAS)",null,null,null,null,null,null,null,null,null,null,null,null,null,null,null,null,null,null,null,null,null,null,null,null,null,null,null,22,null,null,null,"xxx",null,null,null,null,null,null,null,null,null,null,null,null,null,null,null,null,null,null,null,null,null,null,null,null,null,null,null,null,null,null,null,null,null,null,null,null,null,null,null,null,null,null,null,null,null,null,null,null,null,null,null,null,null,null,null,null,null,null,null,null,null,null,null,null,null,null,null,null,null,null,null,null,null,null,null,null,null,null,null,null,null,null,null,null,null,null,null,null,null,null,null,null,null,null,null,null,null,null,null,null,null,null,null,null,null,null,null,null,null,null,null,null,null,null,null,null,null,null,null,null,null,null,null,null,null,null,null,null,null,null,null,null,null,null,null,null,null,null,null,null,null,null,null,null,null,null,null,null,null,null,null,null,null,null,null,null,null,null,null,null,null,null,null,null,null,null,null,null,null,null,null,null,null,null,null,null,null,null,null,null,null,null,null,null,null,null,null,null,null,null,null,null,null,null,null,null,null,null,null,null,null,null,null,null,null,null,null,null,null,null,null,null,null,null,null,null,null,null,null,null,null,null,null,null,null,null,null,null,null,null,null,null,null,null,null,null,null,null,null,null,null,null,null,null,null,null,null,null,null,null,null,null,null,null,null,null,null,null,null,null,null,null,null,null,null,null,null,null,null,null,null,null,null,null,null,null,null,null,null,null,null,null,null,null,null,null,null,null,null,null,null,null,null,null,null,null,null,null,null,null,null,null,null,null,null,null,null,null,null,null,null,null,null,null,null,null,null,null,null,null,null,null,null,null,null,null,null,null,null,null,null,null,null,null,null,null,null,null,null,null,null,null,null,null,null,null,null,null,null,null,null,null,null,null,null,null,null,null,null,null,null,null,null,null,null,null,null,null,null,null,null,null,null,null,null,null,null,null,null,null,null,null,null,null,null,null,null,null,null,null,null,null,null,null,null,null,null,null,null,null,null,null,null,null,null,null,null,null,null,null,null,null,null,null,null,null,null,null,null,null,null,null,null,null,null,null,null,null,null,null,null,null,null,null,null,null,null,null,null,null,null,null,null,null,null,null,null,null,null,null,null,null,null,null,null,null,null,null,null,null,null,null,null,null,null,"xxxEND",null,null,null,"yyy",null,null,null,null,null,null,null,null,null,null,null,null,null,null,null,null,null,null,null,null,null,null,null,null,null,null,null,null,null,null,null,null,null,null,null,null,null,null,null,null,null,null,null,null,null,null,null,null,null,null,null,null,null,null,null,null,null,null,null,null,null,null,null,null,null,null,null,null,null,null,null,null,null,null,null,null,null,null,null,null,"yyyEND"]
[null,null,null,null,null,null,null,null,null,null,null,null,null,null,null,null,null,null,null,null,null,null,null,null,null,null,null,null,null,10,null,null,null,"xxx",null,null,null,null,null,null,null,null,null,null,null,null,null,null,null,null,null,null,null,null,null,null,null,null,null,null,null,null,null,null,null,null,null,null,null,null,null,null,null,null,null,null,null,null,null,null,null,null,null,null,null,null,null,null,null,null,null,null,null,null,null,null,null,null,null,null,null,null,null,null,null,null,null,null,null,null,null,null,null,null,null,null,null,null,null,null,null,null,null,null,null,null,null,null,null,null,null,null,null,null,null,null,null,null,null,null,null,null,null,null,null,null,null,null,null,null,null,null,null,null,null,null,null,null,null,null,null,null,null,null,null,null,null,null,null,null,null,null,null,null,null,null,null,null,null,null,null,null,null,null,null,null,null,null,null,null,null,null,null,null,null,null,null,null,null,null,null,null,null,null,null,null,null,null,null,null,null,null,null,null,null,null,null,null,null,null,null,null,null,null,null,null,null,null,null,null,null,null,null,null,null,null,null,null,null,null,null,null,null,null,null,null,null,null,null,null,null,null,null,null,null,null,null,null,null,null,null,null,null,null,null,null,null,null,null,null,null,null,null,null,null,null,null,null,null,null,null,null,null,null,null,null,null,null,null,null,null,null,null,null,null,null,null,null,null,null,null,null,null,null,null,null,null,null,null,null,null,null,null,null,null,null,null,null,null,null,null,null,null,null,null,null,null,null,null,null,null,null,null,null,null,null,null,null,null,null,null,null,null,null,null,null,null,null,null,null,null,null,null,null,null,null,null,null,null,null,null,null,null,null,null,null,null,null,null,null,null,null,null,null,null,null,null,null,null,null,null,null,null,null,null,null,null,null,null,null,null,null,null,null,null,null,null,null,null,null,null,null,null,null,null,null,null,null,null,null,null,null,null,null,null,null,null,null,null,null,null,null,null,null,null,null,null,null,null,null,null,null,null,null,null,null,null,null,null,null,null,null,null,null,null,null,null,null,null,null,null,null,null,null,null,null,null,null,null,null,null,null,null,null,null,null,null,null,null,null,null,null,null,null,null,null,null,null,null,null,null,null,null,null,null,null,null,null,null,null,null,null,null,null,null,null,null,null,null,"xxxEND",null,null,null,"yyy",null,null,null,null,null,null,null,null,null,null,null,null,null,null,null,null,null,null,null,null,null,null,null,null,null,null,null,null,null,null,null,null,null,null,null,null,null,null,null,null,null,null,null,null,null,null,null,null,null,null,null,null,null,null,null,null,null,null,null,null,null,null,null,null,null,null,null,null,null,null,null,null,null,null,null,null,null,null,null,null,"yyyEND"]
[null,null,null,null,null,null,null,null,null,null,null,null,null,null,null,null,null,null,null,null,null,null,null,null,null,null,null,null,null,10,null,null,null,"xxx",null,null,null,null,null,null,null,null,null,null,null,null,null,null,null,null,null,null,null,null,null,null,null,null,null,null,null,null,null,null,null,null,null,null,null,null,null,null,null,null,null,null,null,null,null,null,null,null,null,null,null,null,null,null,null,null,null,null,null,null,null,null,null,null,null,null,null,null,null,null,null,null,null,null,null,null,null,null,null,null,null,null,null,null,null,null,null,null,null,null,null,null,null,null,null,null,null,null,null,null,null,null,null,null,null,null,null,null,null,null,null,null,null,null,null,null,null,null,null,null,null,null,null,null,null,null,null,null,null,null,null,null,null,null,null,null,null,null,null,null,null,null,null,null,null,null,null,null,null,null,null,null,null,null,null,null,null,null,null,null,null,null,null,null,null,null,null,null,null,null,null,null,null,null,null,null,null,null,null,null,null,null,null,null,null,null,null,null,null,null,null,null,null,null,null,null,null,null,null,null,null,null,null,null,null,null,null,null,null,null,null,null,null,null,null,null,null,null,null,null,null,null,null,null,null,null,null,null,null,null,null,null,null,null,null,null,null,null,null,null,null,null,null,null,null,null,null,null,null,null,null,null,null,null,null,null,null,null,null,null,null,null,null,null,null,null,null,null,null,null,null,null,null,null,null,null,null,null,null,null,null,null,null,null,null,null,null,null,null,null,null,null,null,null,null,null,null,null,null,null,null,null,null,null,null,null,null,null,null,null,null,null,null,null,null,null,null,null,null,null,null,null,null,null,null,null,null,null,null,null,null,null,null,null,null,null,null,null,null,null,null,null,null,null,null,null,null,null,null,null,null,null,null,null,null,null,null,null,null,null,null,null,null,null,null,null,null,null,null,null,null,null,null,null,null,null,null,null,null,null,null,null,null,null,null,null,null,null,null,null,null,null,null,null,null,null,null,null,null,null,null,null,null,null,null,null,null,null,null,null,null,null,null,null,null,null,null,null,null,null,null,null,null,null,null,null,null,null,null,null,null,null,null,null,null,null,null,null,null,null,null,null,null,null,null,null,null,null,null,null,null,null,null,null,null,null,null,null,null,null,null,null,null,null,null,"xxxEND",null,null,null,"yyy",null,null,null,null,null,null,null,null,null,null,null,null,null,null,null,null,null,null,null,null,null,null,null,null,null,null,null,null,null,null,null,null,null,null,null,null,null,null,null,null,null,null,null,null,null,null,null,null,null,null,null,null,null,null,null,null,null,null,null,null,null,null,null,null,null,null,null,null,null,null,null,null,null,null,null,null,null,null,null,null,"yyyEND"]
[null,null,null,null,null,null,null,null,null,null,null,null,null,null,"GARIS PANDUAN / GUIDELINES",null,null,null,null,null,null,null,null,null,null,null,null,null,null,10,null,null,null,"xxx",null,null,null,null,null,null,null,null,null,null,null,null,null,null,null,null,null,null,null,null,null,null,null,null,null,null,null,null,null,null,null,null,null,null,null,null,null,null,null,null,null,null,null,null,null,null,null,null,null,null,null,null,null,null,null,null,null,null,null,null,null,null,null,null,null,null,null,null,null,null,null,null,null,null,null,null,null,null,null,null,null,null,null,null,null,null,null,null,null,null,null,null,null,null,null,null,null,null,null,null,null,null,null,null,null,null,null,null,null,null,null,null,null,null,null,null,null,null,null,null,null,null,null,null,null,null,null,null,null,null,null,null,null,null,null,null,null,null,null,null,null,null,null,null,null,null,null,null,null,null,null,null,null,null,null,null,null,null,null,null,null,null,null,null,null,null,null,null,null,null,null,null,null,null,null,null,null,null,null,null,null,null,null,null,null,null,null,null,null,null,null,null,null,null,null,null,null,null,null,null,null,null,null,null,null,null,null,null,null,null,null,null,null,null,null,null,null,null,null,null,null,null,null,null,null,null,null,null,null,null,null,null,null,null,null,null,null,null,null,null,null,null,null,null,null,null,null,null,null,null,null,null,null,null,null,null,null,null,null,null,null,null,null,null,null,null,null,null,null,null,null,null,null,null,null,null,null,null,null,null,null,null,null,null,null,null,null,null,null,null,null,null,null,null,null,null,null,null,null,null,null,null,null,null,null,null,null,null,null,null,null,null,null,null,null,null,null,null,null,null,null,null,null,null,null,null,null,null,null,null,null,null,null,null,null,null,null,null,null,null,null,null,null,null,null,null,null,null,null,null,null,null,null,null,null,null,null,null,null,null,null,null,null,null,null,null,null,null,null,null,null,null,null,null,null,null,null,null,null,null,null,null,null,null,null,null,null,null,null,null,null,null,null,null,null,null,null,null,null,null,null,null,null,null,null,null,null,null,null,null,null,null,null,null,null,null,null,null,null,null,null,null,null,null,null,null,null,null,null,null,null,null,null,null,null,null,null,null,null,null,null,null,null,null,null,null,null,null,null,null,null,null,null,null,null,null,null,null,null,null,null,null,null,null,null,"xxxEND",null,null,null,"yyy",null,null,null,null,null,null,null,null,null,null,null,null,null,null,null,null,null,null,null,null,null,null,null,null,null,null,null,null,null,null,null,null,null,null,null,null,null,null,null,null,null,null,null,null,null,null,null,null,null,null,null,null,null,null,null,null,null,null,null,null,null,null,null,null,null,null,null,null,null,null,null,null,null,null,null,null,null,null,null,null,"yyyEND"]
[null,null,null,null,null,null,null,null,null,null,null,null,null,null,null,null,null,null,null,null,null,null,null,null,null,null,null,null,null,10,null,null,null,"xxx",null,null,null,null,null,null,null,null,null,null,null,null,null,null,null,null,null,null,null,null,null,null,null,null,null,null,null,null,null,null,null,null,null,null,null,null,null,null,null,null,null,null,null,null,null,null,null,null,null,null,null,null,null,null,null,null,null,null,null,null,null,null,null,null,null,null,null,null,null,null,null,null,null,null,null,null,null,null,null,null,null,null,null,null,null,null,null,null,null,null,null,null,null,null,null,null,null,null,null,null,null,null,null,null,null,null,null,null,null,null,null,null,null,null,null,null,null,null,null,null,null,null,null,null,null,null,null,null,null,null,null,null,null,null,null,null,null,null,null,null,null,null,null,null,null,null,null,null,null,null,null,null,null,null,null,null,null,null,null,null,null,null,null,null,null,null,null,null,null,null,null,null,null,null,null,null,null,null,null,null,null,null,null,null,null,null,null,null,null,null,null,null,null,null,null,null,null,null,null,null,null,null,null,null,null,null,null,null,null,null,null,null,null,null,null,null,null,null,null,null,null,null,null,null,null,null,null,null,null,null,null,null,null,null,null,null,null,null,null,null,null,null,null,null,null,null,null,null,null,null,null,null,null,null,null,null,null,null,null,null,null,null,null,null,null,null,null,null,null,null,null,null,null,null,null,null,null,null,null,null,null,null,null,null,null,null,null,null,null,null,null,null,null,null,null,null,null,null,null,null,null,null,null,null,null,null,null,null,null,null,null,null,null,null,null,null,null,null,null,null,null,null,null,null,null,null,null,null,null,null,null,null,null,null,null,null,null,null,null,null,null,null,null,null,null,null,null,null,null,null,null,null,null,null,null,null,null,null,null,null,null,null,null,null,null,null,null,null,null,null,null,null,null,null,null,null,null,null,null,null,null,null,null,null,null,null,null,null,null,null,null,null,null,null,null,null,null,null,null,null,null,null,null,null,null,null,null,null,null,null,null,null,null,null,null,null,null,null,null,null,null,null,null,null,null,null,null,null,null,null,null,null,null,null,null,null,null,null,null,null,null,null,null,null,null,null,null,null,null,null,null,null,null,null,null,null,null,null,null,null,null,null,null,null,null,"xxxEND",null,null,null,"yyy",null,null,null,null,null,null,null,null,null,null,null,null,null,null,null,null,null,null,null,null,null,null,null,null,null,null,null,null,null,null,null,null,null,null,null,null,null,null,null,null,null,null,null,null,null,null,null,null,null,null,null,null,null,null,null,null,null,null,null,null,null,null,null,null,null,null,null,null,null,null,null,null,null,null,null,null,null,null,null,null,"yyyEND"]
[null,"1)","Pemohon adalah tidak dibenarkan untuk menambah atau memadam mana-mana rows atau columns.\nApplicants are not allowed to add or delete any rows or columns.",null,null,null,null,null,null,null,null,null,null,null,null,null,null,null,null,null,null,null,null,null,null,null,null,null,null,20,null,null,null,"xxx",null,null,null,null,null,null,null,null,null,null,null,null,null,null,null,null,null,null,null,null,null,null,null,null,null,null,null,null,null,null,null,null,null,null,null,null,null,null,null,null,null,null,null,null,null,null,null,null,null,null,null,null,null,null,null,null,null,null,null,null,null,null,null,null,null,null,null,null,null,null,null,null,null,null,null,null,null,null,null,null,null,null,null,null,null,null,null,null,null,null,null,null,null,null,null,null,null,null,null,null,null,null,null,null,null,null,null,null,null,null,null,null,null,null,null,null,null,null,null,null,null,null,null,null,null,null,null,null,null,null,null,null,null,null,null,null,null,null,null,null,null,null,null,null,null,null,null,null,null,null,null,null,null,null,null,null,null,null,null,null,null,null,null,null,null,null,null,null,null,null,null,null,null,null,null,null,null,null,null,null,null,null,null,null,null,null,null,null,null,null,null,null,null,null,null,null,null,null,null,null,null,null,null,null,null,null,null,null,null,null,null,null,null,null,null,null,null,null,null,null,null,null,null,null,null,null,null,null,null,null,null,null,null,null,null,null,null,null,null,null,null,null,null,null,null,null,null,null,null,null,null,null,null,null,null,null,null,null,null,null,null,null,null,null,null,null,null,null,null,null,null,null,null,null,null,null,null,null,null,null,null,null,null,null,null,null,null,null,null,null,null,null,null,null,null,null,null,null,null,null,null,null,null,null,null,null,null,null,null,null,null,null,null,null,null,null,null,null,null,null,null,null,null,null,null,null,null,null,null,null,null,null,null,null,null,null,null,null,null,null,null,null,null,null,null,null,null,null,null,null,null,null,null,null,null,null,null,null,null,null,null,null,null,null,null,null,null,null,null,null,null,null,null,null,null,null,null,null,null,null,null,null,null,null,null,null,null,null,null,null,null,null,null,null,null,null,null,null,null,null,null,null,null,null,null,null,null,null,null,null,null,null,null,null,null,null,null,null,null,null,null,null,null,null,null,null,null,null,null,null,null,null,null,null,null,null,null,null,null,null,null,null,null,null,null,null,null,null,null,null,null,null,null,null,null,null,null,null,null,null,null,null,null,null,null,"xxxEND",null,null,null,"yyy",null,null,null,null,null,null,null,null,null,null,null,null,null,null,null,null,null,null,null,null,null,null,null,null,null,null,null,null,null,null,null,null,null,null,null,null,null,null,null,null,null,null,null,null,null,null,null,null,null,null,null,null,null,null,null,null,null,null,null,null,null,null,null,null,null,null,null,null,null,null,null,null,null,null,null,null,null,null,null,null,"yyyEND"]
[null,"2)","Email borang yang telah lengkap dalam format excel (.xls) serta dokumen yang berkaitan ke applyscholarship@moe.gov.bn tidak lewat 29 Februari 2024.\nEmail the completed form in excel format (.xls) along with the relevent documents to applyschlolarship@moe.gov.bn no later than 29 February 2024.",null,null,null,null,null,null,null,null,null,null,null,null,null,null,null,null,null,null,null,null,null,null,null,null,null,null,44,null,null,null,"xxx",null,null,null,null,null,null,null,null,null,null,null,null,null,null,null,null,null,null,null,null,null,null,null,null,null,null,null,null,null,null,null,null,null,null,null,null,null,null,null,null,null,null,null,null,null,null,null,null,null,null,null,null,null,null,null,null,null,null,null,null,null,null,null,null,null,null,null,null,null,null,null,null,null,null,null,null,null,null,null,null,null,null,null,null,null,null,null,null,null,null,null,null,null,null,null,null,null,null,null,null,null,null,null,null,null,null,null,null,null,null,null,null,null,null,null,null,null,null,null,null,null,null,null,null,null,null,null,null,null,null,null,null,null,null,null,null,null,null,null,null,null,null,null,null,null,null,null,null,null,null,null,null,null,null,null,null,null,null,null,null,null,null,null,null,null,null,null,null,null,null,null,null,null,null,null,null,null,null,null,null,null,null,null,null,null,null,null,null,null,null,null,null,null,null,null,null,null,null,null,null,null,null,null,null,null,null,null,null,null,null,null,null,null,null,null,null,null,null,null,null,null,null,null,null,null,null,null,null,null,null,null,null,null,null,null,null,null,null,null,null,null,null,null,null,null,null,null,null,null,null,null,null,null,null,null,null,null,null,null,null,null,null,null,null,null,null,null,null,null,null,null,null,null,null,null,null,null,null,null,null,null,null,null,null,null,null,null,null,null,null,null,null,null,null,null,null,null,null,null,null,null,null,null,null,null,null,null,null,null,null,null,null,null,null,null,null,null,null,null,null,null,null,null,null,null,null,null,null,null,null,null,null,null,null,null,null,null,null,null,null,null,null,null,null,null,null,null,null,null,null,null,null,null,null,null,null,null,null,null,null,null,null,null,null,null,null,null,null,null,null,null,null,null,null,null,null,null,null,null,null,null,null,null,null,null,null,null,null,null,null,null,null,null,null,null,null,null,null,null,null,null,null,null,null,null,null,null,null,null,null,null,null,null,null,null,null,null,null,null,null,null,null,null,null,null,null,null,null,null,null,null,null,null,null,null,null,null,null,null,null,null,null,null,null,null,null,null,null,null,null,null,null,null,null,null,null,null,null,null,null,null,null,null,null,null,"xxxEND",null,null,null,"yyy",null,null,null,null,null,null,null,null,null,null,null,null,null,null,null,null,null,null,null,null,null,null,null,null,null,null,null,null,null,null,null,null,null,null,null,null,null,null,null,null,null,null,null,null,null,null,null,null,null,null,null,null,null,null,null,null,null,null,null,null,null,null,null,null,null,null,null,null,null,null,null,null,null,null,null,null,null,null,null,null,"yyyEND"]
[null,"3)","Cetak borang serta dokumen yang berkaitan dan hadapkan ke\nPrint hardcopy with relevant documents and send to\n",null,null,null,null,null,null,null,null,null,null,null,null,null,null,null,null,null,null,null,null,null,null,null,null,null,null,20,null,null,null,"xxx",null,null,null,null,null,null,null,null,null,null,null,null,null,null,null,null,null,null,null,null,null,null,null,null,null,null,null,null,null,null,null,null,null,null,null,null,null,null,null,null,null,null,null,null,null,null,null,null,null,null,null,null,null,null,null,null,null,null,null,null,null,null,null,null,null,null,null,null,null,null,null,null,null,null,null,null,null,null,null,null,null,null,null,null,null,null,null,null,null,null,null,null,null,null,null,null,null,null,null,null,null,null,null,null,null,null,null,null,null,null,null,null,null,null,null,null,null,null,null,null,null,null,null,null,null,null,null,null,null,null,null,null,null,null,null,null,null,null,null,null,null,null,null,null,null,null,null,null,null,null,null,null,null,null,null,null,null,null,null,null,null,null,null,null,null,null,null,null,null,null,null,null,null,null,null,null,null,null,null,null,null,null,null,null,null,null,null,null,null,null,null,null,null,null,null,null,null,null,null,null,null,null,null,null,null,null,null,null,null,null,null,null,null,null,null,null,null,null,null,null,null,null,null,null,null,null,null,null,null,null,null,null,null,null,null,null,null,null,null,null,null,null,null,null,null,null,null,null,null,null,null,null,null,null,null,null,null,null,null,null,null,null,null,null,null,null,null,null,null,null,null,null,null,null,null,null,null,null,null,null,null,null,null,null,null,null,null,null,null,null,null,null,null,null,null,null,null,null,null,null,null,null,null,null,null,null,null,null,null,null,null,null,null,null,null,null,null,null,null,null,null,null,null,null,null,null,null,null,null,null,null,null,null,null,null,null,null,null,null,null,null,null,null,null,null,null,null,null,null,null,null,null,null,null,null,null,null,null,null,null,null,null,null,null,null,null,null,null,null,null,null,null,null,null,null,null,null,null,null,null,null,null,null,null,null,null,null,null,null,null,null,null,null,null,null,null,null,null,null,null,null,null,null,null,null,null,null,null,null,null,null,null,null,null,null,null,null,null,null,null,null,null,null,null,null,null,null,null,null,null,null,null,null,null,null,null,null,null,null,null,null,null,null,null,null,null,null,null,null,null,null,null,null,null,null,null,null,null,null,null,null,null,null,null,null,"xxxEND",null,null,null,"yyy",null,null,null,null,null,null,null,null,null,null,null,null,null,null,null,null,null,null,null,null,null,null,null,null,null,null,null,null,null,null,null,null,null,null,null,null,null,null,null,null,null,null,null,null,null,null,null,null,null,null,null,null,null,null,null,null,null,null,null,null,null,null,null,null,null,null,null,null,null,null,null,null,null,null,null,null,null,null,null,null,"yyyEND"]
[null,null,"JABATAN PENGURUSAN BIASISWA\nKAUNTER NO 3, PUSAT PERKHIDMATAN SETEMPAT,\nBLOK C, LANTAI DASAR,\nKEMENTERIAN PENDIDIKAN.",null,null,null,null,null,null,null,null,null,null,null,null,null,null,null,null,null,null,null,null,null,null,null,null,null,null,16,null,null,null,"xxx",null,null,null,null,null,null,null,null,null,null,null,null,null,null,null,null,null,null,null,null,null,null,null,null,null,null,null,null,null,null,null,null,null,null,null,null,null,null,null,null,null,null,null,null,null,null,null,null,null,null,null,null,null,null,null,null,null,null,null,null,null,null,null,null,null,null,null,null,null,null,null,null,null,null,null,null,null,null,null,null,null,null,null,null,null,null,null,null,null,null,null,null,null,null,null,null,null,null,null,null,null,null,null,null,null,null,null,null,null,null,null,null,null,null,null,null,null,null,null,null,null,null,null,null,null,null,null,null,null,null,null,null,null,null,null,null,null,null,null,null,null,null,null,null,null,null,null,null,null,null,null,null,null,null,null,null,null,null,null,null,null,null,null,null,null,null,null,null,null,null,null,null,null,null,null,null,null,null,null,null,null,null,null,null,null,null,null,null,null,null,null,null,null,null,null,null,null,null,null,null,null,null,null,null,null,null,null,null,null,null,null,null,null,null,null,null,null,null,null,null,null,null,null,null,null,null,null,null,null,null,null,null,null,null,null,null,null,null,null,null,null,null,null,null,null,null,null,null,null,null,null,null,null,null,null,null,null,null,null,null,null,null,null,null,null,null,null,null,null,null,null,null,null,null,null,null,null,null,null,null,null,null,null,null,null,null,null,null,null,null,null,null,null,null,null,null,null,null,null,null,null,null,null,null,null,null,null,null,null,null,null,null,null,null,null,null,null,null,null,null,null,null,null,null,null,null,null,null,null,null,null,null,null,null,null,null,null,null,null,null,null,null,null,null,null,null,null,null,null,null,null,null,null,null,null,null,null,null,null,null,null,null,null,null,null,null,null,null,null,null,null,null,null,null,null,null,null,null,null,null,null,null,null,null,null,null,null,null,null,null,null,null,null,null,null,null,null,null,null,null,null,null,null,null,null,null,null,null,null,null,null,null,null,null,null,null,null,null,null,null,null,null,null,null,null,null,null,null,null,null,null,null,null,null,null,null,null,null,null,null,null,null,null,null,null,null,null,null,null,null,null,null,null,null,null,null,null,null,null,null,null,null,null,null,null,"xxxEND",null,null,null,"yyy",null,null,null,null,null,null,null,null,null,null,null,null,null,null,null,null,null,null,null,null,null,null,null,null,null,null,null,null,null,null,null,null,null,null,null,null,null,null,null,null,null,null,null,null,null,null,null,null,null,null,null,null,null,null,null,null,null,null,null,null,null,null,null,null,null,null,null,null,null,null,null,null,null,null,null,null,null,null,null,null,"yyyEND"]
[null,null,null,null,null,null,null,null,null,null,null,null,null,null,null,null,null,null,null,null,null,null,null,null,null,null,null,null,null,16,null,null,null,"xxx",null,null,null,null,null,null,null,null,null,null,null,null,null,null,null,null,null,null,null,null,null,null,null,null,null,null,null,null,null,null,null,null,null,null,null,null,null,null,null,null,null,null,null,null,null,null,null,null,null,null,null,null,null,null,null,null,null,null,null,null,null,null,null,null,null,null,null,null,null,null,null,null,null,null,null,null,null,null,null,null,null,null,null,null,null,null,null,null,null,null,null,null,null,null,null,null,null,null,null,null,null,null,null,null,null,null,null,null,null,null,null,null,null,null,null,null,null,null,null,null,null,null,null,null,null,null,null,null,null,null,null,null,null,null,null,null,null,null,null,null,null,null,null,null,null,null,null,null,null,null,null,null,null,null,null,null,null,null,null,null,null,null,null,null,null,null,null,null,null,null,null,null,null,null,null,null,null,null,null,null,null,null,null,null,null,null,null,null,null,null,null,null,null,null,null,null,null,null,null,null,null,null,null,null,null,null,null,null,null,null,null,null,null,null,null,null,null,null,null,null,null,null,null,null,null,null,null,null,null,null,null,null,null,null,null,null,null,null,null,null,null,null,null,null,null,null,null,null,null,null,null,null,null,null,null,null,null,null,null,null,null,null,null,null,null,null,null,null,null,null,null,null,null,null,null,null,null,null,null,null,null,null,null,null,null,null,null,null,null,null,null,null,null,null,null,null,null,null,null,null,null,null,null,null,null,null,null,null,null,null,null,null,null,null,null,null,null,null,null,null,null,null,null,null,null,null,null,null,null,null,null,null,null,null,null,null,null,null,null,null,null,null,null,null,null,null,null,null,null,null,null,null,null,null,null,null,null,null,null,null,null,null,null,null,null,null,null,null,null,null,null,null,null,null,null,null,null,null,null,null,null,null,null,null,null,null,null,null,null,null,null,null,null,null,null,null,null,null,null,null,null,null,null,null,null,null,null,null,null,null,null,null,null,null,null,null,null,null,null,null,null,null,null,null,null,null,null,null,null,null,null,null,null,null,null,null,null,null,null,null,null,null,null,null,null,null,null,null,null,null,null,null,null,null,null,null,null,null,null,null,null,null,null,null,null,"xxxEND",null,null,null,"yyy",null,null,null,null,null,null,null,null,null,null,null,null,null,null,null,null,null,null,null,null,null,null,null,null,null,null,null,null,null,null,null,null,null,null,null,null,null,null,null,null,null,null,null,null,null,null,null,null,null,null,null,null,null,null,null,null,null,null,null,null,null,null,null,null,null,null,null,null,null,null,null,null,null,null,null,null,null,null,null,null,"yyyEND"]
[null,null,null,null,null,null,null,null,null,null,null,null,null,null,null,null,null,null,null,null,null,null,null,null,null,null,null,null,null,16,null,null,null,"xxx",null,null,null,null,null,null,null,null,null,null,null,null,null,null,null,null,null,null,null,null,null,null,null,null,null,null,null,null,null,null,null,null,null,null,null,null,null,null,null,null,null,null,null,null,null,null,null,null,null,null,null,null,null,null,null,null,null,null,null,null,null,null,null,null,null,null,null,null,null,null,null,null,null,null,null,null,null,null,null,null,null,null,null,null,null,null,null,null,null,null,null,null,null,null,null,null,null,null,null,null,null,null,null,null,null,null,null,null,null,null,null,null,null,null,null,null,null,null,null,null,null,null,null,null,null,null,null,null,null,null,null,null,null,null,null,null,null,null,null,null,null,null,null,null,null,null,null,null,null,null,null,null,null,null,null,null,null,null,null,null,null,null,null,null,null,null,null,null,null,null,null,null,null,null,null,null,null,null,null,null,null,null,null,null,null,null,null,null,null,null,null,null,null,null,null,null,null,null,null,null,null,null,null,null,null,null,null,null,null,null,null,null,null,null,null,null,null,null,null,null,null,null,null,null,null,null,null,null,null,null,null,null,null,null,null,null,null,null,null,null,null,null,null,null,null,null,null,null,null,null,null,null,null,null,null,null,null,null,null,null,null,null,null,null,null,null,null,null,null,null,null,null,null,null,null,null,null,null,null,null,null,null,null,null,null,null,null,null,null,null,null,null,null,null,null,null,null,null,null,null,null,null,null,null,null,null,null,null,null,null,null,null,null,null,null,null,null,null,null,null,null,null,null,null,null,null,null,null,null,null,null,null,null,null,null,null,null,null,null,null,null,null,null,null,null,null,null,null,null,null,null,null,null,null,null,null,null,null,null,null,null,null,null,null,null,null,null,null,null,null,null,null,null,null,null,null,null,null,null,null,null,null,null,null,null,null,null,null,null,null,null,null,null,null,null,null,null,null,null,null,null,null,null,null,null,null,null,null,null,null,null,null,null,null,null,null,null,null,null,null,null,null,null,null,null,null,null,null,null,null,null,null,null,null,null,null,null,null,null,null,null,null,null,null,null,null,null,null,null,null,null,null,null,null,null,null,null,null,null,null,null,null,null,null,null,"xxxEND",null,null,null,"yyy",null,null,null,null,null,null,null,null,null,null,null,null,null,null,null,null,null,null,null,null,null,null,null,null,null,null,null,null,null,null,null,null,null,null,null,null,null,null,null,null,null,null,null,null,null,null,null,null,null,null,null,null,null,null,null,null,null,null,null,null,null,null,null,null,null,null,null,null,null,null,null,null,null,null,null,null,null,null,null,null,"yyyEND"]
[null,null,"4) ","Pemohon hanya dibenarkan untuk menghadapkan satu (01) borang permohonan sahaja.",null,null,null,null,null,null,null,null,null,null,null,null,null,null,null,null,null,null,null,null,null,null,null,null,null,null,null,null,null,null,"zz",null,null,null,null,null,null,null,null,null,null,null,null,null,null,null,null,null,null,null,null,null,null,null,null,null,null,null,null,null,null,null,null,null,null,null,null,null,null,null,null,null,null,null,null,null,null,null,null,null,null,null,null,null,null,null,null,null,null,null,null,null,null,null,null,null,null,null,null,null,null,null,null,null,null,null,null,null,null,null,null,null,null,null,null,null,null,null,null,null,null,null,null,null,null,null,null,null,null,null,null,null,null,null,null,null,null,null,null,null,null,null,null,null,null,null,null,null,null,null,null,null,null,null,null,null,null,null,null,null,null,null,null,null,null,null,null,null,null,null,null,null,null,null,null,null,null,null,null,null,null,null,null,null,null,null,null,null,null,null,null,null,null,null,null,null,null,null,null,null,null,null,null,null,null,null,null,null,null,null,null,null,null,null,null,null,null,null,null,null,null,null,null,null,null,null,null,null,null,null,null,null,null,null,null,null,null,null,null,null,null,null,null,null,null,null,null,null,null,null,null,null,null,null,null,null,null,null,null,null,null,null,null,null,null,null,null,null,null,null,null,null,null,null,null,null,null,null,null,null,null,null,null,null,null,null,null,null,null,null,null,null,null,null,null,null,null,null,null,null,null,null,null,null,null,null,null,null,null,null,null,null,null,null,null,null,null,null,null,null,null,null,null,null,null,null,null,null,null,null,null,null,null,null,null,null,null,null,null,null,null,null,null,null,null,null,null,null,null,null,null,null,null,null,null,null,null,null,null,null,null,null,null,null,null,null,null,null,null,null,null,null,null,null,null,null,null,null,null,null,null,null,null,null,null,null,null,null,null,null,null,null,null,null,null,null,null,null,null,null,null,null,null,null,null,null,null,null,null,null,null,null,null,null,null,null,null,null,null,null,null,null,null,null,null,null,null,null,null,null,null,null,null,null,null,null,null,null,null,null,null,null,null,null,null,null,null,null,"end"]
[null,null,null,"Applicants can only submit one (01) application form only."]
[null,null,null,null,null,null,null,null,null,null,null,null,null,null,null,null,null,null,null,null,null,null,null,null,null,null,null,null,null,null,null,null,null,null,"zz",null,null,null,null,null,null,null,null,null,null,null,null,null,null,null,null,null,null,null,null,null,null,null,null,null,null,null,null,null,null,null,null,null,null,null,null,null,null,null,null,null,null,null,null,null,null,null,null,null,null,null,null,null,null,null,null,null,null,null,null,null,null,null,null,null,null,null,null,null,null,null,null,null,null,null,null,null,null,null,null,null,null,null,null,null,null,null,null,null,null,null,null,null,null,null,null,null,null,null,null,null,null,null,null,null,null,null,null,null,null,null,null,null,null,null,null,null,null,null,null,null,null,null,null,null,null,null,null,null,null,null,null,null,null,null,null,null,null,null,null,null,null,null,null,null,null,null,null,null,null,null,null,null,null,null,null,null,null,null,null,null,null,null,null,null,null,null,null,null,null,null,null,null,null,null,null,null,null,null,null,null,null,null,null,null,null,null,null,null,null,null,null,null,null,null,null,null,null,null,null,null,null,null,null,null,null,null,null,null,null,null,null,null,null,null,null,null,null,null,null,null,null,null,null,null,null,null,null,null,null,null,null,null,null,null,null,null,null,null,null,null,null,null,null,null,null,null,null,null,null,null,null,null,null,null,null,null,null,null,null,null,null,null,null,null,null,null,null,null,null,null,null,null,null,null,null,null,null,null,null,null,null,null,null,null,null,null,null,null,null,null,null,null,null,null,null,null,null,null,null,null,null,null,null,null,null,null,null,null,null,null,null,null,null,null,null,null,null,null,null,null,null,null,null,null,null,null,null,null,null,null,null,null,null,null,null,null,null,null,null,null,null,null,null,null,null,null,null,null,null,null,null,null,null,null,null,null,null,null,null,null,null,null,null,null,null,null,null,null,null,null,null,null,null,null,null,null,null,null,null,null,null,null,null,null,null,null,null,null,null,null,null,null,null,null,null,null,null,null,null,null,null,null,null,null,null,null,null,null,null,null,null,null,null,null,null,null,"end"]
[]
[null,"SENARAI SEMAK SALINAN (Sila tandakan x):\nSila pastikan semua dokumen dan salinan disertakan sebelum mengembalikan Borang ini ke Jabatan Pengurusan Biasiswa, Kementerian Pendidikan.",null,null,null,null,null,null,null,null,null,null,null,null,null,null,null,null,null,null,null,null,null,null,null,null,null,null,null,null,null,null,null,"xxx",null,null,null,null,null,null,null,null,null,null,null,null,null,null,null,null,null,null,null,null,null,null,null,null,null,null,null,null,null,null,null,null,null,null,null,null,null,null,null,null,null,null,null,null,null,null,null,null,null,null,null,null,null,null,null,null,null,null,null,null,null,null,null,null,null,null,null,null,null,null,null,null,null,null,null,null,null,null,null,null,null,null,null,null,null,null,null,null,null,null,null,null,null,null,null,null,null,null,null,null,null,null,null,null,null,null,null,null,null,null,null,null,null,null,null,null,null,null,null,null,null,null,null,null,null,null,null,null,null,null,null,null,null,null,null,null,null,null,null,null,null,null,null,null,null,null,null,null,null,null,null,null,null,null,null,null,null,null,null,null,null,null,null,null,null,null,null,null,null,null,null,null,null,null,null,null,null,null,null,null,null,null,null,null,null,null,null,null,null,null,null,null,null,null,null,null,null,null,null,null,null,null,null,null,null,null,null,null,null,null,null,null,null,null,null,null,null,null,null,null,null,null,null,null,null,null,null,null,null,null,null,null,null,null,null,null,null,null,null,null,null,null,null,null,null,null,null,null,null,null,null,null,null,null,null,null,null,null,null,null,null,null,null,null,null,null,null,null,null,null,null,null,null,null,null,null,null,null,null,null,null,null,null,null,null,null,null,null,null,null,null,null,null,null,null,null,null,null,null,null,null,null,null,null,null,null,null,null,null,null,null,null,null,null,null,null,null,null,null,null,null,null,null,null,null,null,null,null,null,null,null,null,null,null,null,null,null,null,null,null,null,null,null,null,null,null,null,null,null,null,null,null,null,null,null,null,null,null,null,null,null,null,null,null,null,null,null,null,null,null,null,null,null,null,null,null,null,null,null,null,null,null,null,null,null,null,null,null,null,null,null,null,null,null,null,null,null,null,null,null,null,null,null,null,null,null,null,null,null,null,null,null,null,null,null,null,null,null,null,null,null,null,null,null,null,null,null,null,null,null,null,null,null,null,null,null,null,null,null,null,null,null,null,null,null,null,null,null,null,null,null,null,null,null,null,null,null,null,null,null,null,null,null,null,null,"xxxEND",null,null,null,"yyy",null,null,null,null,null,null,null,null,null,null,null,null,null,null,null,null,null,null,null,null,null,null,null,null,null,null,null,null,null,null,null,null,null,null,null,null,null,null,null,null,null,null,null,null,null,null,null,null,null,null,null,null,null,null,null,null,null,null,null,null,null,null,null,null,null,null,null,null,null,null,null,null,null,null,null,null,null,null,null,null,"yyyEND"]
[null,null,null,null,null,null,null,null,null,null,null,null,null,null,null,null,null,null,null,null,null,null,null,null,null,null,null,null,null,null,null,null,null,"xxx",null,null,null,null,null,null,null,null,null,null,null,null,null,null,null,null,null,null,null,null,null,null,null,null,null,null,null,null,null,null,null,null,null,null,null,null,null,null,null,null,null,null,null,null,null,null,null,null,null,null,null,null,null,null,null,null,null,null,null,null,null,null,null,null,null,null,null,null,null,null,null,null,null,null,null,null,null,null,null,null,null,null,null,null,null,null,null,null,null,null,null,null,null,null,null,null,null,null,null,null,null,null,null,null,null,null,null,null,null,null,null,null,null,null,null,null,null,null,null,null,null,null,null,null,null,null,null,null,null,null,null,null,null,null,null,null,null,null,null,null,null,null,null,null,null,null,null,null,null,null,null,null,null,null,null,null,null,null,null,null,null,null,null,null,null,null,null,null,null,null,null,null,null,null,null,null,null,null,null,null,null,null,null,null,null,null,null,null,null,null,null,null,null,null,null,null,null,null,null,null,null,null,null,null,null,null,null,null,null,null,null,null,null,null,null,null,null,null,null,null,null,null,null,null,null,null,null,null,null,null,null,null,null,null,null,null,null,null,null,null,null,null,null,null,null,null,null,null,null,null,null,null,null,null,null,null,null,null,null,null,null,null,null,null,null,null,null,null,null,null,null,null,null,null,null,null,null,null,null,null,null,null,null,null,null,null,null,null,null,null,null,null,null,null,null,null,null,null,null,null,null,null,null,null,null,null,null,null,null,null,null,null,null,null,null,null,null,null,null,null,null,null,null,null,null,null,null,null,null,null,null,null,null,null,null,null,null,null,null,null,null,null,null,null,null,null,null,null,null,null,null,null,null,null,null,null,null,null,null,null,null,null,null,null,null,null,null,null,null,null,null,null,null,null,null,null,null,null,null,null,null,null,null,null,null,null,null,null,null,null,null,null,null,null,null,null,null,null,null,null,null,null,null,null,null,null,null,null,null,null,null,null,null,null,null,null,null,null,null,null,null,null,null,null,null,null,null,null,null,null,null,null,null,null,null,null,null,null,null,null,null,null,null,null,null,null,null,null,null,null,null,null,null,null,null,null,null,null,null,null,null,null,null,null,null,"xxxEND",null,null,null,"yyy",null,null,null,null,null,null,null,null,null,null,null,null,null,null,null,null,null,null,null,null,null,null,null,null,null,null,null,null,null,null,null,null,null,null,null,null,null,null,null,null,null,null,null,null,null,null,null,null,null,null,null,null,null,null,null,null,null,null,null,null,null,null,null,null,null,null,null,null,null,null,null,null,null,null,null,null,null,null,null,null,"yyyEND"]
[null,null,null,null,null,null,null,null,null,null,null,null,null,null,null,null,null,null,null,null,null,null,null,null,null,null,null,null,null,null,null,null,null,"xxx",null,null,null,null,null,null,null,null,null,null,null,null,null,null,null,null,null,null,null,null,null,null,null,null,null,null,null,null,null,null,null,null,null,null,null,null,null,null,null,null,null,null,null,null,null,null,null,null,null,null,null,null,null,null,null,null,null,null,null,null,null,null,null,null,null,null,null,null,null,null,null,null,null,null,null,null,null,null,null,null,null,null,null,null,null,null,null,null,null,null,null,null,null,null,null,null,null,null,null,null,null,null,null,null,null,null,null,null,null,null,null,null,null,null,null,null,null,null,null,null,null,null,null,null,null,null,null,null,null,null,null,null,null,null,null,null,null,null,null,null,null,null,null,null,null,null,null,null,null,null,null,null,null,null,null,null,null,null,null,null,null,null,null,null,null,null,null,null,null,null,null,null,null,null,null,null,null,null,null,null,null,null,null,null,null,null,null,null,null,null,null,null,null,null,null,null,null,null,null,null,null,null,null,null,null,null,null,null,null,null,null,null,null,null,null,null,null,null,null,null,null,null,null,null,null,null,null,null,null,null,null,null,null,null,null,null,null,null,null,null,null,null,null,null,null,null,null,null,null,null,null,null,null,null,null,null,null,null,null,null,null,null,null,null,null,null,null,null,null,null,null,null,null,null,null,null,null,null,null,null,null,null,null,null,null,null,null,null,null,null,null,null,null,null,null,null,null,null,null,null,null,null,null,null,null,null,null,null,null,null,null,null,null,null,null,null,null,null,null,null,null,null,null,null,null,null,null,null,null,null,null,null,null,null,null,null,null,null,null,null,null,null,null,null,null,null,null,null,null,null,null,null,null,null,null,null,null,null,null,null,null,null,null,null,null,null,null,null,null,null,null,null,null,null,null,null,null,null,null,null,null,null,null,null,null,null,null,null,null,null,null,null,null,null,null,null,null,null,null,null,null,null,null,null,null,null,null,null,null,null,null,null,null,null,null,null,null,null,null,null,null,null,null,null,null,null,null,null,null,null,null,null,null,null,null,null,null,null,null,null,null,null,null,null,null,null,null,null,null,null,null,null,null,null,null,null,null,null,null,null,null,null,null,null,null,"xxxEND",null,null,null,"yyy",null,null,null,null,null,null,null,null,null,null,null,null,null,null,null,null,null,null,null,null,null,null,null,null,null,null,null,null,null,null,null,null,null,null,null,null,null,null,null,null,null,null,null,null,null,null,null,null,null,null,null,null,null,null,null,null,null,null,null,null,null,null,null,null,null,null,null,null,null,null,null,null,null,null,null,null,null,null,null,null,"yyyEND"]
[null,null,null,null,null,null,null,null,null,null,null,null,null,null,null,null,null,null,null,null,null,null,null,null,null,null,null,null,null,null,null,null,null,"xxx",null,null,null,null,null,null,null,null,null,null,null,null,null,null,null,null,null,null,null,null,null,null,null,null,null,null,null,null,null,null,null,null,null,null,null,null,null,null,null,null,null,null,null,null,null,null,null,null,null,null,null,null,null,null,null,null,null,null,null,null,null,null,null,null,null,null,null,null,null,null,null,null,null,null,null,null,null,null,null,null,null,null,null,null,null,null,null,null,null,null,null,null,null,null,null,null,null,null,null,null,null,null,null,null,null,null,null,null,null,null,null,null,null,null,null,null,null,null,null,null,null,null,null,null,null,null,null,null,null,null,null,null,null,null,null,null,null,null,null,null,null,null,null,null,null,null,null,null,null,null,null,null,null,null,null,null,null,null,null,null,null,null,null,null,null,null,null,null,null,null,null,null,null,null,null,null,null,null,null,null,null,null,null,null,null,null,null,null,null,null,null,null,null,null,null,null,null,null,null,null,null,null,null,null,null,null,null,null,null,null,null,null,null,null,null,null,null,null,null,null,null,null,null,null,null,null,null,null,null,null,null,null,null,null,null,null,null,null,null,null,null,null,null,null,null,null,null,null,null,null,null,null,null,null,null,null,null,null,null,null,null,null,null,null,null,null,null,null,null,null,null,null,null,null,null,null,null,null,null,null,null,null,null,null,null,null,null,null,null,null,null,null,null,null,null,null,null,null,null,null,null,null,null,null,null,null,null,null,null,null,null,null,null,null,null,null,null,null,null,null,null,null,null,null,null,null,null,null,null,null,null,null,null,null,null,null,null,null,null,null,null,null,null,null,null,null,null,null,null,null,null,null,null,null,null,null,null,null,null,null,null,null,null,null,null,null,null,null,null,null,null,null,null,null,null,null,null,null,null,null,null,null,null,null,null,null,null,null,null,null,null,null,null,null,null,null,null,null,null,null,null,null,null,null,null,null,null,null,null,null,null,null,null,null,null,null,null,null,null,null,null,null,null,null,null,null,null,null,null,null,null,null,null,null,null,null,null,null,null,null,null,null,null,null,null,null,null,null,null,null,null,null,null,null,null,null,null,null,null,null,null,null,null,null,null,"xxxEND",null,null,null,"yyy",null,null,null,null,null,null,null,null,null,null,null,null,null,null,null,null,null,null,null,null,null,null,null,null,null,null,null,null,null,null,null,null,null,null,null,null,null,null,null,null,null,null,null,null,null,null,null,null,null,null,null,null,null,null,null,null,null,null,null,null,null,null,null,null,null,null,null,null,null,null,null,null,null,null,null,null,null,null,null,null,"yyyEND"]
[null,"Bagi Pemohon :",null,null,null,null,null,null,null,null,null,null,null,null,null,null,null,null,null,null,null,null,null,null,null,null,null,null,null,null,null,null,null,"xxx",null,null,null,null,null,null,null,null,null,null,null,null,null,null,null,null,null,null,null,null,null,null,null,null,null,null,null,null,null,null,null,null,null,null,null,null,null,null,null,null,null,null,null,null,null,null,null,null,null,null,null,null,null,null,null,null,null,null,null,null,null,null,null,null,null,null,null,null,null,null,null,null,null,null,null,null,null,null,null,null,null,null,null,null,null,null,null,null,null,null,null,null,null,null,null,null,null,null,null,null,null,null,null,null,null,null,null,null,null,null,null,null,null,null,null,null,null,null,null,null,null,null,null,null,null,null,null,null,null,null,null,null,null,null,null,null,null,null,null,null,null,null,null,null,null,null,null,null,null,null,null,null,null,null,null,null,null,null,null,null,null,null,null,null,null,null,null,null,null,null,null,null,null,null,null,null,null,null,null,null,null,null,null,null,null,null,null,null,null,null,null,null,null,null,null,null,null,null,null,null,null,null,null,null,null,null,null,null,null,null,null,null,null,null,null,null,null,null,null,null,null,null,null,null,null,null,null,null,null,null,null,null,null,null,null,null,null,null,null,null,null,null,null,null,null,null,null,null,null,null,null,null,null,null,null,null,null,null,null,null,null,null,null,null,null,null,null,null,null,null,null,null,null,null,null,null,null,null,null,null,null,null,null,null,null,null,null,null,null,null,null,null,null,null,null,null,null,null,null,null,null,null,null,null,null,null,null,null,null,null,null,null,null,null,null,null,null,null,null,null,null,null,null,null,null,null,null,null,null,null,null,null,null,null,null,null,null,null,null,null,null,null,null,null,null,null,null,null,null,null,null,null,null,null,null,null,null,null,null,null,null,null,null,null,null,null,null,null,null,null,null,null,null,null,null,null,null,null,null,null,null,null,null,null,null,null,null,null,null,null,null,null,null,null,null,null,null,null,null,null,null,null,null,null,null,null,null,null,null,null,null,null,null,null,null,null,null,null,null,null,null,null,null,null,null,null,null,null,null,null,null,null,null,null,null,null,null,null,null,null,null,null,null,null,null,null,null,null,null,null,null,null,null,null,null,null,null,null,null,null,null,null,null,null,null,"xxxEND",null,null,null,"yyy",null,null,null,null,null,null,null,null,null,null,null,null,null,null,null,null,null,null,null,null,null,null,null,null,null,null,null,null,null,null,null,null,null,null,null,null,null,null,null,null,null,null,null,null,null,null,null,null,null,null,null,null,null,null,null,null,null,null,null,null,null,null,null,null,null,null,null,null,null,null,null,null,null,null,null,null,null,null,null,null,"yyyEND"]
[null,null,"Borang permohonan [beserta satu gambar berwarna ukuran pasport]\nApplication Form [with one passport size colour photo]",null,null,null,null,null,null,null,null,null,null,null,null,null,null,null,null,null,null,null,null,null,null,null,null,null,null,20,null,null,null,"xxx",null,null,null,null,null,null,null,null,null,null,null,null,null,null,null,null,null,null,null,null,null,null,null,null,null,null,null,null,null,null,null,null,null,null,null,null,null,null,null,null,null,null,null,null,null,null,null,null,null,null,null,null,null,null,null,null,null,null,null,null,null,null,null,null,null,null,null,null,null,null,null,null,null,null,null,null,null,null,null,null,null,null,null,null,null,null,null,null,null,null,null,null,null,null,null,null,null,null,null,null,null,null,null,null,null,null,null,null,null,null,null,null,null,null,null,null,null,null,null,null,null,null,null,null,null,null,null,null,null,null,null,null,null,null,null,null,null,null,null,null,null,null,null,null,null,null,null,null,null,null,null,null,null,null,null,null,null,null,null,null,null,null,null,null,null,null,null,null,null,null,null,null,null,null,null,null,null,null,null,null,null,null,null,null,null,null,null,null,null,null,null,null,null,null,null,null,null,null,null,null,null,null,null,null,null,null,null,null,null,null,null,null,null,null,null,null,null,null,null,null,null,null,null,null,null,null,null,null,null,null,null,null,null,null,null,null,null,null,null,null,null,null,null,null,null,null,null,null,null,null,null,null,null,null,null,null,null,null,null,null,null,null,null,null,null,null,null,null,null,null,null,null,null,null,null,null,null,null,null,null,null,null,null,null,null,null,null,null,null,null,null,null,null,null,null,null,null,null,null,null,null,null,null,null,null,null,null,null,null,null,null,null,null,null,null,null,null,null,null,null,null,null,null,null,null,null,null,null,null,null,null,null,null,null,null,null,null,null,null,null,null,null,null,null,null,null,null,null,null,null,null,null,null,null,null,null,null,null,null,null,null,null,null,null,null,null,null,null,null,null,null,null,null,null,null,null,null,null,null,null,null,null,null,null,null,null,null,null,null,null,null,null,null,null,null,null,null,null,null,null,null,null,null,null,null,null,null,null,null,null,null,null,null,null,null,null,null,null,null,null,null,null,null,null,null,null,null,null,null,null,null,null,null,null,null,null,null,null,null,null,null,null,null,null,null,null,null,null,null,null,null,null,null,null,null,null,null,null,null,null,null,null,null,null,null,"xxxEND",null,null,null,"yyy",null,null,null,null,null,null,null,null,null,null,null,null,null,null,null,null,null,null,null,null,null,null,null,null,null,null,null,null,null,null,null,null,null,null,null,null,null,null,null,null,null,null,null,null,null,null,null,null,null,null,null,null,null,null,null,null,null,null,null,null,null,null,null,null,null,null,null,null,null,null,null,null,null,null,null,null,null,null,null,null,"yyyEND"]
[null,null,"Salinan Kad Pintar\nCopy of Smart Card",null,null,null,null,null,null,null,null,null,null,null,null,null,null,null,null,null,null,null,null,null,null,null,null,null,null,16,null,null,null,"xxx",null,null,null,null,null,null,null,null,null,null,null,null,null,null,null,null,null,null,null,null,null,null,null,null,null,null,null,null,null,null,null,null,null,null,null,null,null,null,null,null,null,null,null,null,null,null,null,null,null,null,null,null,null,null,null,null,null,null,null,null,null,null,null,null,null,null,null,null,null,null,null,null,null,null,null,null,null,null,null,null,null,null,null,null,null,null,null,null,null,null,null,null,null,null,null,null,null,null,null,null,null,null,null,null,null,null,null,null,null,null,null,null,null,null,null,null,null,null,null,null,null,null,null,null,null,null,null,null,null,null,null,null,null,null,null,null,null,null,null,null,null,null,null,null,null,null,null,null,null,null,null,null,null,null,null,null,null,null,null,null,null,null,null,null,null,null,null,null,null,null,null,null,null,null,null,null,null,null,null,null,null,null,null,null,null,null,null,null,null,null,null,null,null,null,null,null,null,null,null,null,null,null,null,null,null,null,null,null,null,null,null,null,null,null,null,null,null,null,null,null,null,null,null,null,null,null,null,null,null,null,null,null,null,null,null,null,null,null,null,null,null,null,null,null,null,null,null,null,null,null,null,null,null,null,null,null,null,null,null,null,null,null,null,null,null,null,null,null,null,null,null,null,null,null,null,null,null,null,null,null,null,null,null,null,null,null,null,null,null,null,null,null,null,null,null,null,null,null,null,null,null,null,null,null,null,null,null,null,null,null,null,null,null,null,null,null,null,null,null,null,null,null,null,null,null,null,null,null,null,null,null,null,null,null,null,null,null,null,null,null,null,null,null,null,null,null,null,null,null,null,null,null,null,null,null,null,null,null,null,null,null,null,null,null,null,null,null,null,null,null,null,null,null,null,null,null,null,null,null,null,null,null,null,null,null,null,null,null,null,null,null,null,null,null,null,null,null,null,null,null,null,null,null,null,null,null,null,null,null,null,null,null,null,null,null,null,null,null,null,null,null,null,null,null,null,null,null,null,null,null,null,null,null,null,null,null,null,null,null,null,null,null,null,null,null,null,null,null,null,null,null,null,null,null,null,null,null,null,null,null,null,null,null,null,null,"xxxEND",null,null,null,"yyy",null,null,null,null,null,null,null,null,null,null,null,null,null,null,null,null,null,null,null,null,null,null,null,null,null,null,null,null,null,null,null,null,null,null,null,null,null,null,null,null,null,null,null,null,null,null,null,null,null,null,null,null,null,null,null,null,null,null,null,null,null,null,null,null,null,null,null,null,null,null,null,null,null,null,null,null,null,null,null,null,"yyyEND"]
[null,null,"Borang B [beserta satu gambar berwarna ukuran paspot bagi SETIAP borang]\nBorang B [with one passport size colour photo for EACH form]",null,null,null,null,null,null,null,null,null,null,null,null,null,null,null,null,null,null,null,null,null,null,null,null,null,null,20,null,null,null,"xxx",null,null,null,null,null,null,null,null,null,null,null,null,null,null,null,null,null,null,null,null,null,null,null,null,null,null,null,null,null,null,null,null,null,null,null,null,null,null,null,null,null,null,null,null,null,null,null,null,null,null,null,null,null,null,null,null,null,null,null,null,null,null,null,null,null,null,null,null,null,null,null,null,null,null,null,null,null,null,null,null,null,null,null,null,null,null,null,null,null,null,null,null,null,null,null,null,null,null,null,null,null,null,null,null,null,null,null,null,null,null,null,null,null,null,null,null,null,null,null,null,null,null,null,null,null,null,null,null,null,null,null,null,null,null,null,null,null,null,null,null,null,null,null,null,null,null,null,null,null,null,null,null,null,null,null,null,null,null,null,null,null,null,null,null,null,null,null,null,null,null,null,null,null,null,null,null,null,null,null,null,null,null,null,null,null,null,null,null,null,null,null,null,null,null,null,null,null,null,null,null,null,null,null,null,null,null,null,null,null,null,null,null,null,null,null,null,null,null,null,null,null,null,null,null,null,null,null,null,null,null,null,null,null,null,null,null,null,null,null,null,null,null,null,null,null,null,null,null,null,null,null,null,null,null,null,null,null,null,null,null,null,null,null,null,null,null,null,null,null,null,null,null,null,null,null,null,null,null,null,null,null,null,null,null,null,null,null,null,null,null,null,null,null,null,null,null,null,null,null,null,null,null,null,null,null,null,null,null,null,null,null,null,null,null,null,null,null,null,null,null,null,null,null,null,null,null,null,null,null,null,null,null,null,null,null,null,null,null,null,null,null,null,null,null,null,null,null,null,null,null,null,null,null,null,null,null,null,null,null,null,null,null,null,null,null,null,null,null,null,null,null,null,null,null,null,null,null,null,null,null,null,null,null,null,null,null,null,null,null,null,null,null,null,null,null,null,null,null,null,null,null,null,null,null,null,null,null,null,null,null,null,null,null,null,null,null,null,null,null,null,null,null,null,null,null,null,null,null,null,null,null,null,null,null,null,null,null,null,null,null,null,null,null,null,null,null,null,null,null,null,null,null,null,null,null,null,null,null,null,null,null,null,null,null,null,"xxxEND",null,null,null,"yyy",null,null,null,null,null,null,null,null,null,null,null,null,null,null,null,null,null,null,null,null,null,null,null,null,null,null,null,null,null,null,null,null,null,null,null,null,null,null,null,null,null,null,null,null,null,null,null,null,null,null,null,null,null,null,null,null,null,null,null,null,null,null,null,null,null,null,null,null,null,null,null,null,null,null,null,null,null,null,null,null,"yyyEND"]
[null,null,"Salinan yang disahkan yang berkaitan dengan permohonan [jika berkenaan]\nCertified Copy related to the application [if applicable]",null,null,null,null,null,null,null,null,null,null,null,null,null,null,null,null,null,null,null,null,null,null,null,null,null,null,20,null,null,null,"xxx",null,null,null,null,null,null,null,null,null,null,null,null,null,null,null,null,null,null,null,null,null,null,null,null,null,null,null,null,null,null,null,null,null,null,null,null,null,null,null,null,null,null,null,null,null,null,null,null,null,null,null,null,null,null,null,null,null,null,null,null,null,null,null,null,null,null,null,null,null,null,null,null,null,null,null,null,null,null,null,null,null,null,null,null,null,null,null,null,null,null,null,null,null,null,null,null,null,null,null,null,null,null,null,null,null,null,null,null,null,null,null,null,null,null,null,null,null,null,null,null,null,null,null,null,null,null,null,null,null,null,null,null,null,null,null,null,null,null,null,null,null,null,null,null,null,null,null,null,null,null,null,null,null,null,null,null,null,null,null,null,null,null,null,null,null,null,null,null,null,null,null,null,null,null,null,null,null,null,null,null,null,null,null,null,null,null,null,null,null,null,null,null,null,null,null,null,null,null,null,null,null,null,null,null,null,null,null,null,null,null,null,null,null,null,null,null,null,null,null,null,null,null,null,null,null,null,null,null,null,null,null,null,null,null,null,null,null,null,null,null,null,null,null,null,null,null,null,null,null,null,null,null,null,null,null,null,null,null,null,null,null,null,null,null,null,null,null,null,null,null,null,null,null,null,null,null,null,null,null,null,null,null,null,null,null,null,null,null,null,null,null,null,null,null,null,null,null,null,null,null,null,null,null,null,null,null,null,null,null,null,null,null,null,null,null,null,null,null,null,null,null,null,null,null,null,null,null,null,null,null,null,null,null,null,null,null,null,null,null,null,null,null,null,null,null,null,null,null,null,null,null,null,null,null,null,null,null,null,null,null,null,null,null,null,null,null,null,null,null,null,null,null,null,null,null,null,null,null,null,null,null,null,null,null,null,null,null,null,null,null,null,null,null,null,null,null,null,null,null,null,null,null,null,null,null,null,null,null,null,null,null,null,null,null,null,null,null,null,null,null,null,null,null,null,null,null,null,null,null,null,null,null,null,null,null,null,null,null,null,null,null,null,null,null,null,null,null,null,null,null,null,null,null,null,null,null,null,null,null,null,null,null,null,null,null,"xxxEND",null,null,null,"yyy",null,null,null,null,null,null,null,null,null,null,null,null,null,null,null,null,null,null,null,null,null,null,null,null,null,null,null,null,null,null,null,null,null,null,null,null,null,null,null,null,null,null,null,null,null,null,null,null,null,null,null,null,null,null,null,null,null,null,null,null,null,null,null,null,null,null,null,null,null,null,null,null,null,null,null,null,null,null,null,null,"yyyEND"]
[null,null,"-","Sijil Peringkat ‘O’ / ‘O’ Level Certificate (BGCE / IGCSE)",null,null,null,null,null,null,null,null,null,null,null,null,null,null,null,null,null,null,null,null,null,null,null,null,null,16,null,null,null,"xxx",null,null,null,null,null,null,null,null,null,null,null,null,null,null,null,null,null,null,null,null,null,null,null,null,null,null,null,null,null,null,null,null,null,null,null,null,null,null,null,null,null,null,null,null,null,null,null,null,null,null,null,null,null,null,null,null,null,null,null,null,null,null,null,null,null,null,null,null,null,null,null,null,null,null,null,null,null,null,null,null,null,null,null,null,null,null,null,null,null,null,null,null,null,null,null,null,null,null,null,null,null,null,null,null,null,null,null,null,null,null,null,null,null,null,null,null,null,null,null,null,null,null,null,null,null,null,null,null,null,null,null,null,null,null,null,null,null,null,null,null,null,null,null,null,null,null,null,null,null,null,null,null,null,null,null,null,null,null,null,null,null,null,null,null,null,null,null,null,null,null,null,null,null,null,null,null,null,null,null,null,null,null,null,null,null,null,null,null,null,null,null,null,null,null,null,null,null,null,null,null,null,null,null,null,null,null,null,null,null,null,null,null,null,null,null,null,null,null,null,null,null,null,null,null,null,null,null,null,null,null,null,null,null,null,null,null,null,null,null,null,null,null,null,null,null,null,null,null,null,null,null,null,null,null,null,null,null,null,null,null,null,null,null,null,null,null,null,null,null,null,null,null,null,null,null,null,null,null,null,null,null,null,null,null,null,null,null,null,null,null,null,null,null,null,null,null,null,null,null,null,null,null,null,null,null,null,null,null,null,null,null,null,null,null,null,null,null,null,null,null,null,null,null,null,null,null,null,null,null,null,null,null,null,null,null,null,null,null,null,null,null,null,null,null,null,null,null,null,null,null,null,null,null,null,null,null,null,null,null,null,null,null,null,null,null,null,null,null,null,null,null,null,null,null,null,null,null,null,null,null,null,null,null,null,null,null,null,null,null,null,null,null,null,null,null,null,null,null,null,null,null,null,null,null,null,null,null,null,null,null,null,null,null,null,null,null,null,null,null,null,null,null,null,null,null,null,null,null,null,null,null,null,null,null,null,null,null,null,null,null,null,null,null,null,null,null,null,null,null,null,null,null,null,null,null,null,null,null,null,null,null,null,null,null,null,"xxxEND",null,null,null,"yyy",null,null,null,null,null,null,null,null,null,null,null,null,null,null,null,null,null,null,null,null,null,null,null,null,null,null,null,null,null,null,null,null,null,null,null,null,null,null,null,null,null,null,null,null,null,null,null,null,null,null,null,null,null,null,null,null,null,null,null,null,null,null,null,null,null,null,null,null,null,null,null,null,null,null,null,null,null,null,null,null,"yyyEND"]
[null,null,"-","Sijil Peringkat ‘A’ / ‘A’ Level Certificate (BGCE)",null,null,null,null,null,null,null,null,null,null,null,null,null,null,null,null,null,null,null,null,null,null,null,null,null,16,null,null,null,"xxx",null,null,null,null,null,null,null,null,null,null,null,null,null,null,null,null,null,null,null,null,null,null,null,null,null,null,null,null,null,null,null,null,null,null,null,null,null,null,null,null,null,null,null,null,null,null,null,null,null,null,null,null,null,null,null,null,null,null,null,null,null,null,null,null,null,null,null,null,null,null,null,null,null,null,null,null,null,null,null,null,null,null,null,null,null,null,null,null,null,null,null,null,null,null,null,null,null,null,null,null,null,null,null,null,null,null,null,null,null,null,null,null,null,null,null,null,null,null,null,null,null,null,null,null,null,null,null,null,null,null,null,null,null,null,null,null,null,null,null,null,null,null,null,null,null,null,null,null,null,null,null,null,null,null,null,null,null,null,null,null,null,null,null,null,null,null,null,null,null,null,null,null,null,null,null,null,null,null,null,null,null,null,null,null,null,null,null,null,null,null,null,null,null,null,null,null,null,null,null,null,null,null,null,null,null,null,null,null,null,null,null,null,null,null,null,null,null,null,null,null,null,null,null,null,null,null,null,null,null,null,null,null,null,null,null,null,null,null,null,null,null,null,null,null,null,null,null,null,null,null,null,null,null,null,null,null,null,null,null,null,null,null,null,null,null,null,null,null,null,null,null,null,null,null,null,null,null,null,null,null,null,null,null,null,null,null,null,null,null,null,null,null,null,null,null,null,null,null,null,null,null,null,null,null,null,null,null,null,null,null,null,null,null,null,null,null,null,null,null,null,null,null,null,null,null,null,null,null,null,null,null,null,null,null,null,null,null,null,null,null,null,null,null,null,null,null,null,null,null,null,null,null,null,null,null,null,null,null,null,null,null,null,null,null,null,null,null,null,null,null,null,null,null,null,null,null,null,null,null,null,null,null,null,null,null,null,null,null,null,null,null,null,null,null,null,null,null,null,null,null,null,null,null,null,null,null,null,null,null,null,null,null,null,null,null,null,null,null,null,null,null,null,null,null,null,null,null,null,null,null,null,null,null,null,null,null,null,null,null,null,null,null,null,null,null,null,null,null,null,null,null,null,null,null,null,null,null,null,null,null,null,null,null,null,null,"xxxEND",null,null,null,"yyy",null,null,null,null,null,null,null,null,null,null,null,null,null,null,null,null,null,null,null,null,null,null,null,null,null,null,null,null,null,null,null,null,null,null,null,null,null,null,null,null,null,null,null,null,null,null,null,null,null,null,null,null,null,null,null,null,null,null,null,null,null,null,null,null,null,null,null,null,null,null,null,null,null,null,null,null,null,null,null,null,"yyyEND"]
[null,null,"-","Sijil International Baccalaureate Diploma (IB) / IB Certificate",null,null,null,null,null,null,null,null,null,null,null,null,null,null,null,null,null,null,null,null,null,null,null,null,null,16,null,null,null,"xxx",null,null,null,null,null,null,null,null,null,null,null,null,null,null,null,null,null,null,null,null,null,null,null,null,null,null,null,null,null,null,null,null,null,null,null,null,null,null,null,null,null,null,null,null,null,null,null,null,null,null,null,null,null,null,null,null,null,null,null,null,null,null,null,null,null,null,null,null,null,null,null,null,null,null,null,null,null,null,null,null,null,null,null,null,null,null,null,null,null,null,null,null,null,null,null,null,null,null,null,null,null,null,null,null,null,null,null,null,null,null,null,null,null,null,null,null,null,null,null,null,null,null,null,null,null,null,null,null,null,null,null,null,null,null,null,null,null,null,null,null,null,null,null,null,null,null,null,null,null,null,null,null,null,null,null,null,null,null,null,null,null,null,null,null,null,null,null,null,null,null,null,null,null,null,null,null,null,null,null,null,null,null,null,null,null,null,null,null,null,null,null,null,null,null,null,null,null,null,null,null,null,null,null,null,null,null,null,null,null,null,null,null,null,null,null,null,null,null,null,null,null,null,null,null,null,null,null,null,null,null,null,null,null,null,null,null,null,null,null,null,null,null,null,null,null,null,null,null,null,null,null,null,null,null,null,null,null,null,null,null,null,null,null,null,null,null,null,null,null,null,null,null,null,null,null,null,null,null,null,null,null,null,null,null,null,null,null,null,null,null,null,null,null,null,null,null,null,null,null,null,null,null,null,null,null,null,null,null,null,null,null,null,null,null,null,null,null,null,null,null,null,null,null,null,null,null,null,null,null,null,null,null,null,null,null,null,null,null,null,null,null,null,null,null,null,null,null,null,null,null,null,null,null,null,null,null,null,null,null,null,null,null,null,null,null,null,null,null,null,null,null,null,null,null,null,null,null,null,null,null,null,null,null,null,null,null,null,null,null,null,null,null,null,null,null,null,null,null,null,null,null,null,null,null,null,null,null,null,null,null,null,null,null,null,null,null,null,null,null,null,null,null,null,null,null,null,null,null,null,null,null,null,null,null,null,null,null,null,null,null,null,null,null,null,null,null,null,null,null,null,null,null,null,null,null,null,null,null,null,null,null,null,null,null,null,"xxxEND",null,null,null,"yyy",null,null,null,null,null,null,null,null,null,null,null,null,null,null,null,null,null,null,null,null,null,null,null,null,null,null,null,null,null,null,null,null,null,null,null,null,null,null,null,null,null,null,null,null,null,null,null,null,null,null,null,null,null,null,null,null,null,null,null,null,null,null,null,null,null,null,null,null,null,null,null,null,null,null,null,null,null,null,null,null,"yyyEND"]
[null,null,"-","Sijil Diploma Lanjutan or Diploma Tertinggi Kebangsaan /\nAdvanced Diploma or Higher National Diploma (HND) Certificate",null,null,null,null,null,null,null,null,null,null,null,null,null,null,null,null,null,null,null,null,null,null,null,null,null,20,null,null,null,"xxx",null,null,null,null,null,null,null,null,null,null,null,null,null,null,null,null,null,null,null,null,null,null,null,null,null,null,null,null,null,null,null,null,null,null,null,null,null,null,null,null,null,null,null,null,null,null,null,null,null,null,null,null,null,null,null,null,null,null,null,null,null,null,null,null,null,null,null,null,null,null,null,null,null,null,null,null,null,null,null,null,null,null,null,null,null,null,null,null,null,null,null,null,null,null,null,null,null,null,null,null,null,null,null,null,null,null,null,null,null,null,null,null,null,null,null,null,null,null,null,null,null,null,null,null,null,null,null,null,null,null,null,null,null,null,null,null,null,null,null,null,null,null,null,null,null,null,null,null,null,null,null,null,null,null,null,null,null,null,null,null,null,null,null,null,null,null,null,null,null,null,null,null,null,null,null,null,null,null,null,null,null,null,null,null,null,null,null,null,null,null,null,null,null,null,null,null,null,null,null,null,null,null,null,null,null,null,null,null,null,null,null,null,null,null,null,null,null,null,null,null,null,null,null,null,null,null,null,null,null,null,null,null,null,null,null,null,null,null,null,null,null,null,null,null,null,null,null,null,null,null,null,null,null,null,null,null,null,null,null,null,null,null,null,null,null,null,null,null,null,null,null,null,null,null,null,null,null,null,null,null,null,null,null,null,null,null,null,null,null,null,null,null,null,null,null,null,null,null,null,null,null,null,null,null,null,null,null,null,null,null,null,null,null,null,null,null,null,null,null,null,null,null,null,null,null,null,null,null,null,null,null,null,null,null,null,null,null,null,null,null,null,null,null,null,null,null,null,null,null,null,null,null,null,null,null,null,null,null,null,null,null,null,null,null,null,null,null,null,null,null,null,null,null,null,null,null,null,null,null,null,null,null,null,null,null,null,null,null,null,null,null,null,null,null,null,null,null,null,null,null,null,null,null,null,null,null,null,null,null,null,null,null,null,null,null,null,null,null,null,null,null,null,null,null,null,null,null,null,null,null,null,null,null,null,null,null,null,null,null,null,null,null,null,null,null,null,null,null,null,null,null,null,null,null,null,null,null,null,null,null,null,null,null,null,null,"xxxEND",null,null,null,"yyy",null,null,null,null,null,null,null,null,null,null,null,null,null,null,null,null,null,null,null,null,null,null,null,null,null,null,null,null,null,null,null,null,null,null,null,null,null,null,null,null,null,null,null,null,null,null,null,null,null,null,null,null,null,null,null,null,null,null,null,null,null,null,null,null,null,null,null,null,null,null,null,null,null,null,null,null,null,null,null,null,"yyyEND"]
[null,null,"-","Sijil IELTS / GP / IGCSE (English as a Second Language)\nIELTS / GP / ICGSE (English As A Second Language) Certificate",null,null,null,null,null,null,null,null,null,null,null,null,null,null,null,null,null,null,null,null,null,null,null,null,null,20,null,null,null,"xxx",null,null,null,null,null,null,null,null,null,null,null,null,null,null,null,null,null,null,null,null,null,null,null,null,null,null,null,null,null,null,null,null,null,null,null,null,null,null,null,null,null,null,null,null,null,null,null,null,null,null,null,null,null,null,null,null,null,null,null,null,null,null,null,null,null,null,null,null,null,null,null,null,null,null,null,null,null,null,null,null,null,null,null,null,null,null,null,null,null,null,null,null,null,null,null,null,null,null,null,null,null,null,null,null,null,null,null,null,null,null,null,null,null,null,null,null,null,null,null,null,null,null,null,null,null,null,null,null,null,null,null,null,null,null,null,null,null,null,null,null,null,null,null,null,null,null,null,null,null,null,null,null,null,null,null,null,null,null,null,null,null,null,null,null,null,null,null,null,null,null,null,null,null,null,null,null,null,null,null,null,null,null,null,null,null,null,null,null,null,null,null,null,null,null,null,null,null,null,null,null,null,null,null,null,null,null,null,null,null,null,null,null,null,null,null,null,null,null,null,null,null,null,null,null,null,null,null,null,null,null,null,null,null,null,null,null,null,null,null,null,null,null,null,null,null,null,null,null,null,null,null,null,null,null,null,null,null,null,null,null,null,null,null,null,null,null,null,null,null,null,null,null,null,null,null,null,null,null,null,null,null,null,null,null,null,null,null,null,null,null,null,null,null,null,null,null,null,null,null,null,null,null,null,null,null,null,null,null,null,null,null,null,null,null,null,null,null,null,null,null,null,null,null,null,null,null,null,null,null,null,null,null,null,null,null,null,null,null,null,null,null,null,null,null,null,null,null,null,null,null,null,null,null,null,null,null,null,null,null,null,null,null,null,null,null,null,null,null,null,null,null,null,null,null,null,null,null,null,null,null,null,null,null,null,null,null,null,null,null,null,null,null,null,null,null,null,null,null,null,null,null,null,null,null,null,null,null,null,null,null,null,null,null,null,null,null,null,null,null,null,null,null,null,null,null,null,null,null,null,null,null,null,null,null,null,null,null,null,null,null,null,null,null,null,null,null,null,null,null,null,null,null,null,null,null,null,null,null,null,null,null,null,null,null,null,"xxxEND",null,null,null,"yyy",null,null,null,null,null,null,null,null,null,null,null,null,null,null,null,null,null,null,null,null,null,null,null,null,null,null,null,null,null,null,null,null,null,null,null,null,null,null,null,null,null,null,null,null,null,null,null,null,null,null,null,null,null,null,null,null,null,null,null,null,null,null,null,null,null,null,null,null,null,null,null,null,null,null,null,null,null,null,null,null,"yyyEND"]
[null,null,"-","Sijil Ijazah Pertama / Bachelor's Degree Certificate",null,null,null,null,null,null,null,null,null,null,null,null,null,null,null,null,null,null,null,null,null,null,null,null,null,16,null,null,null,"xxx",null,null,null,null,null,null,null,null,null,null,null,null,null,null,null,null,null,null,null,null,null,null,null,null,null,null,null,null,null,null,null,null,null,null,null,null,null,null,null,null,null,null,null,null,null,null,null,null,null,null,null,null,null,null,null,null,null,null,null,null,null,null,null,null,null,null,null,null,null,null,null,null,null,null,null,null,null,null,null,null,null,null,null,null,null,null,null,null,null,null,null,null,null,null,null,null,null,null,null,null,null,null,null,null,null,null,null,null,null,null,null,null,null,null,null,null,null,null,null,null,null,null,null,null,null,null,null,null,null,null,null,null,null,null,null,null,null,null,null,null,null,null,null,null,null,null,null,null,null,null,null,null,null,null,null,null,null,null,null,null,null,null,null,null,null,null,null,null,null,null,null,null,null,null,null,null,null,null,null,null,null,null,null,null,null,null,null,null,null,null,null,null,null,null,null,null,null,null,null,null,null,null,null,null,null,null,null,null,null,null,null,null,null,null,null,null,null,null,null,null,null,null,null,null,null,null,null,null,null,null,null,null,null,null,null,null,null,null,null,null,null,null,null,null,null,null,null,null,null,null,null,null,null,null,null,null,null,null,null,null,null,null,null,null,null,null,null,null,null,null,null,null,null,null,null,null,null,null,null,null,null,null,null,null,null,null,null,null,null,null,null,null,null,null,null,null,null,null,null,null,null,null,null,null,null,null,null,null,null,null,null,null,null,null,null,null,null,null,null,null,null,null,null,null,null,null,null,null,null,null,null,null,null,null,null,null,null,null,null,null,null,null,null,null,null,null,null,null,null,null,null,null,null,null,null,null,null,null,null,null,null,null,null,null,null,null,null,null,null,null,null,null,null,null,null,null,null,null,null,null,null,null,null,null,null,null,null,null,null,null,null,null,null,null,null,null,null,null,null,null,null,null,null,null,null,null,null,null,null,null,null,null,null,null,null,null,null,null,null,null,null,null,null,null,null,null,null,null,null,null,null,null,null,null,null,null,null,null,null,null,null,null,null,null,null,null,null,null,null,null,null,null,null,null,null,null,null,null,null,null,null,null,null,null,null,"xxxEND",null,null,null,"yyy",null,null,null,null,null,null,null,null,null,null,null,null,null,null,null,null,null,null,null,null,null,null,null,null,null,null,null,null,null,null,null,null,null,null,null,null,null,null,null,null,null,null,null,null,null,null,null,null,null,null,null,null,null,null,null,null,null,null,null,null,null,null,null,null,null,null,null,null,null,null,null,null,null,null,null,null,null,null,null,null,"yyyEND"]
[null,null,null,"Lain-lain Sijil dan Keputusan / Other Certificates and Results",null,null,null,null,null,null,null,null,null,null,null,null,null,null,null,null,null,null,null,null,null,null,null,null,null,16,null,null,null,"xxx",null,null,null,null,null,null,null,null,null,null,null,null,null,null,null,null,null,null,null,null,null,null,null,null,null,null,null,null,null,null,null,null,null,null,null,null,null,null,null,null,null,null,null,null,null,null,null,null,null,null,null,null,null,null,null,null,null,null,null,null,null,null,null,null,null,null,null,null,null,null,null,null,null,null,null,null,null,null,null,null,null,null,null,null,null,null,null,null,null,null,null,null,null,null,null,null,null,null,null,null,null,null,null,null,null,null,null,null,null,null,null,null,null,null,null,null,null,null,null,null,null,null,null,null,null,null,null,null,null,null,null,null,null,null,null,null,null,null,null,null,null,null,null,null,null,null,null,null,null,null,null,null,null,null,null,null,null,null,null,null,null,null,null,null,null,null,null,null,null,null,null,null,null,null,null,null,null,null,null,null,null,null,null,null,null,null,null,null,null,null,null,null,null,null,null,null,null,null,null,null,null,null,null,null,null,null,null,null,null,null,null,null,null,null,null,null,null,null,null,null,null,null,null,null,null,null,null,null,null,null,null,null,null,null,null,null,null,null,null,null,null,null,null,null,null,null,null,null,null,null,null,null,null,null,null,null,null,null,null,null,null,null,null,null,null,null,null,null,null,null,null,null,null,null,null,null,null,null,null,null,null,null,null,null,null,null,null,null,null,null,null,null,null,null,null,null,null,null,null,null,null,null,null,null,null,null,null,null,null,null,null,null,null,null,null,null,null,null,null,null,null,null,null,null,null,null,null,null,null,null,null,null,null,null,null,null,null,null,null,null,null,null,null,null,null,null,null,null,null,null,null,null,null,null,null,null,null,null,null,null,null,null,null,null,null,null,null,null,null,null,null,null,null,null,null,null,null,null,null,null,null,null,null,null,null,null,null,null,null,null,null,null,null,null,null,null,null,null,null,null,null,null,null,null,null,null,null,null,null,null,null,null,null,null,null,null,null,null,null,null,null,null,null,null,null,null,null,null,null,null,null,null,null,null,null,null,null,null,null,null,null,null,null,null,null,null,null,null,null,null,null,null,null,null,null,null,null,null,null,null,null,null,null,null,null,"xxxEND",null,null,null,"yyy",null,null,null,null,null,null,null,null,null,null,null,null,null,null,null,null,null,null,null,null,null,null,null,null,null,null,null,null,null,null,null,null,null,null,null,null,null,null,null,null,null,null,null,null,null,null,null,null,null,null,null,null,null,null,null,null,null,null,null,null,null,null,null,null,null,null,null,null,null,null,null,null,null,null,null,null,null,null,null,null,"yyyEND"]
[null,null,null,null,null,null,null,null,null,null,null,null,null,null,null,null,null,null,null,null,null,null,null,null,null,null,null,null,null,16,null,null,null,"xxx",null,null,null,null,null,null,null,null,null,null,null,null,null,null,null,null,null,null,null,null,null,null,null,null,null,null,null,null,null,null,null,null,null,null,null,null,null,null,null,null,null,null,null,null,null,null,null,null,null,null,null,null,null,null,null,null,null,null,null,null,null,null,null,null,null,null,null,null,null,null,null,null,null,null,null,null,null,null,null,null,null,null,null,null,null,null,null,null,null,null,null,null,null,null,null,null,null,null,null,null,null,null,null,null,null,null,null,null,null,null,null,null,null,null,null,null,null,null,null,null,null,null,null,null,null,null,null,null,null,null,null,null,null,null,null,null,null,null,null,null,null,null,null,null,null,null,null,null,null,null,null,null,null,null,null,null,null,null,null,null,null,null,null,null,null,null,null,null,null,null,null,null,null,null,null,null,null,null,null,null,null,null,null,null,null,null,null,null,null,null,null,null,null,null,null,null,null,null,null,null,null,null,null,null,null,null,null,null,null,null,null,null,null,null,null,null,null,null,null,null,null,null,null,null,null,null,null,null,null,null,null,null,null,null,null,null,null,null,null,null,null,null,null,null,null,null,null,null,null,null,null,null,null,null,null,null,null,null,null,null,null,null,null,null,null,null,null,null,null,null,null,null,null,null,null,null,null,null,null,null,null,null,null,null,null,null,null,null,null,null,null,null,null,null,null,null,null,null,null,null,null,null,null,null,null,null,null,null,null,null,null,null,null,null,null,null,null,null,null,null,null,null,null,null,null,null,null,null,null,null,null,null,null,null,null,null,null,null,null,null,null,null,null,null,null,null,null,null,null,null,null,null,null,null,null,null,null,null,null,null,null,null,null,null,null,null,null,null,null,null,null,null,null,null,null,null,null,null,null,null,null,null,null,null,null,null,null,null,null,null,null,null,null,null,null,null,null,null,null,null,null,null,null,null,null,null,null,null,null,null,null,null,null,null,null,null,null,null,null,null,null,null,null,null,null,null,null,null,null,null,null,null,null,null,null,null,null,null,null,null,null,null,null,null,null,null,null,null,null,null,null,null,null,null,null,null,null,null,null,null,null,null,null,null,null,"xxxEND",null,null,null,"yyy",null,null,null,null,null,null,null,null,null,null,null,null,null,null,null,null,null,null,null,null,null,null,null,null,null,null,null,null,null,null,null,null,null,null,null,null,null,null,null,null,null,null,null,null,null,null,null,null,null,null,null,null,null,null,null,null,null,null,null,null,null,null,null,null,null,null,null,null,null,null,null,null,null,null,null,null,null,null,null,null,"yyyEND"]
[null,null,null,null,null,null,null,null,null,null,null,null,null,null,null,null,null,null,null,null,null,null,null,null,null,null,null,null,null,16,null,null,null,"xxx",null,null,null,null,null,null,null,null,null,null,null,null,null,null,null,null,null,null,null,null,null,null,null,null,null,null,null,null,null,null,null,null,null,null,null,null,null,null,null,null,null,null,null,null,null,null,null,null,null,null,null,null,null,null,null,null,null,null,null,null,null,null,null,null,null,null,null,null,null,null,null,null,null,null,null,null,null,null,null,null,null,null,null,null,null,null,null,null,null,null,null,null,null,null,null,null,null,null,null,null,null,null,null,null,null,null,null,null,null,null,null,null,null,null,null,null,null,null,null,null,null,null,null,null,null,null,null,null,null,null,null,null,null,null,null,null,null,null,null,null,null,null,null,null,null,null,null,null,null,null,null,null,null,null,null,null,null,null,null,null,null,null,null,null,null,null,null,null,null,null,null,null,null,null,null,null,null,null,null,null,null,null,null,null,null,null,null,null,null,null,null,null,null,null,null,null,null,null,null,null,null,null,null,null,null,null,null,null,null,null,null,null,null,null,null,null,null,null,null,null,null,null,null,null,null,null,null,null,null,null,null,null,null,null,null,null,null,null,null,null,null,null,null,null,null,null,null,null,null,null,null,null,null,null,null,null,null,null,null,null,null,null,null,null,null,null,null,null,null,null,null,null,null,null,null,null,null,null,null,null,null,null,null,null,null,null,null,null,null,null,null,null,null,null,null,null,null,null,null,null,null,null,null,null,null,null,null,null,null,null,null,null,null,null,null,null,null,null,null,null,null,null,null,null,null,null,null,null,null,null,null,null,null,null,null,null,null,null,null,null,null,null,null,null,null,null,null,null,null,null,null,null,null,null,null,null,null,null,null,null,null,null,null,null,null,null,null,null,null,null,null,null,null,null,null,null,null,null,null,null,null,null,null,null,null,null,null,null,null,null,null,null,null,null,null,null,null,null,null,null,null,null,null,null,null,null,null,null,null,null,null,null,null,null,null,null,null,null,null,null,null,null,null,null,null,null,null,null,null,null,null,null,null,null,null,null,null,null,null,null,null,null,null,null,null,null,null,null,null,null,null,null,null,null,null,null,null,null,null,null,null,null,null,null,null,"xxxEND",null,null,null,"yyy",null,null,null,null,null,null,null,null,null,null,null,null,null,null,null,null,null,null,null,null,null,null,null,null,null,null,null,null,null,null,null,null,null,null,null,null,null,null,null,null,null,null,null,null,null,null,null,null,null,null,null,null,null,null,null,null,null,null,null,null,null,null,null,null,null,null,null,null,null,null,null,null,null,null,null,null,null,null,null,null,"yyyEND"]
[null,null,null,null,null,null,null,null,null,null,null,null,null,null,null,null,null,null,null,null,null,null,null,null,null,null,null,null,null,16,null,null,null,"xxx",null,null,null,null,null,null,null,null,null,null,null,null,null,null,null,null,null,null,null,null,null,null,null,null,null,null,null,null,null,null,null,null,null,null,null,null,null,null,null,null,null,null,null,null,null,null,null,null,null,null,null,null,null,null,null,null,null,null,null,null,null,null,null,null,null,null,null,null,null,null,null,null,null,null,null,null,null,null,null,null,null,null,null,null,null,null,null,null,null,null,null,null,null,null,null,null,null,null,null,null,null,null,null,null,null,null,null,null,null,null,null,null,null,null,null,null,null,null,null,null,null,null,null,null,null,null,null,null,null,null,null,null,null,null,null,null,null,null,null,null,null,null,null,null,null,null,null,null,null,null,null,null,null,null,null,null,null,null,null,null,null,null,null,null,null,null,null,null,null,null,null,null,null,null,null,null,null,null,null,null,null,null,null,null,null,null,null,null,null,null,null,null,null,null,null,null,null,null,null,null,null,null,null,null,null,null,null,null,null,null,null,null,null,null,null,null,null,null,null,null,null,null,null,null,null,null,null,null,null,null,null,null,null,null,null,null,null,null,null,null,null,null,null,null,null,null,null,null,null,null,null,null,null,null,null,null,null,null,null,null,null,null,null,null,null,null,null,null,null,null,null,null,null,null,null,null,null,null,null,null,null,null,null,null,null,null,null,null,null,null,null,null,null,null,null,null,null,null,null,null,null,null,null,null,null,null,null,null,null,null,null,null,null,null,null,null,null,null,null,null,null,null,null,null,null,null,null,null,null,null,null,null,null,null,null,null,null,null,null,null,null,null,null,null,null,null,null,null,null,null,null,null,null,null,null,null,null,null,null,null,null,null,null,null,null,null,null,null,null,null,null,null,null,null,null,null,null,null,null,null,null,null,null,null,null,null,null,null,null,null,null,null,null,null,null,null,null,null,null,null,null,null,null,null,null,null,null,null,null,null,null,null,null,null,null,null,null,null,null,null,null,null,null,null,null,null,null,null,null,null,null,null,null,null,null,null,null,null,null,null,null,null,null,null,null,null,null,null,null,null,null,null,null,null,null,null,null,null,null,null,null,null,null,null,null,"xxxEND",null,null,null,"yyy",null,null,null,null,null,null,null,null,null,null,null,null,null,null,null,null,null,null,null,null,null,null,null,null,null,null,null,null,null,null,null,null,null,null,null,null,null,null,null,null,null,null,null,null,null,null,null,null,null,null,null,null,null,null,null,null,null,null,null,null,null,null,null,null,null,null,null,null,null,null,null,null,null,null,null,null,null,null,null,null,"yyyEND"]
[null,null,null,null,null,null,null,null,null,null,null,null,null,null,null,null,null,null,null,null,null,null,null,null,null,null,null,null,null,16,null,null,null,"xxx",null,null,null,null,null,null,null,null,null,null,null,null,null,null,null,null,null,null,null,null,null,null,null,null,null,null,null,null,null,null,null,null,null,null,null,null,null,null,null,null,null,null,null,null,null,null,null,null,null,null,null,null,null,null,null,null,null,null,null,null,null,null,null,null,null,null,null,null,null,null,null,null,null,null,null,null,null,null,null,null,null,null,null,null,null,null,null,null,null,null,null,null,null,null,null,null,null,null,null,null,null,null,null,null,null,null,null,null,null,null,null,null,null,null,null,null,null,null,null,null,null,null,null,null,null,null,null,null,null,null,null,null,null,null,null,null,null,null,null,null,null,null,null,null,null,null,null,null,null,null,null,null,null,null,null,null,null,null,null,null,null,null,null,null,null,null,null,null,null,null,null,null,null,null,null,null,null,null,null,null,null,null,null,null,null,null,null,null,null,null,null,null,null,null,null,null,null,null,null,null,null,null,null,null,null,null,null,null,null,null,null,null,null,null,null,null,null,null,null,null,null,null,null,null,null,null,null,null,null,null,null,null,null,null,null,null,null,null,null,null,null,null,null,null,null,null,null,null,null,null,null,null,null,null,null,null,null,null,null,null,null,null,null,null,null,null,null,null,null,null,null,null,null,null,null,null,null,null,null,null,null,null,null,null,null,null,null,null,null,null,null,null,null,null,null,null,null,null,null,null,null,null,null,null,null,null,null,null,null,null,null,null,null,null,null,null,null,null,null,null,null,null,null,null,null,null,null,null,null,null,null,null,null,null,null,null,null,null,null,null,null,null,null,null,null,null,null,null,null,null,null,null,null,null,null,null,null,null,null,null,null,null,null,null,null,null,null,null,null,null,null,null,null,null,null,null,null,null,null,null,null,null,null,null,null,null,null,null,null,null,null,null,null,null,null,null,null,null,null,null,null,null,null,null,null,null,null,null,null,null,null,null,null,null,null,null,null,null,null,null,null,null,null,null,null,null,null,null,null,null,null,null,null,null,null,null,null,null,null,null,null,null,null,null,null,null,null,null,null,null,null,null,null,null,null,null,null,null,null,null,null,null,null,null,null,"xxxEND",null,null,null,"yyy",null,null,null,null,null,null,null,null,null,null,null,null,null,null,null,null,null,null,null,null,null,null,null,null,null,null,null,null,null,null,null,null,null,null,null,null,null,null,null,null,null,null,null,null,null,null,null,null,null,null,null,null,null,null,null,null,null,null,null,null,null,null,null,null,null,null,null,null,null,null,null,null,null,null,null,null,null,null,null,null,"yyyEND"]
[null,null,"Surat Tawaran Tempat Kursus / Course Offer Letter",null,null,null,null,null,null,null,null,null,null,null,null,null,null,null,null,null,null,null,null,null,null,null,null,null,null,16,null,null,null,"xxx",null,null,null,null,null,null,null,null,null,null,null,null,null,null,null,null,null,null,null,null,null,null,null,null,null,null,null,null,null,null,null,null,null,null,null,null,null,null,null,null,null,null,null,null,null,null,null,null,null,null,null,null,null,null,null,null,null,null,null,null,null,null,null,null,null,null,null,null,null,null,null,null,null,null,null,null,null,null,null,null,null,null,null,null,null,null,null,null,null,null,null,null,null,null,null,null,null,null,null,null,null,null,null,null,null,null,null,null,null,null,null,null,null,null,null,null,null,null,null,null,null,null,null,null,null,null,null,null,null,null,null,null,null,null,null,null,null,null,null,null,null,null,null,null,null,null,null,null,null,null,null,null,null,null,null,null,null,null,null,null,null,null,null,null,null,null,null,null,null,null,null,null,null,null,null,null,null,null,null,null,null,null,null,null,null,null,null,null,null,null,null,null,null,null,null,null,null,null,null,null,null,null,null,null,null,null,null,null,null,null,null,null,null,null,null,null,null,null,null,null,null,null,null,null,null,null,null,null,null,null,null,null,null,null,null,null,null,null,null,null,null,null,null,null,null,null,null,null,null,null,null,null,null,null,null,null,null,null,null,null,null,null,null,null,null,null,null,null,null,null,null,null,null,null,null,null,null,null,null,null,null,null,null,null,null,null,null,null,null,null,null,null,null,null,null,null,null,null,null,null,null,null,null,null,null,null,null,null,null,null,null,null,null,null,null,null,null,null,null,null,null,null,null,null,null,null,null,null,null,null,null,null,null,null,null,null,null,null,null,null,null,null,null,null,null,null,null,null,null,null,null,null,null,null,null,null,null,null,null,null,null,null,null,null,null,null,null,null,null,null,null,null,null,null,null,null,null,null,null,null,null,null,null,null,null,null,null,null,null,null,null,null,null,null,null,null,null,null,null,null,null,null,null,null,null,null,null,null,null,null,null,null,null,null,null,null,null,null,null,null,null,null,null,null,null,null,null,null,null,null,null,null,null,null,null,null,null,null,null,null,null,null,null,null,null,null,null,null,null,null,null,null,null,null,null,null,null,null,null,null,null,null,null,null,null,"xxxEND",null,null,null,"yyy",null,null,null,null,null,null,null,null,null,null,null,null,null,null,null,null,null,null,null,null,null,null,null,null,null,null,null,null,null,null,null,null,null,null,null,null,null,null,null,null,null,null,null,null,null,null,null,null,null,null,null,null,null,null,null,null,null,null,null,null,null,null,null,null,null,null,null,null,null,null,null,null,null,null,null,null,null,null,null,null,"yyyEND"]
[null,null,"Isi Kandungan Kursus / Course Contents",null,null,null,null,null,null,null,null,null,null,null,null,null,null,null,null,null,null,null,null,null,null,null,null,null,null,16,null,null,null,"xxx",null,null,null,null,null,null,null,null,null,null,null,null,null,null,null,null,null,null,null,null,null,null,null,null,null,null,null,null,null,null,null,null,null,null,null,null,null,null,null,null,null,null,null,null,null,null,null,null,null,null,null,null,null,null,null,null,null,null,null,null,null,null,null,null,null,null,null,null,null,null,null,null,null,null,null,null,null,null,null,null,null,null,null,null,null,null,null,null,null,null,null,null,null,null,null,null,null,null,null,null,null,null,null,null,null,null,null,null,null,null,null,null,null,null,null,null,null,null,null,null,null,null,null,null,null,null,null,null,null,null,null,null,null,null,null,null,null,null,null,null,null,null,null,null,null,null,null,null,null,null,null,null,null,null,null,null,null,null,null,null,null,null,null,null,null,null,null,null,null,null,null,null,null,null,null,null,null,null,null,null,null,null,null,null,null,null,null,null,null,null,null,null,null,null,null,null,null,null,null,null,null,null,null,null,null,null,null,null,null,null,null,null,null,null,null,null,null,null,null,null,null,null,null,null,null,null,null,null,null,null,null,null,null,null,null,null,null,null,null,null,null,null,null,null,null,null,null,null,null,null,null,null,null,null,null,null,null,null,null,null,null,null,null,null,null,null,null,null,null,null,null,null,null,null,null,null,null,null,null,null,null,null,null,null,null,null,null,null,null,null,null,null,null,null,null,null,null,null,null,null,null,null,null,null,null,null,null,null,null,null,null,null,null,null,null,null,null,null,null,null,null,null,null,null,null,null,null,null,null,null,null,null,null,null,null,null,null,null,null,null,null,null,null,null,null,null,null,null,null,null,null,null,null,null,null,null,null,null,null,null,null,null,null,null,null,null,null,null,null,null,null,null,null,null,null,null,null,null,null,null,null,null,null,null,null,null,null,null,null,null,null,null,null,null,null,null,null,null,null,null,null,null,null,null,null,null,null,null,null,null,null,null,null,null,null,null,null,null,null,null,null,null,null,null,null,null,null,null,null,null,null,null,null,null,null,null,null,null,null,null,null,null,null,null,null,null,null,null,null,null,null,null,null,null,null,null,null,null,null,null,null,null,null,null,null,"xxxEND",null,null,null,"yyy",null,null,null,null,null,null,null,null,null,null,null,null,null,null,null,null,null,null,null,null,null,null,null,null,null,null,null,null,null,null,null,null,null,null,null,null,null,null,null,null,null,null,null,null,null,null,null,null,null,null,null,null,null,null,null,null,null,null,null,null,null,null,null,null,null,null,null,null,null,null,null,null,null,null,null,null,null,null,null,null,"yyyEND"]
[null,null,null,null,null,null,null,null,null,null,null,null,null,null,null,null,null,null,null,null,null,null,null,null,null,null,null,null,null,16,null,null,null,"xxx",null,null,null,null,null,null,null,null,null,null,null,null,null,null,null,null,null,null,null,null,null,null,null,null,null,null,null,null,null,null,null,null,null,null,null,null,null,null,null,null,null,null,null,null,null,null,null,null,null,null,null,null,null,null,null,null,null,null,null,null,null,null,null,null,null,null,null,null,null,null,null,null,null,null,null,null,null,null,null,null,null,null,null,null,null,null,null,null,null,null,null,null,null,null,null,null,null,null,null,null,null,null,null,null,null,null,null,null,null,null,null,null,null,null,null,null,null,null,null,null,null,null,null,null,null,null,null,null,null,null,null,null,null,null,null,null,null,null,null,null,null,null,null,null,null,null,null,null,null,null,null,null,null,null,null,null,null,null,null,null,null,null,null,null,null,null,null,null,null,null,null,null,null,null,null,null,null,null,null,null,null,null,null,null,null,null,null,null,null,null,null,null,null,null,null,null,null,null,null,null,null,null,null,null,null,null,null,null,null,null,null,null,null,null,null,null,null,null,null,null,null,null,null,null,null,null,null,null,null,null,null,null,null,null,null,null,null,null,null,null,null,null,null,null,null,null,null,null,null,null,null,null,null,null,null,null,null,null,null,null,null,null,null,null,null,null,null,null,null,null,null,null,null,null,null,null,null,null,null,null,null,null,null,null,null,null,null,null,null,null,null,null,null,null,null,null,null,null,null,null,null,null,null,null,null,null,null,null,null,null,null,null,null,null,null,null,null,null,null,null,null,null,null,null,null,null,null,null,null,null,null,null,null,null,null,null,null,null,null,null,null,null,null,null,null,null,null,null,null,null,null,null,null,null,null,null,null,null,null,null,null,null,null,null,null,null,null,null,null,null,null,null,null,null,null,null,null,null,null,null,null,null,null,null,null,null,null,null,null,null,null,null,null,null,null,null,null,null,null,null,null,null,null,null,null,null,null,null,null,null,null,null,null,null,null,null,null,null,null,null,null,null,null,null,null,null,null,null,null,null,null,null,null,null,null,null,null,null,null,null,null,null,null,null,null,null,null,null,null,null,null,null,null,null,null,null,null,null,null,null,null,null,null,null,null,"xxxEND",null,null,null,"yyy",null,null,null,null,null,null,null,null,null,null,null,null,null,null,null,null,null,null,null,null,null,null,null,null,null,null,null,null,null,null,null,null,null,null,null,null,null,null,null,null,null,null,null,null,null,null,null,null,null,null,null,null,null,null,null,null,null,null,null,null,null,null,null,null,null,null,null,null,null,null,null,null,null,null,null,null,null,null,null,null,"yyyEND"]
[null,null,null,null,null,null,null,null,null,null,null,null,null,null,null,null,null,null,null,null,null,null,null,null,null,null,null,null,null,16,null,null,null,"xxx",null,null,null,null,null,null,null,null,null,null,null,null,null,null,null,null,null,null,null,null,null,null,null,null,null,null,null,null,null,null,null,null,null,null,null,null,null,null,null,null,null,null,null,null,null,null,null,null,null,null,null,null,null,null,null,null,null,null,null,null,null,null,null,null,null,null,null,null,null,null,null,null,null,null,null,null,null,null,null,null,null,null,null,null,null,null,null,null,null,null,null,null,null,null,null,null,null,null,null,null,null,null,null,null,null,null,null,null,null,null,null,null,null,null,null,null,null,null,null,null,null,null,null,null,null,null,null,null,null,null,null,null,null,null,null,null,null,null,null,null,null,null,null,null,null,null,null,null,null,null,null,null,null,null,null,null,null,null,null,null,null,null,null,null,null,null,null,null,null,null,null,null,null,null,null,null,null,null,null,null,null,null,null,null,null,null,null,null,null,null,null,null,null,null,null,null,null,null,null,null,null,null,null,null,null,null,null,null,null,null,null,null,null,null,null,null,null,null,null,null,null,null,null,null,null,null,null,null,null,null,null,null,null,null,null,null,null,null,null,null,null,null,null,null,null,null,null,null,null,null,null,null,null,null,null,null,null,null,null,null,null,null,null,null,null,null,null,null,null,null,null,null,null,null,null,null,null,null,null,null,null,null,null,null,null,null,null,null,null,null,null,null,null,null,null,null,null,null,null,null,null,null,null,null,null,null,null,null,null,null,null,null,null,null,null,null,null,null,null,null,null,null,null,null,null,null,null,null,null,null,null,null,null,null,null,null,null,null,null,null,null,null,null,null,null,null,null,null,null,null,null,null,null,null,null,null,null,null,null,null,null,null,null,null,null,null,null,null,null,null,null,null,null,null,null,null,null,null,null,null,null,null,null,null,null,null,null,null,null,null,null,null,null,null,null,null,null,null,null,null,null,null,null,null,null,null,null,null,null,null,null,null,null,null,null,null,null,null,null,null,null,null,null,null,null,null,null,null,null,null,null,null,null,null,null,null,null,null,null,null,null,null,null,null,null,null,null,null,null,null,null,null,null,null,null,null,null,null,null,null,null,null,null,null,null,"xxxEND",null,null,null,"yyy",null,null,null,null,null,null,null,null,null,null,null,null,null,null,null,null,null,null,null,null,null,null,null,null,null,null,null,null,null,null,null,null,null,null,null,null,null,null,null,null,null,null,null,null,null,null,null,null,null,null,null,null,null,null,null,null,null,null,null,null,null,null,null,null,null,null,null,null,null,null,null,null,null,null,null,null,null,null,null,null,"yyyEND"]
[null,null,null,null,null,null,null,null,null,null,null,null,null,null,null,null,null,null,null,null,null,null,null,null,null,null,null,null,null,null,null,null,null,"xxx",null,null,null,null,null,null,null,null,null,null,null,null,null,null,null,null,null,null,null,null,null,null,null,null,null,null,null,null,null,null,null,null,null,null,null,null,null,null,null,null,null,null,null,null,null,null,null,null,null,null,null,null,null,null,null,null,null,null,null,null,null,null,null,null,null,null,null,null,null,null,null,null,null,null,null,null,null,null,null,null,null,null,null,null,null,null,null,null,null,null,null,null,null,null,null,null,null,null,null,null,null,null,null,null,null,null,null,null,null,null,null,null,null,null,null,null,null,null,null,null,null,null,null,null,null,null,null,null,null,null,null,null,null,null,null,null,null,null,null,null,null,null,null,null,null,null,null,null,null,null,null,null,null,null,null,null,null,null,null,null,null,null,null,null,null,null,null,null,null,null,null,null,null,null,null,null,null,null,null,null,null,null,null,null,null,null,null,null,null,null,null,null,null,null,null,null,null,null,null,null,null,null,null,null,null,null,null,null,null,null,null,null,null,null,null,null,null,null,null,null,null,null,null,null,null,null,null,null,null,null,null,null,null,null,null,null,null,null,null,null,null,null,null,null,null,null,null,null,null,null,null,null,null,null,null,null,null,null,null,null,null,null,null,null,null,null,null,null,null,null,null,null,null,null,null,null,null,null,null,null,null,null,null,null,null,null,null,null,null,null,null,null,null,null,null,null,null,null,null,null,null,null,null,null,null,null,null,null,null,null,null,null,null,null,null,null,null,null,null,null,null,null,null,null,null,null,null,null,null,null,null,null,null,null,null,null,null,null,null,null,null,null,null,null,null,null,null,null,null,null,null,null,null,null,null,null,null,null,null,null,null,null,null,null,null,null,null,null,null,null,null,null,null,null,null,null,null,null,null,null,null,null,null,null,null,null,null,null,null,null,null,null,null,null,null,null,null,null,null,null,null,null,null,null,null,null,null,null,null,null,null,null,null,null,null,null,null,null,null,null,null,null,null,null,null,null,null,null,null,null,null,null,null,null,null,null,null,null,null,null,null,null,null,null,null,null,null,null,null,null,null,null,null,null,null,null,null,null,null,null,null,null,null,null,null,"xxxEND",null,null,null,"yyy",null,null,null,null,null,null,null,null,null,null,null,null,null,null,null,null,null,null,null,null,null,null,null,null,null,null,null,null,null,null,null,null,null,null,null,null,null,null,null,null,null,null,null,null,null,null,null,null,null,null,null,null,null,null,null,null,null,null,null,null,null,null,null,null,null,null,null,null,null,null,null,null,null,null,null,null,null,null,null,null,"yyyEND"]
[null,null,null,null,null,null,null,null,null,null,null,null,null,null,null,null,null,null,null,null,null,null,null,null,null,null,null,null,null,null,null,null,null,"xxx",null,null,null,null,null,null,null,null,null,null,null,null,null,null,null,null,null,null,null,null,null,null,null,null,null,null,null,null,null,null,null,null,null,null,null,null,null,null,null,null,null,null,null,null,null,null,null,null,null,null,null,null,null,null,null,null,null,null,null,null,null,null,null,null,null,null,null,null,null,null,null,null,null,null,null,null,null,null,null,null,null,null,null,null,null,null,null,null,null,null,null,null,null,null,null,null,null,null,null,null,null,null,null,null,null,null,null,null,null,null,null,null,null,null,null,null,null,null,null,null,null,null,null,null,null,null,null,null,null,null,null,null,null,null,null,null,null,null,null,null,null,null,null,null,null,null,null,null,null,null,null,null,null,null,null,null,null,null,null,null,null,null,null,null,null,null,null,null,null,null,null,null,null,null,null,null,null,null,null,null,null,null,null,null,null,null,null,null,null,null,null,null,null,null,null,null,null,null,null,null,null,null,null,null,null,null,null,null,null,null,null,null,null,null,null,null,null,null,null,null,null,null,null,null,null,null,null,null,null,null,null,null,null,null,null,null,null,null,null,null,null,null,null,null,null,null,null,null,null,null,null,null,null,null,null,null,null,null,null,null,null,null,null,null,null,null,null,null,null,null,null,null,null,null,null,null,null,null,null,null,null,null,null,null,null,null,null,null,null,null,null,null,null,null,null,null,null,null,null,null,null,null,null,null,null,null,null,null,null,null,null,null,null,null,null,null,null,null,null,null,null,null,null,null,null,null,null,null,null,null,null,null,null,null,null,null,null,null,null,null,null,null,null,null,null,null,null,null,null,null,null,null,null,null,null,null,null,null,null,null,null,null,null,null,null,null,null,null,null,null,null,null,null,null,null,null,null,null,null,null,null,null,null,null,null,null,null,null,null,null,null,null,null,null,null,null,null,null,null,null,null,null,null,null,null,null,null,null,null,null,null,null,null,null,null,null,null,null,null,null,null,null,null,null,null,null,null,null,null,null,null,null,null,null,null,null,null,null,null,null,null,null,null,null,null,null,null,null,null,null,null,null,null,null,null,null,null,null,null,null,null,null,null,null,null,"xxxEND",null,null,null,"yyy",null,null,null,null,null,null,null,null,null,null,null,null,null,null,null,null,null,null,null,null,null,null,null,null,null,null,null,null,null,null,null,null,null,null,null,null,null,null,null,null,null,null,null,null,null,null,null,null,null,null,null,null,null,null,null,null,null,null,null,null,null,null,null,null,null,null,null,null,null,null,null,null,null,null,null,null,null,null,null,null,"yyyEND"]
[null,null,null,null,null,null,null,null,null,null,null,null,null,null,null,null,null,null,null,null,null,null,null,null,null,null,null,null,null,null,null,null,null,"xxx",null,null,null,null,null,null,null,null,null,null,null,null,null,null,null,null,null,null,null,null,null,null,null,null,null,null,null,null,null,null,null,null,null,null,null,null,null,null,null,null,null,null,null,null,null,null,null,null,null,null,null,null,null,null,null,null,null,null,null,null,null,null,null,null,null,null,null,null,null,null,null,null,null,null,null,null,null,null,null,null,null,null,null,null,null,null,null,null,null,null,null,null,null,null,null,null,null,null,null,null,null,null,null,null,null,null,null,null,null,null,null,null,null,null,null,null,null,null,null,null,null,null,null,null,null,null,null,null,null,null,null,null,null,null,null,null,null,null,null,null,null,null,null,null,null,null,null,null,null,null,null,null,null,null,null,null,null,null,null,null,null,null,null,null,null,null,null,null,null,null,null,null,null,null,null,null,null,null,null,null,null,null,null,null,null,null,null,null,null,null,null,null,null,null,null,null,null,null,null,null,null,null,null,null,null,null,null,null,null,null,null,null,null,null,null,null,null,null,null,null,null,null,null,null,null,null,null,null,null,null,null,null,null,null,null,null,null,null,null,null,null,null,null,null,null,null,null,null,null,null,null,null,null,null,null,null,null,null,null,null,null,null,null,null,null,null,null,null,null,null,null,null,null,null,null,null,null,null,null,null,null,null,null,null,null,null,null,null,null,null,null,null,null,null,null,null,null,null,null,null,null,null,null,null,null,null,null,null,null,null,null,null,null,null,null,null,null,null,null,null,null,null,null,null,null,null,null,null,null,null,null,null,null,null,null,null,null,null,null,null,null,null,null,null,null,null,null,null,null,null,null,null,null,null,null,null,null,null,null,null,null,null,null,null,null,null,null,null,null,null,null,null,null,null,null,null,null,null,null,null,null,null,null,null,null,null,null,null,null,null,null,null,null,null,null,null,null,null,null,null,null,null,null,null,null,null,null,null,null,null,null,null,null,null,null,null,null,null,null,null,null,null,null,null,null,null,null,null,null,null,null,null,null,null,null,null,null,null,null,null,null,null,null,null,null,null,null,null,null,null,null,null,null,null,null,null,null,null,null,null,null,null,null,null,null,"xxxEND",null,null,null,"yyy",null,null,null,null,null,null,null,null,null,null,null,null,null,null,null,null,null,null,null,null,null,null,null,null,null,null,null,null,null,null,null,null,null,null,null,null,null,null,null,null,null,null,null,null,null,null,null,null,null,null,null,null,null,null,null,null,null,null,null,null,null,null,null,null,null,null,null,null,null,null,null,null,null,null,null,null,null,null,null,null,"yyyEND"]
[null,null,null,null,null,null,null,null,null,null,null,null,null,null,null,null,null,null,null,null,null,null,null,null,null,null,null,null,null,null,null,null,null,"xxx",null,null,null,null,null,null,null,null,null,null,null,null,null,null,null,null,null,null,null,null,null,null,null,null,null,null,null,null,null,null,null,null,null,null,null,null,null,null,null,null,null,null,null,null,null,null,null,null,null,null,null,null,null,null,null,null,null,null,null,null,null,null,null,null,null,null,null,null,null,null,null,null,null,null,null,null,null,null,null,null,null,null,null,null,null,null,null,null,null,null,null,null,null,null,null,null,null,null,null,null,null,null,null,null,null,null,null,null,null,null,null,null,null,null,null,null,null,null,null,null,null,null,null,null,null,null,null,null,null,null,null,null,null,null,null,null,null,null,null,null,null,null,null,null,null,null,null,null,null,null,null,null,null,null,null,null,null,null,null,null,null,null,null,null,null,null,null,null,null,null,null,null,null,null,null,null,null,null,null,null,null,null,null,null,null,null,null,null,null,null,null,null,null,null,null,null,null,null,null,null,null,null,null,null,null,null,null,null,null,null,null,null,null,null,null,null,null,null,null,null,null,null,null,null,null,null,null,null,null,null,null,null,null,null,null,null,null,null,null,null,null,null,null,null,null,null,null,null,null,null,null,null,null,null,null,null,null,null,null,null,null,null,null,null,null,null,null,null,null,null,null,null,null,null,null,null,null,null,null,null,null,null,null,null,null,null,null,null,null,null,null,null,null,null,null,null,null,null,null,null,null,null,null,null,null,null,null,null,null,null,null,null,null,null,null,null,null,null,null,null,null,null,null,null,null,null,null,null,null,null,null,null,null,null,null,null,null,null,null,null,null,null,null,null,null,null,null,null,null,null,null,null,null,null,null,null,null,null,null,null,null,null,null,null,null,null,null,null,null,null,null,null,null,null,null,null,null,null,null,null,null,null,null,null,null,null,null,null,null,null,null,null,null,null,null,null,null,null,null,null,null,null,null,null,null,null,null,null,null,null,null,null,null,null,null,null,null,null,null,null,null,null,null,null,null,null,null,null,null,null,null,null,null,null,null,null,null,null,null,null,null,null,null,null,null,null,null,null,null,null,null,null,null,null,null,null,null,null,null,null,null,null,null,null,null,"xxxEND",null,null,null,"yyy",null,null,null,null,null,null,null,null,null,null,null,null,null,null,null,null,null,null,null,null,null,null,null,null,null,null,null,null,null,null,null,null,null,null,null,null,null,null,null,null,null,null,null,null,null,null,null,null,null,null,null,null,null,null,null,null,null,null,null,null,null,null,null,null,null,null,null,null,null,null,null,null,null,null,null,null,null,null,null,null,"yyyEND"]
[null,"Borang A (Biasiswa)",null,null,null,null,null,null,null,null,null,null,null,null,null,null,null,null,null,null,null,null,null,null,null,null,null,null,null,null,null,null,null,"xxx",null,null,null,null,null,null,null,null,null,null,null,null,null,null,null,null,null,null,null,null,null,null,null,null,null,null,null,null,null,null,null,null,null,null,null,null,null,null,null,null,null,null,null,null,null,null,null,null,null,null,null,null,null,null,null,null,null,null,null,null,null,null,null,null,null,null,null,null,null,null,null,null,null,null,null,null,null,null,null,null,null,null,null,null,null,null,null,null,null,null,null,null,null,null,null,null,null,null,null,null,null,null,null,null,null,null,null,null,null,null,null,null,null,null,null,null,null,null,null,null,null,null,null,null,null,null,null,null,null,null,null,null,null,null,null,null,null,null,null,null,null,null,null,null,null,null,null,null,null,null,null,null,null,null,null,null,null,null,null,null,null,null,null,null,null,null,null,null,null,null,null,null,null,null,null,null,null,null,null,null,null,null,null,null,null,null,null,null,null,null,null,null,null,null,null,null,null,null,null,null,null,null,null,null,null,null,null,null,null,null,null,null,null,null,null,null,null,null,null,null,null,null,null,null,null,null,null,null,null,null,null,null,null,null,null,null,null,null,null,null,null,null,null,null,null,null,null,null,null,null,null,null,null,null,null,null,null,null,null,null,null,null,null,null,null,null,null,null,null,null,null,null,null,null,null,null,null,null,null,null,null,null,null,null,null,null,null,null,null,null,null,null,null,null,null,null,null,null,null,null,null,null,null,null,null,null,null,null,null,null,null,null,null,null,null,null,null,null,null,null,null,null,null,null,null,null,null,null,null,null,null,null,null,null,null,null,null,null,null,null,null,null,null,null,null,null,null,null,null,null,null,null,null,null,null,null,null,null,null,null,null,null,null,null,null,null,null,null,null,null,null,null,null,null,null,null,null,null,null,null,null,null,null,null,null,null,null,null,null,null,null,null,null,null,null,null,null,null,null,null,null,null,null,null,null,null,null,null,null,null,null,null,null,null,null,null,null,null,null,null,null,null,null,null,null,null,null,null,null,null,null,null,null,null,null,null,null,null,null,null,null,null,null,null,null,null,null,null,null,null,null,null,null,null,null,null,null,null,null,null,null,null,null,null,null,"xxxEND",null,null,null,"yyy",null,null,null,null,null,null,null,null,null,null,null,null,null,null,null,null,null,null,null,null,null,null,null,null,null,null,null,null,null,null,null,null,null,null,null,null,null,null,null,null,null,null,null,null,null,null,null,null,null,null,null,null,null,null,null,null,null,null,null,null,null,null,null,null,null,null,null,null,null,null,null,null,null,null,null,null,null,null,null,null,"yyyEND"]
[null,null,null,null,null,null,null,null,null,null,null,null,null,null,null,null,null,null,null,null,null,null,null,"Sila lekatkan gambar berukuran paspot di ruang ini.\n[Please stick original passport sized photo here]",null,null,null,null,null,null,null,null,null,"AH51",null,{"$f":"AJ53","v":"1.  KURSUS YANG DIPOHON / COURSE APPLIED"},null,null,null,null,null,null,null,null,null,null,null,null,null,{"$f":"AX53","v":"2.  MAKLUMAT PERIBADI / PERSONAL INFORMATION"},null,null,null,null,null,null,null,null,null,null,null,null,null,null,null,null,null,null,null,null,null,null,null,null,null,null,{"$f":"BY53","v":"ORANG YANG MUDAH DIHUBUNGI  / NAME OF CONTACT PERSON (NEXT OF KIN)"},null,null,null,null,null,null,null,null,null,null,null,null,"SCHOOL",null,null,null,null,null,null,null,null,null,null,null,null,null,null,null,null,null,null,null,null,null,null,null,null,null,null,null,null,null,null,null,null,null,null,null,null,null,null,null,null,null,null,null,null,null,null,null,null,null,null,null,null,null,null,"JIKA MENUNTUT DI LUAR NEGERI, SILA NYATAKAN TARIKH DIJANGKA BERADA DI TANAH AIR \n / IF YOU ARE STUDYING ABROAD, PLEASE STATE YOUR DTE OF RETUREN TO BRUNEI",null,null,null,null,null,null,null,null,"PREVIOUS APPLN",null,null,null,null,null,null,null,null,null,null,null,null,null,null,null,null,null,null,null,null,"SILA TANDA (X) DAN NYAYAKAN KURSUS YANG DIPOHON\nJIKA MEMOHON KE INSTITUSI PENGAJIAN DI DALAM NEGERI PADA TAHUN INI\nPLEASE TICK IN THE BOX PROVIDED IF YOU ARE APPLYING TO THE LOCAL INSITUTION THIS YEAR",null,null,null,null,null,null,null,null,{"$f":"GB53","v":"3. PENCAPAIAN AKADEMIK / ACADEMIC QUALIFICATION"},"OL",null,null,null,null,null,null,null,null,null,null,null,null,null,null,null,null,null,null,null,null,null,null,null,null,null,null,null,null,null,null,null,null,null,null,null,null,null,null,null,null,null,null,null,null,null,null,null,null,null,null,null,null,null,null,null,null,null,null,null,null,null,null,null,null,null,null,null,null,null,null,null,null,null,null,null,null,null,null,null,null,null,null,null,null,null,null,null,null,null,null,null,null,null,null,null,null,null,null,null,null,null,null,null,null,null,null,null,null,null,null,null,null,null,null,null,null,null,null,null,null,"A LEVEL / IB",null,null,null,null,null,null,null,null,null,null,null,null,null,null,null,null,null,null,null,null,null,null,null,null,null,null,null,null,null,null,null,null,null,null,null,null,null,null,null,null,null,null,null,null,null,null,null,null,null,null,null,null,null,null,null,null,null,null,null,null,null,null,null,null,null,null,null,null,null,null,null,null,null,null,null,null,null,null,null,null,null,"DEG/HND",null,null,null,null,null,null,null,null,null,null,null,null,null,null,null,null,null,null,null,null,null,null,null,null,null,null,null,null,null,null,null,null,null,null,null,"OTHER Q",null,null,null,null,null,null,null,null,null,null,null,null,null,null,null,null,null,null,null,null,null,null,null,null,"4. KETERANGAN IBU BAPA / PENJAGA \nDETAILS OF APPLICATION'S PARENT / GAURDIAN",null,null,null,null,null,null,null,null,null,null,null,null,null,null,null,null,null,null,null,null,null,null,null,null,null,null,null,null,null,null,null,null,null,null,null,null,null,null,null,null,null,null,null,null,null,null,null,null,null,null,"xxxEND",null,null,null,"yyy",null,null,null,null,null,null,null,null,null,null,null,null,null,null,null,null,null,null,null,null,null,null,null,null,null,null,null,null,null,null,null,null,null,null,null,null,null,null,null,null,null,null,null,null,null,null,null,null,null,null,null,null,null,null,null,null,null,null,null,null,null,null,null,null,null,null,null,null,null,null,null,null,null,null,null,null,null,null,null,null,"yyyEND"]
[null,"IJ /2024",null,null,null,null,null,null,null,null,null,null,null,null,null,null,null,null,null,null,null,null,null,null,null,null,null,null,null,null,null,null,null,{"$f":"B53","v":"IJ /2024"},{"$f":"O64","v":"SESI / SESSION"},{"$f":"B66","v":"1.  KURSUS YANG DIPOHON / COURSE APPLIED"},{"$f":"B68","v":"KURSUS MENGIKUT SENARAI / COURSE ACCORDING TO THE LIST"},{"$f":"B69","v":"NAMA KURSUS / COURSE TITLE"},{"$f":"B70","v":"TEMPAT PENGAJIAN / PLACE OF STUDY"},{"$f":"B71","v":"NEGARA / COUNTRY"},{"$f":"S71","v":"TEMPOH PENGAJIAN / DURATION OF STUDY"},{"$f":"B72","v":"TARIKH MULA PENGAJIAN / COURSE START"},"dd","mm","yyyy","TARIKH MULA PENGAJIAN / COURSE START","dd","mm","yyyy",{"$f":"B74","v":"2.  MAKLUMAT PERIBADI / PERSONAL INFORMATION"},{"$f":"B75","v":"NAMA PEMOHON / APPLICANT'S NAME\n[Mengikut Kad Pintar]"},{"$f":"B76","v":"NOMBOR KAD PINTAR / SMART CARD NUMBER"},{"$f":"S76","v":"WARNA / COLOUR"},{"$f":"B77","v":"TARIKH LAHIR / DATE OF BIRTH"},{"$f":"F77","v":"Hari  / Day"},{"$f":"J77","v":"Bulan / Month"},{"$f":"N77","v":"Tahun / \nYear"},{"$f":"R77","v":"UMUR PADA 1 SEPTEMBER 2024/ AGE AT 1ST SEPT 2024"},{"$f":"B79","v":"ALAMAT TEMPAT TINGGAL / CURRENT HOME ADDRESS"},{"$f":"B82","v":"POSKOD / POSTCODE"},{"$f":"K79","v":"ALAMAT SURAT MENYURAT/ MAILING ADDRESS"},{"$f":"K82","v":"POSKOD / POSTCODE"},{"$f":"T79","v":"TELEPON / TELEPHONE"},{"$f":"T80","v":"Rumah (Home)"},{"$f":"T81","v":"Bimbit (Mobile)"},{"$f":"T82","v":"Emel (Email)"},{"$f":"B84","v":"BANGSA / RACE\n[Seperti dalam Kad Pintar]"},{"$f":"M84","v":"JANTINA / GENDER"},{"$f":"S84","v":"UGAMA / RELIGION"},{"$f":"B85","v":"NAMA PEMOHON /APPLICANT'S NAME [Mengikut Pasport]"},{"$f":"B86","v":"NOMBOR PASPORT / PASSPORT NUMBER"},{"$f":"R86","v":"TARIKH MANSUH / EXPIRY DATE"},"Hari","Bulan","Tahun",null,{"$f":"B88","v":"ORANG YANG MUDAH DIHUBUNGI  / NAME OF CONTACT PERSON (NEXT OF KIN)"},{"$f":"B89","v":"NAMA / NAME"},{"$f":"B90","v":"HUBUNGAN DENGAN PEMOHON  / RELATIONSHIP WITH APPLICANT"},{"$f":"B91","v":"ALAMAT TEMPAT TINGGAL / CURRENT HOME ADDRESS"},{"$f":"B95","v":"POSKOD / POSTCODE"},{"$f":"K91","v":"ALAMAT SURAT MENYURAT/ MAILING ADDRESS"},{"$f":"K82","v":"POSKOD / POSTCODE"},{"$f":"T91","v":"TELEPON / TELEPHONE"},{"$f":"T92","v":"Rumah (Home)"},{"$f":"T93","v":"Pejabat (Office)"},{"$f":"T94","v":"Bimbit (Mobile)"},{"$f":"T95","v":"Emel (Email)"},null,{"$f":"B97","v":"NAMA-NAMA INSTITUSI TEMPAT BELAJAR DALAM DAN LUAR NEGERI MULAI PERINGKAT MENENGAH  / DETAILS OF SCHOOL ATTENDED (LOCALLY AND ABROAD) FROM SECONDARY LEVEL"},{"$f":"B98","v":"BIL"},{"$f":"C98","v":"NAMA INSTITUSI / NAME OF INSTITUTION"},{"$f":"L98","v":"PERINGKAT PENGAJIAN / LEVEL OF STUDY"},{"$f":"Q99","v":"DARI / FROM"},null,null,{"$f":"W99","v":"HINGGA / TO"},null,null,"BIL","NAMA INSTITUSI / NAME OF INSTITUTION","PERINGKAT PENGAJIAN / LEVEL OF STUDY","DARI / FROM",null,null,"HINGGA / TO",null,null,"BIL","NAMA INSTITUSI / NAME OF INSTITUTION","PERINGKAT PENGAJIAN / LEVEL OF STUDY","DARI / FROM",null,null,"HINGGA / TO",null,null,"BIL","NAMA INSTITUSI / NAME OF INSTITUTION","PERINGKAT PENGAJIAN / LEVEL OF STUDY","DARI / FROM",null,null,"HINGGA / TO",null,null,"BIL","NAMA INSTITUSI / NAME OF INSTITUTION","PERINGKAT PENGAJIAN / LEVEL OF STUDY","DARI / FROM",null,null,"HINGGA / TO",null,null,"BIL","NAMA INSTITUSI / NAME OF INSTITUTION","PERINGKAT PENGAJIAN / LEVEL OF STUDY","DARI / FROM",null,null,"HINGGA / TO",null,null,{"$f":"B107","v":"JIKA MENUNTUT DI LUAR NEGERI, SILA NYATAKAN TARIKH DIJANGKA BERADA DI TANAH AIR \n / IF YOU ARE STUDYING ABROAD, PLEASE STATE YOUR DATE OF RETURN TO BRUNEI"},{"$f":"B108","v":"DARI / FROM"},null,null,null,{"$f":"O108","v":"HINGGA / TO"},null,null,null,{"$f":"B110","v":"NYATAKAN BIASISWA-BIASISWA YANG PERNAH DIPOHONKAN DALAM DAN LUAR NEGERI DALAM TEMPOH 3 TAHUN KEBELAKANGAN / PLEASE INDICATE YOUR PREVIOUS APPLICATION FOR SCHOLARSHIP (OVERSEAS OR LOCALLY) FOR THE PAST 3 YEARS (IF ANY)"},{"$f":"B111","v":"TAHUN\nYEAR"},{"$f":"D111","v":"JENIS BIASISWA \nTYPE OF SCHOLARSHIP \n(YAYASAN, MINDEF & LAIN-LAIN)"},{"$f":"L111","v":"KURSUS\n/ COURSE"},{"$f":"R111","v":"TEMPAT PENGAJIAN \n/ PLACE OF STUDY"},{"$f":"W111","v":"KEPUTUSAN PERMOHONAN \n/ RESULTS OF APPLICATION"},{"$f":"B111","v":"TAHUN\nYEAR"},{"$f":"D111","v":"JENIS BIASISWA \nTYPE OF SCHOLARSHIP \n(YAYASAN, MINDEF & LAIN-LAIN)"},{"$f":"L111","v":"KURSUS\n/ COURSE"},{"$f":"R111","v":"TEMPAT PENGAJIAN \n/ PLACE OF STUDY"},{"$f":"W111","v":"KEPUTUSAN PERMOHONAN \n/ RESULTS OF APPLICATION"},{"$f":"B111","v":"TAHUN\nYEAR"},{"$f":"D111","v":"JENIS BIASISWA \nTYPE OF SCHOLARSHIP \n(YAYASAN, MINDEF & LAIN-LAIN)"},{"$f":"L111","v":"KURSUS\n/ COURSE"},{"$f":"R111","v":"TEMPAT PENGAJIAN \n/ PLACE OF STUDY"},{"$f":"W111","v":"KEPUTUSAN PERMOHONAN \n/ RESULTS OF APPLICATION"},{"$f":"B111","v":"TAHUN\nYEAR"},{"$f":"D111","v":"JENIS BIASISWA \nTYPE OF SCHOLARSHIP \n(YAYASAN, MINDEF & LAIN-LAIN)"},{"$f":"L111","v":"KURSUS\n/ COURSE"},{"$f":"R111","v":"TEMPAT PENGAJIAN \n/ PLACE OF STUDY"},{"$f":"W111","v":"KEPUTUSAN PERMOHONAN \n/ RESULTS OF APPLICATION"},{"$f":"B117","v":"SILA  NYATAKAN KURSUS YANG DIPOHON JIKA MEMOHON KE INSTITUSI PENGAJIAN DI DALAM NEGERI PADA TAHUN INI\nPLEASE STATE THE COURSE NAME IF YOU ARE APPLYING TO A LOCAL INSITUTION THIS YEAR"},"NAMA INSTITUSI","KURSUS / COURSE","NAMA INSTITUSI","KURSUS / COURSE","NAMA INSTITUSI","KURSUS / COURSE","NAMA INSTITUSI","KURSUS / COURSE",{"$f":"B124","v":"3. PENCAPAIAN AKADEMIK / ACADEMIC QUALIFICATION"},{"$f":"B125","v":"KEPUTUSAN PEPERIKSAAN SIJIL AM PELAJARAN BRUNEI CAMBRIDGE PERINGKAT BIASA ATAU YANG DIIKTIRAF SEBANDING DENGANNYA / RESULTS OF BRUNEI CAMBRIDGE GENERAL CERTIFICATE OF EDUCATION ORDINARY LEVEL OR IT'S EQUIVALENT"},"Bil","Nama Sekolah","Nama Peperiksaan \n(Title of Examination)","Matapelajaran \n(Subject)","Gred \n(Grade)","Tarikh Diperolehi \n(Date Obtained)","Bulan \n(Month)","Tahun \n(Year)","Bil","Nama Sekolah","Nama Peperiksaan \n(Title of Examination)","Matapelajaran \n(Subject)","Gred \n(Grade)","Tarikh Diperolehi \n(Date Obtained)","Bulan \n(Month)","Tahun \n(Year)","Bil","Nama Sekolah","Nama Peperiksaan \n(Title of Examination)","Matapelajaran \n(Subject)","Gred \n(Grade)","Tarikh Diperolehi \n(Date Obtained)","Bulan \n(Month)","Tahun \n(Year)","Bil","Nama Sekolah","Nama Peperiksaan \n(Title of Examination)","Matapelajaran \n(Subject)","Gred \n(Grade)","Tarikh Diperolehi \n(Date Obtained)","Bulan \n(Month)","Tahun \n(Year)","Bil","Nama Sekolah","Nama Peperiksaan \n(Title of Examination)","Matapelajaran \n(Subject)","Gred \n(Grade)","Tarikh Diperolehi \n(Date Obtained)","Bulan \n(Month)","Tahun \n(Year)","Bil","Nama Sekolah","Nama Peperiksaan \n(Title of Examination)","Matapelajaran \n(Subject)","Gred \n(Grade)","Tarikh Diperolehi \n(Date Obtained)","Bulan \n(Month)","Tahun \n(Year)","Bil","Nama Sekolah","Nama Peperiksaan \n(Title of Examination)","Matapelajaran \n(Subject)","Gred \n(Grade)","Tarikh Diperolehi \n(Date Obtained)","Bulan \n(Month)","Tahun \n(Year)","Bil","Nama Sekolah","Nama Peperiksaan \n(Title of Examination)","Matapelajaran \n(Subject)","Gred \n(Grade)","Tarikh Diperolehi \n(Date Obtained)","Bulan \n(Month)","Tahun \n(Year)","Bil","Nama Sekolah","Nama Peperiksaan \n(Title of Examination)","Matapelajaran \n(Subject)","Gred \n(Grade)","Tarikh Diperolehi \n(Date Obtained)","Bulan \n(Month)","Tahun \n(Year)","Bil","Nama Sekolah","Nama Peperiksaan \n(Title of Examination)","Matapelajaran \n(Subject)","Gred \n(Grade)","Tarikh Diperolehi \n(Date Obtained)","Bulan \n(Month)","Tahun \n(Year)","Bil","Nama Sekolah","Nama Peperiksaan \n(Title of Examination)","Matapelajaran \n(Subject)","Gred \n(Grade)","Tarikh Diperolehi \n(Date Obtained)","Bulan \n(Month)","Tahun \n(Year)","Bil","Nama Sekolah","Nama Peperiksaan \n(Title of Examination)","Matapelajaran \n(Subject)","Gred \n(Grade)","Tarikh Diperolehi \n(Date Obtained)","Bulan \n(Month)","Tahun \n(Year)","Bil","Nama Sekolah","Nama Peperiksaan \n(Title of Examination)","Matapelajaran \n(Subject)","Gred \n(Grade)","Tarikh Diperolehi \n(Date Obtained)","Bulan \n(Month)","Tahun \n(Year)","Bil","Nama Sekolah","Nama Peperiksaan \n(Title of Examination)","Matapelajaran \n(Subject)","Gred \n(Grade)","Tarikh Diperolehi \n(Date Obtained)","Bulan \n(Month)","Tahun \n(Year)","Bil","Nama Sekolah","Nama Peperiksaan \n(Title of Examination)","Matapelajaran \n(Subject)","Gred \n(Grade)","Tarikh Diperolehi \n(Date Obtained)","Bulan \n(Month)","Tahun \n(Year)",null,{"$f":"B147","v":"Bil"},{"$f":"C147","v":"Nama Sekolah\n(School Name)"},{"$f":"I147","v":"Nama Peperiksaan \n(Title of Examination)"},{"$f":"O147","v":"Matapelajaran \n(Subject)"},{"$f":"V147","v":"Gred \n(Grade)"},{"$f":"Y147","v":"Tarikh Diperolehi \n(Date Obtained)"},{"$f":"Y148","v":"Bulan \n(Month)"},{"$f":"AA148","v":"Tahun \n(Year)"},"Bil","Nama Sekolah","Nama Peperiksaan \n(Title of Examination)","Matapelajaran \n(Subject)","Gred \n(Grade)","Tarikh Diperolehi \n(Date Obtained)","Bulan \n(Month)","Tahun \n(Year)","Bil","Nama Sekolah","Nama Peperiksaan \n(Title of Examination)","Matapelajaran \n(Subject)","Gred \n(Grade)","Tarikh Diperolehi \n(Date Obtained)","Bulan \n(Month)","Tahun \n(Year)","Bil","Nama Sekolah","Nama Peperiksaan \n(Title of Examination)","Matapelajaran \n(Subject)","Gred \n(Grade)","Tarikh Diperolehi \n(Date Obtained)","Bulan \n(Month)","Tahun \n(Year)","Bil","Nama Sekolah","Nama Peperiksaan \n(Title of Examination)","Matapelajaran \n(Subject)","Gred \n(Grade)","Tarikh Diperolehi \n(Date Obtained)","Bulan \n(Month)","Tahun \n(Year)","Bil","Nama Sekolah","Nama Peperiksaan \n(Title of Examination)","Matapelajaran \n(Subject)","Gred \n(Grade)","Tarikh Diperolehi \n(Date Obtained)","Bulan \n(Month)","Tahun \n(Year)","Bil","Nama Sekolah","Nama Peperiksaan \n(Title of Examination)","Matapelajaran \n(Subject)","Gred \n(Grade)","Tarikh Diperolehi \n(Date Obtained)","Bulan \n(Month)","Tahun \n(Year)","Bil","Nama Sekolah","Nama Peperiksaan \n(Title of Examination)","Matapelajaran \n(Subject)","Gred \n(Grade)","Tarikh Diperolehi \n(Date Obtained)","Bulan \n(Month)","Tahun \n(Year)","Bil","Nama Sekolah","Nama Peperiksaan \n(Title of Examination)","Matapelajaran \n(Subject)","Gred \n(Grade)","Tarikh Diperolehi \n(Date Obtained)","Bulan \n(Month)","Tahun \n(Year)","Bil","Nama Sekolah","Nama Peperiksaan \n(Title of Examination)","Matapelajaran \n(Subject)","Gred \n(Grade)","Tarikh Diperolehi \n(Date Obtained)","Bulan \n(Month)","Tahun \n(Year)",{"$f":"B160","v":"International Baccalureate Diploma (IB) :"},{"$f":"B164","v":"KEPUTUSAN  SARJANA / SARJANA MUDA / HIGHER NATIONAL DIPLOMA / ADVANCED DIPLOMA / DIPLOMA LEVEL 5 / DIPLOMA  (jika ada)"},{"$f":"B165","v":"Bil"},{"$f":"C165","v":"Nama Institusi\n(Name of Institution)"},{"$f":"M165","v":"Sijil / Ijazah Diperolehi\n(Certificate / Degree Obtained)"},{"$f":"V165","v":"Keputusan\n(Result)"},{"$f":"Y165","v":"Tarikh Diperolehi \n(Date Obtained)"},{"$f":"Y166","v":"Bulan \n(Month)"},{"$f":"AA166","v":"Tahun \n(Year)"},"Bil","Nama Institusi","Sijil / Ijazah Diperolehi\n(Certificate / Degree Obtained)","Keputusan\n(Result)","Tarikh Diperolehi \n(Date Obtained)","Bulan \n(Month)","Tahun \n(Year)","Bil","Nama Institusi","Sijil / Ijazah Diperolehi\n(Certificate / Degree Obtained)","Keputusan\n(Result)","Tarikh Diperolehi \n(Date Obtained)","Bulan \n(Month)","Tahun \n(Year)","Bil","Nama Institusi","Sijil / Ijazah Diperolehi\n(Certificate / Degree Obtained)","Keputusan\n(Result)","Tarikh Diperolehi \n(Date Obtained)","Bulan \n(Month)","Tahun \n(Year)","Bil","Nama Institusi","Sijil / Ijazah Diperolehi\n(Certificate / Degree Obtained)","Keputusan\n(Result)","Tarikh Diperolehi \n(Date Obtained)","Bulan \n(Month)","Tahun \n(Year)",{"$f":"B173","v":"Lain-Lain Sijil Kelayakan atau Kelulusan (jika ada) / \nOther Certificates or Results  (if applicable)"},"Bil","Kelulusan Diperolehi (Certificate Obtained)","Keputusan (Result)","Tarikh Diperolehi (Date Obtained)","Bulan (Month)","Tahun (Year)","Bil","Kelulusan Diperolehi (Certificate Obtained)","Keputusan (Result)","Tarikh Diperolehi (Date Obtained)","Bulan (Month)","Tahun (Year)","Bil","Kelulusan Diperolehi (Certificate Obtained)","Keputusan (Result)","Tarikh Diperolehi (Date Obtained)","Bulan (Month)","Tahun (Year)","Bil","Kelulusan Diperolehi (Certificate Obtained)","Keputusan (Result)","Tarikh Diperolehi (Date Obtained)","Bulan (Month)","Tahun (Year)",{"$f":"B182","v":"4. KETERANGAN IBU BAPA / PENJAGA \nDETAILS OF APPLICANT'S PARENTS / GUARDIAN"},{"$f":"H183","v":"BAPA (FATHER)"},{"$f":"B184","v":"NAMA / NAME"},{"$f":"B185","v":"Nombor Kad Pintar / SMART CARD NUMBER"},{"$f":"B186","v":"Warna Kad Pintar / COLOUR"},{"$f":"B187","v":"ALAMAT TEMPAT TINGGAL / HOME ADDRESS"},{"$f":"B188","v":"PEKERJAAN / OCCUPATION"},{"$f":"B189","v":"ALAMAT PEJABAT / OFFICE ADDRESS"},{"$f":"B190","v":"NAMA MAJIKAN / NAME OF EMPLOYER"},{"$f":"B191","v":"TELEFON / TELEPHONE"},{"$f":"E191","v":"Rumah / Home"},{"$f":"E192","v":"Pejabat / Office"},{"$f":"E193","v":"Bimbit / Mobile"},{"$f":"E194","v":"E-mel / E-mail"},{"$f":"B195","v":"Tahun Meninggal (jika berkenaan) / Date of Deceased (if applicable)"},"IBU","NAMA / NAME","Nombor Kad Pintar","Warna Kad Pintar","ALAMAT TEMPAT TINGGAL / HOME ADDRESS","PEKERJAAN / OCCUPATION","ALAMAT PEJABAT / OFFICE ADDRESS","NAMA MAJIKAN / NAME OF EMPLOYER","TELEFON / TELEPHONE","Rumah / Home","Pejabat / Office","Bimbit / Mobile","E-mel / E-mail","Tahun Meninggal (jika berkenaan) / DATE DECEASED (if applicable)",{"$f":"V183","v":"PENJAGA (GUARDIAN)"},"NAMA / NAME","Nombor Kad Pintar","Warna Kad Pintar","ALAMAT TEMPAT TINGGAL / HOME ADDRESS","PEKERJAAN / OCCUPATION","ALAMAT PEJABAT / OFFICE ADDRESS","NAMA MAJIKAN / NAME OF EMPLOYER","TELEFON / TELEPHONE","Rumah / Home","Pejabat / Office","Bimbit / Mobile","E-mel / E-mail","Tahun Meninggal (jika berkenaan) / DATE DECEASED (if applicable)",{"$f":"B196","v":"HUBUNGAN PENJAGA DENGAN PEMOHON (Jika penjaga bukan bapa atau ibu permohon)\nGUARDIAN'S RELATION WITH APPLICANT  (If guardian is not the parent)"},{"$f":"B199","v":"ADAKAH PEMOHON PERNAH DIDAKWA DI MAKHAMAT ATAU DI HUKUM?\nHAVE YOU EVER BEEN CONVICTED IN COURT?"},{"$f":"U199","v":"YA\nYES"},{"$f":"Y199","v":"TIDAK\nNO"},{"$f":"B200","v":"Sila nyatakan jika berkerkenaan / Please indicate if applicable"},{"$f":"B210","v":"Tandatangan Pemohon :\nApplicant's Signature"},{"$f":"B211","v":"Tarikh :\nDate"},null,"xxxEND",null,null,null,"yyy",null,null,null,null,null,null,null,null,"SEKOLAH",null,null,null,null,"OLEVEL",null,null,null,null,null,null,null,null,null,null,null,null,null,null,null,null,null,null,null,null,null,null,null,"AL/IB",null,null,null,null,null,null,null,null,null,null,null,null,null,null,null,null,null,null,"DEG/HND",null,null,null,null,null,null,null,null,null,null,null,null,"OTHER Q",null,null,null,null,null,null,null,null,null,null,"yyyEND"]
[null,null,null,null,null,null,null,null,null,null,null,null,null,null,null,null,null,null,null,null,null,null,null,null,null,null,null,null,null,null,null,null,null,{"$f":"E53","v":0},{"$f":"P64","v":"2024 / 2025"},{"$f":"H67","v":0},{"$f":"H68","v":0},{"$f":"H69","v":0},{"$f":"H70","v":0},{"$f":"H71","v":0},{"$f":"Y71","v":0},"^^^",{"$f":"I72","v":0},{"$f":"K72","v":0},{"$f":"M72","v":0},"^^^",{"$f":"W72","v":0},{"$f":"Y72","v":0},{"$f":"AA72","v":0},"^^^",{"$f":"L75","v":0},{"$f":"K76","v":0},{"$f":"W76","v":0},"^^^",{"$f":"H77","v":0},{"$f":"L77","v":0},{"$f":"P77","v":0},{"$f":"-Y77","v":0},{"$f":"B80","v":0},{"$f":"E82","v":0},{"$f":"K80","v":""},{"$f":"N82","v":""},"^^^",{"$f":"V80","v":0},{"$f":"V81","v":0},{"$f":"V82","v":0},{"$f":"I84","v":0},{"$f":"P84","v":0},{"$f":"W84","v":0},{"$f":"K85","v":0},{"$f":"K86","v":0},"^^^",{"$f":"W86","v":0},{"$f":"Y86","v":0},{"$f":"AA86","v":0},"^^^","^^^",{"$f":"F89","v":0},{"$f":"Q90","v":0},{"$f":"B92","v":0},{"$f":"E95","v":0},{"$f":"K92","v":0},{"$f":"N95","v":0},"^^^",{"$f":"V92","v":0},{"$f":"V93","v":0},{"$f":"V94","v":0},{"$f":"V95","v":0},"^^^","^^^",{"$f":"B100","v":1},{"$f":"C100","v":0},{"$f":"L100","v":0},{"$f":"Q100","v":0},{"$f":"S100","v":0},{"$f":"U100","v":0},{"$f":"W100","v":0},{"$f":"Y100","v":0},{"$f":"AA100","v":0},{"$f":"B101","v":2},{"$f":"C101","v":0},{"$f":"L101","v":0},{"$f":"Q101","v":0},{"$f":"S101","v":0},{"$f":"U101","v":0},{"$f":"W101","v":0},{"$f":"Y101","v":0},{"$f":"AA101","v":0},{"$f":"B102","v":3},{"$f":"C102","v":0},{"$f":"L102","v":0},{"$f":"Q102","v":0},{"$f":"S102","v":0},{"$f":"U102","v":0},{"$f":"W102","v":0},{"$f":"Y102","v":0},{"$f":"AA102","v":0},{"$f":"B103","v":4},{"$f":"C103","v":0},{"$f":"L103","v":0},{"$f":"Q103","v":0},{"$f":"S103","v":0},{"$f":"U103","v":0},{"$f":"W103","v":0},{"$f":"Y103","v":0},{"$f":"AA103","v":0},{"$f":"B104","v":5},{"$f":"C104","v":0},{"$f":"L104","v":0},{"$f":"Q104","v":0},{"$f":"S104","v":0},{"$f":"U104","v":0},{"$f":"W104","v":0},{"$f":"Y104","v":0},{"$f":"AA104","v":0},{"$f":"B105","v":6},{"$f":"C105","v":0},{"$f":"L105","v":0},{"$f":"Q105","v":0},{"$f":"S105","v":0},{"$f":"U105","v":0},{"$f":"W105","v":0},{"$f":"Y105","v":0},{"$f":"AA105","v":0},"^^^","^^^",{"$f":"G108","v":0},{"$f":"J108","v":0},{"$f":"M108","v":0},"^^^",{"$f":"T108","v":0},{"$f":"W108","v":0},{"$f":"Z108","v":0},"^^^",{"$f":"B112","v":0},{"$f":"D112","v":0},{"$f":"L112","v":0},{"$f":"R112","v":0},{"$f":"W112","v":0},{"$f":"B113","v":0},{"$f":"D113","v":0},{"$f":"L113","v":0},{"$f":"R113","v":0},{"$f":"W113","v":0},{"$f":"B114","v":0},{"$f":"D114","v":0},{"$f":"L114","v":0},{"$f":"R114","v":0},{"$f":"W114","v":0},{"$f":"B115","v":0},{"$f":"D115","v":0},{"$f":"L115","v":0},{"$f":"R115","v":0},{"$f":"W115","v":0},"^^^",{"$f":"B119","v":0},{"$f":"M119","v":0},{"$f":"B120","v":0},{"$f":"M120","v":0},{"$f":"B121","v":0},{"$f":"M121","v":0},{"$f":"B122","v":0},{"$f":"M122","v":0},null,"^^^",1,{"$f":"C128","v":0},{"$f":"I128","v":0},{"$f":"O128","v":"Bahasa Melayu"},{"$f":"V128","v":0},"^^^",{"$f":"Y128","v":0},{"$f":"AA128","v":0},{"$f":"GD54+1","v":2},{"$f":"C129","v":0},{"$f":"I129","v":0},{"$f":"O129","v":"English"},{"$f":"V129","v":0},"^^^",{"$f":"Y129","v":0},{"$f":"AA129","v":0},{"$f":"GL54+1","v":3},{"$f":"C130","v":0},{"$f":"I130","v":0},{"$f":"O130","v":0},{"$f":"V130","v":0},"^^^",{"$f":"Y130","v":0},{"$f":"AA130","v":0},{"$f":"B131","v":4},{"$f":"C131","v":0},{"$f":"I131","v":0},{"$f":"O131","v":0},{"$f":"V131","v":0},"^^^",{"$f":"Y131","v":0},{"$f":"AA131","v":0},{"$f":"B132","v":5},{"$f":"C132","v":0},{"$f":"I132","v":0},{"$f":"O132","v":0},{"$f":"V132","v":0},"^^^",{"$f":"Y132","v":0},{"$f":"AA132","v":0},{"$f":"B133","v":6},{"$f":"C133","v":0},{"$f":"I133","v":0},{"$f":"O133","v":0},{"$f":"V133","v":0},"^^^",{"$f":"Y133","v":0},{"$f":"AA133","v":0},{"$f":"B134","v":7},{"$f":"C134","v":0},{"$f":"I134","v":0},{"$f":"O134","v":0},{"$f":"V134","v":0},"^^^",{"$f":"Y134","v":0},{"$f":"AA134","v":0},{"$f":"B135","v":8},{"$f":"C135","v":0},{"$f":"I135","v":0},{"$f":"O135","v":0},{"$f":"V135","v":0},"^^^",{"$f":"Y135","v":0},{"$f":"AA135","v":0},{"$f":"B136","v":9},{"$f":"C136","v":0},{"$f":"I136","v":0},{"$f":"O136","v":0},{"$f":"V136","v":0},"^^^",{"$f":"Y136","v":0},{"$f":"AA136","v":0},{"$f":"B137","v":10},{"$f":"C137","v":0},{"$f":"I137","v":0},{"$f":"O137","v":0},{"$f":"V137","v":0},"^^^",{"$f":"Y137","v":0},{"$f":"AA137","v":0},{"$f":"B138","v":11},{"$f":"C138","v":0},{"$f":"I138","v":0},{"$f":"O138","v":0},{"$f":"V138","v":0},"^^^",{"$f":"Y138","v":0},{"$f":"AA138","v":0},{"$f":"B139","v":12},{"$f":"C139","v":0},{"$f":"I139","v":0},{"$f":"O139","v":0},{"$f":"V139","v":0},"^^^",{"$f":"Y139","v":0},{"$f":"AA139","v":0},{"$f":"B140","v":13},{"$f":"C140","v":0},{"$f":"I140","v":0},{"$f":"O140","v":0},{"$f":"V140","v":0},"^^^",{"$f":"Y140","v":0},{"$f":"AA140","v":0},{"$f":"B141","v":14},{"$f":"C141","v":0},{"$f":"I141","v":0},{"$f":"O141","v":0},{"$f":"V141","v":0},"^^^",{"$f":"Y141","v":0},{"$f":"AA141","v":0},{"$f":"B142","v":15},{"$f":"C142","v":0},{"$f":"I142","v":0},{"$f":"O142","v":0},{"$f":"V142","v":0},"^^^",{"$f":"Y142","v":0},{"$f":"AA142","v":0},"^^^",{"$f":"B149","v":1},{"$f":"C149","v":0},{"$f":"I149","v":0},{"$f":"O149","v":0},{"$f":"V149","v":0},"^^^",{"$f":"Y149","v":0},{"$f":"AA149","v":0},{"$f":"B150","v":2},{"$f":"C150","v":0},{"$f":"I150","v":0},{"$f":"O150","v":0},{"$f":"V150","v":0},"^^^",{"$f":"Y150","v":0},{"$f":"AA150","v":0},{"$f":"B151","v":3},{"$f":"C151","v":0},{"$f":"I151","v":0},{"$f":"O151","v":0},{"$f":"V151","v":0},"^^^",{"$f":"Y151","v":0},{"$f":"AA151","v":0},{"$f":"B152","v":4},{"$f":"C152","v":0},{"$f":"I152","v":0},{"$f":"O152","v":0},{"$f":"V152","v":0},"^^^",{"$f":"Y152","v":0},{"$f":"AA152","v":0},{"$f":"B153","v":5},{"$f":"C153","v":0},{"$f":"I153","v":0},{"$f":"O153","v":0},{"$f":"V153","v":0},"^^^",{"$f":"Y153","v":0},{"$f":"AA153","v":0},{"$f":"B154","v":6},{"$f":"C154","v":0},{"$f":"I154","v":0},{"$f":"O154","v":0},{"$f":"V154","v":0},"^^^",{"$f":"Y154","v":0},{"$f":"AA154","v":0},{"$f":"B155","v":7},{"$f":"C155","v":0},{"$f":"I155","v":0},{"$f":"O155","v":0},{"$f":"V155","v":0},"^^^",{"$f":"Y155","v":0},{"$f":"AA155","v":0},{"$f":"B156","v":8},{"$f":"C156","v":0},{"$f":"I156","v":0},{"$f":"O156","v":0},{"$f":"V156","v":0},"^^^",{"$f":"Y156","v":0},{"$f":"AA156","v":0},{"$f":"B157","v":9},{"$f":"C157","v":0},{"$f":"I157","v":0},{"$f":"O157","v":0},{"$f":"V157","v":0},"^^^",{"$f":"Y157","v":0},{"$f":"AA157","v":0},{"$f":"B158","v":10},{"$f":"C158","v":0},{"$f":"I158","v":0},{"$f":"O158","v":0},{"$f":"V158","v":0},"^^^",{"$f":"Y158","v":0},{"$f":"AA158","v":0},{"$f":"O160","v":0},null,{"$f":"B167","v":1},{"$f":"C167","v":0},{"$f":"M167","v":0},{"$f":"V167","v":0},"^^^",{"$f":"Y167","v":0},{"$f":"AA167","v":0},{"$f":"B168","v":2},{"$f":"C168","v":0},{"$f":"M168","v":0},{"$f":"V168","v":0},"^^^",{"$f":"Y168","v":0},{"$f":"AA168","v":0},{"$f":"B169","v":3},{"$f":"C169","v":0},{"$f":"M169","v":0},{"$f":"V169","v":0},"^^^",{"$f":"Y169","v":0},{"$f":"AA169","v":0},{"$f":"B170","v":4},{"$f":"C170","v":0},{"$f":"M170","v":0},{"$f":"V170","v":0},"^^^",{"$f":"Y170","v":0},{"$f":"AA170","v":0},{"$f":"B171","v":5},{"$f":"C171","v":0},{"$f":"M171","v":0},{"$f":"V171","v":0},"^^^",{"$f":"Y171","v":0},{"$f":"AA171","v":0},null,{"$f":"B176","v":1},{"$f":"C176","v":0},{"$f":"N176","v":0},"^^^",{"$f":"Y176","v":0},{"$f":"AA176","v":0},{"$f":"B177","v":2},{"$f":"C177","v":0},{"$f":"N177","v":0},"^^^",{"$f":"Y177","v":0},{"$f":"AA177","v":0},{"$f":"B178","v":3},{"$f":"C178","v":0},{"$f":"N178","v":0},"^^^",{"$f":"Y178","v":0},{"$f":"AA178","v":0},{"$f":"B179","v":4},{"$f":"C179","v":0},{"$f":"N179","v":0},"^^^",{"$f":"Y179","v":0},{"$f":"AA179","v":0},null,"^^^",{"$f":"H184","v":0},{"$f":"H185","v":0},{"$f":"H186","v":0},{"$f":"H187","v":0},{"$f":"H188","v":0},{"$f":"H189","v":0},{"$f":"H190","v":0},"^^^",{"$f":"H191","v":0},{"$f":"H192","v":0},{"$f":"H193","v":0},{"$f":"H194","v":0},{"$f":"H195","v":0},"^^^",{"$f":"O184","v":0},{"$f":"O185","v":0},{"$f":"O186","v":0},{"$f":"O187","v":0},{"$f":"O188","v":0},{"$f":"O189","v":0},{"$f":"O190","v":0},"^^^",{"$f":"O191","v":0},{"$f":"O192","v":0},{"$f":"O193","v":0},{"$f":"O194","v":0},{"$f":"O195","v":0},"^^^",{"$f":"V184","v":0},{"$f":"V185","v":0},{"$f":"V186","v":0},{"$f":"V187","v":0},{"$f":"V188","v":0},{"$f":"V189","v":0},{"$f":"V190","v":0},"^^^",{"$f":"V191","v":0},{"$f":"V192","v":0},{"$f":"V193","v":0},{"$f":"V194","v":0},{"$f":"V195","v":0},{"$f":"V196","v":0},"^^^",{"$f":"W199","v":0},{"$f":"AA199","v":0},{"$f":"I200","v":0},{"$f":"J210","v":0},{"$f":"J211","v":0},null,"xxxEND",null,null,null,"yyy",{"$f":"IF(LEFT(BP54,3)=\"PER\",\"Dayang\",IF(LEFT(BP54,3)=\"LEL\",\"Awang\",\"NA\"))","v":"NA"},{"$f":"IF(LEN(BC54)=1,\"0\"&BC54,BC54)&\".\"&IF(LEN(BD54)=1,\"0\"&BD54,BD54)&\".\"&BE54","v":"00.00.0"},{"$f":"DATE(BE54,BD54,BC54)","v":{"$error":"#NUM!"}},{"$f":"IF(ISERROR(SM54),\" \",IF(ISBLANK(SM54),\"\",INT(($OL$2-SM54)/365.25)))","v":" "},{"$f":"BG54&CHAR(10)&BH54&\",\"&CHAR(10)&\" Negara Brunei Darussalam.\"","v":"0\n0,\n Negara Brunei Darussalam."},"NO:13, SPG 125-122, \nJLN RIMBA-TERUNJING, \nKG TERUNJING, BB1514, \nNegara Brunei Darussalam.",null,null,{"$f":"CN54&CHAR(10)\n&CW54&CHAR(10)\n&DF54&CHAR(10)\n&DO54&CHAR(10)\n&DX54&CHAR(10)","v":"0\n0\n0\n0\n0\n"},{"$f":"CO54&CHAR(10)\n&CX54&CHAR(10)\n&DG54&CHAR(10)\n&DP54&CHAR(10)\n&DY54&CHAR(10)","v":"0\n0\n0\n0\n0\n"},null,{"$f":"GB54&\" \"&GC54","v":" ^^^"},null,{"$f":"\nIF(GG54=0,\"\",\nIF(GO54=0,GD54,\nIF(GW54=0,GD54&CHAR(10)&GL54,\nIF(HE54=0,GD54&CHAR(10)&GL54&CHAR(10)&GT54,\nIF(HM54=0,GD54&CHAR(10)&GL54&CHAR(10)&GT54&CHAR(10)&HB54,\nIF(HU54=0,GD54&CHAR(10)&GL54&CHAR(10)&GT54&CHAR(10)&HB54&CHAR(10)&HJ54,\nIF(IC54=0,GD54&CHAR(10)&GL54&CHAR(10)&GT54&CHAR(10)&HB54&CHAR(10)&HJ54&CHAR(10)&HR54,\nIF(IK54=0,GD54&CHAR(10)&GL54&CHAR(10)&GT54&CHAR(10)&HB54&CHAR(10)&HJ54&CHAR(10)&HR54&CHAR(10)&HZ54,\nIF(IS54=0,GD54&CHAR(10)&GL54&CHAR(10)&GT54&CHAR(10)&HB54&CHAR(10)&HJ54&CHAR(10)&HR54&CHAR(10)&HZ54&CHAR(10)&IH54,\nIF(JA54=0,GD54&CHAR(10)&GL54&CHAR(10)&GT54&CHAR(10)&HB54&CHAR(10)&HJ54&CHAR(10)&HR54&CHAR(10)&HZ54&CHAR(10)&IH54&CHAR(10)&IP54,\nIF(JI54=0,GD54&CHAR(10)&GL54&CHAR(10)&GT54&CHAR(10)&HB54&CHAR(10)&HJ54&CHAR(10)&HR54&CHAR(10)&HZ54&CHAR(10)&IH54&CHAR(10)&IP54&CHAR(10)&IX54,\nIF(JQ54=0,GD54&CHAR(10)&GL54&CHAR(10)&GT54&CHAR(10)&HB54&CHAR(10)&HJ54&CHAR(10)&HR54&CHAR(10)&HZ54&CHAR(10)&IH54&CHAR(10)&IP54&CHAR(10)&IX54&CHAR(10)&JF54,\nIF(JY54=0,GD54&CHAR(10)&GL54&CHAR(10)&GT54&CHAR(10)&HB54&CHAR(10)&HJ54&CHAR(10)&HR54&CHAR(10)&HZ54&CHAR(10)&IH54&CHAR(10)&IP54&CHAR(10)&IX54&CHAR(10)&JF54&CHAR(10)&JN54,\nIF(KG54=0,GD54&CHAR(10)&GL54&CHAR(10)&GT54&CHAR(10)&HB54&CHAR(10)&HJ54&CHAR(10)&HR54&CHAR(10)&HZ54&CHAR(10)&IH54&CHAR(10)&IP54&CHAR(10)&IX54&CHAR(10)&JF54&CHAR(10)&JN54&CHAR(10)&JV54,\nIF(KO54=\"0\",GD54&CHAR(10)&GL54&CHAR(10)&GT54&CHAR(10)&HB54&CHAR(10)&HJ54&CHAR(10)&HR54&CHAR(10)&HZ54&CHAR(10)&IH54&CHAR(10)&IP54&CHAR(10)&IX54&CHAR(10)&JF54&CHAR(10)&JN54&CHAR(10)&JV54&CHAR(10)&KD54,\nGD54&CHAR(10)&GL54&CHAR(10)&GT54&CHAR(10)&HB54&CHAR(10)&HJ54&CHAR(10)&HR54&CHAR(10)&HZ54&CHAR(10)&IH54&CHAR(10)&IP54&CHAR(10)&IX54&CHAR(10)&JF54&CHAR(10)&JN54&CHAR(10)&JV54&CHAR(10)&KD54&CHAR(10)&KL54\n)))))))))))))))","v":"1\n2"},{"$f":"\nIF(GG54=0,\"\",\nIF(GO54=0,GE54,\nIF(GW54=0,GE54&CHAR(10)&GM54,\nIF(HE54=0,GE54&CHAR(10)&GM54&CHAR(10)&GU54,\nIF(HM54=0,GE54&CHAR(10)&GM54&CHAR(10)&GU54&CHAR(10)&HC54,\nIF(HU54=0,GE54&CHAR(10)&GM54&CHAR(10)&GU54&CHAR(10)&HC54&CHAR(10)&HK54,\nIF(IC54=0,GE54&CHAR(10)&GM54&CHAR(10)&GU54&CHAR(10)&HC54&CHAR(10)&HK54&CHAR(10)&HS54,\nIF(IK54=0,GE54&CHAR(10)&GM54&CHAR(10)&GU54&CHAR(10)&HC54&CHAR(10)&HK54&CHAR(10)&HS54&CHAR(10)&IA54,\nIF(IS54=0,GE54&CHAR(10)&GM54&CHAR(10)&GU54&CHAR(10)&HC54&CHAR(10)&HK54&CHAR(10)&HS54&CHAR(10)&IA54&CHAR(10)&II54,\nIF(JA54=0,GE54&CHAR(10)&GM54&CHAR(10)&GU54&CHAR(10)&HC54&CHAR(10)&HK54&CHAR(10)&HS54&CHAR(10)&IA54&CHAR(10)&II54&CHAR(10)&IQ54,\nIF(JI54=0,GE54&CHAR(10)&GM54&CHAR(10)&GU54&CHAR(10)&HC54&CHAR(10)&HK54&CHAR(10)&HS54&CHAR(10)&IA54&CHAR(10)&II54&CHAR(10)&IQ54&CHAR(10)&IY54,\nIF(JQ54=0,GE54&CHAR(10)&GM54&CHAR(10)&GU54&CHAR(10)&HC54&CHAR(10)&HK54&CHAR(10)&HS54&CHAR(10)&IA54&CHAR(10)&II54&CHAR(10)&IQ54&CHAR(10)&IY54&CHAR(10)&JG54,\nIF(JY54=0,GE54&CHAR(10)&GM54&CHAR(10)&GU54&CHAR(10)&HC54&CHAR(10)&HK54&CHAR(10)&HS54&CHAR(10)&IA54&CHAR(10)&II54&CHAR(10)&IQ54&CHAR(10)&IY54&CHAR(10)&JG54&CHAR(10)&JO54,\nIF(KG54=0,GE54&CHAR(10)&GM54&CHAR(10)&GU54&CHAR(10)&HC54&CHAR(10)&HK54&CHAR(10)&HS54&CHAR(10)&IA54&CHAR(10)&II54&CHAR(10)&IQ54&CHAR(10)&IY54&CHAR(10)&JG54&CHAR(10)&JO54&CHAR(10)&JW54,\nIF(KO54=\"0\",GE54&CHAR(10)&GM54&CHAR(10)&GU54&CHAR(10)&HC54&CHAR(10)&HK54&CHAR(10)&HS54&CHAR(10)&IA54&CHAR(10)&II54&CHAR(10)&IQ54&CHAR(10)&IY54&CHAR(10)&JG54&CHAR(10)&JO54&CHAR(10)&JW54&CHAR(10)&KE54,\nGE54&CHAR(10)&GM54&CHAR(10)&GU54&CHAR(10)&HC54&CHAR(10)&HK54&CHAR(10)&HS54&CHAR(10)&IA54&CHAR(10)&II54&CHAR(10)&IQ54&CHAR(10)&IY54&CHAR(10)&JG54&CHAR(10)&JO54&CHAR(10)&JW54&CHAR(10)&KE54&CHAR(10)&KM54\n)))))))))))))))","v":"0\n0"},{"$f":"\nIF(GG54=0,\"\",\nIF(GO54=0,GF54,\nIF(GW54=0,GF54&CHAR(10)&GN54,\nIF(HE54=0,GF54&CHAR(10)&GN54&CHAR(10)&GV54,\nIF(HM54=0,GF54&CHAR(10)&GN54&CHAR(10)&GV54&CHAR(10)&HD54,\nIF(HU54=0,GF54&CHAR(10)&GN54&CHAR(10)&GV54&CHAR(10)&HD54&CHAR(10)&HL54,\nIF(IC54=0,GF54&CHAR(10)&GN54&CHAR(10)&GV54&CHAR(10)&HD54&CHAR(10)&HL54&CHAR(10)&HT54,\nIF(IK54=0,GF54&CHAR(10)&GN54&CHAR(10)&GV54&CHAR(10)&HD54&CHAR(10)&HL54&CHAR(10)&HT54&CHAR(10)&IB54,\nIF(IS54=0,GF54&CHAR(10)&GN54&CHAR(10)&GV54&CHAR(10)&HD54&CHAR(10)&HL54&CHAR(10)&HT54&CHAR(10)&IB54&CHAR(10)&IJ54,\nIF(JA54=0,GF54&CHAR(10)&GN54&CHAR(10)&GV54&CHAR(10)&HD54&CHAR(10)&HL54&CHAR(10)&HT54&CHAR(10)&IB54&CHAR(10)&IJ54&CHAR(10)&IR54,\nIF(JI54=0,GF54&CHAR(10)&GN54&CHAR(10)&GV54&CHAR(10)&HD54&CHAR(10)&HL54&CHAR(10)&HT54&CHAR(10)&IB54&CHAR(10)&IJ54&CHAR(10)&IR54&CHAR(10)&IZ54,\nIF(JQ54=0,GF54&CHAR(10)&GN54&CHAR(10)&GV54&CHAR(10)&HD54&CHAR(10)&HL54&CHAR(10)&HT54&CHAR(10)&IB54&CHAR(10)&IJ54&CHAR(10)&IR54&CHAR(10)&IZ54&CHAR(10)&JH54,\nIF(JY54=0,GF54&CHAR(10)&GN54&CHAR(10)&GV54&CHAR(10)&HD54&CHAR(10)&HL54&CHAR(10)&HT54&CHAR(10)&IB54&CHAR(10)&IJ54&CHAR(10)&IR54&CHAR(10)&IZ54&CHAR(10)&JH54&CHAR(10)&JP54,\nIF(KG54=0,GF54&CHAR(10)&GN54&CHAR(10)&GV54&CHAR(10)&HD54&CHAR(10)&HL54&CHAR(10)&HT54&CHAR(10)&IB54&CHAR(10)&IJ54&CHAR(10)&IR54&CHAR(10)&IZ54&CHAR(10)&JH54&CHAR(10)&JP54&CHAR(10)&JX54,\nIF(KO54=\"0\",GF54&CHAR(10)&GN54&CHAR(10)&GV54&CHAR(10)&HD54&CHAR(10)&HL54&CHAR(10)&HT54&CHAR(10)&IB54&CHAR(10)&IJ54&CHAR(10)&IR54&CHAR(10)&IZ54&CHAR(10)&JH54&CHAR(10)&JP54&CHAR(10)&JX54&CHAR(10)&KF54,\nGF54&CHAR(10)&GN54&CHAR(10)&GV54&CHAR(10)&HD54&CHAR(10)&HL54&CHAR(10)&HT54&CHAR(10)&IB54&CHAR(10)&IJ54&CHAR(10)&IR54&CHAR(10)&IZ54&CHAR(10)&JH54&CHAR(10)&JP54&CHAR(10)&JX54&CHAR(10)&KF54&CHAR(10)&KN54\n)))))))))))))))","v":"0\n0"},{"$f":"\nIF($EZ$4=0,\"\",\nIF($FH$4=0,GG54,\nIF($FP$4=0,GG54&CHAR(10)&GO54,\nIF($FX$4=0,GG54&CHAR(10)&GO54&CHAR(10)&GW54,\nIF($GF$4=0,GG54&CHAR(10)&GO54&CHAR(10)&GW54&CHAR(10)&HE54,\nIF($GN$4=0,GG54&CHAR(10)&GO54&CHAR(10)&GW54&CHAR(10)&HE54&CHAR(10)&HM54,\nIF($GV$4=0,GG54&CHAR(10)&GO54&CHAR(10)&GW54&CHAR(10)&HE54&CHAR(10)&HM54&CHAR(10)&HU54,\nIF($HD$4=0,GG54&CHAR(10)&GO54&CHAR(10)&GW54&CHAR(10)&HE54&CHAR(10)&HM54&CHAR(10)&HU54&CHAR(10)&IC54,\nIF($HL$4=0,GG54&CHAR(10)&GO54&CHAR(10)&GW54&CHAR(10)&HE54&CHAR(10)&HM54&CHAR(10)&HU54&CHAR(10)&IC54&CHAR(10)&IK54,\nIF($HT$4=0,GG54&CHAR(10)&GO54&CHAR(10)&GW54&CHAR(10)&HE54&CHAR(10)&HM54&CHAR(10)&HU54&CHAR(10)&IC54&CHAR(10)&IK54&CHAR(10)&IS54,\nIF($IB$4=0,GG54&CHAR(10)&GO54&CHAR(10)&GW54&CHAR(10)&HE54&CHAR(10)&HM54&CHAR(10)&HU54&CHAR(10)&IC54&CHAR(10)&IK54&CHAR(10)&IS54&CHAR(10)&JA54,\nIF($IJ$4=0,GG54&CHAR(10)&GO54&CHAR(10)&GW54&CHAR(10)&HE54&CHAR(10)&HM54&CHAR(10)&HU54&CHAR(10)&IC54&CHAR(10)&IK54&CHAR(10)&IS54&CHAR(10)&JA54&CHAR(10)&JI54,\nIF($IR$4=0,GG54&CHAR(10)&GO54&CHAR(10)&GW54&CHAR(10)&HE54&CHAR(10)&HM54&CHAR(10)&HU54&CHAR(10)&IC54&CHAR(10)&IK54&CHAR(10)&IS54&CHAR(10)&JA54&CHAR(10)&JI54&CHAR(10)&JQ54,\nIF($IZ$4=0,GG54&CHAR(10)&GO54&CHAR(10)&GW54&CHAR(10)&HE54&CHAR(10)&HM54&CHAR(10)&HU54&CHAR(10)&IC54&CHAR(10)&IK54&CHAR(10)&IS54&CHAR(10)&JA54&CHAR(10)&JI54&CHAR(10)&JQ54&CHAR(10)&JY54,\nIF($JH$4=\"0\",GG54&CHAR(10)&GO54&CHAR(10)&GW54&CHAR(10)&HE54&CHAR(10)&HM54&CHAR(10)&HU54&CHAR(10)&IC54&CHAR(10)&IK54&CHAR(10)&IS54&CHAR(10)&JA54&CHAR(10)&JI54&CHAR(10)&JQ54&CHAR(10)&JY54&CHAR(10)&KG54,\nGG54&CHAR(10)&GO54&CHAR(10)&GW54&CHAR(10)&HE54&CHAR(10)&HM54&CHAR(10)&HU54&CHAR(10)&IC54&CHAR(10)&IK54&CHAR(10)&IS54&CHAR(10)&JA54&CHAR(10)&JI54&CHAR(10)&JQ54&CHAR(10)&JY54&CHAR(10)&KG54&CHAR(10)&KO54\n)))))))))))))))","v":""},{"$f":"\nIF(GG54=0,\"\",\nIF(GO54=0,GH54,\nIF(GW54=0,GH54&CHAR(10)&GP54,\nIF(HE54=0,GH54&CHAR(10)&GP54&CHAR(10)&GX54,\nIF(HM54=0,GH54&CHAR(10)&GP54&CHAR(10)&GX54&CHAR(10)&HF54,\nIF(HU54=0,GH54&CHAR(10)&GP54&CHAR(10)&GX54&CHAR(10)&HF54&CHAR(10)&HN54,\nIF(IC54=0,GH54&CHAR(10)&GP54&CHAR(10)&GX54&CHAR(10)&HF54&CHAR(10)&HN54&CHAR(10)&HV54,\nIF(IK54=0,GH54&CHAR(10)&GP54&CHAR(10)&GX54&CHAR(10)&HF54&CHAR(10)&HN54&CHAR(10)&HV54&CHAR(10)&ID54,\nIF(IS54=0,GH54&CHAR(10)&GP54&CHAR(10)&GX54&CHAR(10)&HF54&CHAR(10)&HN54&CHAR(10)&HV54&CHAR(10)&ID54&CHAR(10)&IL54,\nIF(JA54=0,GH54&CHAR(10)&GP54&CHAR(10)&GX54&CHAR(10)&HF54&CHAR(10)&HN54&CHAR(10)&HV54&CHAR(10)&ID54&CHAR(10)&IL54&CHAR(10)&IT54,\nIF(JI54=0,GH54&CHAR(10)&GP54&CHAR(10)&GX54&CHAR(10)&HF54&CHAR(10)&HN54&CHAR(10)&HV54&CHAR(10)&ID54&CHAR(10)&IL54&CHAR(10)&IT54&CHAR(10)&JB54,\nIF(JQ54=0,GH54&CHAR(10)&GP54&CHAR(10)&GX54&CHAR(10)&HF54&CHAR(10)&HN54&CHAR(10)&HV54&CHAR(10)&ID54&CHAR(10)&IL54&CHAR(10)&IT54&CHAR(10)&JB54&CHAR(10)&JJ54,\nIF(JY54=0,GH54&CHAR(10)&GP54&CHAR(10)&GX54&CHAR(10)&HF54&CHAR(10)&HN54&CHAR(10)&HV54&CHAR(10)&ID54&CHAR(10)&IL54&CHAR(10)&IT54&CHAR(10)&JB54&CHAR(10)&JJ54&CHAR(10)&JR54,\nIF(KG54=0,GH54&CHAR(10)&GP54&CHAR(10)&GX54&CHAR(10)&HF54&CHAR(10)&HN54&CHAR(10)&HV54&CHAR(10)&ID54&CHAR(10)&IL54&CHAR(10)&IT54&CHAR(10)&JB54&CHAR(10)&JJ54&CHAR(10)&JR54&CHAR(10)&JZ54,\nIF(KO54=\"0\",GH54&CHAR(10)&GP54&CHAR(10)&GX54&CHAR(10)&HF54&CHAR(10)&HN54&CHAR(10)&HV54&CHAR(10)&ID54&CHAR(10)&IL54&CHAR(10)&IT54&CHAR(10)&JB54&CHAR(10)&JJ54&CHAR(10)&JR54&CHAR(10)&JZ54&CHAR(10)&KH54,\nGH54&CHAR(10)&GP54&CHAR(10)&GX54&CHAR(10)&HF54&CHAR(10)&HN54&CHAR(10)&HV54&CHAR(10)&ID54&CHAR(10)&IL54&CHAR(10)&IT54&CHAR(10)&JB54&CHAR(10)&JJ54&CHAR(10)&JR54&CHAR(10)&JZ54&CHAR(10)&KH54&CHAR(10)&KP54\n)))))))))))))))","v":"0\n0"},{"$f":"\nIF(GG54=0,\"\",\nIF(GO54=0,TF54,\nIF(GW54=0,TF54&CHAR(10)&TG54,\nIF(HE54=0,TF54&CHAR(10)&TG54&CHAR(10)&TH54,\nIF(HM54=0,TF54&CHAR(10)&TG54&CHAR(10)&TH54&CHAR(10)&TI54,\nIF(HU54=0,TF54&CHAR(10)&TG54&CHAR(10)&TH54&CHAR(10)&TI54&CHAR(10)&TJ54,\nIF(IC54=0,TF54&CHAR(10)&TG54&CHAR(10)&TH54&CHAR(10)&TI54&CHAR(10)&TJ54&CHAR(10)&TK54,\nIF(IK54=0,TF54&CHAR(10)&TG54&CHAR(10)&TH54&CHAR(10)&TI54&CHAR(10)&TJ54&CHAR(10)&TK54&CHAR(10)&TL54,\nIF(IS54=0,TF54&CHAR(10)&TG54&CHAR(10)&TH54&CHAR(10)&TI54&CHAR(10)&TJ54&CHAR(10)&TK54&CHAR(10)&TL54&CHAR(10)&TM54,\nIF(JA54=0,TF54&CHAR(10)&TG54&CHAR(10)&TH54&CHAR(10)&TI54&CHAR(10)&TJ54&CHAR(10)&TK54&CHAR(10)&TL54&CHAR(10)&TM54&CHAR(10)&TN54,\nIF(JI54=0,TF54&CHAR(10)&TG54&CHAR(10)&TH54&CHAR(10)&TI54&CHAR(10)&TJ54&CHAR(10)&TK54&CHAR(10)&TL54&CHAR(10)&TM54&CHAR(10)&TN54&CHAR(10)&TO54,\nIF(JQ54=0,TF54&CHAR(10)&TG54&CHAR(10)&TH54&CHAR(10)&TI54&CHAR(10)&TJ54&CHAR(10)&TK54&CHAR(10)&TL54&CHAR(10)&TM54&CHAR(10)&TN54&CHAR(10)&TO54&CHAR(10)&TP54,\nIF(JY54=0,TF54&CHAR(10)&TG54&CHAR(10)&TH54&CHAR(10)&TI54&CHAR(10)&TJ54&CHAR(10)&TK54&CHAR(10)&TL54&CHAR(10)&TM54&CHAR(10)&TN54&CHAR(10)&TO54&CHAR(10)&TP54&CHAR(10)&TQ54,\nIF(KG54=0,TF54&CHAR(10)&TG54&CHAR(10)&TH54&CHAR(10)&TI54&CHAR(10)&TJ54&CHAR(10)&TK54&CHAR(10)&TL54&CHAR(10)&TM54&CHAR(10)&TN54&CHAR(10)&TO54&CHAR(10)&TP54&CHAR(10)&TQ54&CHAR(10)&TR54,\nIF(KO54=\"0\",TF54&CHAR(10)&TG54&CHAR(10)&TH54&CHAR(10)&TI54&CHAR(10)&TJ54&CHAR(10)&TK54&CHAR(10)&TL54&CHAR(10)&TM54&CHAR(10)&TN54&CHAR(10)&TO54&CHAR(10)&TP54&CHAR(10)&TQ54&CHAR(10)&TR54&CHAR(10)&TS54,\nTF54&CHAR(10)&TG54&CHAR(10)&TH54&CHAR(10)&TI54&CHAR(10)&TJ54&CHAR(10)&TK54&CHAR(10)&TL54&CHAR(10)&TM54&CHAR(10)&TN54&CHAR(10)&TO54&CHAR(10)&TP54&CHAR(10)&TQ54&CHAR(10)&TR54&CHAR(10)&TS54&CHAR(10)&TT54\n)))))))))))))))","v":"00.0\n00.0"},{"$f":"\nIF(GG54=0,\"\",\nIF(GO54=0,GJ54,\nIF(GW54=0,GJ54&CHAR(10)&GR54,\nIF(HE54=0,GJ54&CHAR(10)&GR54&CHAR(10)&GZ54,\nIF(HM54=0,GJ54&CHAR(10)&GR54&CHAR(10)&GZ54&CHAR(10)&HH54,\nIF(HU54=0,GJ54&CHAR(10)&GR54&CHAR(10)&GZ54&CHAR(10)&HH54&CHAR(10)&HP54,\nIF(IC54=0,GJ54&CHAR(10)&GR54&CHAR(10)&GZ54&CHAR(10)&HH54&CHAR(10)&HP54&CHAR(10)&HX54,\nIF(IK54=0,GJ54&CHAR(10)&GR54&CHAR(10)&GZ54&CHAR(10)&HH54&CHAR(10)&HP54&CHAR(10)&HX54&CHAR(10)&IF54,\nIF(IS54=0,GJ54&CHAR(10)&GR54&CHAR(10)&GZ54&CHAR(10)&HH54&CHAR(10)&HP54&CHAR(10)&HX54&CHAR(10)&IF54&CHAR(10)&IN54,\nIF(JA54=0,GJ54&CHAR(10)&GR54&CHAR(10)&GZ54&CHAR(10)&HH54&CHAR(10)&HP54&CHAR(10)&HX54&CHAR(10)&IF54&CHAR(10)&IN54&CHAR(10)&IV54,\nIF(JI54=0,GJ54&CHAR(10)&GR54&CHAR(10)&GZ54&CHAR(10)&HH54&CHAR(10)&HP54&CHAR(10)&HX54&CHAR(10)&IF54&CHAR(10)&IN54&CHAR(10)&IV54&CHAR(10)&JD54,\nIF(JQ54=0,GJ54&CHAR(10)&GR54&CHAR(10)&GZ54&CHAR(10)&HH54&CHAR(10)&HP54&CHAR(10)&HX54&CHAR(10)&IF54&CHAR(10)&IN54&CHAR(10)&IV54&CHAR(10)&JD54&CHAR(10)&JL54,\nIF(JY54=0,GJ54&CHAR(10)&GR54&CHAR(10)&GZ54&CHAR(10)&HH54&CHAR(10)&HP54&CHAR(10)&HX54&CHAR(10)&IF54&CHAR(10)&IN54&CHAR(10)&IV54&CHAR(10)&JD54&CHAR(10)&JL54&CHAR(10)&JT54,\nIF(KG54=0,GJ54&CHAR(10)&GR54&CHAR(10)&GZ54&CHAR(10)&HH54&CHAR(10)&HP54&CHAR(10)&HX54&CHAR(10)&IF54&CHAR(10)&IN54&CHAR(10)&IV54&CHAR(10)&JD54&CHAR(10)&JL54&CHAR(10)&JT54&CHAR(10)&KB54,\nIF(KO54=\"0\",GJ54&CHAR(10)&GR54&CHAR(10)&GZ54&CHAR(10)&HH54&CHAR(10)&HP54&CHAR(10)&HX54&CHAR(10)&IF54&CHAR(10)&IN54&CHAR(10)&IV54&CHAR(10)&JD54&CHAR(10)&JL54&CHAR(10)&JT54&CHAR(10)&KB54&CHAR(10)&KJ54,\nGJ54&CHAR(10)&GR54&CHAR(10)&GZ54&CHAR(10)&HH54&CHAR(10)&HP54&CHAR(10)&HX54&CHAR(10)&IF54&CHAR(10)&IN54&CHAR(10)&IV54&CHAR(10)&JD54&CHAR(10)&JL54&CHAR(10)&JT54&CHAR(10)&KB54&CHAR(10)&KJ54&CHAR(10)&KR54\n)))))))))))))))","v":"0\n0"},{"$f":"\nIF(GG54=0,\"\",\nIF(GO54=0,GK54,\nIF(GW54=0,GK54&CHAR(10)&GS54,\nIF(HE54=0,GK54&CHAR(10)&GS54&CHAR(10)&HA54,\nIF(HM54=0,GK54&CHAR(10)&GS54&CHAR(10)&HA54&CHAR(10)&HI54,\nIF(HU54=0,GK54&CHAR(10)&GS54&CHAR(10)&HA54&CHAR(10)&HI54&CHAR(10)&HQ54,\nIF(IC54=0,GK54&CHAR(10)&GS54&CHAR(10)&HA54&CHAR(10)&HI54&CHAR(10)&HQ54&CHAR(10)&HY54,\nIF(IK54=0,GK54&CHAR(10)&GS54&CHAR(10)&HA54&CHAR(10)&HI54&CHAR(10)&HQ54&CHAR(10)&HY54&CHAR(10)&IG54,\nIF(IS54=0,GK54&CHAR(10)&GS54&CHAR(10)&HA54&CHAR(10)&HI54&CHAR(10)&HQ54&CHAR(10)&HY54&CHAR(10)&IG54&CHAR(10)&IO54,\nIF(JA54=0,GK54&CHAR(10)&GS54&CHAR(10)&HA54&CHAR(10)&HI54&CHAR(10)&HQ54&CHAR(10)&HY54&CHAR(10)&IG54&CHAR(10)&IO54&CHAR(10)&IW54,\nIF(JI54=0,GK54&CHAR(10)&GS54&CHAR(10)&HA54&CHAR(10)&HI54&CHAR(10)&HQ54&CHAR(10)&HY54&CHAR(10)&IG54&CHAR(10)&IO54&CHAR(10)&IW54&CHAR(10)&JE54,\nIF(JQ54=0,GK54&CHAR(10)&GS54&CHAR(10)&HA54&CHAR(10)&HI54&CHAR(10)&HQ54&CHAR(10)&HY54&CHAR(10)&IG54&CHAR(10)&IO54&CHAR(10)&IW54&CHAR(10)&JE54&CHAR(10)&JM54,\nIF(JY54=0,GK54&CHAR(10)&GS54&CHAR(10)&HA54&CHAR(10)&HI54&CHAR(10)&HQ54&CHAR(10)&HY54&CHAR(10)&IG54&CHAR(10)&IO54&CHAR(10)&IW54&CHAR(10)&JE54&CHAR(10)&JM54&CHAR(10)&JU54,\nIF(KG54=0,GK54&CHAR(10)&GS54&CHAR(10)&HA54&CHAR(10)&HI54&CHAR(10)&HQ54&CHAR(10)&HY54&CHAR(10)&IG54&CHAR(10)&IO54&CHAR(10)&IW54&CHAR(10)&JE54&CHAR(10)&JM54&CHAR(10)&JU54&CHAR(10)&KC54,\nIF(KO54=\"0\",GK54&CHAR(10)&GS54&CHAR(10)&HA54&CHAR(10)&HI54&CHAR(10)&HQ54&CHAR(10)&HY54&CHAR(10)&IG54&CHAR(10)&IO54&CHAR(10)&IW54&CHAR(10)&JE54&CHAR(10)&JM54&CHAR(10)&JU54&CHAR(10)&KC54&CHAR(10)&KK54,\nGK54&CHAR(10)&GS54&CHAR(10)&HA54&CHAR(10)&HI54&CHAR(10)&HQ54&CHAR(10)&HY54&CHAR(10)&IG54&CHAR(10)&IO54&CHAR(10)&IW54&CHAR(10)&JE54&CHAR(10)&JM54&CHAR(10)&JU54&CHAR(10)&KC54&CHAR(10)&KK54&CHAR(10)&KS54\n)))))))))))))))","v":"0\n0"},{"$f":"IF(LEN(GJ54)=1,\"0\"&GJ54,GJ54)&\".\"&GK54","v":"00.0"},{"$f":"IF(LEN(GR54)=1,\"0\"&GR54,GR54)&\".\"&GS54","v":"00.0"},{"$f":"IF(LEN(GZ54)=1,\"0\"&GZ54,GZ54)&\".\"&HA54","v":"00.0"},{"$f":"IF(LEN(HH54)=1,\"0\"&HH54,HH54)&\".\"&HI54","v":"00.0"},{"$f":"IF(LEN(HP54)=1,\"0\"&HP54,HP54)&\".\"&HQ54","v":"00.0"},{"$f":"IF(LEN(HX54)=1,\"0\"&HX54,HX54)&\".\"&HY54","v":"00.0"},{"$f":"IF(LEN(IF54)=1,\"0\"&IF54,IF54)&\".\"&IG54","v":"00.0"},{"$f":"IF(LEN(IN54)=1,\"0\"&IN54,IN54)&\".\"&IO54","v":"00.0"},{"$f":"IF(LEN(IV54)=1,\"0\"&IV54,IV54)&\".\"&IW54","v":"00.0"},{"$f":"IF(LEN(JD54)=1,\"0\"&JD54,JD54)&\".\"&JE54","v":"00.0"},{"$f":"IF(LEN(JL54)=1,\"0\"&JL54,JL54)&\".\"&JM54","v":"00.0"},{"$f":"IF(LEN(JT54)=1,\"0\"&JT54,JT54)&\".\"&JU54","v":"00.0"},{"$f":"IF(LEN(KB54)=1,\"0\"&KB54,KB54)&\".\"&KC54","v":"00.0"},{"$f":"IF(LEN(KJ54)=1,\"0\"&KJ54,KJ54)&\".\"&KK54","v":"00.0"},{"$f":"IF(LEN(KR54)=1,\"0\"&KR54,KR54)&\".\"&KS54","v":"00.0"},null,{"$f":"\nIF(KX54=0,\"\",\nIF(LF54=0,KU54,\nIF(LN54=0,KU54&CHAR(10)&LC54,\nIF(LV54=0,KU54&CHAR(10)&LC54&CHAR(10)&LK54,\nIF(MD54=0,KU54&CHAR(10)&LC54&CHAR(10)&LK54&CHAR(10)&LS54,\nIF(ML54=0,KU54&CHAR(10)&LC54&CHAR(10)&LK54&CHAR(10)&LS54&CHAR(10)&MA54,\nIF(MT54=0,KU54&CHAR(10)&LC54&CHAR(10)&LK54&CHAR(10)&LS54&CHAR(10)&MA54&CHAR(10)&MI54,\nIF(NB54=0,KU54&CHAR(10)&LC54&CHAR(10)&LK54&CHAR(10)&LS54&CHAR(10)&MA54&CHAR(10)&MI54&CHAR(10)&MQ54,\nIF(NJ54=0,KU54&CHAR(10)&LC54&CHAR(10)&LK54&CHAR(10)&LS54&CHAR(10)&MA54&CHAR(10)&MI54&CHAR(10)&MQ54&CHAR(10)&MY54,\nIF(NR54=0,KU54&CHAR(10)&LC54&CHAR(10)&LK54&CHAR(10)&LS54&CHAR(10)&MA54&CHAR(10)&MI54&CHAR(10)&MQ54&CHAR(10)&MY54&CHAR(10)&NG54,\nKU54&CHAR(10)&LC54&CHAR(10)&LK54&CHAR(10)&LS54&CHAR(10)&MA54&CHAR(10)&MI54&CHAR(10)&MQ54&CHAR(10)&MY54&CHAR(10)&NG54&CHAR(10)&NO54))))))))))","v":""},{"$f":"\nIF(KX54=0,\"\",\nIF(LF54=0,KV54,\nIF(LN54=0,KV54&CHAR(10)&LD54,\nIF(LV54=0,KV54&CHAR(10)&LD54&CHAR(10)&LL54,\nIF(MD54=0,KV54&CHAR(10)&LD54&CHAR(10)&LL54&CHAR(10)&LT54,\nIF(ML54=0,KV54&CHAR(10)&LD54&CHAR(10)&LL54&CHAR(10)&LT54&CHAR(10)&MB54,\nIF(MT54=0,KV54&CHAR(10)&LD54&CHAR(10)&LL54&CHAR(10)&LT54&CHAR(10)&MB54&CHAR(10)&MJ54,\nIF(NB54=0,KV54&CHAR(10)&LD54&CHAR(10)&LL54&CHAR(10)&LT54&CHAR(10)&MB54&CHAR(10)&MJ54&CHAR(10)&MR54,\nIF(NJ54=0,KV54&CHAR(10)&LD54&CHAR(10)&LL54&CHAR(10)&LT54&CHAR(10)&MB54&CHAR(10)&MJ54&CHAR(10)&MR54&CHAR(10)&MZ54,\nIF(NR54=0,KV54&CHAR(10)&LD54&CHAR(10)&LL54&CHAR(10)&LT54&CHAR(10)&MB54&CHAR(10)&MJ54&CHAR(10)&MR54&CHAR(10)&MZ54&CHAR(10)&NH54,\nKV54&CHAR(10)&LD54&CHAR(10)&LL54&CHAR(10)&LT54&CHAR(10)&MB54&CHAR(10)&MJ54&CHAR(10)&MR54&CHAR(10)&MZ54&CHAR(10)&NH54&CHAR(10)&NP54))))))))))","v":""},{"$f":"\nIF(KX54=0,\"\",\nIF(LF54=0,KW54,\nIF(LN54=0,KW54&CHAR(10)&LE54,\nIF(LV54=0,KW54&CHAR(10)&LE54&CHAR(10)&LM54,\nIF(MD54=0,KW54&CHAR(10)&LE54&CHAR(10)&LM54&CHAR(10)&LU54,\nIF(ML54=0,KW54&CHAR(10)&LE54&CHAR(10)&LM54&CHAR(10)&LU54&CHAR(10)&MC54,\nIF(MT54=0,KW54&CHAR(10)&LE54&CHAR(10)&LM54&CHAR(10)&LU54&CHAR(10)&MC54&CHAR(10)&MK54,\nIF(NB54=0,KW54&CHAR(10)&LE54&CHAR(10)&LM54&CHAR(10)&LU54&CHAR(10)&MC54&CHAR(10)&MK54&CHAR(10)&MS54,\nIF(NJ54=0,KW54&CHAR(10)&LE54&CHAR(10)&LM54&CHAR(10)&LU54&CHAR(10)&MC54&CHAR(10)&MK54&CHAR(10)&MS54&CHAR(10)&NA54,\nIF(NR54=0,KW54&CHAR(10)&LE54&CHAR(10)&LM54&CHAR(10)&LU54&CHAR(10)&MC54&CHAR(10)&MK54&CHAR(10)&MS54&CHAR(10)&NA54&CHAR(10)&NI54,\nKW54&CHAR(10)&LE54&CHAR(10)&LM54&CHAR(10)&LU54&CHAR(10)&MC54&CHAR(10)&MK54&CHAR(10)&MS54&CHAR(10)&NA54&CHAR(10)&NI54&CHAR(10)&NQ54))))))))))","v":""},{"$f":"\nIF(KX54=0,\"\",\nIF(LF54=0,KX54,\nIF(LN54=0,KX54&CHAR(10)&LF54,\nIF(LV54=0,KX54&CHAR(10)&LF54&CHAR(10)&LN54,\nIF(MD54=0,KX54&CHAR(10)&LF54&CHAR(10)&LN54&CHAR(10)&LV54,\nIF(ML54=0,KX54&CHAR(10)&LF54&CHAR(10)&LN54&CHAR(10)&LV54&CHAR(10)&MD54,\nIF(MT54=0,KX54&CHAR(10)&LF54&CHAR(10)&LN54&CHAR(10)&LV54&CHAR(10)&MD54&CHAR(10)&ML54,\nIF(NB54=0,KX54&CHAR(10)&LF54&CHAR(10)&LN54&CHAR(10)&LV54&CHAR(10)&MD54&CHAR(10)&ML54&CHAR(10)&MT54,\nIF(NJ54=0,KX54&CHAR(10)&LF54&CHAR(10)&LN54&CHAR(10)&LV54&CHAR(10)&MD54&CHAR(10)&ML54&CHAR(10)&MT54&CHAR(10)&NB54,\nIF(NR54=0,KX54&CHAR(10)&LF54&CHAR(10)&LN54&CHAR(10)&LV54&CHAR(10)&MD54&CHAR(10)&ML54&CHAR(10)&MT54&CHAR(10)&NB54&CHAR(10)&NJ54,\nKX54&CHAR(10)&LF54&CHAR(10)&LN54&CHAR(10)&LV54&CHAR(10)&MD54&CHAR(10)&ML54&CHAR(10)&MT54&CHAR(10)&NB54&CHAR(10)&NJ54&CHAR(10)&NR54))))))))))","v":""},{"$f":"\nIF(KX54=0,\"\",\nIF(LF54=0,KY54,\nIF(LN54=0,KY54&CHAR(10)&LG54,\nIF(LV54=0,KY54&CHAR(10)&LG54&CHAR(10)&LO54,\nIF(MD54=0,KY54&CHAR(10)&LG54&CHAR(10)&LO54&CHAR(10)&LW54,\nIF(ML54=0,KY54&CHAR(10)&LG54&CHAR(10)&LO54&CHAR(10)&LW54&CHAR(10)&ME54,\nIF(MT54=0,KY54&CHAR(10)&LG54&CHAR(10)&LO54&CHAR(10)&LW54&CHAR(10)&ME54&CHAR(10)&MM54,\nIF(NB54=0,KY54&CHAR(10)&LG54&CHAR(10)&LO54&CHAR(10)&LW54&CHAR(10)&ME54&CHAR(10)&MM54&CHAR(10)&MU54,\nIF(NJ54=0,KY54&CHAR(10)&LG54&CHAR(10)&LO54&CHAR(10)&LW54&CHAR(10)&ME54&CHAR(10)&MM54&CHAR(10)&MU54&CHAR(10)&NC54,\nIF(NR54=0,KY54&CHAR(10)&LG54&CHAR(10)&LO54&CHAR(10)&LW54&CHAR(10)&ME54&CHAR(10)&MM54&CHAR(10)&MU54&CHAR(10)&NC54&CHAR(10)&NK54,\nKY54&CHAR(10)&LG54&CHAR(10)&LO54&CHAR(10)&LW54&CHAR(10)&ME54&CHAR(10)&MM54&CHAR(10)&MU54&CHAR(10)&NC54&CHAR(10)&NK54&CHAR(10)&NS54))))))))))","v":""},{"$f":"\nIF(KX54=0,\"\",\nIF(LF54=0,UD54,\nIF(LN54=0,UD54&CHAR(10)&UE54,\nIF(LV54=0,UD54&CHAR(10)&UE54&CHAR(10)&UF54,\nIF(MD54=0,UD54&CHAR(10)&UE54&CHAR(10)&UF54&CHAR(10)&UG54,\nIF(ML54=0,UD54&CHAR(10)&UE54&CHAR(10)&UF54&CHAR(10)&UG54&CHAR(10)&UH54,\nIF(MT54=0,UD54&CHAR(10)&UE54&CHAR(10)&UF54&CHAR(10)&UG54&CHAR(10)&UH54&CHAR(10)&UI54,\nIF(NB54=0,UD54&CHAR(10)&UE54&CHAR(10)&UF54&CHAR(10)&UG54&CHAR(10)&UH54&CHAR(10)&UI54&CHAR(10)&UJ54,\nIF(NJ54=0,UD54&CHAR(10)&UE54&CHAR(10)&UF54&CHAR(10)&UG54&CHAR(10)&UH54&CHAR(10)&UI54&CHAR(10)&UJ54&CHAR(10)&UK54,\nIF(NR54=0,UD54&CHAR(10)&UE54&CHAR(10)&UF54&CHAR(10)&UG54&CHAR(10)&UH54&CHAR(10)&UI54&CHAR(10)&UJ54&CHAR(10)&UK54&CHAR(10)&UL54,\nUD54&CHAR(10)&UE54&CHAR(10)&UF54&CHAR(10)&UG54&CHAR(10)&UH54&CHAR(10)&UI54&CHAR(10)&UJ54&CHAR(10)&UK54&CHAR(10)&UL54&CHAR(10)&UM54))))))))))","v":""},{"$f":"\nIF(KX54=0,\"\",\nIF(LF54=0,LA54,\nIF(LN54=0,LA54&CHAR(10)&LI54,\nIF(LV54=0,LA54&CHAR(10)&LI54&CHAR(10)&LQ54,\nIF(MD54=0,LA54&CHAR(10)&LI54&CHAR(10)&LQ54&CHAR(10)&LY54,\nIF(ML54=0,LA54&CHAR(10)&LI54&CHAR(10)&LQ54&CHAR(10)&LY54&CHAR(10)&MG54,\nIF(MT54=0,LA54&CHAR(10)&LI54&CHAR(10)&LQ54&CHAR(10)&LY54&CHAR(10)&MG54&CHAR(10)&MO54,\nIF(NB54=0,LA54&CHAR(10)&LI54&CHAR(10)&LQ54&CHAR(10)&LY54&CHAR(10)&MG54&CHAR(10)&MO54&CHAR(10)&MW54,\nIF(NJ54=0,LA54&CHAR(10)&LI54&CHAR(10)&LQ54&CHAR(10)&LY54&CHAR(10)&MG54&CHAR(10)&MO54&CHAR(10)&MW54&CHAR(10)&NE54,\nIF(NR54=0,LA54&CHAR(10)&LI54&CHAR(10)&LQ54&CHAR(10)&LY54&CHAR(10)&MG54&CHAR(10)&MO54&CHAR(10)&MW54&CHAR(10)&NE54&CHAR(10)&NM54,\nLA54&CHAR(10)&LI54&CHAR(10)&LQ54&CHAR(10)&LY54&CHAR(10)&MG54&CHAR(10)&MO54&CHAR(10)&MW54&CHAR(10)&NE54&CHAR(10)&NM54&CHAR(10)&NU54))))))))))","v":""},{"$f":"\nIF(KX54=0,\"\",\nIF(LF54=0,LB54,\nIF(LN54=0,LB54&CHAR(10)&LJ54,\nIF(LV54=0,LB54&CHAR(10)&LJ54&CHAR(10)&LR54,\nIF(MD54=0,LB54&CHAR(10)&LJ54&CHAR(10)&LR54&CHAR(10)&LZ54,\nIF(ML54=0,LB54&CHAR(10)&LJ54&CHAR(10)&LR54&CHAR(10)&LZ54&CHAR(10)&MH54,\nIF(MT54=0,LB54&CHAR(10)&LJ54&CHAR(10)&LR54&CHAR(10)&LZ54&CHAR(10)&MH54&CHAR(10)&MP54,\nIF(NB54=0,LB54&CHAR(10)&LJ54&CHAR(10)&LR54&CHAR(10)&LZ54&CHAR(10)&MH54&CHAR(10)&MP54&CHAR(10)&MX54,\nIF(NJ54=0,LB54&CHAR(10)&LJ54&CHAR(10)&LR54&CHAR(10)&LZ54&CHAR(10)&MH54&CHAR(10)&MP54&CHAR(10)&MX54&CHAR(10)&NF54,\nIF(NR54=0,LB54&CHAR(10)&LJ54&CHAR(10)&LR54&CHAR(10)&LZ54&CHAR(10)&MH54&CHAR(10)&MP54&CHAR(10)&MX54&CHAR(10)&NF54&CHAR(10)&NN54,\nLB54&CHAR(10)&LJ54&CHAR(10)&LR54&CHAR(10)&LZ54&CHAR(10)&MH54&CHAR(10)&MP54&CHAR(10)&MX54&CHAR(10)&NF54&CHAR(10)&NN54&CHAR(10)&NV54))))))))))","v":""},{"$f":"IF(LEN(LA54)=1,\"0\"&LA54,LA54)&\".\"&LB54","v":"00.0"},{"$f":"IF(LEN(LI54)=1,\"0\"&LI54,LI54)&\".\"&LJ54","v":"00.0"},{"$f":"IF(LEN(LQ54)=1,\"0\"&LQ54,LQ54)&\".\"&LR54","v":"00.0"},{"$f":"IF(LEN(LY54)=1,\"0\"&LY54,LY54)&\".\"&LZ54","v":"00.0"},{"$f":"IF(LEN(MG54)=1,\"0\"&MG54,MG54)&\".\"&MH54","v":"00.0"},{"$f":"IF(LEN(MO54)=1,\"0\"&MO54,MO54)&\".\"&MP54","v":"00.0"},{"$f":"IF(LEN(MW54)=1,\"0\"&MW54,MW54)&\".\"&MX54","v":"00.0"},{"$f":"IF(LEN(NE54)=1,\"0\"&NE54,NE54)&\".\"&NF54","v":"00.0"},{"$f":"IF(LEN(NM54)=1,\"0\"&NM54,NM54)&\".\"&NN54","v":"00.0"},{"$f":"IF(LEN(NU54)=1,\"0\"&NU54,NU54)&\".\"&NV54","v":"00.0"},null,{"$f":"\nIF(OA54=0,\"\",\nIF(OH54=0,NY54,\nIF(OO54=0,NY54&CHAR(10)&OF54,\nIF(OV54=0,NY54&CHAR(10)&OF54&CHAR(10)&OM54,\nIF(PC54=0,NY54&CHAR(10)&OF54&CHAR(10)&OM54&CHAR(10)&OT54,\nNY54&CHAR(10)&OF54&CHAR(10)&OM54&CHAR(10)&OT54&CHAR(10)&PA54\n)))))","v":""},{"$f":"\nIF(OA54=0,\"\",\nIF(OH54=0,NZ54,\nIF(OO54=0,NZ54&CHAR(10)&OG54,\nIF(OV54=0,NZ54&CHAR(10)&OG54&CHAR(10)&ON54,\nIF(PC54=0,NZ54&CHAR(10)&OG54&CHAR(10)&ON54&CHAR(10)&OU54,\nNZ54&CHAR(10)&OG54&CHAR(10)&ON54&CHAR(10)&OU54&CHAR(10)&PB54\n)))))","v":""},{"$f":"\nIF(OA54=0,\"\",\nIF(OH54=0,OA54,\nIF(OO54=0,OA54&CHAR(10)&OH54,\nIF(OV54=0,OA54&CHAR(10)&OH54&CHAR(10)&OO54,\nIF(PC54=0,OA54&CHAR(10)&OH54&CHAR(10)&OO54&CHAR(10)&OV54,\nOA54&CHAR(10)&OH54&CHAR(10)&OO54&CHAR(10)&OV54&CHAR(10)&PC54\n)))))","v":""},{"$f":"\nIF(OA54=0,\"\",\nIF(OH54=0,OB54,\nIF(OO54=0,OB54&CHAR(10)&OI54,\nIF(OV54=0,OB54&CHAR(10)&OI54&CHAR(10)&OP54,\nIF(PC54=0,OB54&CHAR(10)&OI54&CHAR(10)&OP54&CHAR(10)&OW54,\nOB54&CHAR(10)&OI54&CHAR(10)&OP54&CHAR(10)&OW54&CHAR(10)&PD54\n)))))","v":""},{"$f":"\nIF(OA54=0,\"\",\nIF(OH54=0,UV54,\nIF(OO54=0,UV54&CHAR(10)&UW54,\nIF(OV54=0,UV54&CHAR(10)&UW54&CHAR(10)&UX54,\nIF(PC54=0,UV54&CHAR(10)&UW54&CHAR(10)&UX54&CHAR(10)&UY54,\nUV54&CHAR(10)&UW54&CHAR(10)&UX54&CHAR(10)&UY54&CHAR(10)&UZ54\n)))))","v":""},{"$f":"\nIF(OA54=0,\"\",\nIF(OH54=0,OD54,\nIF(OO54=0,OD54&CHAR(10)&OK54,\nIF(OV54=0,OD54&CHAR(10)&OK54&CHAR(10)&OR54,\nIF(PC54=0,OD54&CHAR(10)&OK54&CHAR(10)&OR54&CHAR(10)&OY54,\nOD54&CHAR(10)&OK54&CHAR(10)&OR54&CHAR(10)&OY54&CHAR(10)&PF54\n)))))","v":""},{"$f":"\nIF(OA54=0,\"\",\nIF(OH54=0,OE54,\nIF(OO54=0,OE54&CHAR(10)&OL54,\nIF(OV54=0,OE54&CHAR(10)&OL54&CHAR(10)&OS54,\nIF(PC54=0,OE54&CHAR(10)&OL54&CHAR(10)&OS54&CHAR(10)&OZ54,\nOE54&CHAR(10)&OL54&CHAR(10)&OS54&CHAR(10)&OZ54&CHAR(10)&PG54\n)))))","v":""},{"$f":"IF(LEN(OD54)=1,\"0\"&OD54,OD54)&\".\"&OE54","v":"00.0"},{"$f":"IF(LEN(OK54)=1,\"0\"&OK54,OK54)&\".\"&OL54","v":"00.0"},{"$f":"IF(LEN(OR54)=1,\"0\"&OR54,OR54)&\".\"&OS54","v":"00.0"},{"$f":"IF(LEN(OY54)=1,\"0\"&OY54,OY54)&\".\"&OZ54","v":"00.0"},{"$f":"IF(LEN(PF54)=1,\"0\"&PF54,PF54)&\".\"&PG54","v":"00.0"},null,{"$f":"\nIF(PJ54=0,\"\",\nIF(PP54=0,PI54,\nIF(PV54=0,PI54&CHAR(10)&PO54,\nIF(QB54=0,PI54&CHAR(10)&PO54&CHAR(10)&PU54,\nPI54&CHAR(10)&PO54&CHAR(10)&PU54&CHAR(10)&QA54))))","v":""},{"$f":"\nIF(PJ54=0,\"\",\nIF(PP54=0,PJ54,\nIF(PV54=0,PJ54&CHAR(10)&PP54,\nIF(QB54=0,PJ54&CHAR(10)&PP54&CHAR(10)&PV54,\nPJ54&CHAR(10)&PP54&CHAR(10)&PV54&CHAR(10)&QB54))))","v":""},{"$f":"\nIF(PJ54=0,\"\",\nIF(PP54=0,PK54,\nIF(PV54=0,PK54&CHAR(10)&PQ54,\nIF(QB54=0,PK54&CHAR(10)&PQ54&CHAR(10)&PW54,\nPK54&CHAR(10)&PQ54&CHAR(10)&PW54&CHAR(10)&QC54))))","v":""},{"$f":"\nIF(PJ54=0,\"\",\nIF(PP54=0,VH54,\nIF(PV54=0,VH54&CHAR(10)&VI54,\nIF(QB54=0,VH54&CHAR(10)&VI54&CHAR(10)&VJ54,\nVH54&CHAR(10)&VI54&CHAR(10)&VJ54&CHAR(10)&VK54))))","v":""},{"$f":"\nIF(PJ54=0,\"\",\nIF(PP54=0,PM54,\nIF(PV54=0,PM54&CHAR(10)&PS54,\nIF(QB54=0,PM54&CHAR(10)&PS54&CHAR(10)&PY54,\nPM54&CHAR(10)&PS54&CHAR(10)&PY54&CHAR(10)&QE54))))","v":""},{"$f":"\nIF(PJ54=0,\"\",\nIF(PP54=0,PN54,\nIF(PV54=0,PN54&CHAR(10)&PT54,\nIF(QB54=0,PN54&CHAR(10)&PT54&CHAR(10)&PZ54,\nPN54&CHAR(10)&PT54&CHAR(10)&PZ54&CHAR(10)&QF54))))","v":""},{"$f":"IF(LEN(PM54)=1,\"0\"&PM54,PM54)&\".\"&PN54","v":"00.0"},{"$f":"IF(LEN(PS54)=1,\"0\"&PS54,PS54)&\".\"&PT54","v":"00.0"},{"$f":"IF(LEN(PY54)=1,\"0\"&PY54,PY54)&\".\"&PZ54","v":"00.0"},{"$f":"IF(LEN(QE54)=1,\"0\"&QE54,QE54)&\".\"&QF54","v":"00.0"},{"$f":"IF(LEN(QE54)=1,\"0\"&QE54,QE54)&\".\"&QF54","v":"00.0"},"yyyEND"]
[null,null,null,null,null,null,null,null,null,null,null,null,null,null,null,null,null,null,null,null,null,null,null,null,null,null,null,null,null,null,null,null,null,1,2,3,4,5,6,7,8,9,10,11,12,13,14,15,16,17,18,19,20,21,22,23,24,25,26,27,28,29,30,31,32,33,34,35,36,37,38,39,40,41,42,43,44,45,46,47,48,49,50,51,52,53,54,55,56,57,58,59,60,61,62,63,64,65,66,67,68,69,70,71,72,73,74,75,76,77,78,79,80,81,82,83,84,85,86,87,88,89,90,91,92,93,94,95,96,97,98,99,100,101,102,103,104,105,106,107,108,109,110,111,112,113,114,115,116,117,118,119,120,121,122,123,124,125,126,127,128,129,130,131,132,133,134,135,136,137,138,139,140,141,142,143,144,145,146,147,148,149,150,151,152,153,154,155,156,157,158,159,160,161,162,163,164,165,166,167,168,169,170,171,172,173,174,175,176,177,178,179,180,181,182,183,184,185,186,187,188,189,190,191,192,193,194,195,196,197,198,199,200,201,202,203,204,205,206,207,208,209,210,211,212,213,214,215,216,217,218,219,220,221,222,223,224,225,226,227,228,229,230,231,232,233,234,235,236,237,238,239,240,241,242,243,244,245,246,247,248,249,250,251,252,253,254,255,256,257,258,259,260,261,262,263,264,265,266,267,268,269,270,271,272,273,274,275,276,277,278,279,280,281,282,283,284,285,286,287,288,289,290,291,292,293,294,295,296,297,298,299,300,301,302,303,304,305,306,307,308,309,310,311,312,313,314,315,316,317,318,319,320,321,322,323,324,325,326,327,328,329,330,331,332,333,334,335,336,337,338,339,340,341,342,343,344,345,346,347,348,349,350,351,352,353,354,355,356,357,358,359,360,361,362,363,364,365,366,367,368,369,370,371,372,373,374,375,376,377,378,379,380,381,382,383,384,385,386,387,388,389,390,391,392,393,394,395,396,397,398,399,400,401,402,403,404,405,406,407,408,409,410,411,412,413,414,415,416,417,418,419,420,421,422,423,424,425,426,427,428,429,430,431,432,433,434,435,436,437,438,439,440,441,442,443,444,445,446,447,448,449,450,451,452,453,454,455,456,457,458,459,460,461,462,463,464,465,466,467,468,469,470,471,472,473,474,475,476,477,478,479,480,481,482,483,484,485,486,487,488,489,490,491,492,493,494,495,496,497,498,499,500,501,502,503,504,505,506,507,508,509,510,511,512,513,514,515,516,517,518,519,520,521,522,523,524,525,526,527,528,529,530,531,532,533,534,535,536,537,538,539,540,541,542,543,544,545,546,547,548,549,550,551,"yyyEND"]
[]
[null,null,null,null,null,null,null,null,null,null,null,null,null,null,null,null,null,null,null,null,null,null,null,null,null,null,null,null,null,null,null,null,null,"x"]
[]
[]
[null,null,null,null,null,null,null,null,null,null,null,null,null,null,null,null,null,null,null,null,null,null,null,null,null,null,null,null,null,null,null,null,null,"Ikthtisas (Professional)"]
[]
[null,"BORANG PERMOHONAN BIASISWA KE LUAR NEGERI\nSCHOLARSHIP APPLICATION FORM (ABROAD / OVERSEAS)",null,null,null,null,null,null,null,null,null,null,null,null,null,null,null,null,null,null,null,null,null,null,null,null,null,null,null,22]
[null,null,null,null,null,null,null,null,null,null,null,null,null,null,null,null,null,null,null,null,null,null,null,null,null,null,null,null,null,8]
[null,null,null,null,null,null,null,null,null,null,null,null,null,null,"SESI / SESSION","2024 / 2025",null,null,null,null,null,null,null,null,null,null,null,null,null,12]
[null,null,null,null,null,null,null,null,null,null,null,null,null,null,null,null,null,null,null,null,null,null,null,null,null,null,null,null,null,8]
[null,"1.  KURSUS YANG DIPOHON / COURSE APPLIED",null,null,null,null,null,null,null,null,null,null,null,null,null,null,null,null,null,null,null,null,null,null,null,null,null,null,null,16,null,null,null,null,null,null,"Sarjana Master","Ikthtisas",null,null,null,null,null,null,null,null,null,"Sarjana (Master)"]
[null,"TAHAP / LEVEL",null,null,null,null,null,null,null,null,null,null,null,null,null,null,null,null,null,null,null,null,null,null,null,null,null,null,null,16,null,null,null,null,1,"MSc Genetic and Genomic Counselling",{"$f":"IF(LEN(AI67)=1,\" \"&AI67&\") \",AI67&\") \")&AJ67","v":" 1) MSc Genetic and Genomic Counselling"},"Association of Chartered Certified Accountants (ACCA)"]
[null,"KURSUS MENGIKUT SENARAI / COURSE ACCORDING TO THE LIST",null,null,null,null,null,null,null,null,null,null,null,null,null,null,null,null,null,null,null,null,null,null,null,null,null,null,null,30,null,null,null,null,2,"MSc Embryology",{"$f":"IF(LEN(AI68)=1,\" \"&AI68&\") \",AI68&\") \")&AJ68","v":" 2) MSc Embryology"},"Institute of Chartered Accountants in England and Wales (ICAEW)"]
[null,"NAMA KURSUS / COURSE TITLE",null,null,null,null,null,null,null,null,null,null,null,null,null,null,null,null,null,null,null,null,null,null,null,null,null,null,null,16,null,null,null,null,3,"MSc Immunology and Immunogenetics"," 3) MSc Immunology and Immunogenetics","Bar Practice Teaching Course (BPTC)/ Graduate Diploma in Legal Practice / Barrister-At-Law of England or Northern Ireland / Bar Vocational / Legal Practice (LPC)"]
[null,"TEMPAT PENGAJIAN / PLACE OF STUDY",null,null,null,null,null,null,null,null,null,null,null,null,null,null,null,null,null,null,null,null,null,null,null,null,null,null,null,16,null,null,null,null,4,"MSc Applied Bioinformatics and Genomics"," 4) MSc Applied Bioinformatics and Genomics"]
[null,"NEGARA / COUNTRY",null,null,null,null,null,null,null,null,null,null,null,null,null,null,null,null,"TEMPOH PENGAJIAN / DURATION OF STUDY",null,null,null,null,null,null,null,null,null,null,16,null,null,null,null,5,"MSc Transfusion, Transplantation and Tissue Banking"," 5) MSc Transfusion, Transplantation and Tissue Banking"]
[null,"TARIKH MULA PENGAJIAN / COURSE START",null,null,null,null,null,null,null,"-",null,"-",null,null,"TARIKH BERAKHIR PENGAJIAN / COURSE END",null,null,null,null,null,null,null,null,"-",null,"-",null,null,null,16,null,null,null,null,6,"MSc Pathology"," 6) MSc Pathology"]
[null,null,null,null,null,null,null,null,null,null,null,null,null,null,null,null,null,null,null,null,null,null,null,null,null,null,null,null,null,1,null,null,null,null,7,"MA Arts & Cultural Management / MA Cultural Heritage Management / MA Management in the Creative and Cultural Industries / MA Cultural and Creative Industries"," 7) MA Arts & Cultural Management / MA Cultural Heritage Management / MA Management in the Creative and Cultural Industries / MA Cultural and Creative Industries"]
[null,"2.  MAKLUMAT PERIBADI / PERSONAL INFORMATION",null,null,null,null,null,null,null,null,null,null,null,null,null,null,null,null,null,null,null,null,null,null,null,null,null,null,null,16,null,null,null,null,8,"Master of Translating and Interpreting"," 8) Master of Translating and Interpreting"]
[null,"NAMA PEMOHON / APPLICANT'S NAME\n[Mengikut Kad Pintar]",null,null,null,null,null,null,null,null,null,null,null,null,null,null,null,null,null,null,null,null,null,null,null,null,null,null,null,36,null,null,null,null,9,"Master of Science in Information and Library Studies"," 9) Master of Science in Information and Library Studies"]
[null,"NOMBOR KAD PINTAR / SMART CARD NUMBER",null,null,null,null,null,null,null,null,null,null,null,null,null,null,null,null,"WARNA / COLOUR",null,null,null,null,null,null,null,null,null,null,16,null,null,null,null,10,"MSc Information Management (Archives and Records Management)","10) MSc Information Management (Archives and Records Management)"]
[null,"TARIKH LAHIR / DATE OF BIRTH",null,null,null,"Hari  / Day",null,null,null,"Bulan / Month",null,null,null,"Tahun / \nYear",null,null,null,"UMUR PADA 1 SEPTEMBER 2024/ AGE AT 1ST SEPT 2024",null,null,null,null,null,null,null,null,null,null,null,16,null,null,null,null,11,"Master in Occupational Safety, Health and Management / Health, Safety and Environment Management","11) Master in Occupational Safety, Health and Management / Health, Safety and Environment Management"]
[null,null,null,null,null,null,null,null,null,null,null,null,null,null,null,null,null,null,null,null,null,null,null,null,null,null,null,null,null,2,null,null,null,null,12,"Master of Science in Information Security","12) Master of Science in Information Security"]
[null,"ALAMAT TEMPAT TINGGAL / CURRENT HOME ADDRESS",null,null,null,null,null,null,null,null,"ALAMAT SURAT MENYURAT/ MAILING ADDRESS",null,null,null,null,null,null,null,null,"TELEPON / TELEPHONE",null,null,null,null,null,null,null,null,null,16,null,null,null,null,13,"MSc Geospatial and Mapping Sciences / MSc Land and Hydrographic Surveying / MSc Applied Geographical Information Systems and Remote Sensing / MSc Applied Geographical Information Systems ","13) MSc Geospatial and Mapping Sciences / MSc Land and Hydrographic Surveying / MSc Applied Geographical Information Systems and Remote Sensing / MSc Applied Geographical Information Systems "]
[null,null,null,null,null,null,null,null,null,null,{"$f":"TRIM(CLEAN(B80))","v":""},null,null,null,null,null,null,null,null,"Rumah (Home)",null,null,null,null,null,null,null,null,null,16,null,null,null,null,14,"MSc Geospatial Sciences","14) MSc Geospatial Sciences"]
[null,null,null,null,null,null,null,null,null,null,null,null,null,null,null,null,null,null,null,"Bimbit (Mobile)",null,null,null,null,null,null,null,null,null,16,null,null,null,null,15,"Master of Environmental Law",{"$f":"IF(LEN(AI80)=1,\" \"&AI80&\") \",AI80&\") \")&AJ81","v":"14) Master of Environmental Law"}]
[null,"POSKOD / POSTCODE",null,null,null,null,null,null,null,null,"POSKOD / POSTCODE",null,null,{"$f":"TRIM(CLEAN(E82))","v":""},null,null,null,null,null,"Emel (Email)",null,null,null,null,null,null,null,null,null,16,null,null,null,null,16,"Course / Programme not listed (Top 20 World University)",{"$f":"IF(LEN(AI81)=1,\" \"&AI81&\") \",AI81&\") \")&AJ82","v":"15) Course / Programme not listed (Top 20 World University)"}]
[null,null,null,null,null,null,null,null,null,null,null,null,null,null,null,null,null,null,null,null,null,null,null,null,null,null,null,null,null,2,null,null,null,null,17]
[null,"BANGSA / RACE\n[Seperti dalam Kad Pintar]",null,null,null,null,null,null,null,null,null,null,"JANTINA / GENDER",null,null,null,null,null,"UGAMA / RELIGION",null,null,null,null,null,null,null,null,null,null,16]
[null,"NAMA PEMOHON /APPLICANT'S NAME [Mengikut Pasport]",null,null,null,null,null,null,null,null,null,null,null,null,null,null,null,null,null,null,null,null,null,null,null,null,null,null,null,16]
[null,"NOMBOR PASPORT / PASSPORT NUMBER",null,null,null,null,null,null,null,null,null,null,null,null,null,null,null,"TARIKH MANSUH / EXPIRY DATE",null,null,null,null,null,"-",null,"-",null,null,null,16]
[null,null,null,null,null,null,null,null,null,null,null,null,null,null,null,null,null,null,null,null,null,null,null,null,null,null,null,null,null,2]
[null,"ORANG YANG MUDAH DIHUBUNGI  / NAME OF CONTACT PERSON (NEXT OF KIN)",null,null,null,null,null,null,null,null,null,null,null,null,null,null,null,null,null,null,null,null,null,null,null,null,null,null,null,16]
[null,"NAMA / NAME",null,null,null,null,null,null,null,null,null,null,null,null,null,null,null,null,null,null,null,null,null,null,null,null,null,null,null,16]
[null,"HUBUNGAN DENGAN PEMOHON  / RELATIONSHIP WITH APPLICANT",null,null,null,null,null,null,null,null,null,null,null,null,null,null,null,null,null,null,null,null,null,null,null,null,null,null,null,16]
[null,"ALAMAT TEMPAT TINGGAL / CURRENT HOME ADDRESS",null,null,null,null,null,null,null,null,"ALAMAT SURAT MENYURAT/ MAILING ADDRESS",null,null,null,null,null,null,null,null,"TELEPON / TELEPHONE",null,null,null,null,null,null,null,null,null,16]
[null,null,null,null,null,null,null,null,null,null,null,null,null,null,null,null,null,null,null,"Rumah (Home)",null,null,null,null,null,null,null,null,null,16]
[null,null,null,null,null,null,null,null,null,null,null,null,null,null,null,null,null,null,null,"Pejabat (Office)",null,null,null,null,null,null,null,null,null,16]
[null,null,null,null,null,null,null,null,null,null,null,null,null,null,null,null,null,null,null,"Bimbit (Mobile)",null,null,null,null,null,null,null,null,null,16]
[null,"POSKOD / POSTCODE",null,null,null,null,null,null,null,null,"POSKOD / POSTCODE",null,null,null,null,null,null,null,null,"Emel (Email)",null,null,null,null,null,null,null,null,null,16]
[null,null,null,null,null,null,null,null,null,null,null,null,null,null,null,null,null,null,null,null,null,null,null,null,null,null,null,null,null,3]
[null,"NAMA-NAMA INSTITUSI TEMPAT BELAJAR DALAM DAN LUAR NEGERI MULAI PERINGKAT MENENGAH  / DETAILS OF SCHOOL ATTENDED (LOCALLY AND ABROAD) FROM SECONDARY LEVEL",null,null,null,null,null,null,null,null,null,null,null,null,null,null,null,null,null,null,null,null,null,null,null,null,null,null,null,16]
[null,"BIL","NAMA INSTITUSI / NAME OF INSTITUTION",null,null,null,null,null,null,null,null,"PERINGKAT PENGAJIAN / LEVEL OF STUDY",null,null,null,null,"NAMA INSTITUSI / NAME OF INSTITUTION",null,null,null,null,null,null,null,null,null,null,null,null,12]
[null,null,null,null,null,null,null,null,null,null,null,null,null,null,null,null,"DARI / FROM",null,null,null,null,null,"HINGGA / TO",null,null,null,null,null,null,12]
[null,1,null,null,null,null,null,null,null,null,null,null,null,null,null,null,null,"-",null,"-",null,null,null,"-",null,"-",null,null,null,16]
[null,2,null,null,null,null,null,null,null,null,null,null,null,null,null,null,null,"-",null,"-",null,null,null,"-",null,"-",null,null,null,16]
[null,3,null,null,null,null,null,null,null,null,null,null,null,null,null,null,null,"-",null,"-",null,null,null,"-",null,"-",null,null,null,16]
[null,4,null,null,null,null,null,null,null,null,null,null,null,null,null,null,null,"-",null,"-",null,null,null,"-",null,"-",null,null,null,16]
[null,5,null,null,null,null,null,null,null,null,null,null,null,null,null,null,null,"-",null,"-",null,null,null,"-",null,"-",null,null,null,16]
[null,6,null,null,null,null,null,null,null,null,null,null,null,null,null,null,null,"-",null,"-",null,null,null,"-",null,"-",null,null,null,16]
[null,null,null,null,null,null,null,null,null,null,null,null,null,null,null,null,null,null,null,null,null,null,null,null,null,null,null,null,null,3]
[null,"JIKA MENUNTUT DI LUAR NEGERI, SILA NYATAKAN TARIKH DIJANGKA BERADA DI TANAH AIR \n / IF YOU ARE STUDYING ABROAD, PLEASE STATE YOUR DATE OF RETURN TO BRUNEI",null,null,null,null,null,null,null,null,null,null,null,null,null,null,null,null,null,null,null,null,null,null,null,null,null,null,null,16]
[null,"DARI / FROM",null,null,null,null,null,null,"/",null,null,"/",null,null,"HINGGA / TO",null,null,null,null,null,null,"/",null,null,"/",null,null,null,null,16]
[null,null,null,null,null,null,null,null,null,null,null,null,null,null,null,null,null,null,null,null,null,null,null,null,null,null,null,null,null,3]
[null,"NYATAKAN BIASISWA-BIASISWA YANG PERNAH DIPOHONKAN DALAM DAN LUAR NEGERI DALAM TEMPOH 3 TAHUN KEBELAKANGAN / PLEASE INDICATE YOUR PREVIOUS APPLICATION FOR SCHOLARSHIP (OVERSEAS OR LOCALLY) FOR THE PAST 3 YEARS (IF ANY)",null,null,null,null,null,null,null,null,null,null,null,null,null,null,null,null,null,null,null,null,null,null,null,null,null,null,null,18]
[null,"TAHUN\nYEAR",null,"JENIS BIASISWA \nTYPE OF SCHOLARSHIP \n(YAYASAN, MINDEF & LAIN-LAIN)",null,null,null,null,null,null,null,"KURSUS\n/ COURSE",null,null,null,null,null,"TEMPAT PENGAJIAN \n/ PLACE OF STUDY",null,null,null,null,"KEPUTUSAN PERMOHONAN \n/ RESULTS OF APPLICATION",null,null,null,null,null,null,26]
[null,null,null,null,null,null,null,null,null,null,null,null,null,null,null,null,null,null,null,null,null,null,null,null,null,null,null,null,null,16]
[null,null,null,null,null,null,null,null,null,null,null,null,null,null,null,null,null,null,null,null,null,null,null,null,null,null,null,null,null,16]
[null,null,null,null,null,null,null,null,null,null,null,null,null,null,null,null,null,null,null,null,null,null,null,null,null,null,null,null,null,16]
[null,null,null,null,null,null,null,null,null,null,null,null,null,null,null,null,null,null,null,null,null,null,null,null,null,null,null,null,null,16]
[null,null,null,null,null,null,null,null,null,null,null,null,null,null,null,null,null,null,null,null,null,null,null,null,null,null,null,null,null,3]
[null,"SILA  NYATAKAN KURSUS YANG DIPOHON JIKA MEMOHON KE INSTITUSI PENGAJIAN DI DALAM NEGERI PADA TAHUN INI\nPLEASE STATE THE COURSE NAME IF YOU ARE APPLYING TO A LOCAL INSITUTION THIS YEAR",null,null,null,null,null,null,null,null,null,null,null,null,null,null,null,null,null,null,null,null,null,null,null,null,null,null,null,24]
[null,"NAMA INSTITUSI / NAME OF INSTUTION",null,null,null,null,null,null,null,null,null,null,"KURSUS / COURSE",null,null,null,null,null,null,null,null,null,null,null,null,null,null,null,null,16]
[null,null,null,null,null,null,null,null,null,null,null,null,null,null,null,null,null,null,null,null,null,null,null,null,null,null,null,null,null,16]
[null,null,null,null,null,null,null,null,null,null,null,null,null,null,null,null,null,null,null,null,null,null,null,null,null,null,null,null,null,16]
[null,null,null,null,null,null,null,null,null,null,null,null,null,null,null,null,null,null,null,null,null,null,null,null,null,null,null,null,null,16]
[null,null,null,null,null,null,null,null,null,null,null,null,null,null,null,null,null,null,null,null,null,null,null,null,null,null,null,null,null,16]
[null,null,null,null,null,null,null,null,null,null,null,null,null,null,null,null,null,null,null,null,null,null,null,null,null,null,null,null,null,3]
[null,"3. PENCAPAIAN AKADEMIK / ACADEMIC QUALIFICATION",null,null,null,null,null,null,null,null,null,null,null,null,null,null,null,null,null,null,null,null,null,null,null,null,null,null,null,16]
[null,"KEPUTUSAN PEPERIKSAAN SIJIL AM PELAJARAN BRUNEI CAMBRIDGE PERINGKAT BIASA ATAU YANG DIIKTIRAF SEBANDING DENGANNYA / RESULTS OF BRUNEI CAMBRIDGE GENERAL CERTIFICATE OF EDUCATION ORDINARY LEVEL OR IT'S EQUIVALENT",null,null,null,null,null,null,null,null,null,null,null,null,null,null,null,null,null,null,null,null,null,null,null,null,null,null,null,26]
[null,"Bil","Nama Sekolah\n(School Name)",null,null,null,null,null,"Nama Peperiksaan \n(Title of Examination)",null,null,null,null,null,"Matapelajaran \n(Subject)",null,null,null,null,null,null,"Gred \n(Grade)",null,null,"Tarikh Diperolehi \n(Date Obtained)",null,null,null,null,16]
[null,null,null,null,null,null,null,null,null,null,null,null,null,null,null,null,null,null,null,null,null,null,null,null,"Bulan \n(Month)",null,"Tahun \n(Year)",null,null,16]
[null,1,null,null,null,null,null,null,null,null,null,null,null,null,"Bahasa Melayu",null,null,null,null,null,null,null,null,null,null,null,null,null,null,16]
[null,2,null,null,null,null,null,null,null,null,null,null,null,null,"English",null,null,null,null,null,null,null,null,null,null,null,null,null,null,16]
[null,3,null,null,null,null,null,null,null,null,null,null,null,null,null,null,null,null,null,null,null,null,null,null,null,null,null,null,null,16]
[null,4,null,null,null,null,null,null,null,null,null,null,null,null,null,null,null,null,null,null,null,null,null,null,null,null,null,null,null,16]
[null,5,null,null,null,null,null,null,null,null,null,null,null,null,null,null,null,null,null,null,null,null,null,null,null,null,null,null,null,16]
[null,6,null,null,null,null,null,null,null,null,null,null,null,null,null,null,null,null,null,null,null,null,null,null,null,null,null,null,null,16]
[null,7,null,null,null,null,null,null,null,null,null,null,null,null,null,null,null,null,null,null,null,null,null,null,null,null,null,null,null,16]
[null,8,null,null,null,null,null,null,null,null,null,null,null,null,null,null,null,null,null,null,null,null,null,null,null,null,null,null,null,16]
[null,9,null,null,null,null,null,null,null,null,null,null,null,null,null,null,null,null,null,null,null,null,null,null,null,null,null,null,null,16]
[null,10,null,null,null,null,null,null,null,null,null,null,null,null,null,null,null,null,null,null,null,null,null,null,null,null,null,null,null,16]
[null,11,null,null,null,null,null,null,null,null,null,null,null,null,null,null,null,null,null,null,null,null,null,null,null,null,null,null,null,16]
[null,12,null,null,null,null,null,null,null,null,null,null,null,null,null,null,null,null,null,null,null,null,null,null,null,null,null,null,null,16]
[null,13,null,null,null,null,null,null,null,null,null,null,null,null,null,null,null,null,null,null,null,null,null,null,null,null,null,null,null,16]
[null,14,null,null,null,null,null,null,null,null,null,null,null,null,null,null,null,null,null,null,null,null,null,null,null,null,null,null,null,16]
[null,15,null,null,null,null,null,null,null,null,null,null,null,null,null,null,null,null,null,null,null,null,null,null,null,null,null,null,null,16]
[null,null,null,null,null,null,null,null,null,null,null,null,null,null,null,null,null,null,null,null,null,null,null,null,null,null,null,null,null,5]
[null,"(Sila nyata kelulusan yang terbaik bagi setiap subjek yang diambil)",null,null,null,null,null,null,null,null,null,null,null,null,null,null,null,null,null,null,null,null,null,null,null,null,null,null,null,10]
[null,null,null,null,null,null,null,null,null,null,null,null,null,null,null,null,null,null,null,null,null,null,null,null,null,null,null,null,null,5]
[null,"KEPUTUSAN PEPERIKSAAN KELAYAKAN DAN SIJIL AM PELAJARAN BRUNEI CAMBRIDGE PERINGKAT LANJUTAN ATAU YANG DIIKTIRAF SEBANDING DENGANNYA / QUALIFYING EXAMINATION AND BRUNEI CAMBRIDGE GENERAL CERTIFICATE OF EDUCATION AT ADVANCED LEVEL  OR IT'S EQUIVALENT",null,null,null,null,null,null,null,null,null,null,null,null,null,null,null,null,null,null,null,null,null,null,null,null,null,null,null,28]
[null,"Bil","Nama Sekolah\n(School Name)",null,null,null,null,null,"Nama Peperiksaan \n(Title of Examination)",null,null,null,null,null,"Matapelajaran \n(Subject)",null,null,null,null,null,null,"Gred \n(Grade)",null,null,"Tarikh Diperolehi \n(Date Obtained)",null,null,null,null,16]
[null,null,null,null,null,null,null,null,null,null,null,null,null,null,null,null,null,null,null,null,null,null,null,null,"Bulan \n(Month)",null,"Tahun \n(Year)",null,null,16]
[null,1,null,null,null,null,null,null,null,null,null,null,null,null,null,null,null,null,null,null,null,null,null,null,null,null,null,null,null,16]
[null,2,null,null,null,null,null,null,null,null,null,null,null,null,null,null,null,null,null,null,null,null,null,null,null,null,null,null,null,16]
[null,3,null,null,null,null,null,null,null,null,null,null,null,null,null,null,null,null,null,null,null,null,null,null,null,null,null,null,null,16]
[null,4,null,null,null,null,null,null,null,null,null,null,null,null,null,null,null,null,null,null,null,null,null,null,null,null,null,null,null,16]
[null,5,null,null,null,null,null,null,null,null,null,null,null,null,null,null,null,null,null,null,null,null,null,null,null,null,null,null,null,16]
[null,6,null,null,null,null,null,null,null,null,null,null,null,null,null,null,null,null,null,null,null,null,null,null,null,null,null,null,null,16]
[null,7,null,null,null,null,null,null,null,null,null,null,null,null,null,null,null,null,null,null,null,null,null,null,null,null,null,null,null,16]
[null,8,null,null,null,null,null,null,null,null,null,null,null,null,null,null,null,null,null,null,null,null,null,null,null,null,null,null,null,16]
[null,9,null,null,null,null,null,null,null,null,null,null,null,null,null,null,null,null,null,null,null,null,null,null,null,null,null,null,null,16]
[null,10,null,null,null,null,null,null,null,null,null,null,null,null,null,null,null,null,null,null,null,null,null,null,null,null,null,null,null,16]
[null,null,null,null,null,null,null,null,null,null,null,null,null,null,null,null,null,null,null,null,null,null,null,null,null,null,null,null,null,5]
[null,"International Baccalureate Diploma (IB) :",null,null,null,null,null,null,null,null,null,null,null,null,null,null,null,null,"mata (points)",null,null,null,null,null,null,null,null,null,null,16]
[null,null,null,null,null,null,null,null,null,null,null,null,null,null,null,null,null,null,null,null,null,null,null,null,null,null,null,null,null,5]
[null,"(Sila nyata kelulusan yang terbaik bagi setiap subjek yang diambil)",null,null,null,null,null,null,null,null,null,null,null,null,null,null,null,null,null,null,null,null,null,null,null,null,null,null,null,10]
[null,null,null,null,null,null,null,null,null,null,null,null,null,null,null,null,null,null,null,null,null,null,null,null,null,null,null,null,null,5]
[null,"KEPUTUSAN  SARJANA / SARJANA MUDA / HIGHER NATIONAL DIPLOMA / ADVANCED DIPLOMA / DIPLOMA LEVEL 5 / DIPLOMA  (jika ada)",null,null,null,null,null,null,null,null,null,null,null,null,null,null,null,null,null,null,null,null,null,null,null,null,null,null,null,26]
[null,"Bil","Nama Institusi\n(Name of Institution)",null,null,null,null,null,null,null,null,null,"Sijil / Ijazah Diperolehi\n(Certificate / Degree Obtained)",null,null,null,null,null,null,null,null,"Keputusan\n(Result)",null,null,"Tarikh Diperolehi \n(Date Obtained)",null,null,null,null,16]
[null,null,null,null,null,null,null,null,null,null,null,null,null,null,null,null,null,null,null,null,null,null,null,null,"Bulan \n(Month)",null,"Tahun \n(Year)",null,null,16]
[null,1,null,null,null,null,null,null,null,null,null,null,null,null,null,null,null,null,null,null,null,null,null,null,null,null,null,null,null,16]
[null,2,null,null,null,null,null,null,null,null,null,null,null,null,null,null,null,null,null,null,null,null,null,null,null,null,null,null,null,16]
[null,3,null,null,null,null,null,null,null,null,null,null,null,null,null,null,null,null,null,null,null,null,null,null,null,null,null,null,null,16]
[null,4,null,null,null,null,null,null,null,null,null,null,null,null,null,null,null,null,null,null,null,null,null,null,null,null,null,null,null,16]
[null,5,null,null,null,null,null,null,null,null,null,null,null,null,null,null,null,null,null,null,null,null,null,null,null,null,null,null,null,16]
[null,null,null,null,null,null,null,null,null,null,null,null,null,null,null,null,null,null,null,null,null,null,null,null,null,null,null,null,null,5]
[null,"Lain-Lain Sijil Kelayakan atau Kelulusan (jika ada) / \nOther Certificates or Results  (if applicable)",null,null,null,null,null,null,null,null,null,null,null,null,null,null,null,null,null,null,null,null,null,null,null,null,null,null,null,26]
[null,"Bil","Kelulusan Diperolehi (Certificate Obtained)",null,null,null,null,null,null,null,null,null,null,"Keputusan (Result)",null,null,null,null,null,null,null,null,null,null,"Tarikh Diperolehi (Date Obtained)",null,null,null,null,16]
[null,null,null,null,null,null,null,null,null,null,null,null,null,null,null,null,null,null,null,null,null,null,null,null,"Bulan (Month)",null,"Tahun (Year)",null,null,16]
[null,1,null,null,null,null,null,null,null,null,null,null,null,null,null,null,null,null,null,null,null,null,null,null,null,null,null,null,null,16]
[null,2,null,null,null,null,null,null,null,null,null,null,null,null,null,null,null,null,null,null,null,null,null,null,null,null,null,null,null,16]
[null,3,null,null,null,null,null,null,null,null,null,null,null,null,null,null,null,null,null,null,null,null,null,null,null,null,null,null,null,16]
[null,4,null,null,null,null,null,null,null,null,null,null,null,null,null,null,null,null,null,null,null,null,null,null,null,null,null,null,null,16]
[null,null,null,null,null,null,null,null,null,null,null,null,null,null,null,null,null,null,null,null,null,null,null,null,null,null,null,null,null,2]
[null,null,null,null,null,null,null,null,null,null,null,null,null,null,null,null,null,null,null,null,null,null,null,null,null,null,null,null,null,2]
[null,"4. KETERANGAN IBU BAPA / PENJAGA \nDETAILS OF APPLICANT'S PARENTS / GUARDIAN",null,null,null,null,null,null,null,null,null,null,null,null,null,null,null,null,null,null,null,null,null,null,null,null,null,null,null,28]
[null,null,null,null,null,null,null,"BAPA (FATHER)",null,null,null,null,null,null,"IBU (MOTHER)",null,null,null,null,null,null,"PENJAGA (GUARDIAN)",null,null,null,null,null,null,null,16]
[null,"NAMA / NAME",null,null,null,null,null,null,null,null,null,null,null,null,null,null,null,null,null,null,null,null,null,null,null,null,null,null,null,36]
[null,"Nombor Kad Pintar / SMART CARD NUMBER",null,null,null,null,null,null,null,null,null,null,null,null,null,null,null,null,null,null,null,null,null,null,null,null,null,null,null,16]
[null,"Warna Kad Pintar / COLOUR",null,null,null,null,null,null,null,null,null,null,null,null,null,null,null,null,null,null,null,null,null,null,null,null,null,null,null,16]
[null,"ALAMAT TEMPAT TINGGAL / HOME ADDRESS",null,null,null,null,null,null,null,null,null,null,null,null,null,null,null,null,null,null,null,null,null,null,null,null,null,null,null,36]
[null,"PEKERJAAN / OCCUPATION",null,null,null,null,null,null,null,null,null,null,null,null,null,null,null,null,null,null,null,null,null,null,null,null,null,null,null,16]
[null,"ALAMAT PEJABAT / OFFICE ADDRESS",null,null,null,null,null,null,null,null,null,null,null,null,null,null,null,null,null,null,null,null,null,null,null,null,null,null,null,36]
[null,"NAMA MAJIKAN / NAME OF EMPLOYER",null,null,null,null,null,null,null,null,null,null,null,null,null,null,null,null,null,null,null,null,null,null,null,null,null,null,null,36]
[null,"TELEFON / TELEPHONE",null,null,"Rumah / Home",null,null,null,null,null,null,null,null,null,null,null,null,null,null,null,null,null,null,null,null,null,null,null,null,16]
[null,null,null,null,"Pejabat / Office",null,null,null,null,null,null,null,null,null,null,null,null,null,null,null,null,null,null,null,null,null,null,null,null,16]
[null,null,null,null,"Bimbit / Mobile",null,null,null,null,null,null,null,null,null,null,null,null,null,null,null,null,null,null,null,null,null,null,null,null,16]
[null,null,null,null,"E-mel / E-mail",null,null,null,null,null,null,null,null,null,null,null,null,null,null,null,null,null,null,null,null,null,null,null,null,16]
[null,"Tahun Meninggal (jika berkenaan) / Date of Deceased (if applicable)",null,null,null,null,null,null,null,null,null,null,null,null,null,null,null,null,null,null,null,null,null,null,null,null,null,null,null,16]
[null,"HUBUNGAN PENJAGA DENGAN PEMOHON (Jika penjaga bukan bapa atau ibu permohon)\nGUARDIAN'S RELATION WITH APPLICANT  (If guardian is not the parent)",null,null,null,null,null,null,null,null,null,null,null,null,null,null,null,null,null,null,null,null,null,null,null,null,null,null,null,20]
[null,null,null,null,null,null,null,null,null,null,null,null,null,null,null,null,null,null,null,null,null,null,null,null,null,null,null,null,null,5]
[null,"5. PENGAKUAN  / DECLARATION",null,null,null,null,null,null,null,null,null,null,null,null,null,null,null,null,null,null,null,null,null,null,null,null,null,null,null,16]
[null,"ADAKAH PEMOHON PERNAH DIDAKWA DI MAKHAMAT ATAU DI HUKUM?\nHAVE YOU EVER BEEN CONVICTED IN COURT?",null,null,null,null,null,null,null,null,null,null,null,null,null,null,null,null,null,null,"YA\nYES",null,null,null,"TIDAK\nNO",null,null,null,null,16]
[null,"Sila nyatakan jika berkerkenaan / Please indicate if applicable",null,null,null,null,null,null,null,null,null,null,null,null,null,null,null,null,null,null,null,null,null,null,null,null,null,null,null,26]
[null,null,null,null,null,null,null,null,null,null,null,null,null,null,null,null,null,null,null,null,null,null,null,null,null,null,null,null,null,5]
[null,"Saya mengaku bahawa segala maklumat yang diberikan di atas adalah benar dan saya faham bahawa jika ada keterangan dan salinan Sijil-Sijil dan Surat Akuan yang saya kemukakan tidak betul atau tidak benar, maka Kementerian Pendidikan berhak menolak permohonan ini.\n\nBersama ini juga disertakan salinan Kad Pintar, dan Sijil-Sijil Peperiksaan, dan documen-documen yang relevan.\n\nI declare that all the particulars and information provided in this application are true to my best knowledge and belief, and I am fully aware that the Ministry of Education reserves the right to reject this application if, at any stage, the statement above are incorrect.\n\nAttached with this application are copies of Smart Card, Examination Certificates and other relevent documents.",null,null,null,null,null,null,null,null,null,null,null,null,null,null,null,null,null,null,null,null,null,null,null,null,null,null,null,16]
[null,null,null,null,null,null,null,null,null,null,null,null,null,null,null,null,null,null,null,null,null,null,null,null,null,null,null,null,null,16]
[]
[]
[]
[null,null,null,null,null,null,null,null,null,null,null,null,null,null,null,null,null,null,null,null,null,null,null,null,null,null,null,null,null,16]
[]
[null,null,null,null,null,null,null,null,null,null,null,null,null,null,null,null,null,null,null,null,null,null,null,null,null,null,null,null,null,16]
[null,"Tandatangan Pemohon :\nApplicant's Signature",null,null,null,null,null,null,null,null,null,null,null,null,null,null,null,null,null,null,null,null,null,null,null,null,null,null,null,16]
[null,"Tarikh :\nDate",null,null,null,null,null,null,null,null,null,null,null,null,null,null,null,null,null,null,null,null,null,null,null,null,null,null,null,16]
[null,null,null,null,null,null,null,null,null,null,null,null,null,null,null,null,null,null,null,null,null,null,null,null,null,null,null,null,null,10]
[null,null,null,null,null,null,null,null,null,null,null,null,null,null,null,null,null,null,null,null,null,null,null,null,null,null,null,null,null,5]
[null,null,null,null,null,null,null,null,null,null,null,null,null,null,null,null,null,null,null,null,null,null,null,null,null,null,null,null,null,5]
[null,"UNTUK KEGUNAAN PEJABAT",null,null,null,null,null,null,null,null,null,null,null,null,null,null,null,null,null,null,null,null,null,null,null,null,null,null,null,16]
[null,"SENARAI SEMAK SALINAN (Sila tandakan √):\nSila pastikan semua dokumen dan salinan disertakan sebelum mengembalikan Borang ini ke Jabatan Pengurusan Biasiswa, Kementerian Pendidikan.",null,null,null,null,null,null,null,null,null,null,null,null,null,null,null,null,null,null,null,null,null,null,null,null,null,null,null,16]
[null,null,null,null,null,null,null,null,null,null,null,null,null,null,null,null,null,null,null,null,null,null,null,null,null,null,null,null,null,5]
[null,"No","Perkara",null,null,null,null,null,null,null,null,null,null,null,null,null,null,null,null,null,null,null,"Jumlah Salinan",null,null,null,null,null,null,16]
[null,1,"Borang permohonan [beserta satu gambar berwarna ukuran pasport]\nApplication Form [with one passport size colour photo]",null,null,null,null,null,null,null,null,null,null,null,null,null,null,null,null,null,null,null,1,null,null,null,null,null,null,20]
[null,2,"Salinan Kad Pintar\nCopy of Smart Card",null,null,null,null,null,null,null,null,null,null,null,null,null,null,null,null,null,null,null,1,null,null,null,null,null,null,20]
[null,3,"Borang B [beserta satu gambar berwarna ukuran paspot bagi SETIAP borang]\nBorang B [with one passport size colour photo for EACH form]",null,null,null,null,null,null,null,null,null,null,null,null,null,null,null,null,null,null,null,4,null,null,null,null,null,null,20]
[null,4,"Salinan yang disahkan yang berkaitan dengan permohonan [jika berkenaan]\nCertified Copy related to the application [if applicable]",null,null,null,null,null,null,null,null,null,null,null,null,null,null,null,null,null,null,null,null,null,null,null,null,null,null,20]
[null,null,"a)","Sijil Peringkat ‘O’ / ‘O’ Level Certificate (BGCE / IGCSE)",null,null,null,null,null,null,null,null,null,null,null,null,null,null,null,null,null,null,1,null,null,null,null,null,null,16]
[null,null,"b)","Sijil Peringkat ‘A’ / ‘A’ Level Certificate (BGCE)",null,null,null,null,null,null,null,null,null,null,null,null,null,null,null,null,null,null,1,null,null,null,null,null,null,16]
[null,null,"c)","Sijil International Baccalaureate Diploma [IB] / IB Certificate",null,null,null,null,null,null,null,null,null,null,null,null,null,null,null,null,null,null,1,null,null,null,null,null,null,16]
[null,null,"d)","Sijil Diploma Lanjutan;  Diploma Tertinggi Kebangsaan /\nAdvanced Diploma; Higher National Diploma (HND) Certificate",null,null,null,null,null,null,null,null,null,null,null,null,null,null,null,null,null,null,1,null,null,null,null,null,null,20]
[null,null,"e)","Sijil IELTS / GP / IGCSE (English as a Second Language)\nIELTS / GP / ICGSE (English As A Second Language) Certificate",null,null,null,null,null,null,null,null,null,null,null,null,null,null,null,null,null,null,1,null,null,null,null,null,null,20]
[null,null,"f)","Sijil Ijazah Pertama / Bachelor's Degree Certificate",null,null,null,null,null,null,null,null,null,null,null,null,null,null,null,null,null,null,1,null,null,null,null,null,null,16]
[null,null,"g)","Lain-lain Sijil dan Keputusan / Other Certificates and Results",null,null,null,null,null,null,null,null,null,null,null,null,null,null,null,null,null,null,1,null,null,null,null,null,null,16]
[null,null,null,null,null,null,null,null,null,null,null,null,null,null,null,null,null,null,null,null,null,null,null,null,null,null,null,null,null,20]
[null,null,null,null,null,null,null,null,null,null,null,null,null,null,null,null,null,null,null,null,null,null,null,null,null,null,null,null,null,20]
[null,5,"Surat Tawaran Tempat Kursus / Course Offer Letter",null,null,null,null,null,null,null,null,null,null,null,null,null,null,null,null,null,null,null,1,null,null,null,null,null,null,16]
[null,6,"Isi Kandungan Kursus / Course Contents",null,null,null,null,null,null,null,null,null,null,null,null,null,null,null,null,null,null,null,1,null,null,null,null,null,null,16]
[null,null,null,null,null,null,null,null,null,null,null,null,null,null,null,null,null,null,null,null,null,null,null,null,null,null,null,null,null,16]
[null,null,null,null,null,null,null,null,null,null,null,null,null,null,null,null,null,null,null,null,null,null,null,null,null,null,null,null,null,5]
[null,"DISEMAK OLEH : (Dari pihak MOE)",null,null,null,null,null,null,null,null,null,null,null,null,"TANDATANGAN PENYEMAK",null,null,null,null,null,null,null,null,null,null,null,null,null,null,16]
[null,null,null,null,null,null,null,null,null,null,null,null,null,null,null,null,null,null,null,null,null,null,null,null,null,null,null,null,null,16]
[null,null,null,null,null,null,null,null,null,null,null,null,null,null,null,null,null,null,null,null,null,null,null,null,null,null,null,null,null,16]
[null,null,null,null,null,null,null,null,null,null,null,null,null,null,null,null,null,null,null,null,null,null,null,null,null,null,null,null,null,16]
[null,"Tarikh Disemak",null,null,null,null,null,null,null,null,null,null,null,null,null,null,null,null,null,null,"-",null,null,"-",null,null,null,null,null,16]
[null,null,null,null,null,null,null,null,null,null,null,null,null,null,null,null,null,null,null,null,null,null,null,null,null,null,null,null,null,5]
[null,null,null,null,null,null,null,null,null,null,null,null,null,null,null,null,null,null,null,null,null,null,null,null,null,null,null,null,null,5]
[]
[null,"SALINAN PEMOHON"]
[]
[null,"PENGESAHAN PENERIMAAN BORANG PERMOHONAN"]
[null,"Nama Pemohon",null,null,null,null,null,{"$f":"CLEAN(TRIM(L75))","v":""}]
[]
[null,"Nombor Kad Pintar ",null,null,null,null,null,{"$f":"CLEAN(TRIM(K76))","v":""},null,null,null,null,null,null,null,null,null,null,null,"FOLIO",null,null,null,{"$f":"B53","v":"IJ /2024"},null,null,{"$f":"CLEAN(TRIM(E53))","v":""}]
[]
[null,"Nama Kursus / Institusi yang dipohon",null,null,null,null,null,{"$f":"H69 &CHAR(10)&H70","v":"\n"}]
[]
[]
[]
[]
[null,null,null,null,null,null,null,null,null,null,null,null,null,null,null,null,null,null,null,null,null,null,null,null,null,null,null,null,null,10]
[null,"Ini adalah mengesahkan bahawa pihak MOE telah menerima borang permohonan calon yang tersebut di atas pada :"]
[null,null,null,null,null,null,null,null,null,null,null,null,null,null,null,null,null,null,null,null,null,null,null,null,null,null,null,null,null,10]
[null,"Tarikh borang dikembalikan ke MOE :",null,null,null,null,null,null,null,null,null,null,null,null,"Cop Rasmi Pejabat"]
[]
[]
[null,"Nama Pegawai/ Kakitangan yang menerima borang :"]
[]
[]
[null,null,null,null,null,null,null,null,null,null,null,null,null,null,null,null,null,null,null,null,null,null,null,null,null,null,null,null,null,10]
[null,"No","Perkara",null,null,null,null,null,null,null,null,null,null,null,null,null,null,null,null,null,null,null,"Jumlah Salinan",null,null,null,null,null,null,16]
[null,1,"Borang permohonan [beserta satu gambar berwarna ukuran pasport]\nApplication Form [with one passport size colour photo]",null,null,null,null,null,null,null,null,null,null,null,null,null,null,null,null,null,null,null,1,null,null,null,null,null,null,20]
[null,2,"Salinan Kad Pintar\nCopy of Smart Card",null,null,null,null,null,null,null,null,null,null,null,null,null,null,null,null,null,null,null,1,null,null,null,null,null,null,20]
[null,3,"Borang B [beserta satu gambar berwarna ukuran paspot bagi SETIAP borang]\nBorang B [with one passport size colour photo for EACH form]",null,null,null,null,null,null,null,null,null,null,null,null,null,null,null,null,null,null,null,4,null,null,null,null,null,null,20]
[null,4,"Salinan yang disahkan yang berkaitan dengan permohonan [jika berkenaan]\nCertified Copy related to the application [if applicable]",null,null,null,null,null,null,null,null,null,null,null,null,null,null,null,null,null,null,null,null,null,null,null,null,null,null,20]
[null,null,"a)","Sijil Peringkat ‘O’ / ‘O’ Level Certificate (BGCE / IGCSE)",null,null,null,null,null,null,null,null,null,null,null,null,null,null,null,null,null,null,1,null,null,null,null,null,null,16]
[null,null,"b)","Sijil Peringkat ‘A’ / ‘A’ Level Certificate (BGCE)",null,null,null,null,null,null,null,null,null,null,null,null,null,null,null,null,null,null,1,null,null,null,null,null,null,16]
[null,null,"c)","Sijil International Baccalaureate Diploma [IB] / IB Certificate",null,null,null,null,null,null,null,null,null,null,null,null,null,null,null,null,null,null,1,null,null,null,null,null,null,16]
[null,null,"d)","Sijil Diploma Lanjutan;  Diploma Tertinggi Kebangsaan /\nAdvanced Diploma; Higher National Diploma (HND) Certificate",null,null,null,null,null,null,null,null,null,null,null,null,null,null,null,null,null,null,1,null,null,null,null,null,null,20]
[null,null,"e)","Sijil IELTS / GP / IGCSE (English as a Second Language)\nIELTS / GP / ICGSE (English As A Second Language) Certificate",null,null,null,null,null,null,null,null,null,null,null,null,null,null,null,null,null,null,1,null,null,null,null,null,null,20]
[null,null,"f)","Sijil Ijazah Pertama / Bachelor's Degree Certificate",null,null,null,null,null,null,null,null,null,null,null,null,null,null,null,null,null,null,1,null,null,null,null,null,null,16]
[null,null,"g)","Lain-lain Sijil dan Keputusan / Other Certificates and Results",null,null,null,null,null,null,null,null,null,null,null,null,null,null,null,null,null,null,1]
[null,null,null,null,null,null,null,null,null,null,null,null,null,null,null,null,null,null,null,null,null,null,null,null,null,null,null,null,null,20]
[null,null,null,null,null,null,null,null,null,null,null,null,null,null,null,null,null,null,null,null,null,null,null,null,null,null,null,null,null,20]
[null,null,null,null,null,null,null,null,null,null,null,null,null,null,null,null,null,null,null,null,null,null,null,null,null,null,null,null,null,20]
[null,null,null,null,null,null,null,null,null,null,null,null,null,null,null,null,null,null,null,null,null,null,null,null,null,null,null,null,null,20]
[null,5,"Surat Tawaran Tempat Kursus / Course Offer Letter",null,null,null,null,null,null,null,null,null,null,null,null,null,null,null,null,null,null,null,1,null,null,null,null,null,null,16]
[null,6,"Isi Kandungan Kursus / Course Contents",null,null,null,null,null,null,null,null,null,null,null,null,null,null,null,null,null,null,null,1,null,null,null,null,null,null,16]
[null,null,null,null,null,null,null,null,null,null,null,null,null,null,null,null,null,null,null,null,null,null,null,null,null,null,null,null,null,16]

{"sheet":"Sheet1","index":3,"n_rows":4,"n_cols":5,"rows_kept":4,"cut":false,"hidden":true,"merged":[]}
["Fruits","Vegatable"]
["Mango","Potato",null,"DD1","DD2"]
["Apple","Tomato",null,"Fruits","Apple"]
["Grape","Spinach"]

{"sheet":"Borang B","index":4,"n_rows":146,"n_cols":277,"rows_kept":146,"cut":false,"hidden":false,"merged":[[115,209,115,215],[115,194,115,208],[115,187,115,193],[115,172,115,186],[115,165,115,171],[115,150,115,164],[115,143,115,149],[115,128,115,142],[107,1,107,6],[107,8,107,55],[107,56,108,215],[108,1,108,6],[108,8,108,28],[108,29,108,55],[110,1,110,6],[110,8,110,22],[110,23,110,30],[110,31,110,33],[110,34,110,41],[110,42,110,44],[110,45,110,55],[110,190,110,192],[110,193,110,200],[110,201,110,203],[100,180,106,215],[104,1,105,6],[104,8,105,55],[104,56,105,179],[106,1,106,6],[106,8,106,55],[106,56,106,179],[109,143,109,148],[109,150,109,175],[109,176,109,215],[109,1,109,6],[109,8,109,33],[109,34,109,71],[109,72,109,77],[109,79,109,104],[109,105,109,142],[113,48,113,50],[110,204,110,215],[110,182,110,189],[111,1,111,6],[111,8,111,44],[111,45,111,77],[111,78,111,95],[111,96,111,126],[111,127,111,166],[110,56,110,62],[110,63,110,77],[110,78,110,114],[110,115,110,120],[110,121,110,181],[111,167,111,174],[111,175,111,177],[111,178,111,185],[111,186,111,188],[111,189,111,199],[115,1,115,6],[112,1,112,6],[112,8,112,49],[112,50,112,158],[112,159,112,182],[112,183,112,215],[115,7,115,32],[115,33,115,38],[115,39,115,79],[115,100,115,106],[113,202,113,204],[113,205,113,215],[114,1,114,6],[114,8,114,99],[114,100,114,106],[114,108,114,215],[113,73,113,111],[113,112,113,150],[113,151,113,182],[113,183,113,190],[113,191,113,193],[113,194,113,201],[113,1,113,39],[113,40,113,47],[117,1,117,6],[117,7,117,215],[118,1,119,6],[118,7,119,151],[118,152,118,215],[119,152,119,183],[119,184,119,215],[116,1,116,6],[116,7,116,32],[116,33,116,38],[116,39,116,79],[116,100,116,164],[116,165,116,215],[115,80,115,85],[116,80,116,85],[115,121,115,127],[115,107,115,120],[120,195,120,202],[120,203,120,205],[113,51,113,58],[113,59,113,61],[113,62,113,72],[120,206,120,215],[120,1,120,6],[120,7,120,151],[120,152,120,159],[120,160,120,162],[120,163,120,170],[120,171,120,173],[121,174,121,183],[121,184,121,191],[121,192,121,194],[121,195,121,202],[121,203,121,205],[121,206,121,215],[121,1,121,6],[121,7,121,151],[121,152,121,159],[121,160,121,162],[121,163,121,170],[121,171,121,173],[120,174,120,183],[120,184,120,191],[120,192,120,194],[122,174,122,183],[122,184,122,191],[122,192,122,194],[122,195,122,202],[122,203,122,205],[122,206,122,215],[122,1,122,6],[122,7,122,151],[122,152,122,159],[122,160,122,162],[122,163,122,170],[122,171,122,173],[123,174,123,183],[123,184,123,191],[123,192,123,194],[123,195,123,202],[123,203,123,205],[123,206,123,215],[123,1,123,6],[123,7,123,151],[123,152,123,159],[123,160,123,162],[123,163,123,170],[123,171,123,173],[124,174,124,183],[124,184,124,191],[124,192,124,194],[124,195,124,202],[124,203,124,205],[124,206,124,215],[124,1,124,6],[124,7,124,151],[124,152,124,159],[124,160,124,162],[124,163,124,170],[124,171,124,173],[125,174,125,183],[125,184,125,191],[125,192,125,194],[125,195,125,202],[125,203,125,205],[125,206,125,215],[125,1,125,6],[125,7,125,151],[125,152,125,159],[125,160,125,162],[125,163,125,170],[125,171,125,173],[127,1,127,6],[127,7,127,215],[128,1,129,6],[128,7,129,151],[128,152,128,215],[129,152,129,183],[129,184,129,215],[126,174,126,183],[126,184,126,191],[126,192,126,194],[126,195,126,202],[126,203,126,205],[126,206,126,215],[126,1,126,6],[126,7,126,151],[126,152,126,159],[126,160,126,162],[126,163,126,170],[126,171,126,173],[130,174,130,183],[130,184,130,191],[130,192,130,194],[130,195,130,202],[130,203,130,205],[130,206,130,215],[130,1,130,6],[130,7,130,151],[130,152,130,159],[130,160,130,162],[130,163,130,170],[130,171,130,173],[131,174,131,183],[131,184,131,191],[131,192,131,194],[131,195,131,202],[131,203,131,205],[131,206,131,215],[131,1,131,6],[131,7,131,151],[131,152,131,159],[131,160,131,162],[131,163,131,170],[131,171,131,173],[132,174,132,183],[132,184,132,191],[132,192,132,194],[132,195,132,202],[132,203,132,205],[132,206,132,215],[132,1,132,6],[132,7,132,151],[132,152,132,159],[132,160,132,162],[132,163,132,170],[132,171,132,173],[133,174,133,183],[133,184,133,191],[133,192,133,194],[133,195,133,202],[133,203,133,205],[133,206,133,215],[133,1,133,6],[133,7,133,151],[133,152,133,159],[133,160,133,162],[133,163,133,170],[133,171,133,173],[135,1,135,6],[135,7,135,136],[135,144,135,149],[135,150,135,179],[135,180,135,185],[135,186,135,215],[134,174,134,183],[134,184,134,191],[134,192,134,194],[134,195,134,202],[134,203,134,205],[134,206,134,215],[134,1,134,6],[134,7,134,151],[134,152,134,159],[134,160,134,162],[134,163,134,170],[134,171,134,173],[136,1,136,6],[136,7,136,55],[136,56,136,215],[137,1,137,6],[137,7,137,215],[138,1,138,6],[138,7,138,76],[138,77,138,146],[138,147,138,215],[139,1,139,6],[139,7,139,76],[139,77,139,146],[139,147,139,215],[140,1,140,6],[140,7,140,31],[140,32,140,76],[140,77,140,101],[140,102,140,146],[140,147,140,171],[140,172,140,215],[142,1,142,41],[142,42,142,127],[142,140,142,151],[142,152,142,160],[142,161,142,165],[142,166,142,175],[142,176,142,180],[142,181,142,189],[142,190,142,194]]}
[null,null,null,null,null,null,null,null,null,null,null,null,null,null,null,null,null,null,null,null,null,null,null,null,null,null,null,null,null,null,null,null,null,null,null,null,null,null,null,null,null,null,null,null,null,null,null,null,null,null,null,null,null,null,null,null,null,null,null,null,null,null,null,null,null,null,null,null,null,null,null,null,null,null,null,null,null,null,null,null,null,null,null,null,null,null,null,null,null,null,null,null,null,null,null,null,null,null,null,null,null,null,null,null,null,null,null,null,null,null,null,null,null,null,null,null,null,null,null,null,null,null,null,null,null,null,null,null,null,null,null,null,null,null,null,null,null,null,null,null,null,null,null,null,null,null,null,null,null,null,null,null,null,null,null,null,null,null,null,null,null,null,null,null,null,null,null,null,null,null,null,null,null,null,null,null,null,null,null,null,null,null,null,null,null,null,null,null,null,null,null,null,null,null,null,null,null,null,null,null,null,null,null,null,null,null,null,null,null,null,null,null,null,null,null,null,null,null,null,null,null,"Hari","Bulan","Tahun",2021]
[null,null,null,null,null,null,null,null,null,null,null,null,null,null,null,null,null,null,null,null,null,null,null,null,null,null,null,null,null,null,null,null,null,null,null,null,null,null,null,null,null,null,null,null,null,null,null,null,null,null,null,null,null,null,null,null,null,null,null,null,null,null,null,null,null,null,null,null,null,null,null,null,null,null,null,null,null,null,null,null,null,null,null,null,null,null,null,null,null,null,null,null,null,null,null,null,null,null,null,null,null,null,null,null,null,null,null,null,null,null,null,null,null,null,null,null,null,null,null,null,null,null,null,null,null,null,null,null,null,null,null,null,null,null,null,null,null,null,null,null,null,null,null,null,null,null,null,null,null,null,null,null,null,null,null,null,null,null,null,null,null,null,null,null,null,null,null,null,null,null,null,null,null,null,null,null,null,null,null,null,null,null,null,null,null,null,null,null,null,null,null,null,null,null,null,null,null,null,null,null,null,null,null,null,null,null,null,null,null,null,null,null,null,null,null,null,null,null,null,null,null,1,1,1988,{"$f":"$HQ$1-HP2","v":33}]
[null,null,null,null,null,null,null,null,null,null,null,null,null,null,null,null,null,null,null,null,null,null,null,null,null,null,null,null,null,null,null,null,null,null,null,null,null,null,null,null,null,null,null,null,null,null,null,null,null,null,null,null,null,null,null,null,null,null,null,null,null,null,null,null,null,null,null,null,null,null,null,null,null,null,null,null,null,null,null,null,null,null,null,null,null,null,null,null,null,null,null,null,null,null,null,null,null,null,null,null,null,null,null,null,null,null,null,null,null,null,null,null,null,null,null,null,null,null,null,null,null,null,null,null,null,null,null,null,null,null,null,null,null,null,null,null,null,null,null,null,null,null,null,null,null,null,null,null,null,null,null,null,null,null,null,null,null,null,null,null,null,null,null,null,null,null,null,null,null,null,null,null,null,null,null,null,null,null,null,null,null,null,null,null,null,null,null,null,null,null,null,null,null,null,null,null,null,null,null,null,null,null,null,null,null,null,null,null,null,null,null,null,null,null,null,null,null,null,null,null,null,2,2,1989,{"$f":"$HQ$1-HP3","v":32}]
[null,null,null,null,null,null,null,null,null,null,null,null,null,null,null,null,null,null,null,null,null,null,null,null,null,null,null,null,null,null,null,null,null,null,null,null,null,null,null,null,null,null,null,null,null,null,null,null,null,null,null,null,null,null,null,null,null,null,null,null,null,null,null,null,null,null,null,null,null,null,null,null,null,null,null,null,null,null,null,null,null,null,null,null,null,null,null,null,null,null,null,null,null,null,null,null,null,null,null,null,null,null,null,null,null,null,null,null,null,null,null,null,null,null,null,null,null,null,null,null,null,null,null,null,null,null,null,null,null,null,null,null,null,null,null,null,null,null,null,null,null,null,null,null,null,null,null,null,null,null,null,null,null,null,null,null,null,null,null,null,null,null,null,null,null,null,null,null,null,null,null,null,null,null,null,null,null,null,null,null,null,null,null,null,null,null,null,null,null,null,null,null,null,null,null,null,null,null,null,null,null,null,null,null,null,null,null,null,null,null,null,null,null,null,null,null,null,null,null,null,null,3,3,1990,31]
[null,null,null,null,null,null,null,null,null,null,null,null,null,null,null,null,null,null,null,null,null,null,null,null,null,null,null,null,null,null,null,null,null,null,null,null,null,null,null,null,null,null,null,null,null,null,null,null,null,null,null,null,null,null,null,null,null,null,null,null,null,null,null,null,null,null,null,null,null,null,null,null,null,null,null,null,null,null,null,null,null,null,null,null,null,null,null,null,null,null,null,null,null,null,null,null,null,null,null,null,null,null,null,null,null,null,null,null,null,null,null,null,null,null,null,null,null,null,null,null,null,null,null,null,null,null,null,null,null,null,null,null,null,null,null,null,null,null,null,null,null,null,null,null,null,null,null,null,null,null,null,null,null,null,null,null,null,null,null,null,null,null,null,null,null,null,null,null,null,null,null,null,null,null,null,null,null,null,null,null,null,null,null,null,null,null,null,null,null,null,null,null,null,null,null,null,null,null,null,null,null,null,null,null,null,null,null,null,null,null,null,null,null,null,null,null,null,null,null,null,null,4,4,1991,30]
[null,null,null,null,null,null,null,null,null,null,null,null,null,null,null,null,null,null,null,null,null,null,null,null,null,null,null,null,null,null,null,null,null,null,null,null,null,null,null,null,null,null,null,null,null,null,null,null,null,null,null,null,null,null,null,null,null,null,null,null,null,null,null,null,null,null,null,null,null,null,null,null,null,null,null,null,null,null,null,null,null,null,null,null,null,null,null,null,null,null,null,null,null,null,null,null,null,null,null,null,null,null,null,null,null,null,null,null,null,null,null,null,null,null,null,null,null,null,null,null,null,null,null,null,null,null,null,null,null,null,null,null,null,null,null,null,null,null,null,null,null,null,null,null,null,null,null,null,null,null,null,null,null,null,null,null,null,null,null,null,null,null,null,null,null,null,null,null,null,null,null,null,null,null,null,null,null,null,null,null,null,null,null,null,null,null,null,null,null,null,null,null,null,null,null,null,null,null,null,null,null,null,null,null,null,null,null,null,null,null,null,null,null,null,null,null,null,null,null,null,null,5,5,1992,29]
[null,null,null,null,null,null,null,null,null,null,null,null,null,null,null,null,null,null,null,null,null,null,null,null,null,null,null,null,null,null,null,null,null,null,null,null,null,null,null,null,null,null,null,null,null,null,null,null,null,null,null,null,null,null,null,null,null,null,null,null,null,null,null,null,null,null,null,null,null,null,null,null,null,null,null,null,null,null,null,null,null,null,null,null,null,null,null,null,null,null,null,null,null,null,null,null,null,null,null,null,null,null,null,null,null,null,null,null,null,null,null,null,null,null,null,null,null,null,null,null,null,null,null,null,null,null,null,null,null,null,null,null,null,null,null,null,null,null,null,null,null,null,null,null,null,null,null,null,null,null,null,null,null,null,null,null,null,null,null,null,null,null,null,null,null,null,null,null,null,null,null,null,null,null,null,null,null,null,null,null,null,null,null,null,null,null,null,null,null,null,null,null,null,null,null,null,null,null,null,null,null,null,null,null,null,null,null,null,null,null,null,null,null,null,null,null,null,null,null,null,null,6,6,1993,28]
[null,null,null,null,null,null,null,null,null,null,null,null,null,null,null,null,null,null,null,null,null,null,null,null,null,null,null,null,null,null,null,null,null,null,null,null,null,null,null,null,null,null,null,null,null,null,null,null,null,null,null,null,null,null,null,null,null,null,null,null,null,null,null,null,null,null,null,null,null,null,null,null,null,null,null,null,null,null,null,null,null,null,null,null,null,null,null,null,null,null,null,null,null,null,null,null,null,null,null,null,null,null,null,null,null,null,null,null,null,null,null,null,null,null,null,null,null,null,null,null,null,null,null,null,null,null,null,null,null,null,null,null,null,null,null,null,null,null,null,null,null,null,null,null,null,null,null,null,null,null,null,null,null,null,null,null,null,null,null,null,null,null,null,null,null,null,null,null,null,null,null,null,null,null,null,null,null,null,null,null,null,null,null,null,null,null,null,null,null,null,null,null,null,null,null,null,null,null,null,null,null,null,null,null,null,null,null,null,null,null,null,null,null,null,null,null,null,null,null,null,null,7,7,1994,27]
[null,null,null,null,null,null,null,null,null,null,null,null,null,null,null,null,null,null,null,null,null,null,null,null,null,null,null,null,null,null,null,null,null,null,null,null,null,null,null,null,null,null,null,null,null,null,null,null,null,null,null,null,null,null,null,null,null,null,null,null,null,null,null,null,null,null,null,null,null,null,null,null,null,null,null,null,null,null,null,null,null,null,null,null,null,null,null,null,null,null,null,null,null,null,null,null,null,null,null,null,null,null,null,null,null,null,null,null,null,null,null,null,null,null,null,null,null,null,null,null,null,null,null,null,null,null,null,null,null,null,null,null,null,null,null,null,null,null,null,null,null,null,null,null,null,null,null,null,null,null,null,null,null,null,null,null,null,null,null,null,null,null,null,null,null,null,null,null,null,null,null,null,null,null,null,null,null,null,null,null,null,null,null,null,null,null,null,null,null,null,null,null,null,null,null,null,null,null,null,null,null,null,null,null,null,null,null,null,null,null,null,null,null,null,null,null,null,null,null,null,null,8,8,1995,26]
[null,null,null,null,null,null,null,null,null,null,null,null,null,null,null,null,null,null,null,null,null,null,null,null,null,null,null,null,null,null,null,null,null,null,null,null,null,null,null,null,null,null,null,null,null,null,null,null,null,null,null,null,null,null,null,null,null,null,null,null,null,null,null,null,null,null,null,null,null,null,null,null,null,null,null,null,null,null,null,null,null,null,null,null,null,null,null,null,null,null,null,null,null,null,null,null,null,null,null,null,null,null,null,null,null,null,null,null,null,null,null,null,null,null,null,null,null,null,null,null,null,null,null,null,null,null,null,null,null,null,null,null,null,null,null,null,null,null,null,null,null,null,null,null,null,null,null,null,null,null,null,null,null,null,null,null,null,null,null,null,null,null,null,null,null,null,null,null,null,null,null,null,null,null,null,null,null,null,null,null,null,null,null,null,null,null,null,null,null,null,null,null,null,null,null,null,null,null,null,null,null,null,null,null,null,null,null,null,null,null,null,null,null,null,null,null,null,null,null,null,null,9,9,1996,25]
[null,null,null,null,null,null,null,null,null,null,null,null,null,null,null,null,null,null,null,null,null,null,null,null,null,null,null,null,null,null,null,null,null,null,null,null,null,null,null,null,null,null,null,null,null,null,null,null,null,null,null,null,null,null,null,null,null,null,null,null,null,null,null,null,null,null,null,null,null,null,null,null,null,null,null,null,null,null,null,null,null,null,null,null,null,null,null,null,null,null,null,null,null,null,null,null,null,null,null,null,null,null,null,null,null,null,null,null,null,null,null,null,null,null,null,null,null,null,null,null,null,null,null,null,null,null,null,null,null,null,null,null,null,null,null,null,null,null,null,null,null,null,null,null,null,null,null,null,null,null,null,null,null,null,null,null,null,null,null,null,null,null,null,null,null,null,null,null,null,null,null,null,null,null,null,null,null,null,null,null,null,null,null,null,null,null,null,null,null,null,null,null,null,null,null,null,null,null,null,null,null,null,null,null,null,null,null,null,null,null,null,null,null,null,null,null,null,null,null,null,null,10,10,1997,24]
[null,null,null,null,null,null,null,null,null,null,null,null,null,null,null,null,null,null,null,null,null,null,null,null,null,null,null,null,null,null,null,null,null,null,null,null,null,null,null,null,null,null,null,null,null,null,null,null,null,null,null,null,null,null,null,null,null,null,null,null,null,null,null,null,null,null,null,null,null,null,null,null,null,null,null,null,null,null,null,null,null,null,null,null,null,null,null,null,null,null,null,null,null,null,null,null,null,null,null,null,null,null,null,null,null,null,null,null,null,null,null,null,null,null,null,null,null,null,null,null,null,null,null,null,null,null,null,null,null,null,null,null,null,null,null,null,null,null,null,null,null,null,null,null,null,null,null,null,null,null,null,null,null,null,null,null,null,null,null,null,null,null,null,null,null,null,null,null,null,null,null,null,null,null,null,null,null,null,null,null,null,null,null,null,null,null,null,null,null,null,null,null,null,null,null,null,null,null,null,null,null,null,null,null,null,null,null,null,null,null,null,null,null,null,null,null,null,null,null,null,null,11,11,1998,23]
[null,null,null,null,null,null,null,null,null,null,null,null,null,null,null,null,null,null,null,null,null,null,null,null,null,null,null,null,null,null,null,null,null,null,null,null,null,null,null,null,null,null,null,null,null,null,null,null,null,null,null,null,null,null,null,null,null,null,null,null,null,null,null,null,null,null,null,null,null,null,null,null,null,null,null,null,null,null,null,null,null,null,null,null,null,null,null,null,null,null,null,null,null,null,null,null,null,null,null,null,null,null,null,null,null,null,null,null,null,null,null,null,null,null,null,null,null,null,null,null,null,null,null,null,null,null,null,null,null,null,null,null,null,null,null,null,null,null,null,null,null,null,null,null,null,null,null,null,null,null,null,null,null,null,null,null,null,null,null,null,null,null,null,null,null,null,null,null,null,null,null,null,null,null,null,null,null,null,null,null,null,null,null,null,null,null,null,null,null,null,null,null,null,null,null,null,null,null,null,null,null,null,null,null,null,null,null,null,null,null,null,null,null,null,null,null,null,null,null,null,null,12,12,1999,22]
[null,null,null,null,null,null,null,null,null,null,null,null,null,null,null,null,null,null,null,null,null,null,null,null,null,null,null,null,null,null,null,null,null,null,null,null,null,null,null,null,null,null,null,null,null,null,null,null,null,null,null,null,null,null,null,null,null,null,null,null,null,null,null,null,null,null,null,null,null,null,null,null,null,null,null,null,null,null,null,null,null,null,null,null,null,null,null,null,null,null,null,null,null,null,null,null,null,null,null,null,null,null,null,null,null,null,null,null,null,null,null,null,null,null,null,null,null,null,null,null,null,null,null,null,null,null,null,null,null,null,null,null,null,null,null,null,null,null,null,null,null,null,null,null,null,null,null,null,null,null,null,null,null,null,null,null,null,null,null,null,null,null,null,null,null,null,null,null,null,null,null,null,null,null,null,null,null,null,null,null,null,null,null,null,null,null,null,null,null,null,null,null,null,null,null,null,null,null,null,null,null,null,null,null,null,null,null,null,null,null,null,null,null,null,null,null,null,null,null,null,null,13,null,2000,21]
[null,null,null,null,null,null,null,null,null,null,null,null,null,null,null,null,null,null,null,null,null,null,null,null,null,null,null,null,null,null,null,null,null,null,null,null,null,null,null,null,null,null,null,null,null,null,null,null,null,null,null,null,null,null,null,null,null,null,null,null,null,null,null,null,null,null,null,null,null,null,null,null,null,null,null,null,null,null,null,null,null,null,null,null,null,null,null,null,null,null,null,null,null,null,null,null,null,null,null,null,null,null,null,null,null,null,null,null,null,null,null,null,null,null,null,null,null,null,null,null,null,null,null,null,null,null,null,null,null,null,null,null,null,null,null,null,null,null,null,null,null,null,null,null,null,null,null,null,null,null,null,null,null,null,null,null,null,null,null,null,null,null,null,null,null,null,null,null,null,null,null,null,null,null,null,null,null,null,null,null,null,null,null,null,null,null,null,null,null,null,null,null,null,null,null,null,null,null,null,null,null,null,null,null,null,null,null,null,null,null,null,null,null,null,null,null,null,null,null,null,null,14,null,2001,20]
[null,null,null,null,null,null,null,null,null,null,null,null,null,null,null,null,null,null,null,null,null,null,null,null,null,null,null,null,null,null,null,null,null,null,null,null,null,null,null,null,null,null,null,null,null,null,null,null,null,null,null,null,null,null,null,null,null,null,null,null,null,null,null,null,null,null,null,null,null,null,null,null,null,null,null,null,null,null,null,null,null,null,null,null,null,null,null,null,null,null,null,null,null,null,null,null,null,null,null,null,null,null,null,null,null,null,null,null,null,null,null,null,null,null,null,null,null,null,null,null,null,null,null,null,null,null,null,null,null,null,null,null,null,null,null,null,null,null,null,null,null,null,null,null,null,null,null,null,null,null,null,null,null,null,null,null,null,null,null,null,null,null,null,null,null,null,null,null,null,null,null,null,null,null,null,null,null,null,null,null,null,null,null,null,null,null,null,null,null,null,null,null,null,null,null,null,null,null,null,null,null,null,null,null,null,null,null,null,null,null,null,null,null,null,null,null,null,null,null,null,null,15,null,2002,19]
[null,null,null,null,null,null,null,null,null,null,null,null,null,null,null,null,null,null,null,null,null,null,null,null,null,null,null,null,null,null,null,null,null,null,null,null,null,null,null,null,null,null,null,null,null,null,null,null,null,null,null,null,null,null,null,null,null,null,null,null,null,null,null,null,null,null,null,null,null,null,null,null,null,null,null,null,null,null,null,null,null,null,null,null,null,null,null,null,null,null,null,null,null,null,null,null,null,null,null,null,null,null,null,null,null,null,null,null,null,null,null,null,null,null,null,null,null,null,null,null,null,null,null,null,null,null,null,null,null,null,null,null,null,null,null,null,null,null,null,null,null,null,null,null,null,null,null,null,null,null,null,null,null,null,null,null,null,null,null,null,null,null,null,null,null,null,null,null,null,null,null,null,null,null,null,null,null,null,null,null,null,null,null,null,null,null,null,null,null,null,null,null,null,null,null,null,null,null,null,null,null,null,null,null,null,null,null,null,null,null,null,null,null,null,null,null,null,null,null,null,null,16,null,2003,18]
[null,null,null,null,null,null,null,null,null,null,null,null,null,null,null,null,null,null,null,null,null,null,null,null,null,null,null,null,null,null,null,null,null,null,null,null,null,null,null,null,null,null,null,null,null,null,null,null,null,null,null,null,null,null,null,null,null,null,null,null,null,null,null,null,null,null,null,null,null,null,null,null,null,null,null,null,null,null,null,null,null,null,null,null,null,null,null,null,null,null,null,null,null,null,null,null,null,null,null,null,null,null,null,null,null,null,null,null,null,null,null,null,null,null,null,null,null,null,null,null,null,null,null,null,null,null,null,null,null,null,null,null,null,null,null,null,null,null,null,null,null,null,null,null,null,null,null,null,null,null,null,null,null,null,null,null,null,null,null,null,null,null,null,null,null,null,null,null,null,null,null,null,null,null,null,null,null,null,null,null,null,null,null,null,null,null,null,null,null,null,null,null,null,null,null,null,null,null,null,null,null,null,null,null,null,null,null,null,null,null,null,null,null,null,null,null,null,null,null,null,null,17,null,2004,17]
[null,null,null,null,null,null,null,null,null,null,null,null,null,null,null,null,null,null,null,null,null,null,null,null,null,null,null,null,null,null,null,null,null,null,null,null,null,null,null,null,null,null,null,null,null,null,null,null,null,null,null,null,null,null,null,null,null,null,null,null,null,null,null,null,null,null,null,null,null,null,null,null,null,null,null,null,null,null,null,null,null,null,null,null,null,null,null,null,null,null,null,null,null,null,null,null,null,null,null,null,null,null,null,null,null,null,null,null,null,null,null,null,null,null,null,null,null,null,null,null,null,null,null,null,null,null,null,null,null,null,null,null,null,null,null,null,null,null,null,null,null,null,null,null,null,null,null,null,null,null,null,null,null,null,null,null,null,null,null,null,null,null,null,null,null,null,null,null,null,null,null,null,null,null,null,null,null,null,null,null,null,null,null,null,null,null,null,null,null,null,null,null,null,null,null,null,null,null,null,null,null,null,null,null,null,null,null,null,null,null,null,null,null,null,null,null,null,null,null,null,null,18,null,2005,16]
[null,null,null,null,null,null,null,null,null,null,null,null,null,null,null,null,null,null,null,null,null,null,null,null,null,null,null,null,null,null,null,null,null,null,null,null,null,null,null,null,null,null,null,null,null,null,null,null,null,null,null,null,null,null,null,null,null,null,null,null,null,null,null,null,null,null,null,null,null,null,null,null,null,null,null,null,null,null,null,null,null,null,null,null,null,null,null,null,null,null,null,null,null,null,null,null,null,null,null,null,null,null,null,null,null,null,null,null,null,null,null,null,null,null,null,null,null,null,null,null,null,null,null,null,null,null,null,null,null,null,null,null,null,null,null,null,null,null,null,null,null,null,null,null,null,null,null,null,null,null,null,null,null,null,null,null,null,null,null,null,null,null,null,null,null,null,null,null,null,null,null,null,null,null,null,null,null,null,null,null,null,null,null,null,null,null,null,null,null,null,null,null,null,null,null,null,null,null,null,null,null,null,null,null,null,null,null,null,null,null,null,null,null,null,null,null,null,null,null,null,null,19,null,2006,15]
[null,null,null,null,null,null,null,null,null,null,null,null,null,null,null,null,null,null,null,null,null,null,null,null,null,null,null,null,null,null,null,null,null,null,null,null,null,null,null,null,null,null,null,null,null,null,null,null,null,null,null,null,null,null,null,null,null,null,null,null,null,null,null,null,null,null,null,null,null,null,null,null,null,null,null,null,null,null,null,null,null,null,null,null,null,null,null,null,null,null,null,null,null,null,null,null,null,null,null,null,null,null,null,null,null,null,null,null,null,null,null,null,null,null,null,null,null,null,null,null,null,null,null,null,null,null,null,null,null,null,null,null,null,null,null,null,null,null,null,null,null,null,null,null,null,null,null,null,null,null,null,null,null,null,null,null,null,null,null,null,null,null,null,null,null,null,null,null,null,null,null,null,null,null,null,null,null,null,null,null,null,null,null,null,null,null,null,null,null,null,null,null,null,null,null,null,null,null,null,null,null,null,null,null,null,null,null,null,null,null,null,null,null,null,null,null,null,null,null,null,null,20,null,2007,14]
[null,null,null,null,null,null,null,null,null,null,null,null,null,null,null,null,null,null,null,null,null,null,null,null,null,null,null,null,null,null,null,null,null,null,null,null,null,null,null,null,null,null,null,null,null,null,null,null,null,null,null,null,null,null,null,null,null,null,null,null,null,null,null,null,null,null,null,null,null,null,null,null,null,null,null,null,null,null,null,null,null,null,null,null,null,null,null,null,null,null,null,null,null,null,null,null,null,null,null,null,null,null,null,null,null,null,null,null,null,null,null,null,null,null,null,null,null,null,null,null,null,null,null,null,null,null,null,null,null,null,null,null,null,null,null,null,null,null,null,null,null,null,null,null,null,null,null,null,null,null,null,null,null,null,null,null,null,null,null,null,null,null,null,null,null,null,null,null,null,null,null,null,null,null,null,null,null,null,null,null,null,null,null,null,null,null,null,null,null,null,null,null,null,null,null,null,null,null,null,null,null,null,null,null,null,null,null,null,null,null,null,null,null,null,null,null,null,null,null,null,null,21,null,2008,13]
[null,null,null,null,null,null,null,null,null,null,null,null,null,null,null,null,null,null,null,null,null,null,null,null,null,null,null,null,null,null,null,null,null,null,null,null,null,null,null,null,null,null,null,null,null,null,null,null,null,null,null,null,null,null,null,null,null,null,null,null,null,null,null,null,null,null,null,null,null,null,null,null,null,null,null,null,null,null,null,null,null,null,null,null,null,null,null,null,null,null,null,null,null,null,null,null,null,null,null,null,null,null,null,null,null,null,null,null,null,null,null,null,null,null,null,null,null,null,null,null,null,null,null,null,null,null,null,null,null,null,null,null,null,null,null,null,null,null,null,null,null,null,null,null,null,null,null,null,null,null,null,null,null,null,null,null,null,null,null,null,null,null,null,null,null,null,null,null,null,null,null,null,null,null,null,null,null,null,null,null,null,null,null,null,null,null,null,null,null,null,null,null,null,null,null,null,null,null,null,null,null,null,null,null,null,null,null,null,null,null,null,null,null,null,null,null,null,null,null,null,null,22,null,2009,12]
[null,null,null,null,null,null,null,null,null,null,null,null,null,null,null,null,null,null,null,null,null,null,null,null,null,null,null,null,null,null,null,null,null,null,null,null,null,null,null,null,null,null,null,null,null,null,null,null,null,null,null,null,null,null,null,null,null,null,null,null,null,null,null,null,null,null,null,null,null,null,null,null,null,null,null,null,null,null,null,null,null,null,null,null,null,null,null,null,null,null,null,null,null,null,null,null,null,null,null,null,null,null,null,null,null,null,null,null,null,null,null,null,null,null,null,null,null,null,null,null,null,null,null,null,null,null,null,null,null,null,null,null,null,null,null,null,null,null,null,null,null,null,null,null,null,null,null,null,null,null,null,null,null,null,null,null,null,null,null,null,null,null,null,null,null,null,null,null,null,null,null,null,null,null,null,null,null,null,null,null,null,null,null,null,null,null,null,null,null,null,null,null,null,null,null,null,null,null,null,null,null,null,null,null,null,null,null,null,null,null,null,null,null,null,null,null,null,null,null,null,null,23,null,2010,11]
[null,null,null,null,null,null,null,null,null,null,null,null,null,null,null,null,null,null,null,null,null,null,null,null,null,null,null,null,null,null,null,null,null,null,null,null,null,null,null,null,null,null,null,null,null,null,null,null,null,null,null,null,null,null,null,null,null,null,null,null,null,null,null,null,null,null,null,null,null,null,null,null,null,null,null,null,null,null,null,null,null,null,null,null,null,null,null,null,null,null,null,null,null,null,null,null,null,null,null,null,null,null,null,null,null,null,null,null,null,null,null,null,null,null,null,null,null,null,null,null,null,null,null,null,null,null,null,null,null,null,null,null,null,null,null,null,null,null,null,null,null,null,null,null,null,null,null,null,null,null,null,null,null,null,null,null,null,null,null,null,null,null,null,null,null,null,null,null,null,null,null,null,null,null,null,null,null,null,null,null,null,null,null,null,null,null,null,null,null,null,null,null,null,null,null,null,null,null,null,null,null,null,null,null,null,null,null,null,null,null,null,null,null,null,null,null,null,null,null,null,null,24,null,2011,10]
[null,null,null,null,null,null,null,null,null,null,null,null,null,null,null,null,null,null,null,null,null,null,null,null,null,null,null,null,null,null,null,null,null,null,null,null,null,null,null,null,null,null,null,null,null,null,null,null,null,null,null,null,null,null,null,null,null,null,null,null,null,null,null,null,null,null,null,null,null,null,null,null,null,null,null,null,null,null,null,null,null,null,null,null,null,null,null,null,null,null,null,null,null,null,null,null,null,null,null,null,null,null,null,null,null,null,null,null,null,null,null,null,null,null,null,null,null,null,null,null,null,null,null,null,null,null,null,null,null,null,null,null,null,null,null,null,null,null,null,null,null,null,null,null,null,null,null,null,null,null,null,null,null,null,null,null,null,null,null,null,null,null,null,null,null,null,null,null,null,null,null,null,null,null,null,null,null,null,null,null,null,null,null,null,null,null,null,null,null,null,null,null,null,null,null,null,null,null,null,null,null,null,null,null,null,null,null,null,null,null,null,null,null,null,null,null,null,null,null,null,null,25,null,2012,9]
[null,null,null,null,null,null,null,null,null,null,null,null,null,null,null,null,null,null,null,null,null,null,null,null,null,null,null,null,null,null,null,null,null,null,null,null,null,null,null,null,null,null,null,null,null,null,null,null,null,null,null,null,null,null,null,null,null,null,null,null,null,null,null,null,null,null,null,null,null,null,null,null,null,null,null,null,null,null,null,null,null,null,null,null,null,null,null,null,null,null,null,null,null,null,null,null,null,null,null,null,null,null,null,null,null,null,null,null,null,null,null,null,null,null,null,null,null,null,null,null,null,null,null,null,null,null,null,null,null,null,null,null,null,null,null,null,null,null,null,null,null,null,null,null,null,null,null,null,null,null,null,null,null,null,null,null,null,null,null,null,null,null,null,null,null,null,null,null,null,null,null,null,null,null,null,null,null,null,null,null,null,null,null,null,null,null,null,null,null,null,null,null,null,null,null,null,null,null,null,null,null,null,null,null,null,null,null,null,null,null,null,null,null,null,null,null,null,null,null,null,null,26,null,2013,8]
[null,null,null,null,null,null,null,null,null,null,null,null,null,null,null,null,null,null,null,null,null,null,null,null,null,null,null,null,null,null,null,null,null,null,null,null,null,null,null,null,null,null,null,null,null,null,null,null,null,null,null,null,null,null,null,null,null,null,null,null,null,null,null,null,null,null,null,null,null,null,null,null,null,null,null,null,null,null,null,null,null,null,null,null,null,null,null,null,null,null,null,null,null,null,null,null,null,null,null,null,null,null,null,null,null,null,null,null,null,null,null,null,null,null,null,null,null,null,null,null,null,null,null,null,null,null,null,null,null,null,null,null,null,null,null,null,null,null,null,null,null,null,null,null,null,null,null,null,null,null,null,null,null,null,null,null,null,null,null,null,null,null,null,null,null,null,null,null,null,null,null,null,null,null,null,null,null,null,null,null,null,null,null,null,null,null,null,null,null,null,null,null,null,null,null,null,null,null,null,null,null,null,null,null,null,null,null,null,null,null,null,null,null,null,null,null,null,null,null,null,null,27,null,2014,7]
[null,null,null,null,null,null,null,null,null,null,null,null,null,null,null,null,null,null,null,null,null,null,null,null,null,null,null,null,null,null,null,null,null,null,null,null,null,null,null,null,null,null,null,null,null,null,null,null,null,null,null,null,null,null,null,null,null,null,null,null,null,null,null,null,null,null,null,null,null,null,null,null,null,null,null,null,null,null,null,null,null,null,null,null,null,null,null,null,null,null,null,null,null,null,null,null,null,null,null,null,null,null,null,null,null,null,null,null,null,null,null,null,null,null,null,null,null,null,null,null,null,null,null,null,null,null,null,null,null,null,null,null,null,null,null,null,null,null,null,null,null,null,null,null,null,null,null,null,null,null,null,null,null,null,null,null,null,null,null,null,null,null,null,null,null,null,null,null,null,null,null,null,null,null,null,null,null,null,null,null,null,null,null,null,null,null,null,null,null,null,null,null,null,null,null,null,null,null,null,null,null,null,null,null,null,null,null,null,null,null,null,null,null,null,null,null,null,null,null,null,null,28,null,2015,6]
[null,null,null,null,null,null,null,null,null,null,null,null,null,null,null,null,null,null,null,null,null,null,null,null,null,null,null,null,null,null,null,null,null,null,null,null,null,null,null,null,null,null,null,null,null,null,null,null,null,null,null,null,null,null,null,null,null,null,null,null,null,null,null,null,null,null,null,null,null,null,null,null,null,null,null,null,null,null,null,null,null,null,null,null,null,null,null,null,null,null,null,null,null,null,null,null,null,null,null,null,null,null,null,null,null,null,null,null,null,null,null,null,null,null,null,null,null,null,null,null,null,null,null,null,null,null,null,null,null,null,null,null,null,null,null,null,null,null,null,null,null,null,null,null,null,null,null,null,null,null,null,null,null,null,null,null,null,null,null,null,null,null,null,null,null,null,null,null,null,null,null,null,null,null,null,null,null,null,null,null,null,null,null,null,null,null,null,null,null,null,null,null,null,null,null,null,null,null,null,null,null,null,null,null,null,null,null,null,null,null,null,null,null,null,null,null,null,null,null,null,null,29,null,2016,5]
[null,null,null,null,null,null,null,null,null,null,null,null,null,null,null,null,null,null,null,null,null,null,null,null,null,null,null,null,null,null,null,null,null,null,null,null,null,null,null,null,null,null,null,null,null,null,null,null,null,null,null,null,null,null,null,null,null,null,null,null,null,null,null,null,null,null,null,null,null,null,null,null,null,null,null,null,null,null,null,null,null,null,null,null,null,null,null,null,null,null,null,null,null,null,null,null,null,null,null,null,null,null,null,null,null,null,null,null,null,null,null,null,null,null,null,null,null,null,null,null,null,null,null,null,null,null,null,null,null,null,null,null,null,null,null,null,null,null,null,null,null,null,null,null,null,null,null,null,null,null,null,null,null,null,null,null,null,null,null,null,null,null,null,null,null,null,null,null,null,null,null,null,null,null,null,null,null,null,null,null,null,null,null,null,null,null,null,null,null,null,null,null,null,null,null,null,null,null,null,null,null,null,null,null,null,null,null,null,null,null,null,null,null,null,null,null,null,null,null,null,null,30,null,2017,4]
[null,null,null,null,null,null,null,null,null,null,null,null,null,null,null,null,null,null,null,null,null,null,null,null,null,null,null,null,null,null,null,null,null,null,null,null,null,null,null,null,null,null,null,null,null,null,null,null,null,null,null,null,null,null,null,null,null,null,null,null,null,null,null,null,null,null,null,null,null,null,null,null,null,null,null,null,null,null,null,null,null,null,null,null,null,null,null,null,null,null,null,null,null,null,null,null,null,null,null,null,null,null,null,null,null,null,null,null,null,null,null,null,null,null,null,null,null,null,null,null,null,null,null,null,null,null,null,null,null,null,null,null,null,null,null,null,null,null,null,null,null,null,null,null,null,null,null,null,null,null,null,null,null,null,null,null,null,null,null,null,null,null,null,null,null,null,null,null,null,null,null,null,null,null,null,null,null,null,null,null,null,null,null,null,null,null,null,null,null,null,null,null,null,null,null,null,null,null,null,null,null,null,null,null,null,null,null,null,null,null,null,null,null,null,null,null,null,null,null,null,null,31,null,2018,3]
[null,null,null,null,null,null,null,null,null,null,null,null,null,null,null,null,null,null,null,null,null,null,null,null,null,null,null,null,null,null,null,null,null,null,null,null,null,null,null,null,null,null,null,null,null,null,null,null,null,null,null,null,null,null,null,null,null,null,null,null,null,null,null,null,null,null,null,null,null,null,null,null,null,null,null,null,null,null,null,null,null,null,null,null,null,null,null,null,null,null,null,null,null,null,null,null,null,null,null,null,null,null,null,null,null,null,null,null,null,null,null,null,null,null,null,null,null,null,null,null,null,null,null,null,null,null,null,null,null,null,null,null,null,null,null,null,null,null,null,null,null,null,null,null,null,null,null,null,null,null,null,null,null,null,null,null,null,null,null,null,null,null,null,null,null,null,null,null,null,null,null,null,null,null,null,null,null,null,null,null,null,null,null,null,null,null,null,null,null,null,null,null,null,null,null,null,null,null,null,null,null,null,null,null,null,null,null,null,null,null,null,null,null,null,null,null,null,null,null,null,null,null,null,2019,2]
[null,null,null,null,null,null,null,null,null,null,null,null,null,null,null,null,null,null,null,null,null,null,null,null,null,null,null,null,null,null,null,null,null,null,null,null,null,null,null,null,null,null,null,null,null,null,null,null,null,null,null,null,null,null,null,null,null,null,null,null,null,null,null,null,null,null,null,null,null,null,null,null,null,null,null,null,null,null,null,null,null,null,null,null,null,null,null,null,null,null,null,null,null,null,null,null,null,null,null,null,null,null,null,null,null,null,null,null,null,null,null,null,null,null,null,null,null,null,null,null,null,null,null,null,null,null,null,null,null,null,null,null,null,null,null,null,null,null,null,null,null,null,null,null,null,null,null,null,null,null,null,null,null,null,null,null,null,null,null,null,null,null,null,null,null,null,null,null,null,null,null,null,null,null,null,null,null,null,null,null,null,null,null,null,null,null,null,null,null,null,null,null,null,null,null,null,null,null,null,null,null,null,null,null,null,null,null,null,null,null,null,null,null,null,null,null,null,null,null,null,null,null,null,2020,1]
[null,null,null,null,null,null,null,null,null,null,null,null,null,null,null,null,null,null,null,null,null,null,null,null,null,null,null,null,null,null,null,null,null,null,null,null,null,null,null,null,null,null,null,null,null,null,null,null,null,null,null,null,null,null,null,null,null,null,null,null,null,null,null,null,null,null,null,null,null,null,null,null,null,null,null,null,null,null,null,null,null,null,null,null,null,null,null,null,null,null,null,null,null,null,null,null,null,null,null,null,null,null,null,null,null,null,null,null,null,null,null,null,null,null,null,null,null,null,null,null,null,null,null,null,null,null,null,null,null,null,null,null,null,null,null,null,null,null,null,null,null,null,null,null,null,null,null,null,null,null,null,null,null,null,null,null,null,null,null,null,null,null,null,null,null,null,null,null,null,null,null,null,null,null,null,null,null,null,null,null,null,null,null,null,null,null,null,null,null,null,null,null,null,null,null,null,null,null,null,null,null,null,null,null,null,null,null,null,null,null,null,null,null,null,null,null,null,null,null,null,null,null,null,2021,0]
[null,null,null,null,null,null,null,null,null,null,null,null,null,null,null,null,null,null,null,null,null,null,null,null,null,null,null,null,null,null,null,null,null,null,null,null,null,null,null,null,null,null,null,null,null,null,null,null,null,null,null,null,null,null,null,null,null,null,null,null,null,null,null,null,null,null,null,null,null,null,null,null,null,null,null,null,null,null,null,null,null,null,null,null,null,null,null,null,null,null,null,null,null,null,null,null,null,null,null,null,null,null,null,null,null,null,null,null,null,null,null,null,null,null,null,null,null,null,null,null,null,null,null,null,null,null,null,null,null,null,null,null,null,null,null,null,null,null,null,null,null,null,null,null,null,null,null,null,null,null,null,null,null,null,null,null,null,null,null,null,null,null,null,null,null,null,null,null,null,null,null,null,null,null,null,null,null,null,null,null,null,null,null,null,null,null,null,null,null,null,null,null,null,null,null,null,null,null,null,null,null,null,null,null,null,null,null,null,null,null,null,null,null,null,null,null,null,null,null,null,null,null,null,2022,-1]
[null,null,null,null,null,null,null,null,null,null,null,null,null,null,null,null,null,null,null,null,null,null,null,null,null,null,null,null,null,null,null,null,null,null,null,null,null,null,null,null,null,null,null,null,null,null,null,null,null,null,null,null,null,null,null,null,null,null,null,null,null,null,null,null,null,null,null,null,null,null,null,null,null,null,null,null,null,null,null,null,null,null,null,null,null,null,null,null,null,null,null,null,null,null,null,null,null,null,null,null,null,null,null,null,null,null,null,null,null,null,null,null,null,null,null,null,null,null,null,null,null,null,null,null,null,null,null,null,null,null,null,null,null,null,null,null,null,null,null,null,null,null,null,null,null,null,null,null,null,null,null,null,null,null,null,null,null,null,null,null,null,null,null,null,null,null,null,null,null,null,null,null,null,null,null,null,null,null,null,null,null,null,null,null,null,null,null,null,null,null,null,null,null,null,null,null,null,null,null,null,null,null,null,null,null,null,null,null,null,null,null,null,null,null,null,null,null,null,null,null,null,null,null,2023,-2]
[null,null,null,null,null,null,null,null,null,null,null,null,null,null,null,null,null,null,null,null,null,null,null,null,null,null,null,null,null,null,null,null,null,null,null,null,null,null,null,null,null,null,null,null,null,null,null,null,null,null,null,null,null,null,null,null,null,null,null,null,null,null,null,null,null,null,null,null,null,null,null,null,null,null,null,null,null,null,null,null,null,null,null,null,null,null,null,null,null,null,null,null,null,null,null,null,null,null,null,null,null,null,null,null,null,null,null,null,null,null,null,null,null,null,null,null,null,null,null,null,null,null,null,null,null,null,null,null,null,null,null,null,null,null,null,null,null,null,null,null,null,null,null,null,null,null,null,null,null,null,null,null,null,null,null,null,null,null,null,null,null,null,null,null,null,null,null,null,null,null,null,null,null,null,null,null,null,null,null,null,null,null,null,null,null,null,null,null,null,null,null,null,null,null,null,null,null,null,null,null,null,null,null,null,null,null,null,null,null,null,null,null,null,null,null,null,null,null,null,null,null,null,null,2024,-3]
[null,null,null,null,null,null,null,null,null,null,null,null,null,null,null,null,null,null,null,null,null,null,null,null,null,null,null,null,null,null,null,null,null,null,null,null,null,null,null,null,null,null,null,null,null,null,null,null,null,null,null,null,null,null,null,null,null,null,null,null,null,null,null,null,null,null,null,null,null,null,null,null,null,null,null,null,null,null,null,null,null,null,null,null,null,null,null,null,null,null,null,null,null,null,null,null,null,null,null,null,null,null,null,null,null,null,null,null,null,null,null,null,null,null,null,null,null,null,null,null,null,null,null,null,null,null,null,null,null,null,null,null,null,null,null,null,null,null,null,null,null,null,null,null,null,null,null,null,null,null,null,null,null,null,null,null,null,null,null,null,null,null,null,null,null,null,null,null,null,null,null,null,null,null,null,null,null,null,null,null,null,null,null,null,null,null,null,null,null,null,null,null,null,null,null,null,null,null,null,null,null,null,null,null,null,null,null,null,null,null,null,null,null,null,null,null,null,null,null,null,null,null,null,2025,-4]
[null,null,null,null,null,null,null,null,null,null,null,null,null,null,null,null,null,null,null,null,null,null,null,null,null,null,null,null,null,null,null,null,null,null,null,null,null,null,null,null,null,null,null,null,null,null,null,null,null,null,null,null,null,null,null,null,null,null,null,null,null,null,null,null,null,null,null,null,null,null,null,null,null,null,null,null,null,null,null,null,null,null,null,null,null,null,null,null,null,null,null,null,null,null,null,null,null,null,null,null,null,null,null,null,null,null,null,null,null,null,null,null,null,null,null,null,null,null,null,null,null,null,null,null,null,null,null,null,null,null,null,null,null,null,null,null,null,null,null,null,null,null,null,null,null,null,null,null,null,null,null,null,null,null,null,null,null,null,null,null,null,null,null,null,null,null,null,null,null,null,null,null,null,null,null,null,null,null,null,null,null,null,null,null,null,null,null,null,null,null,null,null,null,null,null,null,null,null,null,null,null,null,null,null,null,null,null,null,null,null,null,null,null,null,null,null,null,null,null,null,null,null,null,2026,-5]
[null,null,null,null,null,null,null,null,null,null,null,null,null,null,null,null,null,null,null,null,null,null,null,null,null,null,null,null,null,null,null,null,null,null,null,null,null,null,null,null,null,null,null,null,null,null,null,null,null,null,null,null,null,null,null,null,null,null,null,null,null,null,null,null,null,null,null,null,null,null,null,null,null,null,null,null,null,null,null,null,null,null,null,null,null,null,null,null,null,null,null,null,null,null,null,null,null,null,null,null,null,null,null,null,null,null,null,null,null,null,null,null,null,null,null,null,null,null,null,null,null,null,null,null,null,null,null,null,null,null,null,null,null,null,null,null,null,null,null,null,null,null,null,null,null,null,null,null,null,null,null,null,null,null,null,null,null,null,null,null,null,null,null,null,null,null,null,null,null,null,null,null,null,null,null,null,null,null,null,null,null,null,null,null,null,null,null,null,null,null,null,null,null,null,null,null,null,null,null,null,null,null,null,null,null,null,null,null,null,null,null,null,null,null,null,null,null,null,null,null,null,null,null,2027,-6]
[null,null,null,null,null,null,null,null,null,null,null,null,null,null,null,null,null,null,null,null,null,null,null,null,null,null,null,null,null,null,null,null,null,null,null,null,null,null,null,null,null,null,null,null,null,null,null,null,null,null,null,null,null,null,null,null,null,null,null,null,null,null,null,null,null,null,null,null,null,null,null,null,null,null,null,null,null,null,null,null,null,null,null,null,null,null,null,null,null,null,null,null,null,null,null,null,null,null,null,null,null,null,null,null,null,null,null,null,null,null,null,null,null,null,null,null,null,null,null,null,null,null,null,null,null,null,null,null,null,null,null,null,null,null,null,null,null,null,null,null,null,null,null,null,null,null,null,null,null,null,null,null,null,null,null,null,null,null,null,null,null,null,null,null,null,null,null,null,null,null,null,null,null,null,null,null,null,null,null,null,null,null,null,null,null,null,null,null,null,null,null,null,null,null,null,null,null,null,null,null,null,null,null,null,null,null,null,null,null,null,null,null,null,null,null,null,null,null,null,null,null,null,null,2028,-7]
[null,null,null,null,null,null,null,null,null,null,null,null,null,null,null,null,null,null,null,null,null,null,null,null,null,null,null,null,null,null,null,null,null,null,null,null,null,null,null,null,null,null,null,null,null,null,null,null,null,null,null,null,null,null,null,null,null,null,null,null,null,null,null,null,null,null,null,null,null,null,null,null,null,null,null,null,null,null,null,null,null,null,null,null,null,null,null,null,null,null,null,null,null,null,null,null,null,null,null,null,null,null,null,null,null,null,null,null,null,null,null,null,null,null,null,null,null,null,null,null,null,null,null,null,null,null,null,null,null,null,null,null,null,null,null,null,null,null,null,null,null,null,null,null,null,null,null,null,null,null,null,null,null,null,null,null,null,null,null,null,null,null,null,null,null,null,null,null,null,null,null,null,null,null,null,null,null,null,null,null,null,null,null,null,null,null,null,null,null,null,null,null,null,null,null,null,null,null,null,null,null,null,null,null,null,null,null,null,null,null,null,null,null,null,null,null,null,null,null,null,null,null,null,2029,-8]
[null,null,null,null,null,null,null,null,null,null,null,null,null,null,null,null,null,null,null,null,null,null,null,null,null,null,null,null,null,null,null,null,null,null,null,null,null,null,null,null,null,null,null,null,null,null,null,null,null,null,null,null,null,null,null,null,null,null,null,null,null,null,null,null,null,null,null,null,null,null,null,null,null,null,null,null,null,null,null,null,null,null,null,null,null,null,null,null,null,null,null,null,null,null,null,null,null,null,null,null,null,null,null,null,null,null,null,null,null,null,null,null,null,null,null,null,null,null,null,null,null,null,null,null,null,null,null,null,null,null,null,null,null,null,null,null,null,null,null,null,null,null,null,null,null,null,null,null,null,null,null,null,null,null,null,null,null,null,null,null,null,null,null,null,null,null,null,null,null,null,null,null,null,null,null,null,null,null,null,null,null,null,null,null,null,null,null,null,null,null,null,null,null,null,null,null,null,null,null,null,null,null,null,null,null,null,null,null,null,null,null,null,null,null,null,null,null,null,null,null,null,null,null,2030,-9]
[null,null,null,null,null,null,null,null,null,null,null,null,null,null,null,null,null,null,null,null,null,null,null,null,null,null,null,null,null,null,null,null,null,null,null,null,null,null,null,null,null,null,null,null,null,null,null,null,null,null,null,null,null,null,null,null,null,null,null,null,null,null,null,null,null,null,null,null,null,null,null,null,null,null,null,null,null,null,null,null,null,null,null,null,null,null,null,null,null,null,null,null,null,null,null,null,null,null,null,null,null,null,null,null,null,null,null,null,null,null,null,null,null,null,null,null,null,null,null,null,null,null,null,null,null,null,null,null,null,null,null,null,null,null,null,null,null,null,null,null,null,null,null,null,null,null,null,null,null,null,null,null,null,null,null,null,null,null,null,null,null,null,null,null,null,null,null,null,null,null,null,null,null,null,null,null,null,null,null,null,null,null,null,null,null,null,null,null,null,null,null,null,null,null,null,null,null,null,null,null,null,null,null,null,null,null,null,null,null,null,null,null,null,null,null,null,null,null,null,null,null,null,null,2031,-10]
[null,null,null,null,null,null,null,null,null,null,null,null,null,null,null,null,null,null,null,null,null,null,null,null,null,null,null,null,null,null,null,null,null,null,null,null,null,null,null,null,null,null,null,null,null,null,null,null,null,null,null,null,null,null,null,null,null,null,null,null,null,null,null,null,null,null,null,null,null,null,null,null,null,null,null,null,null,null,null,null,null,null,null,null,null,null,null,null,null,null,null,null,null,null,null,null,null,null,null,null,null,null,null,null,null,null,null,null,null,null,null,null,null,null,null,null,null,null,null,null,null,null,null,null,null,null,null,null,null,null,null,null,null,null,null,null,null,null,null,null,null,null,null,null,null,null,null,null,null,null,null,null,null,null,null,null,null,null,null,null,null,null,null,null,null,null,null,null,null,null,null,null,null,null,null,null,null,null,null,null,null,null,null,null,null,null,null,null,null,null,null,null,null,null,null,null,null,null,null,null,null,null,null,null,null,null,null,null,null,null,null,null,null,null,null,null,null,null,null,null,null,null,null,2032,-11]
[null,null,null,null,null,null,null,null,null,null,null,null,null,null,null,null,null,null,null,null,null,null,null,null,null,null,null,null,null,null,null,null,null,null,null,null,null,null,null,null,null,null,null,null,null,null,null,null,null,null,null,null,null,null,null,null,null,null,null,null,null,null,null,null,null,null,null,null,null,null,null,null,null,null,null,null,null,null,null,null,null,null,null,null,null,null,null,null,null,null,null,null,null,null,null,null,null,null,null,null,null,null,null,null,null,null,null,null,null,null,null,null,null,null,null,null,null,null,null,null,null,null,null,null,null,null,null,null,null,null,null,null,null,null,null,null,null,null,null,null,null,null,null,null,null,null,null,null,null,null,null,null,null,null,null,null,null,null,null,null,null,null,null,null,null,null,null,null,null,null,null,null,null,null,null,null,null,null,null,null,null,null,null,null,null,null,null,null,null,null,null,null,null,null,null,null,null,null,null,null,null,null,null,null,null,null,null,null,null,null,null,null,null,null,null,null,null,null,null,null,null,null,null,2033,-12]
[null,null,null,null,null,null,null,null,null,null,null,null,null,null,null,null,null,null,null,null,null,null,null,null,null,null,null,null,null,null,null,null,null,null,null,null,null,null,null,null,null,null,null,null,null,null,null,null,null,null,null,null,null,null,null,null,null,null,null,null,null,null,null,null,null,null,null,null,null,null,null,null,null,null,null,null,null,null,null,null,null,null,null,null,null,null,null,null,null,null,null,null,null,null,null,null,null,null,null,null,null,null,null,null,null,null,null,null,null,null,null,null,null,null,null,null,null,null,null,null,null,null,null,null,null,null,null,null,null,null,null,null,null,null,null,null,null,null,null,null,null,null,null,null,null,null,null,null,null,null,null,null,null,null,null,null,null,null,null,null,null,null,null,null,null,null,null,null,null,null,null,null,null,null,null,null,null,null,null,null,null,null,null,null,null,null,null,null,null,null,null,null,null,null,null,null,null,null,null,null,null,null,null,null,null,null,null,null,null,null,null,null,null,null,null,null,null,null,null,null,null,null,null,2034,-13]
[null,null,null,null,null,null,null,null,null,null,null,null,null,null,null,null,null,null,null,null,null,null,null,null,null,null,null,null,null,null,null,null,null,null,null,null,null,null,null,null,null,null,null,null,null,null,null,null,null,null,null,null,null,null,null,null,null,null,null,null,null,null,null,null,null,null,null,null,null,null,null,null,null,null,null,null,null,null,null,null,null,null,null,null,null,null,null,null,null,null,null,null,null,null,null,null,null,null,null,null,null,null,null,null,null,null,null,null,null,null,null,null,null,null,null,null,null,null,null,null,null,null,null,null,null,null,null,null,null,null,null,null,null,null,null,null,null,null,null,null,null,null,null,null,null,null,null,null,null,null,null,null,null,null,null,null,null,null,null,null,null,null,null,null,null,null,null,null,null,null,null,null,null,null,null,null,null,null,null,null,null,null,null,null,null,null,null,null,null,null,null,null,null,null,null,null,null,null,null,null,null,null,null,null,null,null,null,null,null,null,null,null,null,null,null,null,null,null,null,null,null,null,null,2035,-14]
[null,null,null,null,null,null,null,null,null,null,null,null,null,null,null,null,null,null,null,null,null,null,null,null,null,null,null,null,null,null,null,null,null,null,null,null,null,null,null,null,null,null,null,null,null,null,null,null,null,null,null,null,null,null,null,null,null,null,null,null,null,null,null,null,null,null,null,null,null,null,null,null,null,null,null,null,null,null,null,null,null,null,null,null,null,null,null,null,null,null,null,null,null,null,null,null,null,null,null,null,null,null,null,null,null,null,null,null,null,null,null,null,null,null,null,null,null,null,null,null,null,null,null,null,null,null,null,null,null,null,null,null,null,null,null,null,null,null,null,null,null,null,null,null,null,null,null,null,null,null,null,null,null,null,null,null,null,null,null,null,null,null,null,null,null,null,null,null,null,null,null,null,null,null,null,null,null,null,null,null,null,null,null,null,null,null,null,null,null,null,null,null,null,null,null,null,null,null,null,null,null,null,null,null,null,null,null,null,null,null,null,null,null,null,null,null,null,null,null,null,null,null,null,2036,-15]
[null,null,null,null,null,null,null,null,null,null,null,null,null,null,null,null,null,null,null,null,null,null,null,null,null,null,null,null,null,null,null,null,null,null,null,null,null,null,null,null,null,null,null,null,null,null,null,null,null,null,null,null,null,null,null,null,null,null,null,null,null,null,null,null,null,null,null,null,null,null,null,null,null,null,null,null,null,null,null,null,null,null,null,null,null,null,null,null,null,null,null,null,null,null,null,null,null,null,null,null,null,null,null,null,null,null,null,null,null,null,null,null,null,null,null,null,null,null,null,null,null,null,null,null,null,null,null,null,null,null,null,null,null,null,null,null,null,null,null,null,null,null,null,null,null,null,null,null,null,null,null,null,null,null,null,null,null,null,null,null,null,null,null,null,null,null,null,null,null,null,null,null,null,null,null,null,null,null,null,null,null,null,null,null,null,null,null,null,null,null,null,null,null,null,null,null,null,null,null,null,null,null,null,null,null,null,null,null,null,null,null,null,null,null,null,null,null,null,null,null,null,null,null,2037,-16]
[null,null,null,null,null,null,null,null,null,null,null,null,null,null,null,null,null,null,null,null,null,null,null,null,null,null,null,null,null,null,null,null,null,null,null,null,null,null,null,null,null,null,null,null,null,null,null,null,null,null,null,null,null,null,null,null,null,null,null,null,null,null,null,null,null,null,null,null,null,null,null,null,null,null,null,null,null,null,null,null,null,null,null,null,null,null,null,null,null,null,null,null,null,null,null,null,null,null,null,null,null,null,null,null,null,null,null,null,null,null,null,null,null,null,null,null,null,null,null,null,null,null,null,null,null,null,null,null,null,null,null,null,null,null,null,null,null,null,null,null,null,null,null,null,null,null,null,null,null,null,null,null,null,null,null,null,null,null,null,null,null,null,null,null,null,null,null,null,null,null,null,null,null,null,null,null,null,null,null,null,null,null,null,null,null,null,null,null,null,null,null,null,null,null,null,null,null,null,null,null,null,null,null,null,null,null,null,null,null,null,null,null,null,null,null,null,null,null,null,null,null,null,null,2038,-17]
[null,null,null,null,null,null,null,null,null,null,null,null,null,null,null,null,null,null,null,null,null,null,null,null,null,null,null,null,null,null,null,null,null,null,null,null,null,null,null,null,null,null,null,null,null,null,null,null,null,null,null,null,null,null,null,null,null,null,null,null,null,null,null,null,null,null,null,null,null,null,null,null,null,null,null,null,null,null,null,null,null,null,null,null,null,null,null,null,null,null,null,null,null,null,null,null,null,null,null,null,null,null,null,null,null,null,null,null,null,null,null,null,null,null,null,null,null,null,null,null,null,null,null,null,null,null,null,null,null,null,null,null,null,null,null,null,null,null,null,null,null,null,null,null,null,null,null,null,null,null,null,null,null,null,null,null,null,null,null,null,null,null,null,null,null,null,null,null,null,null,null,null,null,null,null,null,null,null,null,null,null,null,null,null,null,null,null,null,null,null,null,null,null,null,null,null,null,null,null,null,null,null,null,null,null,null,null,null,null,null,null,null,null,null,null,null,null,null,null,null,null,null,null,2039,-18]
[null,null,null,null,null,null,null,null,null,null,null,null,null,null,null,null,null,null,null,null,null,null,null,null,null,null,null,null,null,null,null,null,null,null,null,null,null,null,null,null,null,null,null,null,null,null,null,null,null,null,null,null,null,null,null,null,null,null,null,null,null,null,null,null,null,null,null,null,null,null,null,null,null,null,null,null,null,null,null,null,null,null,null,null,null,null,null,null,null,null,null,null,null,null,null,null,null,null,null,null,null,null,null,null,null,null,null,null,null,null,null,null,null,null,null,null,null,null,null,null,null,null,null,null,null,null,null,null,null,null,null,null,null,null,null,null,null,null,null,null,null,null,null,null,null,null,null,null,null,null,null,null,null,null,null,null,null,null,null,null,null,null,null,null,null,null,null,null,null,null,null,null,null,null,null,null,null,null,null,null,null,null,null,null,null,null,null,null,null,null,null,null,null,null,null,null,null,null,null,null,null,null,null,null,null,null,null,null,null,null,null,null,null,null,null,null,null,null,null,null,null,null,null,2040,-19]
[null,null,null,null,null,null,null,null,null,null,null,null,null,null,null,null,null,null,null,null,null,null,null,null,null,null,null,null,null,null,null,null,null,null,null,null,null,null,null,null,null,null,null,null,null,null,null,null,null,null,null,null,null,null,null,null,null,null,null,null,null,null,null,null,null,null,null,null,null,null,null,null,null,null,null,null,null,null,null,null,null,null,null,null,null,null,null,null,null,null,null,null,null,null,null,null,null,null,null,null,null,null,null,null,null,null,null,null,null,null,null,null,null,null,null,null,null,null,null,null,null,null,null,null,null,null,null,null,null,null,null,null,null,null,null,null,null,null,null,null,null,null,null,null,null,null,null,null,null,null,null,null,null,null,null,null,null,null,null,null,null,null,null,null,null,null,null,null,null,null,null,null,null,null,null,null,null,null,null,null,null,null,null,null,null,null,null,null,null,null,null,null,null,null,null,null,null,null,null,null,null,null,null,null,null,null,null,null,null,null,null,null,null,null,null,null,null,null,null,null,null,null,null,2041,-20]
[null,null,null,null,null,null,null,null,null,null,null,null,null,null,null,null,null,null,null,null,null,null,null,null,null,null,null,null,null,null,null,null,null,null,null,null,null,null,null,null,null,null,null,null,null,null,null,null,null,null,null,null,null,null,null,null,null,null,null,null,null,null,null,null,null,null,null,null,null,null,null,null,null,null,null,null,null,null,null,null,null,null,null,null,null,null,null,null,null,null,null,null,null,null,null,null,null,null,null,null,null,null,null,null,null,null,null,null,null,null,null,null,null,null,null,null,null,null,null,null,null,null,null,null,null,null,null,null,null,null,null,null,null,null,null,null,null,null,null,null,null,null,null,null,null,null,null,null,null,null,null,null,null,null,null,null,null,null,null,null,null,null,null,null,null,null,null,null,null,null,null,null,null,null,null,null,null,null,null,null,null,null,null,null,null,null,null,null,null,null,null,null,null,null,null,null,null,null,null,null,null,null,null,null,null,null,null,null,null,null,null,null,null,null,null,null,null,null,null,null,null,null,null,2042,-21]
[null,null,null,null,null,null,null,null,null,null,null,null,null,null,null,null,null,null,null,null,null,null,null,null,null,null,null,null,null,null,null,null,null,null,null,null,null,null,null,null,null,null,null,null,null,null,null,null,null,null,null,null,null,null,null,null,null,null,null,null,null,null,null,null,null,null,null,null,null,null,null,null,null,null,null,null,null,null,null,null,null,null,null,null,null,null,null,null,null,null,null,null,null,null,null,null,null,null,null,null,null,null,null,null,null,null,null,null,null,null,null,null,null,null,null,null,null,null,null,null,null,null,null,null,null,null,null,null,null,null,null,null,null,null,null,null,null,null,null,null,null,null,null,null,null,null,null,null,null,null,null,null,null,null,null,null,null,null,null,null,null,null,null,null,null,null,null,null,null,null,null,null,null,null,null,null,null,null,null,null,null,null,null,null,null,null,null,null,null,null,null,null,null,null,null,null,null,null,null,null,null,null,null,null,null,null,null,null,null,null,null,null,null,null,null,null,null,null,null,null,null,null,null,2043,-22]
[null,null,null,null,null,null,null,null,null,null,null,null,null,null,null,null,null,null,null,null,null,null,null,null,null,null,null,null,null,null,null,null,null,null,null,null,null,null,null,null,null,null,null,null,null,null,null,null,null,null,null,null,null,null,null,null,null,null,null,null,null,null,null,null,null,null,null,null,null,null,null,null,null,null,null,null,null,null,null,null,null,null,null,null,null,null,null,null,null,null,null,null,null,null,null,null,null,null,null,null,null,null,null,null,null,null,null,null,null,null,null,null,null,null,null,null,null,null,null,null,null,null,null,null,null,null,null,null,null,null,null,null,null,null,null,null,null,null,null,null,null,null,null,null,null,null,null,null,null,null,null,null,null,null,null,null,null,null,null,null,null,null,null,null,null,null,null,null,null,null,null,null,null,null,null,null,null,null,null,null,null,null,null,null,null,null,null,null,null,null,null,null,null,null,null,null,null,null,null,null,null,null,null,null,null,null,null,null,null,null,null,null,null,null,null,null,null,null,null,null,null,null,null,2044,-23]
[null,null,null,null,null,null,null,null,null,null,null,null,null,null,null,null,null,null,null,null,null,null,null,null,null,null,null,null,null,null,null,null,null,null,null,null,null,null,null,null,null,null,null,null,null,null,null,null,null,null,null,null,null,null,null,null,null,null,null,null,null,null,null,null,null,null,null,null,null,null,null,null,null,null,null,null,null,null,null,null,null,null,null,null,null,null,null,null,null,null,null,null,null,null,null,null,null,null,null,null,null,null,null,null,null,null,null,null,null,null,null,null,null,null,null,null,null,null,null,null,null,null,null,null,null,null,null,null,null,null,null,null,null,null,null,null,null,null,null,null,null,null,null,null,null,null,null,null,null,null,null,null,null,null,null,null,null,null,null,null,null,null,null,null,null,null,null,null,null,null,null,null,null,null,null,null,null,null,null,null,null,null,null,null,null,null,null,null,null,null,null,null,null,null,null,null,null,null,null,null,null,null,null,null,null,null,null,null,null,null,null,null,null,null,null,null,null,null,null,null,null,null,null,2045,-24]
[null,null,null,null,null,null,null,null,null,null,null,null,null,null,null,null,null,null,null,null,null,null,null,null,null,null,null,null,null,null,null,null,null,null,null,null,null,null,null,null,null,null,null,null,null,null,null,null,null,null,null,null,null,null,null,null,null,null,null,null,null,null,null,null,null,null,null,null,null,null,null,null,null,null,null,null,null,null,null,null,null,null,null,null,null,null,null,null,null,null,null,null,null,null,null,null,null,null,null,null,null,null,null,null,null,null,null,null,null,null,null,null,null,null,null,null,null,null,null,null,null,null,null,null,null,null,null,null,null,null,null,null,null,null,null,null,null,null,null,null,null,null,null,null,null,null,null,null,null,null,null,null,null,null,null,null,null,null,null,null,null,null,null,null,null,null,null,null,null,null,null,null,null,null,null,null,null,null,null,null,null,null,null,null,null,null,null,null,null,null,null,null,null,null,null,null,null,null,null,null,null,null,null,null,null,null,null,null,null,null,null,null,null,null,null,null,null,null,null,null,null,null,null,2046,-25]
[null,null,null,null,null,null,null,null,null,null,null,null,null,null,null,null,null,null,null,null,null,null,null,null,null,null,null,null,null,null,null,null,null,null,null,null,null,null,null,null,null,null,null,null,null,null,null,null,null,null,null,null,null,null,null,null,null,null,null,null,null,null,null,null,null,null,null,null,null,null,null,null,null,null,null,null,null,null,null,null,null,null,null,null,null,null,null,null,null,null,null,null,null,null,null,null,null,null,null,null,null,null,null,null,null,null,null,null,null,null,null,null,null,null,null,null,null,null,null,null,null,null,null,null,null,null,null,null,null,null,null,null,null,null,null,null,null,null,null,null,null,null,null,null,null,null,null,null,null,null,null,null,null,null,null,null,null,null,null,null,null,null,null,null,null,null,null,null,null,null,null,null,null,null,null,null,null,null,null,null,null,null,null,null,null,null,null,null,null,null,null,null,null,null,null,null,null,null,null,null,null,null,null,null,null,null,null,null,null,null,null,null,null,null,null,null,null,null,null,null,null,null,null,2047,-26]
[null,null,null,null,null,null,null,null,null,null,null,null,null,null,null,null,null,null,null,null,null,null,null,null,null,null,null,null,null,null,null,null,null,null,null,null,null,null,null,null,null,null,null,null,null,null,null,null,null,null,null,null,null,null,null,null,null,null,null,null,null,null,null,null,null,null,null,null,null,null,null,null,null,null,null,null,null,null,null,null,null,null,null,null,null,null,null,null,null,null,null,null,null,null,null,null,null,null,null,null,null,null,null,null,null,null,null,null,null,null,null,null,null,null,null,null,null,null,null,null,null,null,null,null,null,null,null,null,null,null,null,null,null,null,null,null,null,null,null,null,null,null,null,null,null,null,null,null,null,null,null,null,null,null,null,null,null,null,null,null,null,null,null,null,null,null,null,null,null,null,null,null,null,null,null,null,null,null,null,null,null,null,null,null,null,null,null,null,null,null,null,null,null,null,null,null,null,null,null,null,null,null,null,null,null,null,null,null,null,null,null,null,null,null,null,null,null,null,null,null,null,null,null,2048,-27]
[null,null,null,null,null,null,null,null,null,null,null,null,null,null,null,null,null,null,null,null,null,null,null,null,null,null,null,null,null,null,null,null,null,null,null,null,null,null,null,null,null,null,null,null,null,null,null,null,null,null,null,null,null,null,null,null,null,null,null,null,null,null,null,null,null,null,null,null,null,null,null,null,null,null,null,null,null,null,null,null,null,null,null,null,null,null,null,null,null,null,null,null,null,null,null,null,null,null,null,null,null,null,null,null,null,null,null,null,null,null,null,null,null,null,null,null,null,null,null,null,null,null,null,null,null,null,null,null,null,null,null,null,null,null,null,null,null,null,null,null,null,null,null,null,null,null,null,null,null,null,null,null,null,null,null,null,null,null,null,null,null,null,null,null,null,null,null,null,null,null,null,null,null,null,null,null,null,null,null,null,null,null,null,null,null,null,null,null,null,null,null,null,null,null,null,null,null,null,null,null,null,null,null,null,null,null,null,null,null,null,null,null,null,null,null,null,null,null,null,null,null,null,null,2049,-28]
[null,null,null,null,null,null,null,null,null,null,null,null,null,null,null,null,null,null,null,null,null,null,null,null,null,null,null,null,null,null,null,null,null,null,null,null,null,null,null,null,null,null,null,null,null,null,null,null,null,null,null,null,null,null,null,null,null,null,null,null,null,null,null,null,null,null,null,null,null,null,null,null,null,null,null,null,null,null,null,null,null,null,null,null,null,null,null,null,null,null,null,null,null,null,null,null,null,null,null,null,null,null,null,null,null,null,null,null,null,null,null,null,null,null,null,null,null,null,null,null,null,null,null,null,null,null,null,null,null,null,null,null,null,null,null,null,null,null,null,null,null,null,null,null,null,null,null,null,null,null,null,null,null,null,null,null,null,null,null,null,null,null,null,null,null,null,null,null,null,null,null,null,null,null,null,null,null,null,null,null,null,null,null,null,null,null,null,null,null,null,null,null,null,null,null,null,null,null,null,null,null,null,null,null,null,null,null,null,null,null,null,null,null,null,null,null,null,null,null,null,null,null,null,2050,-29]
[null,null,null,null,null,null,null,null,null,null,null,null,null,null,null,null,null,null,null,null,null,null,null,null,null,null,null,null,null,null,null,null,null,null,null,null,null,null,null,null,null,null,null,null,null,null,null,null,null,null,null,null,null,null,null,null,null,null,null,null,null,null,null,null,null,null,null,null,null,null,null,null,null,null,null,null,null,null,null,null,null,null,null,null,null,null,null,null,null,null,null,null,null,null,null,null,null,null,null,null,null,null,null,null,null,null,null,null,null,null,null,null,null,null,null,null,null,null,null,null,null,null,null,null,null,null,null,null,null,null,null,null,null,null,null,null,null,null,null,null,null,null,null,null,null,null,null,null,null,null,null,null,null,null,null,null,null,null,null,null,null,null,null,null,null,null,null,null,null,null,null,null,null,null,null,null,null,null,null,null,null,null,null,null,null,null,null,null,null,null,null,null,null,null,null,null,null,null,null,null,null,null,null,null,null,null,null,null,null,null,null,null,null,null,null,null,null,null,null,null,null,null,null,2051,-30]
[null,null,null,null,null,null,null,null,null,null,null,null,null,null,null,null,null,null,null,null,null,null,null,null,null,null,null,null,null,null,null,null,null,null,null,null,null,null,null,null,null,null,null,null,null,null,null,null,null,null,null,null,null,null,null,null,null,null,null,null,null,null,null,null,null,null,null,null,null,null,null,null,null,null,null,null,null,null,null,null,null,null,null,null,null,null,null,null,null,null,null,null,null,null,null,null,null,null,null,null,null,null,null,null,null,null,null,null,null,null,null,null,null,null,null,null,null,null,null,null,null,null,null,null,null,null,null,null,null,null,null,null,null,null,null,null,null,null,null,null,null,null,null,null,null,null,null,null,null,null,null,null,null,null,null,null,null,null,null,null,null,null,null,null,null,null,null,null,null,null,null,null,null,null,null,null,null,null,null,null,null,null,null,null,null,null,null,null,null,null,null,null,null,null,null,null,null,null,null,null,null,null,null,null,null,null,null,null,null,null,null,null,null,null,null,null,null,null,null,null,null,null,null,2052,-31]
[null,null,null,null,null,null,null,null,null,null,null,null,null,null,null,null,null,null,null,null,null,null,null,null,null,null,null,null,null,null,null,null,null,null,null,null,null,null,null,null,null,null,null,null,null,null,null,null,null,null,null,null,null,null,null,null,null,null,null,null,null,null,null,null,null,null,null,null,null,null,null,null,null,null,null,null,null,null,null,null,null,null,null,null,null,null,null,null,null,null,null,null,null,null,null,null,null,null,null,null,null,null,null,null,null,null,null,null,null,null,null,null,null,null,null,null,null,null,null,null,null,null,null,null,null,null,null,null,null,null,null,null,null,null,null,null,null,null,null,null,null,null,null,null,null,null,null,null,null,null,null,null,null,null,null,null,null,null,null,null,null,null,null,null,null,null,null,null,null,null,null,null,null,null,null,null,null,null,null,null,null,null,null,null,null,null,null,null,null,null,null,null,null,null,null,null,null,null,null,null,null,null,null,null,null,null,null,null,null,null,null,null,null,null,null,null,null,null,null,null,null,null,null,2053,{"$f":"$HQ$1-HP67","v":-32}]
[null,null,null,null,null,null,null,null,null,null,null,null,null,null,null,null,null,null,null,null,null,null,null,null,null,null,null,null,null,null,null,null,null,null,null,null,null,null,null,null,null,null,null,null,null,null,null,null,null,null,null,null,null,null,null,null,null,null,null,null,null,null,null,null,null,null,null,null,null,null,null,null,null,null,null,null,null,null,null,null,null,null,null,null,null,null,null,null,null,null,null,null,null,null,null,null,null,null,null,null,null,null,null,null,null,null,null,null,null,null,null,null,null,null,null,null,null,null,null,null,null,null,null,null,null,null,null,null,null,null,null,null,null,null,null,null,null,null,null,null,null,null,null,null,null,null,null,null,null,null,null,null,null,null,null,null,null,null,null,null,null,null,null,null,null,null,null,null,null,null,null,null,null,null,null,null,null,null,null,null,null,null,null,null,null,null,null,null,null,null,null,null,null,null,null,null,null,null,null,null,null,null,null,null,null,null,null,null,null,null,null,null,null,null,null,null,null,null,null,null,null,null,null,2054,-33]
[null,null,null,null,null,null,null,null,null,null,null,null,null,null,null,null,null,null,null,null,null,null,null,null,null,null,null,null,null,null,null,null,null,null,null,null,null,null,null,null,null,null,null,null,null,null,null,null,null,null,null,null,null,null,null,null,null,null,null,null,null,null,null,null,null,null,null,null,null,null,null,null,null,null,null,null,null,null,null,null,null,null,null,null,null,null,null,null,null,null,null,null,null,null,null,null,null,null,null,null,null,null,null,null,null,null,null,null,null,null,null,null,null,null,null,null,null,null,null,null,null,null,null,null,null,null,null,null,null,null,null,null,null,null,null,null,null,null,null,null,null,null,null,null,null,null,null,null,null,null,null,null,null,null,null,null,null,null,null,null,null,null,null,null,null,null,null,null,null,null,null,null,null,null,null,null,null,null,null,null,null,null,null,null,null,null,null,null,null,null,null,null,null,null,null,null,null,null,null,null,null,null,null,null,null,null,null,null,null,null,null,null,null,null,null,null,null,null,null,null,null,null,null,2055,-34]
[null,null,null,null,null,null,null,null,null,null,null,null,null,null,null,null,null,null,null,null,null,null,null,null,null,null,null,null,null,null,null,null,null,null,null,null,null,null,null,null,null,null,null,null,null,null,null,null,null,null,null,null,null,null,null,null,null,null,null,null,null,null,null,null,null,null,null,null,null,null,null,null,null,null,null,null,null,null,null,null,null,null,null,null,null,null,null,null,null,null,null,null,null,null,null,null,null,null,null,null,null,null,null,null,null,null,null,null,null,null,null,null,null,null,null,null,null,null,null,null,null,null,null,null,null,null,null,null,null,null,null,null,null,null,null,null,null,null,null,null,null,null,null,null,null,null,null,null,null,null,null,null,null,null,null,null,null,null,null,null,null,null,null,null,null,null,null,null,null,null,null,null,null,null,null,null,null,null,null,null,null,null,null,null,null,null,null,null,null,null,null,null,null,null,null,null,null,null,null,null,null,null,null,null,null,null,null,null,null,null,null,null,null,null,null,null,null,null,null,null,null,null,null,2056,-35]
[null,null,null,null,null,null,null,null,null,null,null,null,null,null,null,null,null,null,null,null,null,null,null,null,null,null,null,null,null,null,null,null,null,null,null,null,null,null,null,null,null,null,null,null,null,null,null,null,null,null,null,null,null,null,null,null,null,null,null,null,null,null,null,null,null,null,null,null,null,null,null,null,null,null,null,null,null,null,null,null,null,null,null,null,null,null,null,null,null,null,null,null,null,null,null,null,null,null,null,null,null,null,null,null,null,null,null,null,null,null,null,null,null,null,null,null,null,null,null,null,null,null,null,null,null,null,null,null,null,null,null,null,null,null,null,null,null,null,null,null,null,null,null,null,null,null,null,null,null,null,null,null,null,null,null,null,null,null,null,null,null,null,null,null,null,null,null,null,null,null,null,null,null,null,null,null,null,null,null,null,null,null,null,null,null,null,null,null,null,null,null,null,null,null,null,null,null,null,null,null,null,null,null,null,null,null,null,null,null,null,null,null,null,null,null,null,null,null,null,null,null,null,null,2057,-36]
[null,null,null,null,null,null,null,null,null,null,null,null,null,null,null,null,null,null,null,null,null,null,null,null,null,null,null,null,null,null,null,null,null,null,null,null,null,null,null,null,null,null,null,null,null,null,null,null,null,null,null,null,null,null,null,null,null,null,null,null,null,null,null,null,null,null,null,null,null,null,null,null,null,null,null,null,null,null,null,null,null,null,null,null,null,null,null,null,null,null,null,null,null,null,null,null,null,null,null,null,null,null,null,null,null,null,null,null,null,null,null,null,null,null,null,null,null,null,null,null,null,null,null,null,null,null,null,null,null,null,null,null,null,null,null,null,null,null,null,null,null,null,null,null,null,null,null,null,null,null,null,null,null,null,null,null,null,null,null,null,null,null,null,null,null,null,null,null,null,null,null,null,null,null,null,null,null,null,null,null,null,null,null,null,null,null,null,null,null,null,null,null,null,null,null,null,null,null,null,null,null,null,null,null,null,null,null,null,null,null,null,null,null,null,null,null,null,null,null,null,null,null,null,2058,-37]
[null,null,null,null,null,null,null,null,null,null,null,null,null,null,null,null,null,null,null,null,null,null,null,null,null,null,null,null,null,null,null,null,null,null,null,null,null,null,null,null,null,null,null,null,null,null,null,null,null,null,null,null,null,null,null,null,null,null,null,null,null,null,null,null,null,null,null,null,null,null,null,null,null,null,null,null,null,null,null,null,null,null,null,null,null,null,null,null,null,null,null,null,null,null,null,null,null,null,null,null,null,null,null,null,null,null,null,null,null,null,null,null,null,null,null,null,null,null,null,null,null,null,null,null,null,null,null,null,null,null,null,null,null,null,null,null,null,null,null,null,null,null,null,null,null,null,null,null,null,null,null,null,null,null,null,null,null,null,null,null,null,null,null,null,null,null,null,null,null,null,null,null,null,null,null,null,null,null,null,null,null,null,null,null,null,null,null,null,null,null,null,null,null,null,null,null,null,null,null,null,null,null,null,null,null,null,null,null,null,null,null,null,null,null,null,null,null,null,null,null,null,null,null,2059,-38]
[null,null,null,null,null,null,null,null,null,null,null,null,null,null,null,null,null,null,null,null,null,null,null,null,null,null,null,null,null,null,null,null,null,null,null,null,null,null,null,null,null,null,null,null,null,null,null,null,null,null,null,null,null,null,null,null,null,null,null,null,null,null,null,null,null,null,null,null,null,null,null,null,null,null,null,null,null,null,null,null,null,null,null,null,null,null,null,null,null,null,null,null,null,null,null,null,null,null,null,null,null,null,null,null,null,null,null,null,null,null,null,null,null,null,null,null,null,null,null,null,null,null,null,null,null,null,null,null,null,null,null,null,null,null,null,null,null,null,null,null,null,null,null,null,null,null,null,null,null,null,null,null,null,null,null,null,null,null,null,null,null,null,null,null,null,null,null,null,null,null,null,null,null,null,null,null,null,null,null,null,null,null,null,null,null,null,null,null,null,null,null,null,null,null,null,null,null,null,null,null,null,null,null,null,null,null,null,null,null,null,null,null,null,null,null,null,null,null,null,null,null,null,null,2060,-39]
[]
[]
[]
[]
[]
[]
[]
[]
[]
[]
[]
[]
[]
[]
[]
[]
[]
[]
[]
[]
[]
[]
[]
[]
[]
[]
[null,"Borang B",null,null,null,null,null,null,null,null,null,null,null,null,null,null,null,null,null,null,null,null,null,null,null,null,null,null,null,null,null,null,null,null,null,null,null,null,null,null,null,null,null,null,null,null,null,null,null,null,null,null,null,null,null,null,null,null,null,null,null,null,null,null,null,null,null,null,null,null,null,null,null,null,null,null,null,null,null,null,null,null,null,null,null,null,null,null,null,null,null,null,null,null,null,null,null,null,null,null,null,null,null,null,null,null,null,null,null,null,null,null,null,null,null,null,null,null,null,null,null,null,null,null,null,null,null,null,null,null,null,null,null,null,null,null,null,null,null,null,null,null,null,null,null,null,null,null,null,null,null,null,null,null,null,null,null,null,null,null,null,null,null,null,null,null,null,null,null,null,null,null,null,null,null,null,null,null,null,null,"[sila lekatkan gambar berukuran pasport di ruang ini]",null,null,null,null,null,null,null,null,null,null,null,null,null,null,null,null,null,null,null,null,null,null,null,null,null,null,null,null,null,null,null,null,null,null,null,null,10]
[null,null,null,null,null,null,null,null,null,null,null,null,null,null,null,null,null,null,null,null,null,null,null,null,null,null,null,null,null,null,null,null,null,null,null,null,null,null,null,null,null,null,null,null,null,null,null,null,null,null,null,null,null,null,null,null,null,null,null,null,null,null,null,null,null,null,null,null,null,null,null,null,null,null,null,null,null,null,null,null,null,null,null,null,null,null,null,null,null,null,null,null,null,null,null,null,null,null,null,null,null,null,null,null,null,null,null,null,null,null,null,null,null,null,null,null,null,null,null,null,null,null,null,null,null,null,null,null,null,null,null,null,null,null,null,null,null,null,null,null,null,null,null,null,null,null,null,null,null,null,null,null,null,null,null,null,null,null,null,null,null,null,null,null,null,null,null,null,null,null,null,null,null,null,null,null,null,null,null,null,null,null,null,null,null,null,null,null,null,null,null,null,null,null,null,null,null,null,null,null,null,null,null,null,null,null,null,null,null,null,null,null,null,null,null,null,null,10]
[null,"KETERANGAN DIRI PEMOHON",null,null,null,null,null,null,null,null,null,null,null,null,null,null,null,null,null,null,null,null,null,null,null,null,null,null,null,null,null,null,null,null,null,null,null,null,null,null,null,null,null,null,null,null,null,null,null,null,null,null,null,null,null,null,null,null,null,null,null,null,null,null,null,null,null,null,null,null,null,null,null,null,null,null,null,null,null,null,null,null,null,null,null,null,null,null,null,null,null,null,null,null,null,null,null,null,null,null,null,null,null,null,null,null,null,null,null,null,null,null,null,null,null,null,null,null,null,null,null,null,null,null,null,null,null,null,null,null,null,null,null,null,null,null,null,null,null,null,null,null,null,null,null,null,null,null,null,null,null,null,null,null,null,null,null,null,null,null,null,null,null,null,null,null,null,null,null,null,null,null,null,null,null,null,null,null,null,null,null,null,null,null,null,null,null,null,null,null,null,null,null,null,null,null,null,null,null,null,null,null,null,null,null,null,null,null,null,null,null,null,null,null,null,null,null,14]
[null,null,null,null,null,null,null,null,null,null,null,null,null,null,null,null,null,null,null,null,null,null,null,null,null,null,null,null,null,null,null,null,null,null,null,null,null,null,null,null,null,null,null,null,null,null,null,null,null,null,null,null,null,null,null,null,null,null,null,null,null,null,null,null,null,null,null,null,null,null,null,null,null,null,null,null,null,null,null,null,null,null,null,null,null,null,null,null,null,null,null,null,null,null,null,null,null,null,null,null,null,null,null,null,null,null,null,null,null,null,null,null,null,null,null,null,null,null,null,null,null,null,null,null,null,null,null,null,null,null,null,null,null,null,null,null,null,null,null,null,null,null,null,null,null,null,null,null,null,null,null,null,null,null,null,null,null,null,null,null,null,null,null,null,null,null,null,null,null,null,null,null,null,null,null,null,null,null,null,null,null,null,null,null,null,null,null,null,null,null,null,null,null,null,null,null,null,null,null,null,null,null,null,null,null,null,null,null,null,null,null,null,null,null,null,null,null,10]
[null,1,null,null,null,null,null,null,"NAMA PENUH\nMengikut Kad Pengenalan)",null,null,null,null,null,null,null,null,null,null,null,null,null,null,null,null,null,null,null,null,null,null,null,null,null,null,null,null,null,null,null,null,null,null,null,null,null,null,null,null,null,null,null,null,null,null,null,null,null,null,null,null,null,null,null,null,null,null,null,null,null,null,null,null,null,null,null,null,null,null,null,null,null,null,null,null,null,null,null,null,null,null,null,null,null,null,null,null,null,null,null,null,null,null,null,null,null,null,null,null,null,null,null,null,null,null,null,null,null,null,null,null,null,null,null,null,null,null,null,null,null,null,null,null,null,null,null,null,null,null,null,null,null,null,null,null,null,null,null,null,null,null,null,null,null,null,null,null,null,null,null,null,null,null,null,null,null,null,null,null,null,null,null,null,null,null,null,null,null,null,null,null,null,null,null,null,null,null,null,null,null,null,null,null,null,null,null,null,null,null,null,null,null,null,null,null,null,null,null,null,null,null,null,null,null,null,null,null,14,null,null,{"$f":"I105","v":"NAMA PENUH\nMengikut Kad Pengenalan)"},{"$f":"I107","v":"NAMA LAIN (Jika ada)"},{"$f":"I108","v":"ALAMAT TEMPAT TINGGAL"},{"$f":"I109","v":"POSKOD"},{"$f":"I110","v":"JANTINA"},{"$f":"CB110","v":"BANGSA"},{"$f":"EU110","v":"UGAMA"},{"$f":"I111","v":"TARIKH LAHIR"},"D","M","Y",{"$f":"BL111","v":"TEMPAT LAHIR"},{"$f":"DR111","v":"TARIKH MASUK KE NEGARA BRUNEI DARUSSALAM (Jika lahir di luar negeri)"},"D","M","Y",{"$f":"I112","v":"NOMBOR KAD PINTAR"},{"$f":"CA112","v":"WARNA"},{"$f":"DX112","v":"TARIKH DIKELUARKAN"},"D","Y","M",{"$f":"I113","v":"NAMA DALAM PASSPORT"},{"$f":"FD113","v":"BILANGAN"},{"$f":"B114","v":"TARIKH DIKELUARKAN"},null,null,null,{"$f":"BV114","v":"TEMPAT DIKELUARKAN"},{"$f":"EV114","v":"TARIKH MANSUH"},"D","M","Y",{"$f":"I115","v":"KERAKYATAN (Sila tanda x di petak disediakan)"},{"$f":"H116","v":"Jati"},{"$f":"H117","v":"Berdaftar"},{"$f":"AN116","v":"Mutlak Undang-Undang"},{"$f":"AN117","v":"Penaungan"},{"$f":"DE115","v":"TARAF KELAMIN (Sila tanda x di petak yang disediakan)"},{"$f":"DD116","v":"Bujang"},{"$f":"DY116","v":"Kawin"},{"$f":"EU116","v":"Cerai"},{"$f":"FQ116","v":"Duda"},{"$f":"GM116","v":"Janda"},{"$f":"CW117","v":"KERAMAIAN ANAK (Jika Kahwin)"},{"$f":"H118","v":"SENARAI INSTITUSI TEMPAT BELAJAR DALAM DAN LUAR NEGERI MULAI PERINGKAT RENDAH"},"BIL","NAMA INSITUSI","TEMPOH MENUNTUT (TARIKH)","DARI","D","M","Y","HINGGA","D","M","Y"]
[null,null,null,null,null,null,null,null,null,null,null,null,null,null,null,null,null,null,null,null,null,null,null,null,null,null,null,null,null,null,null,null,null,null,null,null,null,null,null,null,null,null,null,null,null,null,null,null,null,null,null,null,null,null,null,null,null,null,null,null,null,null,null,null,null,null,null,null,null,null,null,null,null,null,null,null,null,null,null,null,null,null,null,null,null,null,null,null,null,null,null,null,null,null,null,null,null,null,null,null,null,null,null,null,null,null,null,null,null,null,null,null,null,null,null,null,null,null,null,null,null,null,null,null,null,null,null,null,null,null,null,null,null,null,null,null,null,null,null,null,null,null,null,null,null,null,null,null,null,null,null,null,null,null,null,null,null,null,null,null,null,null,null,null,null,null,null,null,null,null,null,null,null,null,null,null,null,null,null,null,null,null,null,null,null,null,null,null,null,null,null,null,null,null,null,null,null,null,null,null,null,null,null,null,null,null,null,null,null,null,null,null,null,null,null,null,null,14,null,null,{"$f":"BE105","v":0},{"$f":"BE107","v":0},{"$f":"BE108","v":0},{"$f":"AD109","v":0},{"$f":"AI110","v":0},{"$f":"DB110","v":0},{"$f":"FU110","v":0},null,{"$f":"X111","v":0},{"$f":"AI111","v":0},{"$f":"AT111","v":0},{"$f":"CA111","v":0},null,{"$f":"GA111","v":0},{"$f":"GL111","v":0},{"$f":"GW111","v":0},{"$f":"AT112","v":0},{"$f":"CS112","v":0},null,{"$f":"FL112","v":0},{"$f":"FW112","v":0},{"$f":"GH112","v":0},{"$f":"AY113","v":0},{"$f":"GB113","v":0},null,{"$f":"AO114","v":0},{"$f":"AZ114","v":0},{"$f":"BK114","v":0},{"$f":"DI114","v":0},null,{"$f":"GB114","v":0},{"$f":"GM114","v":0},{"$f":"GX114","v":0},null,{"$f":"AH116","v":0},{"$f":"AH117","v":0},{"$f":"CC116","v":0},{"$f":"CC117","v":0},null,{"$f":"DR116","v":0},{"$f":"EN116","v":0},{"$f":"FJ116","v":0},{"$f":"GF116","v":0},{"$f":"HB116","v":0},{"$f":"FJ117","v":0},null,{"$f":"B121","v":0},{"$f":"H121","v":0},null,null,{"$f":"EW121","v":0},{"$f":"FH121","v":0},{"$f":"FS121","v":0},null,{"$f":"GC121","v":0},{"$f":"GN121","v":0},{"$f":"GY121","v":0}]
[null,2,null,null,null,null,null,"NAMA LAIN (Jika ada)","NAMA LAIN (Jika ada)",null,null,null,null,null,null,null,null,null,null,null,null,null,null,null,null,null,null,null,null,null,null,null,null,null,null,null,null,null,null,null,null,null,null,null,null,null,null,null,null,null,null,null,null,null,null,null,null,null,null,null,null,null,null,null,null,null,null,null,null,null,null,null,null,null,null,null,null,null,null,null,null,null,null,null,null,null,null,null,null,null,null,null,null,null,null,null,null,null,null,null,null,null,null,null,null,null,null,null,null,null,null,null,null,null,null,null,null,null,null,null,null,null,null,null,null,null,null,null,null,null,null,null,null,null,null,null,null,null,null,null,null,null,null,null,null,null,null,null,null,null,null,null,null,null,null,null,null,null,null,null,null,null,null,null,null,null,null,null,null,null,null,null,null,null,null,null,null,null,null,null,null,null,null,null,null,null,null,null,null,null,null,null,null,null,null,null,null,null,null,null,null,null,null,null,null,null,null,null,null,null,null,null,null,null,null,null,null,14]
[null,3,null,null,null,null,null,"POSKOD","ALAMAT TEMPAT TINGGAL",null,null,null,null,null,null,null,null,null,null,null,null,null,null,null,null,null,null,null,null,null,null,null,null,null,null,null,null,null,null,null,null,null,null,null,null,null,null,null,null,null,null,null,null,null,null,null,null,null,null,null,null,null,null,null,null,null,null,null,null,null,null,null,null,null,null,null,null,null,null,null,null,null,null,null,null,null,null,null,null,null,null,null,null,null,null,null,null,null,null,null,null,null,null,null,null,null,null,null,null,null,null,null,null,null,null,null,null,null,null,null,null,null,null,null,null,null,null,null,null,null,null,null,null,null,null,null,null,null,null,null,null,null,null,null,null,null,null,null,null,null,null,null,null,null,null,null,null,null,null,null,null,null,null,null,null,null,null,null,null,null,null,null,null,null,null,null,null,null,null,null,null,null,null,null,null,null,null,null,null,null,null,null,null,null,null,null,null,null,null,null,null,null,null,null,null,null,null,null,null,null,null,null,null,null,null,null,null,14]
[null,null,null,null,null,null,null,"POSKOD","POSKOD",null,null,null,null,null,null,null,null,null,null,null,null,null,null,null,null,null,null,null,null,null,null,null,null,null,null,null,null,null,null,null,null,null,null,null,null,null,null,null,null,null,null,null,null,null,null,null,null,null,null,null,null,null,null,null,null,null,null,null,null,null,null,null,null,null,null,null,null,null,null,null,null,null,null,null,null,null,null,null,null,null,null,null,null,null,null,null,null,null,null,null,null,null,null,null,null,null,null,null,null,null,null,null,null,null,null,null,null,null,null,null,null,null,null,null,null,null,null,null,null,null,null,null,null,null,null,null,null,null,null,null,null,null,null,null,null,null,null,null,null,null,null,null,null,null,null,null,null,null,null,null,null,null,null,null,null,null,null,null,null,null,null,null,null,null,null,null,null,null,null,null,null,null,null,null,null,null,null,null,null,null,null,null,null,null,null,null,null,null,null,null,null,null,null,null,null,null,null,null,null,null,null,null,null,null,null,null,null,14]
[null,4,null,null,null,null,null,null,"JANTINA",null,null,null,null,null,null,null,null,null,null,null,null,null,null,null,null,null,null,null,null,null,null,null,null,null,null,null,null,null,null,null,null,null,null,null,null,null,null,null,null,null,null,null,null,null,null,null,null,null,null,null,null,null,null,null,null,null,null,null,null,null,null,null,5,null,null,null,null,null,null,"BANGSA",null,null,null,null,null,null,null,null,null,null,null,null,null,null,null,null,null,null,null,null,null,null,null,null,null,null,null,null,null,null,null,null,null,null,null,null,null,null,null,null,null,null,null,null,null,null,null,null,null,null,null,null,null,null,null,null,null,null,null,null,null,null,null,6,null,null,null,null,null,null,"UGAMA",null,null,null,null,null,null,null,null,null,null,null,null,null,null,null,null,null,null,null,null,null,null,null,null,null,null,null,null,null,null,null,null,null,null,null,null,null,null,null,null,null,null,null,null,null,null,null,null,null,null,null,null,null,null,null,null,null,null,null,null,null,null,null,null,null,null,14]
[null,"7a",null,null,null,null,null,null,"TARIKH LAHIR",null,null,null,null,null,null,null,null,null,null,null,null,null,null,null,null,null,null,null,null,null,null,"/",null,null,null,null,null,null,null,null,null,null,"/",null,null,null,null,null,null,null,null,null,null,null,null,null,"7b",null,null,null,null,null,null,"TEMPAT LAHIR",null,null,null,null,null,null,null,null,null,null,null,null,null,null,null,null,null,null,null,null,null,null,null,null,null,null,null,null,null,null,null,null,null,null,null,null,null,null,null,null,null,null,null,null,null,null,null,null,null,null,null,"7c",null,null,null,null,null,"TARIKH MASUK KE NEGARA BRUNEI DARUSSALAM (Jika lahir di luar negeri)",null,null,null,null,null,null,null,null,null,null,null,null,null,null,null,null,null,null,null,null,null,null,null,null,null,null,null,null,null,null,null,null,null,null,null,null,null,null,null,null,null,null,null,null,null,null,null,null,null,null,null,null,null,null,null,null,null,null,null,null,null,null,null,null,null,null,null,null,"/",null,null,null,null,null,null,null,null,null,null,"/",null,null,null,null,null,null,null,null,null,null,null,null,null,null,null,14]
[null,8,null,null,null,null,null,null,"NOMBOR KAD PINTAR",null,null,null,null,null,null,null,null,null,null,null,null,null,null,null,null,null,null,null,null,null,null,null,null,null,null,null,null,null,null,null,null,null,null,null,null,null,null,null,null,null,null,null,null,null,null,null,null,null,null,null,null,null,null,null,null,null,null,null,null,null,null,null,null,null,null,null,null,null,"WARNA",null,null,null,null,null,null,null,null,null,null,null,null,null,null,null,null,null,null,null,null,null,null,null,null,null,null,null,null,null,null,null,null,null,null,null,null,null,null,null,null,null,null,null,null,null,null,null,null,"TARIKH DIKELUARKAN",null,null,null,null,null,null,null,null,null,null,null,null,null,null,null,null,null,null,null,null,null,null,null,null,null,null,null,null,null,null,null,null,null,null,null,null,null,null,null,null,null,null,null,null,null,null,null,"/",null,null,null,null,null,null,null,null,null,null,"/",null,null,null,null,null,null,null,null,null,null,null,null,null,null,null,null,null,null,null,null,null,null,null,null,null,null,null,null,null,null,14]
[null,9,null,null,null,null,null,null,"NAMA DALAM PASSPORT",null,null,null,null,null,null,null,null,null,null,null,null,null,null,null,null,null,null,null,null,null,null,null,null,null,null,null,null,null,null,null,null,null,null,null,null,null,null,null,null,null,null,null,null,null,null,null,null,null,null,null,null,null,null,null,null,null,null,null,null,null,null,null,null,null,null,null,null,null,null,null,null,null,null,null,null,null,null,null,null,null,null,null,null,null,null,null,null,null,null,null,null,null,null,null,null,null,null,null,null,null,null,null,null,null,null,null,null,null,null,null,null,null,null,null,null,null,null,null,null,null,null,null,null,null,null,null,null,null,null,null,null,null,null,null,null,null,null,null,null,null,null,null,null,null,null,null,null,null,null,"BILANGAN",null,null,null,null,null,null,null,null,null,null,null,null,null,null,null,null,null,null,null,null,null,null,null,null,null,null,null,null,null,null,null,null,null,null,null,null,null,null,null,null,null,null,null,null,null,null,null,null,null,null,null,null,null,null,null,null,null,14]
[null,"TARIKH DIKELUARKAN",null,null,null,null,null,null,null,null,null,null,null,null,null,null,null,null,null,null,null,null,null,null,null,null,null,null,null,null,null,null,null,null,null,null,null,null,null,null,null,null,null,null,null,null,null,null,"/",null,null,null,null,null,null,null,null,null,null,"/",null,null,null,null,null,null,null,null,null,null,null,null,null,"TEMPAT DIKELUARKAN",null,null,null,null,null,null,null,null,null,null,null,null,null,null,null,null,null,null,null,null,null,null,null,null,null,null,null,null,null,null,null,null,null,null,null,null,null,null,null,null,null,null,null,null,null,null,null,null,null,null,null,null,null,null,null,null,null,null,null,null,null,null,null,null,null,null,null,null,null,null,null,null,null,null,null,null,null,"TARIKH MANSUH",null,null,null,null,null,null,null,null,null,null,null,null,null,null,null,null,null,null,null,null,null,null,null,null,null,null,null,null,null,null,null,null,null,null,null,null,null,null,null,"/",null,null,null,null,null,null,null,null,null,null,"/",null,null,null,null,null,null,null,null,null,null,null,null,null,null,14]
[null,10,null,null,null,null,null,null,"KERAKYATAN (Sila tanda x di petak disediakan)",null,null,null,null,null,null,null,null,null,null,null,null,null,null,null,null,null,null,null,null,null,null,null,null,null,null,null,null,null,null,null,null,null,null,null,null,null,null,null,null,null,null,null,null,null,null,null,null,null,null,null,null,null,null,null,null,null,null,null,null,null,null,null,null,null,null,null,null,null,null,null,null,null,null,null,null,null,null,null,null,null,null,null,null,null,null,null,null,null,null,null,11,null,null,null,null,null,null,null,"TARAF KELAMIN (Sila tanda x di petak yang disediakan)",null,null,null,null,null,null,null,null,null,null,null,null,null,null,null,null,null,null,null,null,null,null,null,null,null,null,null,null,null,null,null,null,null,null,null,null,null,null,null,null,null,null,null,null,null,null,null,null,null,null,null,null,null,null,null,null,null,null,null,null,null,null,null,null,null,null,null,null,null,null,null,null,null,null,null,null,null,null,null,null,null,null,null,null,null,null,null,null,null,null,null,null,null,null,null,null,null,null,null,null,null,null,null,null,null,null,null,null,14]
[null,null,null,null,null,null,null,"Jati",null,null,null,null,null,null,null,null,null,null,null,null,null,null,null,null,null,null,null,null,null,null,null,null,null,null,null,null,null,null,null,"Mutlak Undang-Undang",null,null,null,null,null,null,null,null,null,null,null,null,null,null,null,null,null,null,null,null,null,null,null,null,null,null,null,null,null,null,null,null,null,null,null,null,null,null,null,null,null,null,null,null,null,null,null,null,null,null,null,null,null,null,null,null,null,null,null,null,null,null,null,null,null,null,null,"Bujang",null,null,null,null,null,null,null,null,null,null,null,null,null,null,null,null,null,null,null,null,"Kawin",null,null,null,null,null,null,null,null,null,null,null,null,null,null,null,null,null,null,null,null,null,"Cerai",null,null,null,null,null,null,null,null,null,null,null,null,null,null,null,null,null,null,null,null,null,"Duda",null,null,null,null,null,null,null,null,null,null,null,null,null,null,null,null,null,null,null,null,null,"Janda",null,null,null,null,null,null,null,null,null,null,null,null,null,null,null,null,null,null,null,null,null,null,14]
[null,null,null,null,null,null,null,"Berdaftar",null,null,null,null,null,null,null,null,null,null,null,null,null,null,null,null,null,null,null,null,null,null,null,null,null,null,null,null,null,null,null,"Penaungan",null,null,null,null,null,null,null,null,null,null,null,null,null,null,null,null,null,null,null,null,null,null,null,null,null,null,null,null,null,null,null,null,null,null,null,null,null,null,null,null,null,null,null,null,null,null,null,null,null,null,null,null,null,null,null,null,null,null,null,null,"KERAMAIAN ANAK (Jika Kahwin)",null,null,null,null,null,null,null,null,null,null,null,null,null,null,null,null,null,null,null,null,null,null,null,null,null,null,null,null,null,null,null,null,null,null,null,null,null,null,null,null,null,null,null,null,null,null,null,null,null,null,null,null,null,null,null,null,null,null,null,null,null,null,null,null,null,null,null,null,null,null,null,null,null,null,null,null,null,null,null,null,null,null,null,null,null,null,null,null,null,null,null,null,null,null,null,null,null,null,null,null,null,null,null,null,null,null,null,null,null,null,null,null,null,null,null,null,14]
[null,12,null,null,null,null,null,"SENARAI INSTITUSI TEMPAT BELAJAR DALAM DAN LUAR NEGERI MULAI PERINGKAT RENDAH",null,null,null,null,null,null,null,null,null,null,null,null,null,null,null,null,null,null,null,null,null,null,null,null,null,null,null,null,null,null,null,null,null,null,null,null,null,null,null,null,null,null,null,null,null,null,null,null,null,null,null,null,null,null,null,null,null,null,null,null,null,null,null,null,null,null,null,null,null,null,null,null,null,null,null,null,null,null,null,null,null,null,null,null,null,null,null,null,null,null,null,null,null,null,null,null,null,null,null,null,null,null,null,null,null,null,null,null,null,null,null,null,null,null,null,null,null,null,null,null,null,null,null,null,null,null,null,null,null,null,null,null,null,null,null,null,null,null,null,null,null,null,null,null,null,null,null,null,null,null,null,null,null,null,null,null,null,null,null,null,null,null,null,null,null,null,null,null,null,null,null,null,null,null,null,null,null,null,null,null,null,null,null,null,null,null,null,null,null,null,null,null,null,null,null,null,null,null,null,null,null,null,null,null,null,null,null,null,null,12]
[null,"BIL",null,null,null,null,null,"NAMA INSITUSI",null,null,null,null,null,null,null,null,null,null,null,null,null,null,null,null,null,null,null,null,null,null,null,null,null,null,null,null,null,null,null,null,null,null,null,null,null,null,null,null,null,null,null,null,null,null,null,null,null,null,null,null,null,null,null,null,null,null,null,null,null,null,null,null,null,null,null,null,null,null,null,null,null,null,null,null,null,null,null,null,null,null,null,null,null,null,null,null,null,null,null,null,null,null,null,null,null,null,null,null,null,null,null,null,null,null,null,null,null,null,null,null,null,null,null,null,null,null,null,null,null,null,null,null,null,null,null,null,null,null,null,null,null,null,null,null,null,null,null,null,null,null,null,null,"TEMPOH MENUNTUT (TARIKH)",null,null,null,null,null,null,null,null,null,null,null,null,null,null,null,null,null,null,null,null,null,null,null,null,null,null,null,null,null,null,null,null,null,null,null,null,null,null,null,null,null,null,null,null,null,null,null,null,null,null,null,null,null,null,null,null,null,null,null,null,null,null,null,null,10]
[null,null,null,null,null,null,null,null,null,null,null,null,null,null,null,null,null,null,null,null,null,null,null,null,null,null,null,null,null,null,null,null,null,null,null,null,null,null,null,null,null,null,null,null,null,null,null,null,null,null,null,null,null,null,null,null,null,null,null,null,null,null,null,null,null,null,null,null,null,null,null,null,null,null,null,null,null,null,null,null,null,null,null,null,null,null,null,null,null,null,null,null,null,null,null,null,null,null,null,null,null,null,null,null,null,null,null,null,null,null,null,null,null,null,null,null,null,null,null,null,null,null,null,null,null,null,null,null,null,null,null,null,null,null,null,null,null,null,null,null,null,null,null,null,null,null,null,null,null,null,null,null,"DARI",null,null,null,null,null,null,null,null,null,null,null,null,null,null,null,null,null,null,null,null,null,null,null,null,null,null,null,null,null,null,null,"HINGGA",null,null,null,null,null,null,null,null,null,null,null,null,null,null,null,null,null,null,null,null,null,null,null,null,null,null,null,null,null,null,null,null,10]
[null,null,null,null,null,null,null,null,null,null,null,null,null,null,null,null,null,null,null,null,null,null,null,null,null,null,null,null,null,null,null,null,null,null,null,null,null,null,null,null,null,null,null,null,null,null,null,null,null,null,null,null,null,null,null,null,null,null,null,null,null,null,null,null,null,null,null,null,null,null,null,null,null,null,null,null,null,null,null,null,null,null,null,null,null,null,null,null,null,null,null,null,null,null,null,null,null,null,null,null,null,null,null,null,null,null,null,null,null,null,null,null,null,null,null,null,null,null,null,null,null,null,null,null,null,null,null,null,null,null,null,null,null,null,null,null,null,null,null,null,null,null,null,null,null,null,null,null,null,null,null,null,null,null,null,null,null,null,null,null,"-",null,null,null,null,null,null,null,null,null,null,"-",null,null,null,null,null,null,null,null,null,null,null,null,null,null,null,null,null,null,null,null,"-",null,null,null,null,null,null,null,null,null,null,"-",null,null,null,null,null,null,null,null,null,null,null,null,null,14]
[null,null,null,null,null,null,null,null,null,null,null,null,null,null,null,null,null,null,null,null,null,null,null,null,null,null,null,null,null,null,null,null,null,null,null,null,null,null,null,null,null,null,null,null,null,null,null,null,null,null,null,null,null,null,null,null,null,null,null,null,null,null,null,null,null,null,null,null,null,null,null,null,null,null,null,null,null,null,null,null,null,null,null,null,null,null,null,null,null,null,null,null,null,null,null,null,null,null,null,null,null,null,null,null,null,null,null,null,null,null,null,null,null,null,null,null,null,null,null,null,null,null,null,null,null,null,null,null,null,null,null,null,null,null,null,null,null,null,null,null,null,null,null,null,null,null,null,null,null,null,null,null,null,null,null,null,null,null,null,null,"-",null,null,null,null,null,null,null,null,null,null,"-",null,null,null,null,null,null,null,null,null,null,null,null,null,null,null,null,null,null,null,null,"-",null,null,null,null,null,null,null,null,null,null,"-",null,null,null,null,null,null,null,null,null,null,null,null,null,14]
[null,null,null,null,null,null,null,null,null,null,null,null,null,null,null,null,null,null,null,null,null,null,null,null,null,null,null,null,null,null,null,null,null,null,null,null,null,null,null,null,null,null,null,null,null,null,null,null,null,null,null,null,null,null,null,null,null,null,null,null,null,null,null,null,null,null,null,null,null,null,null,null,null,null,null,null,null,null,null,null,null,null,null,null,null,null,null,null,null,null,null,null,null,null,null,null,null,null,null,null,null,null,null,null,null,null,null,null,null,null,null,null,null,null,null,null,null,null,null,null,null,null,null,null,null,null,null,null,null,null,null,null,null,null,null,null,null,null,null,null,null,null,null,null,null,null,null,null,null,null,null,null,null,null,null,null,null,null,null,null,"-",null,null,null,null,null,null,null,null,null,null,"-",null,null,null,null,null,null,null,null,null,null,null,null,null,null,null,null,null,null,null,null,"-",null,null,null,null,null,null,null,null,null,null,"-",null,null,null,null,null,null,null,null,null,null,null,null,null,14]
[null,null,null,null,null,null,null,null,null,null,null,null,null,null,null,null,null,null,null,null,null,null,null,null,null,null,null,null,null,null,null,null,null,null,null,null,null,null,null,null,null,null,null,null,null,null,null,null,null,null,null,null,null,null,null,null,null,null,null,null,null,null,null,null,null,null,null,null,null,null,null,null,null,null,null,null,null,null,null,null,null,null,null,null,null,null,null,null,null,null,null,null,null,null,null,null,null,null,null,null,null,null,null,null,null,null,null,null,null,null,null,null,null,null,null,null,null,null,null,null,null,null,null,null,null,null,null,null,null,null,null,null,null,null,null,null,null,null,null,null,null,null,null,null,null,null,null,null,null,null,null,null,null,null,null,null,null,null,null,null,"-",null,null,null,null,null,null,null,null,null,null,"-",null,null,null,null,null,null,null,null,null,null,null,null,null,null,null,null,null,null,null,null,"-",null,null,null,null,null,null,null,null,null,null,"-",null,null,null,null,null,null,null,null,null,null,null,null,null,14]
[null,null,null,null,null,null,null,null,null,null,null,null,null,null,null,null,null,null,null,null,null,null,null,null,null,null,null,null,null,null,null,null,null,null,null,null,null,null,null,null,null,null,null,null,null,null,null,null,null,null,null,null,null,null,null,null,null,null,null,null,null,null,null,null,null,null,null,null,null,null,null,null,null,null,null,null,null,null,null,null,null,null,null,null,null,null,null,null,null,null,null,null,null,null,null,null,null,null,null,null,null,null,null,null,null,null,null,null,null,null,null,null,null,null,null,null,null,null,null,null,null,null,null,null,null,null,null,null,null,null,null,null,null,null,null,null,null,null,null,null,null,null,null,null,null,null,null,null,null,null,null,null,null,null,null,null,null,null,null,null,"-",null,null,null,null,null,null,null,null,null,null,"-",null,null,null,null,null,null,null,null,null,null,null,null,null,null,null,null,null,null,null,null,"-",null,null,null,null,null,null,null,null,null,null,"-",null,null,null,null,null,null,null,null,null,null,null,null,null,14]
[null,null,null,null,null,null,null,null,null,null,null,null,null,null,null,null,null,null,null,null,null,null,null,null,null,null,null,null,null,null,null,null,null,null,null,null,null,null,null,null,null,null,null,null,null,null,null,null,null,null,null,null,null,null,null,null,null,null,null,null,null,null,null,null,null,null,null,null,null,null,null,null,null,null,null,null,null,null,null,null,null,null,null,null,null,null,null,null,null,null,null,null,null,null,null,null,null,null,null,null,null,null,null,null,null,null,null,null,null,null,null,null,null,null,null,null,null,null,null,null,null,null,null,null,null,null,null,null,null,null,null,null,null,null,null,null,null,null,null,null,null,null,null,null,null,null,null,null,null,null,null,null,null,null,null,null,null,null,null,null,"-",null,null,null,null,null,null,null,null,null,null,"-",null,null,null,null,null,null,null,null,null,null,null,null,null,null,null,null,null,null,null,null,"-",null,null,null,null,null,null,null,null,null,null,"-",null,null,null,null,null,null,null,null,null,null,null,null,null,14]
[null,null,null,null,null,null,null,null,null,null,null,null,null,null,null,null,null,null,null,null,null,null,null,null,null,null,null,null,null,null,null,null,null,null,null,null,null,null,null,null,null,null,null,null,null,null,null,null,null,null,null,null,null,null,null,null,null,null,null,null,null,null,null,null,null,null,null,null,null,null,null,null,null,null,null,null,null,null,null,null,null,null,null,null,null,null,null,null,null,null,null,null,null,null,null,null,null,null,null,null,null,null,null,null,null,null,null,null,null,null,null,null,null,null,null,null,null,null,null,null,null,null,null,null,null,null,null,null,null,null,null,null,null,null,null,null,null,null,null,null,null,null,null,null,null,null,null,null,null,null,null,null,null,null,null,null,null,null,null,null,"-",null,null,null,null,null,null,null,null,null,null,"-",null,null,null,null,null,null,null,null,null,null,null,null,null,null,null,null,null,null,null,null,"-",null,null,null,null,null,null,null,null,null,null,"-",null,null,null,null,null,null,null,null,null,null,null,null,null,14]
[null,13,null,null,null,null,null,"PEKERJAAN SELEPAS MENINGGALKAN MAKTAB  / SEKOLAH (Jika berkenaan)",null,null,null,null,null,null,null,null,null,null,null,null,null,null,null,null,null,null,null,null,null,null,null,null,null,null,null,null,null,null,null,null,null,null,null,null,null,null,null,null,null,null,null,null,null,null,null,null,null,null,null,null,null,null,null,null,null,null,null,null,null,null,null,null,null,null,null,null,null,null,null,null,null,null,null,null,null,null,null,null,null,null,null,null,null,null,null,null,null,null,null,null,null,null,null,null,null,null,null,null,null,null,null,null,null,null,null,null,null,null,null,null,null,null,null,null,null,null,null,null,null,null,null,null,null,null,null,null,null,null,null,null,null,null,null,null,null,null,null,null,null,null,null,null,null,null,null,null,null,null,null,null,null,null,null,null,null,null,null,null,null,null,null,null,null,null,null,null,null,null,null,null,null,null,null,null,null,null,null,null,null,null,null,null,null,null,null,null,null,null,null,null,null,null,null,null,null,null,null,null,null,null,null,null,null,null,null,null,null,14]
[null,"BIL",null,null,null,null,null,"NAMA JAWATAN DAN MAJIKAN",null,null,null,null,null,null,null,null,null,null,null,null,null,null,null,null,null,null,null,null,null,null,null,null,null,null,null,null,null,null,null,null,null,null,null,null,null,null,null,null,null,null,null,null,null,null,null,null,null,null,null,null,null,null,null,null,null,null,null,null,null,null,null,null,null,null,null,null,null,null,null,null,null,null,null,null,null,null,null,null,null,null,null,null,null,null,null,null,null,null,null,null,null,null,null,null,null,null,null,null,null,null,null,null,null,null,null,null,null,null,null,null,null,null,null,null,null,null,null,null,null,null,null,null,null,null,null,null,null,null,null,null,null,null,null,null,null,null,null,null,null,null,null,null,"TEMPOH BEKERJA (TARIKH)",null,null,null,null,null,null,null,null,null,null,null,null,null,null,null,null,null,null,null,null,null,null,null,null,null,null,null,null,null,null,null,null,null,null,null,null,null,null,null,null,null,null,null,null,null,null,null,null,null,null,null,null,null,null,null,null,null,null,null,null,null,null,null,null,10]
[null,null,null,null,null,null,null,null,null,null,null,null,null,null,null,null,null,null,null,null,null,null,null,null,null,null,null,null,null,null,null,null,null,null,null,null,null,null,null,null,null,null,null,null,null,null,null,null,null,null,null,null,null,null,null,null,null,null,null,null,null,null,null,null,null,null,null,null,null,null,null,null,null,null,null,null,null,null,null,null,null,null,null,null,null,null,null,null,null,null,null,null,null,null,null,null,null,null,null,null,null,null,null,null,null,null,null,null,null,null,null,null,null,null,null,null,null,null,null,null,null,null,null,null,null,null,null,null,null,null,null,null,null,null,null,null,null,null,null,null,null,null,null,null,null,null,null,null,null,null,null,null,"DARI",null,null,null,null,null,null,null,null,null,null,null,null,null,null,null,null,null,null,null,null,null,null,null,null,null,null,null,null,null,null,null,"HINGGA",null,null,null,null,null,null,null,null,null,null,null,null,null,null,null,null,null,null,null,null,null,null,null,null,null,null,null,null,null,null,null,null,10]
[null,null,null,null,null,null,null,null,null,null,null,null,null,null,null,null,null,null,null,null,null,null,null,null,null,null,null,null,null,null,null,null,null,null,null,null,null,null,null,null,null,null,null,null,null,null,null,null,null,null,null,null,null,null,null,null,null,null,null,null,null,null,null,null,null,null,null,null,null,null,null,null,null,null,null,null,null,null,null,null,null,null,null,null,null,null,null,null,null,null,null,null,null,null,null,null,null,null,null,null,null,null,null,null,null,null,null,null,null,null,null,null,null,null,null,null,null,null,null,null,null,null,null,null,null,null,null,null,null,null,null,null,null,null,null,null,null,null,null,null,null,null,null,null,null,null,null,null,null,null,null,null,null,null,null,null,null,null,null,null,"/",null,null,null,null,null,null,null,null,null,null,"/",null,null,null,null,null,null,null,null,null,null,null,null,null,null,null,null,null,null,null,null,"/",null,null,null,null,null,null,null,null,null,null,"/",null,null,null,null,null,null,null,null,null,null,null,null,null,14]
[null,null,null,null,null,null,null,null,null,null,null,null,null,null,null,null,null,null,null,null,null,null,null,null,null,null,null,null,null,null,null,null,null,null,null,null,null,null,null,null,null,null,null,null,null,null,null,null,null,null,null,null,null,null,null,null,null,null,null,null,null,null,null,null,null,null,null,null,null,null,null,null,null,null,null,null,null,null,null,null,null,null,null,null,null,null,null,null,null,null,null,null,null,null,null,null,null,null,null,null,null,null,null,null,null,null,null,null,null,null,null,null,null,null,null,null,null,null,null,null,null,null,null,null,null,null,null,null,null,null,null,null,null,null,null,null,null,null,null,null,null,null,null,null,null,null,null,null,null,null,null,null,null,null,null,null,null,null,null,null,"/",null,null,null,null,null,null,null,null,null,null,"/",null,null,null,null,null,null,null,null,null,null,null,null,null,null,null,null,null,null,null,null,"/",null,null,null,null,null,null,null,null,null,null,"/",null,null,null,null,null,null,null,null,null,null,null,null,null,14]
[null,null,null,null,null,null,null,null,null,null,null,null,null,null,null,null,null,null,null,null,null,null,null,null,null,null,null,null,null,null,null,null,null,null,null,null,null,null,null,null,null,null,null,null,null,null,null,null,null,null,null,null,null,null,null,null,null,null,null,null,null,null,null,null,null,null,null,null,null,null,null,null,null,null,null,null,null,null,null,null,null,null,null,null,null,null,null,null,null,null,null,null,null,null,null,null,null,null,null,null,null,null,null,null,null,null,null,null,null,null,null,null,null,null,null,null,null,null,null,null,null,null,null,null,null,null,null,null,null,null,null,null,null,null,null,null,null,null,null,null,null,null,null,null,null,null,null,null,null,null,null,null,null,null,null,null,null,null,null,null,"/",null,null,null,null,null,null,null,null,null,null,"/",null,null,null,null,null,null,null,null,null,null,null,null,null,null,null,null,null,null,null,null,"/",null,null,null,null,null,null,null,null,null,null,"/",null,null,null,null,null,null,null,null,null,null,null,null,null,14]
[null,null,null,null,null,null,null,null,null,null,null,null,null,null,null,null,null,null,null,null,null,null,null,null,null,null,null,null,null,null,null,null,null,null,null,null,null,null,null,null,null,null,null,null,null,null,null,null,null,null,null,null,null,null,null,null,null,null,null,null,null,null,null,null,null,null,null,null,null,null,null,null,null,null,null,null,null,null,null,null,null,null,null,null,null,null,null,null,null,null,null,null,null,null,null,null,null,null,null,null,null,null,null,null,null,null,null,null,null,null,null,null,null,null,null,null,null,null,null,null,null,null,null,null,null,null,null,null,null,null,null,null,null,null,null,null,null,null,null,null,null,null,null,null,null,null,null,null,null,null,null,null,null,null,null,null,null,null,null,null,"/",null,null,null,null,null,null,null,null,null,null,"/",null,null,null,null,null,null,null,null,null,null,null,null,null,null,null,null,null,null,null,null,"/",null,null,null,null,null,null,null,null,null,null,"/",null,null,null,null,null,null,null,null,null,null,null,null,null,14]
[null,null,null,null,null,null,null,null,null,null,null,null,null,null,null,null,null,null,null,null,null,null,null,null,null,null,null,null,null,null,null,null,null,null,null,null,null,null,null,null,null,null,null,null,null,null,null,null,null,null,null,null,null,null,null,null,null,null,null,null,null,null,null,null,null,null,null,null,null,null,null,null,null,null,null,null,null,null,null,null,null,null,null,null,null,null,null,null,null,null,null,null,null,null,null,null,null,null,null,null,null,null,null,null,null,null,null,null,null,null,null,null,null,null,null,null,null,null,null,null,null,null,null,null,null,null,null,null,null,null,null,null,null,null,null,null,null,null,null,null,null,null,null,null,null,null,null,null,null,null,null,null,null,null,null,null,null,null,null,null,"/",null,null,null,null,null,null,null,null,null,null,"/",null,null,null,null,null,null,null,null,null,null,null,null,null,null,null,null,null,null,null,null,"/",null,null,null,null,null,null,null,null,null,null,"/",null,null,null,null,null,null,null,null,null,null,null,null,null,14]
[null,14,null,null,null,null,null,"ADAKAH PERMOHON PERNAH DIDAKWA DIMAHKAMAH ATAU DIHUKUM ?",null,null,null,null,null,null,null,null,null,null,null,null,null,null,null,null,null,null,null,null,null,null,null,null,null,null,null,null,null,null,null,null,null,null,null,null,null,null,null,null,null,null,null,null,null,null,null,null,null,null,null,null,null,null,null,null,null,null,null,null,null,null,null,null,null,null,null,null,null,null,null,null,null,null,null,null,null,null,null,null,null,null,null,null,null,null,null,null,null,null,null,null,null,null,null,null,null,null,null,null,null,null,null,null,null,null,null,null,null,null,null,null,null,null,null,null,null,null,null,null,null,null,null,null,null,null,null,null,null,null,null,null,null,null,null,null,null,null,null,null,null,null,"YA",null,null,null,null,null,null,null,null,null,null,null,null,null,null,null,null,null,null,null,null,null,null,null,null,null,null,null,null,null,null,null,null,null,null,null,"TIDAK",null,null,null,null,null,null,null,null,null,null,null,null,null,null,null,null,null,null,null,null,null,null,null,null,null,null,null,null,null,null,14]
[null,null,null,null,null,null,null,"(Sila nyatakan jika berkenaan)",null,null,null,null,null,null,null,null,null,null,null,null,null,null,null,null,null,null,null,null,null,null,null,null,null,null,null,null,null,null,null,null,null,null,null,null,null,null,null,null,null,null,null,null,null,null,null,null,null,null,null,null,null,null,null,null,null,null,null,null,null,null,null,null,null,null,null,null,null,null,null,null,null,null,null,null,null,null,null,null,null,null,null,null,null,null,null,null,null,null,null,null,null,null,null,null,null,null,null,null,null,null,null,null,null,null,null,null,null,null,null,null,null,null,null,null,null,null,null,null,null,null,null,null,null,null,null,null,null,null,null,null,null,null,null,null,null,null,null,null,null,null,null,null,null,null,null,null,null,null,null,null,null,null,null,null,null,null,null,null,null,null,null,null,null,null,null,null,null,null,null,null,null,null,null,null,null,null,null,null,null,null,null,null,null,null,null,null,null,null,null,null,null,null,null,null,null,null,null,null,null,null,null,null,null,null,null,null,null,14]
[null,15,null,null,null,null,null,"NAMA PENUH",null,null,null,null,null,null,null,null,null,null,null,null,null,null,null,null,null,null,null,null,null,null,null,null,null,null,null,null,null,null,null,null,null,null,null,null,null,null,null,null,null,null,null,null,null,null,null,null,null,null,null,null,null,null,null,null,null,null,null,null,null,null,null,null,null,null,null,null,null,null,null,null,null,null,null,null,null,null,null,null,null,null,null,null,null,null,null,null,null,null,null,null,null,null,null,null,null,null,null,null,null,null,null,null,null,null,null,null,null,null,null,null,null,null,null,null,null,null,null,null,null,null,null,null,null,null,null,null,null,null,null,null,null,null,null,null,null,null,null,null,null,null,null,null,null,null,null,null,null,null,null,null,null,null,null,null,null,null,null,null,null,null,null,null,null,null,null,null,null,null,null,null,null,null,null,null,null,null,null,null,null,null,null,null,null,null,null,null,null,null,null,null,null,null,null,null,null,null,null,null,null,null,null,null,null,null,null,null,null,12]
[null,16,null,null,null,null,null,"BAPA",null,null,null,null,null,null,null,null,null,null,null,null,null,null,null,null,null,null,null,null,null,null,null,null,null,null,null,null,null,null,null,null,null,null,null,null,null,null,null,null,null,null,null,null,null,null,null,null,null,null,null,null,null,null,null,null,null,null,null,null,null,null,null,null,null,null,null,null,null,"IBU",null,null,null,null,null,null,null,null,null,null,null,null,null,null,null,null,null,null,null,null,null,null,null,null,null,null,null,null,null,null,null,null,null,null,null,null,null,null,null,null,null,null,null,null,null,null,null,null,null,null,null,null,null,null,null,null,null,null,null,null,null,null,null,null,null,null,null,null,null,"PENJAGA (Nyatakan hubungan keluarga jika bukan bapa atau ibu pemohon",null,null,null,null,null,null,null,null,null,null,null,null,null,null,null,null,null,null,null,null,null,null,null,null,null,null,null,null,null,null,null,null,null,null,null,null,null,null,null,null,null,null,null,null,null,null,null,null,null,null,null,null,null,null,null,null,null,null,null,null,null,null,null,null,null,null,null,null,null,14]
[null,null,null,null,null,null,null,null,null,null,null,null,null,null,null,null,null,null,null,null,null,null,null,null,null,null,null,null,null,null,null,null,null,null,null,null,null,null,null,null,null,null,null,null,null,null,null,null,null,null,null,null,null,null,null,null,null,null,null,null,null,null,null,null,null,null,null,null,null,null,null,null,null,null,null,null,null,null,null,null,null,null,null,null,null,null,null,null,null,null,null,null,null,null,null,null,null,null,null,null,null,null,null,null,null,null,null,null,null,null,null,null,null,null,null,null,null,null,null,null,null,null,null,null,null,null,null,null,null,null,null,null,null,null,null,null,null,null,null,null,null,null,null,null,null,null,null,null,null,null,null,null,null,null,null,null,null,null,null,null,null,null,null,null,null,null,null,null,null,null,null,null,null,null,null,null,null,null,null,null,null,null,null,null,null,null,null,null,null,null,null,null,null,null,null,null,null,null,null,null,null,null,null,null,null,null,null,null,null,null,null,null,null,null,null,null,null,16]
[null,null,null,null,null,null,null,"KAD PINTAR :",null,null,null,null,null,null,null,null,null,null,null,null,null,null,null,null,null,null,null,null,null,null,null,null,null,null,null,null,null,null,null,null,null,null,null,null,null,null,null,null,null,null,null,null,null,null,null,null,null,null,null,null,null,null,null,null,null,null,null,null,null,null,null,null,null,null,null,null,null,"KAD PINTAR :",null,null,null,null,null,null,null,null,null,null,null,null,null,null,null,null,null,null,null,null,null,null,null,null,null,null,null,null,null,null,null,null,null,null,null,null,null,null,null,null,null,null,null,null,null,null,null,null,null,null,null,null,null,null,null,null,null,null,null,null,null,null,null,null,null,null,null,null,null,"KAD PINTAR :",null,null,null,null,null,null,null,null,null,null,null,null,null,null,null,null,null,null,null,null,null,null,null,null,null,null,null,null,null,null,null,null,null,null,null,null,null,null,null,null,null,null,null,null,null,null,null,null,null,null,null,null,null,null,null,null,null,null,null,null,null,null,null,null,null,null,null,null,null,12]
[null,14,null,null,null,null,null,null,null,null,null,null,null,null,null,null,null,null,null,null,null,null,null,null,null,null,null,null,null,null,null,null,null,null,null,null,null,null,null,null,null,null,null,null,null,null,null,null,null,null,null,null,null,null,null,null,null,null,null,null,null,null,null,null,null,null,null,null,null,null,null,null,null,null,null,null,null,null,null,null,null,null,null,null,null,null,null,null,null,null,null,null,null,null,null,null,null,null,null,null,null,null,null,null,null,null,null,null,null,null,null,null,null,null,null,null,null,null,null,null,null,null,null,null,null,null,null,null,null,null,null,null,null,null,null,null,null,null,null,null,null,null,null,null,null,null,null,null,null,null,null,null,null,null,null,null,null,null,null,null,null,null,null,null,null,null,null,null,null,null,null,null,null,null,null,null,null,null,null,null,null,null,null,null,null,null,null,null,null,null,null,null,null,null,null,null,null,null,null,null,null,null,null,null,null,null,null,null,null,null,null,null,null,null,null,null,null,6]
[null,"Tandatangan pemohon :",null,null,null,null,null,null,null,null,null,null,null,null,null,null,null,null,null,null,null,null,null,null,null,null,null,null,null,null,null,null,null,null,null,null,null,null,null,null,null,null,null,null,null,null,null,null,null,null,null,null,null,null,null,null,null,null,null,null,null,null,null,null,null,null,null,null,null,null,null,null,null,null,null,null,null,null,null,null,null,null,null,null,null,null,null,null,null,null,null,null,null,null,null,null,null,null,null,null,null,null,null,null,null,null,null,null,null,null,null,null,null,null,null,null,null,null,null,null,null,null,null,null,null,null,null,null,null,null,null,null,null,null,null,null,null,null,null,null,"Tarikh",null,null,null,null,null,null,null,null,null,null,null,null,null,null,null,null,null,null,null,null,"/",null,null,null,null,null,null,null,null,null,null,null,null,null,null,"/",null,null,null,null,null,null,null,null,null,null,null,null,null,null,null,null,null,null,null,null,null,null,null,null,null,null,null,null,null,null,null,null,null,null,null,null,null,null,null,null,14]
[null,14,null,null,null,null,null,null,null,null,null,null,null,null,null,null,null,null,null,null,null,null,null,null,null,null,null,null,null,null,null,null,null,null,null,null,null,null,null,null,null,null,null,null,null,null,null,null,null,null,null,null,null,null,null,null,null,null,null,null,null,null,null,null,null,null,null,null,null,null,null,null,null,null,null,null,null,null,null,null,null,null,null,null,null,null,null,null,null,null,null,null,null,null,null,null,null,null,null,null,null,null,null,null,null,null,null,null,null,null,null,null,null,null,null,null,null,null,null,null,null,null,null,null,null,null,null,null,null,null,null,null,null,null,null,null,null,null,null,null,null,null,null,null,null,null,null,null,null,null,null,null,null,null,null,null,null,null,null,null,null,null,null,null,null,null,null,null,null,null,null,null,null,null,null,null,null,null,null,null,null,null,null,null,null,null,null,null,null,null,null,null,null,null,null,null,null,null,null,null,null,null,null,null,null,null,null,null,null,null,null,null,null,null,null,null,null,6]
[null,15,null,null,null,null,null,null,null,null,null,null,null,null,null,null,null,null,null,null,null,null,null,null,null,null,null,null,null,null,null,null,null,null,null,null,null,null,null,null,null,null,null,null,null,null,null,null,null,null,null,null,null,null,null,null,null,null,null,null,null,null,null,null,null,null,null,null,null,null,null,null,null,null,null,null,null,null,null,null,null,null,null,null,null,null,null,null,null,null,null,null,null,null,null,null,null,null,null,null,null,null,null,null,null,null,null,null,null,null,null,null,null,null,null,null,null,null,null,null,null,null,null,null,null,null,null,null,null,null,null,null,null,null,null,null,null,null,null,null,null,null,null,null,null,null,null,null,null,null,null,null,null,null,null,null,null,null,null,null,null,null,null,null,null,null,null,null,null,null,null,null,null,null,null,null,null,null,null,null,null,null,null,null,null,null,null,null,null,null,null,null,null,null,null,null,null,null,null,null,null,null,null,null,null,null,null,null,null,null,null,null,null,null,null,null,null,14]
[null,null,null,null,null,null,null,null,null,null,null,null,null,null,null,null,null,null,null,null,null,null,null,null,null,null,null,null,null,null,null,null,null,null,null,null,null,null,null,null,null,null,null,null,null,null,null,null,null,null,null,null,null,null,null,null,null,null,null,null,null,null,null,null,null,null,null,null,null,null,null,null,null,null,null,null,null,null,null,null,null,null,null,null,null,null,null,null,null,null,null,null,null,null,null,null,null,null,null,null,null,null,null,null,null,null,null,null,null,null,null,null,null,null,null,null,null,null,null,null,null,null,null,null,null,null,null,null,null,null,null,null,null,null,null,null,null,null,null,null,null,null,null,null,null,null,null,null,null,null,null,null,null,null,null,null,null,null,null,null,null,null,null,null,null,null,null,null,null,null,null,null,null,null,null,null,null,null,null,null,null,null,null,null,null,null,null,null,null,null,null,null,null,null,null,null,null,null,null,null,null,null,null,null,null,null,null,null,null,null,null,null,null,null,null,null,null,14,"z","z","z","z","z","z","z"]

{"sheet":"List","index":5,"n_rows":33,"n_cols":11,"rows_kept":33,"cut":false,"hidden":true,"merged":[]}
[2022,null,null,null,null,null,"Tahun Memohon","Tempoh"]
["HARI","BULAN","AGE","TDOB",null,null,"Tpohon",null,"TPP",null,"TExam"]
[1,1,35,{"$f":"$A$1-C3","v":1987},null,null,{"$f":"A1","v":2022},0,{"$f":"$A$1+H3","v":2022},28,{"$f":"$A$1-J3","v":1994}]
[2,2,34,1988,null,null,{"$f":"G3+1","v":2023},1,{"$f":"$A$1+H4","v":2023},27,{"$f":"$A$1-J4","v":1995}]
[3,3,33,1989,null,null,null,2,2024,26,1996]
[4,4,32,1990,null,null,null,3,2025,25,1997]
[5,5,31,1991,null,null,null,4,2026,24,1998]
[6,6,30,1992,null,null,null,5,2027,23,1999]
[7,7,29,1993,null,null,null,6,2028,22,2000]
[8,8,28,1994,null,null,null,7,2029,21,2001]
[9,9,27,1995,null,null,null,8,2030,20,2002]
[10,10,26,1996,null,null,null,null,null,19,2003]
[11,11,25,1997,null,null,null,null,null,18,2004]
[12,12,24,1998,null,null,null,null,null,17,2005]
[13,null,23,1999,null,null,null,null,null,16,2006]
[14,null,22,2000,null,null,null,null,null,15,2007]
[15,null,21,2001,null,null,null,null,null,14,2008]
[16,null,20,2002,null,null,null,null,null,13,2009]
[17,null,19,2003,null,null,null,null,null,12,2010]
[18,null,18,2004,null,null,null,null,null,11,2011]
[19,null,17,2005,null,null,null,null,null,10,2012]
[20,null,16,2006,null,null,null,null,null,9,2013]
[21,null,15,{"$f":"$A$1-C23","v":2007},null,null,null,null,null,8,2014]
[22,null,14,2008,null,null,null,null,null,7,2015]
[23,null,13,2009,null,null,null,null,null,6,2016]
[24,null,12,2010,null,null,null,null,null,5,2017]
[25,null,11,2011,null,null,null,null,null,4,2018]
[26,null,10,2012,null,null,null,null,null,3,2019]
[27,null,null,null,null,null,null,null,null,2,2020]
[28,null,null,null,null,null,null,null,null,1,2021]
[29,null,null,null,null,null,null,null,null,0,2022]
[30]
[31]